Workbook

Sheet KPI definitions (hidden)
B1: KPI definitions | C1: Report version: 4.0.5 (updated for Analyze 10.0)
B3: RF Metrics | C3: Parameter/definition | D3: Start trigger | E3: End trigger | F3: Notes
B4: Serving SS-RSRP | C4: SS-RSRP Nth best where N=1 or SS-RSRP serving beam | F4: User selectable in Settings ( cell M4), uses automatically Nth best if serving beam results not available
B5: Serving SS-RSRQ | C5: SS-RSRQ Nth best where N=1 or SS-RSRQ serving beam | F5: User selectable in Settings ( cell M4), uses automatically Nth best if serving beam results not available
B6: Serving SS-SINR | C6: SS-SINR Nth best where N=1 or SS-SINR serving beam | F6: User selectable in Settings ( cell M4), uses automatically Nth best if serving beam results not available
B7: TX Power PUSCH
B8: TX Power PUCCH
B9: TX Power SRS
B10: 5G NR vs. LTE coverage | C10: Share of time where 5G SS-RSRP samples vs LTE RSRP Serving cell primary samples
B11: Single beam dominance ratio (within 6dB) | C11: Share of time where single beam coverage (within 6dB from the best)
B12: Detected beams (total over all cells) | C12: 100*((number of detected beams over all PCIs detected) /(number of expected beams (on Settings page) multiplied by all PCIs detected). Note assumes number of beams uniform across all cells (PCIs) | F12: If number of beams is set high (default 63) and network using considerable smaller amount of beams, this KPI will show very low value.
B13: Individual Beam SS-RSRP | C13: SS-RSRP % beams where required SS-RSRP threshold met (on Settings page)
B14: Individual Beam SS-RSRQ | C14: SS-RSRQ % beams where required SS-RSRQ threshold met (on Settings page)
B15: Individual Beam SS-SINR | C15: SS-SINR % beams where required SS-SINR threshold met (on Settings page)
B16: RACH Metrics
B17: 5G NR RACH Success Rate | C17: 5G RACH result=Succeeded | F17: This includes all RACH reasons (covers channel requests as well as cell changes)
B18: 5G NR RACH Access Delay
B19: 5G NR RACH PUSCH Power
B20: 5G NR RACH Preamble Initial Power
B21: 5G NR RACH Preamble Count
B22: 5G NR RACH Preamble Success
B23: 5G NR RACH CR Msg4 Decoding Failures
B24: 5G NR RACH Timing Advance
B25: Accessibility Metrics
B26: 5G NR SN Addition Success Rate | C26: 100*SN addition success/SN addition attempts | D26: SN addition attempt = RRCConnectionReconfiguration message with NR radio bearer setup | E26: SN addition success = SCELLMOD event indicating addition success OR 5G RACH =Success OR 5G PDSCH throughput>0 | F26: SCELLMOD event issues in measurement files might cause slight deviation in the results as well as different UE types (chipsets)
B27: 5G NR SN Addition Delay | C27: Time from SN addition attempt to SN Addition success | D27: as above | E27: as above | F27: Zero values excluded from results.
B28: 5G NR E2E Session Setup Success Rate | C28: 100*NR setup success/NR attempts | D28: NR attempt = UE reports NR PCI with MeasurementReport (B1) OR RRCConnectionReconfiguration message with NR radio bearer setup | E28: NR setup success = SCELLMOD event indicating addition success OR 5G RACH =Success OR 5G PDSCH throughput>0 | F28: SCELLMOD event issues in measurement files might cause slight deviation in the results as well as different UE types (chipsets), Timeout from B1 measurement has now been defined as 60 sec --> high setup times might indicate that network is not receiving UE B1 reports or not responding to them or UE cannot decode the response.
B29: 5G NR E2E Session Setup Time (from UE measurement) | C29: Time from NR attempt to NR success | D29: as above | E29: as above | F29: Zero values excluded from results.
B30: 5G NR E2E Session Setup Time (blind mode) | C30: Time from UECapabilityInformation indicating NR capability to NR RACH success | F30: REMOVED! This is considered obsolete nowadays and removed from this version.
B31: Retainability/HO Metrics
B32: Dual Connectivity Drop Rate (RRC drop) | C32: 100*( RRC Connection Drop)/(NR setup success) | D32: NR setup success = SCELLMOD event indicating addition success OR 5G RACH =Success OR 5G PDSCH throughput>0 | E32: LTE RRC Connection Dropped event when Packet technology = EN-DC
B33: 5G NR Session Drop Rate | C33: 100* NR drop/NR setup success | D33: NR setup success = SCELLMOD event indicating addition success OR 5G RACH =Success OR 5G PDSCH throughput>0 | E33: NR drop=SCGFailureInformationNR OR LTE RRC Connection Dropped event during active NR session | F33: If RRC connection drop is due end of logfile, it will be discarded from the KPI
B34: 5G NR Cell Change Success Rate | C34: 100*Cell change success/Cell change attempt | D34: Cell change attempt=RRCConnectionReconfiguration indicating a new NR PC | E34: Cell change success=SCELLMOD event indicatinfg cell change success after RRCConnectionReconfiguration to new NR PCI | F34: Implementation for Samsung chipset is based on purely SCELLMOD events indicating cell change success/failure. This is because Samsung is not able to report Serving PCI (NR).
B35: 5G NR Cell Change Time | C35: Time from Cell change attempt to Cell change success | D35: as above | E35: as above | F35: Cell change preparation time from A3 measurement to cell change command (RRCConnectionReconfiguration to new NR PCI) is not included. Please note! This KPI does not work for chipset not able to report serving cell/beam metrics (Samsung chipsets).
B36: Quality Metrics
B37: Overall
B38: MAC Downlink BLER | C38: Calculate as total over all SCG cells | F38: Individual cells might have lower/higher value than this total
B39: PDSCH Throughput | F39: To display average value properly, please check that Analyze --> Options --> Presentation --> Throughput unit Mbit/s
B40: PUSCH Throughput | F40: To display average value properly, please check that Analyze --> Options --> Presentation --> Throughput unit Mbit/s
B41: PDSCH Throughput (filtered by downlink application) | C41: Filtered according to application type (<> ICMP ping) and transfer direction (=Downlink) | F41: To display average value properly, please check that Analyze --> Options --> Presentation --> Throughput unit Mbit/s
B42: PUSCH Throughput (filtered by uplink application) | C42: Filtered according to application type (<> ICMP ping) and transfer direction (=Uplink) | F42: To display average value properly, please check that Analyze --> Options --> Presentation --> Throughput unit Mbit/s
B43: Peak PDSCH Throughput
B44: Peak PUSCH Throughput
B45: Peak PDSCH Throughput (filtered by downlink application and coverage) | C45: Filtered according to good coverage criteria as defined in report settings (default SS-RSRP >= -60 dBm and SS-SINR >= 22 dB)
B46: Peak PUSCH Throughput (filtered by uplink application and coverage) | C46: Filtered according to good coverage criteria as defined in report settings (default SS-RSRP >= -60 dBm and SS-SINR >= 22 dB)
B47: Application Throughput Downlink | F47: To display average value properly, please check that Analyze --> Options --> Presentation --> Throughput unit Mbit/s
B48: Application Throughput Uplink | F48: To display average value properly, please check that Analyze --> Options --> Presentation --> Throughput unit Mbit/s
B49: Ping Round Trip Time
B50: NR Dual Connectivy usage | C50: 100* (time on Packet technology as EN-DC)( total time of Packet technology) | F50: The accuracy of this depends on the logging tool. In some (Qualcomm) chipsets this has been quite in accurate. If required a workaround would be available.
B51: 5G vs 5G+LTE data ratio (EN-DC) - now only downlink | C51: 100*(5G MAC data volume) /(5G MAC data volume + LTE MAC data volume) | F51: In practise this is share of 5G data volume vs. LTE+5G data volume. Data volume is calculated as throughput*time_interval, which in some cases might not be accurate.

Sheet Info (hidden)
B3: Nemo Analyze
C21: 5G NR NSA ACCEPTANCE REPORT
C24: CUSTOMER
C26: REGION
C28: MARKET
C30: SITE NAMES
C32: ENGINEER NAME
C34: OVERALL RESULT | D34: =IF(AND(OR('5G NR Acceptance (UE)'!#REF!="Pass",'5G NR Acceptance (UE)'!#REF!="--"),OR(#REF!="Pass",#REF!="--")),"PASS","FAIL") -> 

Sheet Settings (hidden)
B1: KPI | D1: Threshold | G1: Target | I1: Mandatory Check | K1: Additional settings | N1: YES
D2: Operator | E2: Value | F2: Unit | G2: Operator | H2: Value
B3: RF Metrics (UE) | K3: Include Beam RF Metrics | M3: TRUE
B4: Serving SS-RSRP | D4: >= | E4: -105 | F4: dBm | G4: > | H4: 0.9 | I4: TRUE | K4: Use serving beam measurements for UE if available (instead of best measured) | M4: TRUE
B5: Serving SS-RSRQ | D5: >= | E5: -15 | F5: dB | G5: > | H5: 0.9 | I5: TRUE | K5: Estimate NR vs LTE data ration based on downlink only | M5: TRUE
B6: Serving SS-SINR | D6: >= | E6: 0 | F6: dB | G6: > | H6: 0.95 | I6: TRUE | K6: Hide undetected beams from Beam RF Metrics tables | M6: TRUE
B7: TX Power PUSCH | D7: < | E7: 20 | F7: dB | G7: > | H7: 0.9 | I7: TRUE
B8: TX Power PUCCH | D8: < | E8: 20 | F8: dB | G8: > | H8: 0.9 | I8: TRUE
B9: TX Power SRS | D9: < | E9: 20 | F9: dB | G9: > | H9: 0.9 | I9: TRUE
B10: 5G NR vs. LTE coverage | F10: % | G10: > | H10: 0.9 | I10: FALSE
B11: RF Metrics (Scanner)
B12: Best Server SS-RSRP | D12: >= | E12: -115 | F12: dBm | G12: > | H12: 0.9 | I12: TRUE
B13: Best Server SS-RSRQ | D13: >= | E13: -15 | F13: dB | G13: > | H13: 0.9 | I13: TRUE
B14: Best Server SS-SINR | D14: >= | E14: 5 | F14: dB | G14: > | H14: 0.95 | I14: TRUE
B15: Beam RF Metrics (UE) | N15: Beam indices
B16: 5G NR UE - Beam configuration (list all possible beam indices in-the-air) | E16: 0,1,2,3,4,5,6,7,8,9,10,11,12,13,14,15,16,17,18,19,20,21,22,23,24,25,26,27,28,29,30,31,32,33,34,35,36,37,38,39,40,41,42,43,44,45,46,47,48,49,50,51,52,53,54,55,56,57,58,59,60,61,62,63 | I16: FALSE | K16: =IF(LEN(E16)-LEN(SUBSTITUTE(E16,",",""))>63,"Too many beams configured (max 64)","") ->  | N16: 0 | O16: 1 | P16: 2 | Q16: 3 | R16: 4 | S16: 5 | T16: 6 | U16: 7 | V16: 8 | W16: 9 | X16: 10 | Y16: 11 | Z16: 12 | AA16: 13 | AB16: 14 | AC16: 15 | AD16: 16 | AE16: 17 | AF16: 18 | AG16: 19 | AH16: 20 | AI16: 21 | AJ16: 22 | AK16: 23 | AL16: 24 | AM16: 25 | AN16: 26 | AO16: 27 | AP16: 28 | AQ16: 29 | AR16: 30 | AS16: 31 | AT16: 32 | AU16: 33 | AV16: 34 | AW16: 35 | AX16: 36 | AY16: 37 | AZ16: 38 | BA16: 39 | BB16: 40 | BC16: 41 | BD16: 42 | BE16: 43 | BF16: 44 | BG16: 45 | BH16: 46 | BI16: 47 | BJ16: 48 | BK16: 49 | BL16: 50 | BM16: 51 | BN16: 52 | BO16: 53 | BP16: 54 | BQ16: 55 | BR16: 56 | BS16: 57 | BT16: 58 | BU16: 59 | BV16: 60 | BW16: 61 | BX16: 62 | BY16: 63
B17: 5G NR UE Beam SS-RSRP | D17: >= | E17: -90 | F17: dBm | G17: > | H17: 0.9 | I17: FALSE
B18: 5G NR UE Beam SS-RSRQ | D18: >= | E18: -12 | F18: dB | G18: > | H18: 0.9 | I18: FALSE
B19: 5G NR UE Beam SS-SINR | D19: >= | E19: 5 | F19: dB | G19: > | H19: 0.9 | I19: FALSE
B20: 5G NR UE Single beam dominance ratio (with 6dB window) | F20: % | G20: > | H20: 0.6 | I20: FALSE
B21: Beam RF Metrics (Scanner) | N21: Beam indices
B22: 5G NR Scanner - Beam configuration (in-the-air) | E22: 0,1,2,3,4,5,6,7,8,9,10,11,12,13,14,15,16,17,18,19,20,21,22,23,24,25,26,27,28,29,30,31,32,33,34,35,36,37,38,39,40,41,42,43,44,45,46,47,48,49,50,51,52,53,54,55,56,57,58,59,60,61,62,63 | I22: TRUE | K22: =IF(LEN(E22)-LEN(SUBSTITUTE(E22,",",""))>63,"Too many beams configured (max 64)","") ->  | N22: 0 | O22: 1 | P22: 2 | Q22: 3 | R22: 4 | S22: 5 | T22: 6 | U22: 7 | V22: 8 | W22: 9 | X22: 10 | Y22: 11 | Z22: 12 | AA22: 13 | AB22: 14 | AC22: 15 | AD22: 16 | AE22: 17 | AF22: 18 | AG22: 19 | AH22: 20 | AI22: 21 | AJ22: 22 | AK22: 23 | AL22: 24 | AM22: 25 | AN22: 26 | AO22: 27 | AP22: 28 | AQ22: 29 | AR22: 30 | AS22: 31 | AT22: 32 | AU22: 33 | AV22: 34 | AW22: 35 | AX22: 36 | AY22: 37 | AZ22: 38 | BA22: 39 | BB22: 40 | BC22: 41 | BD22: 42 | BE22: 43 | BF22: 44 | BG22: 45 | BH22: 46 | BI22: 47 | BJ22: 48 | BK22: 49 | BL22: 50 | BM22: 51 | BN22: 52 | BO22: 53 | BP22: 54 | BQ22: 55 | BR22: 56 | BS22: 57 | BT22: 58 | BU22: 59 | BV22: 60 | BW22: 61 | BX22: 62 | BY22: 63
B23: 5G NR Scanner Beam SS-RSRP | D23: >= | E23: -100 | F23: dBm | G23: > | H23: 0.9 | I23: FALSE
B24: 5G NR Scanner Beam SS-RSRQ | D24: >= | E24: -10 | F24: dB | G24: > | H24: 0.9 | I24: FALSE
B25: 5G NR Scanner Beam SS-SINR | D25: >= | E25: 5 | F25: dB | G25: > | H25: 0.9 | I25: FALSE
B26: 5G NR Scanner Single beam dominance ratio (with 6dB window) | F26: % | G26: > | H26: 0.6 | I26: FALSE
B27: RACH
B28: 5G NR RACH Success Rate | F28: % | G28: > | H28: 0.95 | I28: TRUE
B29: 5G NR RACH Access Delay | D29: < | E29: 25 | F29: msec | G29: > | H29: 0.9 | I29: TRUE
B30: 5G NR RACH PUSCH Power | D30: < | E30: 25 | F30: dBm | G30: > | H30: 0.9 | I30: FALSE
B31: 5G NR RACH Preamble Initial Power | D31: < | E31: 20 | F31: dBm | G31: > | H31: 0.9 | I31: FALSE
B32: 5G NR RACH Preamble Count | D32: < | E32: 3 | G32: > | H32: 0.9 | I32: FALSE
B33: 5G NR RACH Preamble Success | D33: > | E33: 0 | G33: > | H33: 0.9 | I33: FALSE
B34: 5G NR RACH CR Msg4 Decoding Failures | D34: < | E34: 1 | G34: > | H34: 0.9 | I34: FALSE
B35: 5G NR RACH Timing Advance | D35: < | E35: 30 | G35: > | H35: 0.9 | I35: FALSE
B36: Accessibility
B37: 5G NR SN Addition Success Rate | F37: % | G37: > | H37: 0.8 | I37: TRUE
B38: 5G NR SN Addition Delay | D38: < | E38: 150 | F38: msec | G38: > | H38: 0.9 | I38: TRUE
B39: 5G NR E2E Session Setup Success Rate | F39: % | G39: > | H39: 0.9 | I39: TRUE
B40: 5G NR E2E Session Setup Time (from UE measurement) | D40: < | E40: 300 | F40: msec | G40: > | H40: 0.9 | I40: FALSE
B41: 5G NR E2E Session Setup Time (blind mode) | D41: < | E41: 200 | F41: msec | G41: > | H41: 0.9 | I41: FALSE
B42: Retainability/HO Metrics
B43: 5G NR RRC Connection Drop Rate (EP-DC) | F43: % | G43: < | H43: 0.05 | I43: TRUE
B44: 5G NR Session Drop Rate | F44: % | G44: < | H44: 0.1 | I44: TRUE
B45: 5G NR Inter-cell Handover Success Rate | F45: % | G45: > | H45: 0.95 | I45: TRUE
B46: 5G NR Inter-cell Handover Time | D46: < | E46: 100 | F46: msec | G46: > | H46: 0.9 | I46: TRUE
B47: Quality Metrics
B48: Overall
B49: MAC Downlink BLER | D49: < | E49: 5 | F49: % | G49: > | H49: 0.9 | I49: TRUE
B50: PDSCH Throughput | D50: >= | E50: 100 | F50: Mbps | G50: > | H50: 0.7 | I50: FALSE
B51: PUSCH Throughput | D51: >= | E51: 20 | F51: Mbps | G51: > | H51: 0.7 | I51: FALSE
B52: PDSCH Throughput (filtered by downlink application) | D52: >= | E52: 200 | F52: Mbps | G52: > | H52: 0.75 | I52: TRUE
B53: PUSCH Throughput (filtered by uplink application) | D53: >= | E53: 40 | F53: Mbps | G53: > | H53: 0.75 | I53: TRUE
B54: Peak PDSCH Throughput | D54: >= | E54: 500 | F54: Mbps | I54: FALSE
B55: Peak PUSCH Throughput | D55: >= | E55: 50 | F55: Mbps | I55: FALSE
B56: Application Throughput Downlink | D56: >= | E56: 150 | F56: Mbps | G56: > | H56: 0.75 | I56: TRUE
B57: Application Throughput Uplink | D57: >= | E57: 20 | F57: Mbps | G57: > | H57: 0.75 | I57: TRUE
B58: Ping Round Trip Time | D58: < | E58: 25 | F58: msec | G58: > | H58: 0.95 | I58: TRUE
B59: NR Dual Connectivy usage | F59: % | G59: > | H59: 0.9 | I59: FALSE
B60: 5G NR vs LTE data ratio (EN-DC) | F60: % | G60: > | H60: 0.95 | I60: FALSE
B61: Acceptance
B62: Mandatory KPIs | G62: = | H62: 1 | I62: TRUE
B63: Non Mandatory KPIs | G63: >= | H63: 0.8 | I63: TRUE
B64: Overall

Sheet 5G NR Acceptance (UE)
B2: KPI List | E2: PERFORMANCE
B3: RF Metrics | D3: Mandatory Check | E3: Total | F3: Passed | G3: Average | H3: MEAS | I3: THRESHOLD | J3: TARGET | K3: STATUS
B4: Intra Frequency Handover success (S1->S2)
B5: Intra Frequency Handover success (S2->S3)
B6: Intra Frequency Handover success (S3->S1)
B7: Av SSB RSRP (dBm) | C7: Av SSB RSRP (dBm) | D7: =IF(Settings!I4=TRUE,"Mandatory","Non Mandatory") -> Mandatory | E7: =IF(AND(Settings!$M$4=TRUE,SUM(ServRSRPDensityUE)>0),SUM(ServRSRPDensityUE),SUM(RSRPDensityUE)) -> 166196.001 | F7: =IF(AND(Settings!$M$4=TRUE,SUM(ServRSRPDensityUE)>0),SUMIFS(ServRSRPDensityUE,ServRSRPLowerBoundUE,CONCATENATE(Settings!D4,Settings!E4))+SUMIFS('5G_NR_raw_UE'!IP3:IP200,'5G_NR_raw_UE'!IK3:IK200,"..."),SUMIFS(RSRPDensityUE,RSRPLowerBoundUE,CONCATENATE(Settings!D4,Settings!E4))+SUMIFS('5G_NR_raw_UE'!G3:G200,'5G_NR_raw_UE'!B3:B200,"...")) -> 166196.001 | G7: =IFERROR(IF(AND(Settings!$M$4=TRUE,'5G_NR_raw_UE'!JJ3<>"",'5G_NR_raw_UE'!JJ3<>0),'5G_NR_raw_UE'!JJ3,IF(ISBLANK('5G_NR_raw_UE'!JI3),"",'5G_NR_raw_UE'!JI3)),"") -> -73.860189 | H7: =IF(E7=0,"--",F7/E7) -> 1 | I7: =CONCATENATE(Settings!D4,Settings!E4,Settings!F4) -> >=-105dBm | J7: =CONCATENATE(Settings!G4,Settings!H4*100,"%") -> >90% | K7: =IF(H7<>"--",IF(H7>(1*Settings!H4),IF(Settings!I4=TRUE,"Pass-Mandatory","Pass-Non mandatory"),IF(Settings!I4=TRUE,"Fail-Mandatory","Fail-Non mandatory")),"--") -> Pass-Mandatory | L7: =CONCATENATE(D7,K7) -> MandatoryPass-Mandatory
B8: Av SSB RSRQ (dB) | C8: Av SSB RSRQ (dB) | D8: =IF(Settings!I5=TRUE,"Mandatory","Non Mandatory") -> Mandatory | E8: =IF(AND(Settings!$M$4=TRUE,SUM(ServRSRQDensityUE)>0),SUM(ServRSRQDensityUE),SUM(RSRQDensityUE)) -> 166196.001 | F8: =IF(AND(Settings!$M$4=TRUE,SUM(ServRSRQDensityUE)>0),SUMIFS(ServRSRQDensityUE,ServRSRQLowerBoundUE,CONCATENATE(Settings!D5,Settings!E5))+SUMIFS('5G_NR_raw_UE'!IX3:IX200,'5G_NR_raw_UE'!IS3:IS200,"..."),SUMIFS(RSRQDensityUE,RSRQLowerBoundUE,CONCATENATE(Settings!D5,Settings!E5))+SUMIFS('5G_NR_raw_UE'!Q3:Q200,'5G_NR_raw_UE'!L3:L200,"...")) -> 165159.001 | G8: =IFERROR(IF(AND(Settings!$M$4=TRUE,'5G_NR_raw_UE'!JM3<>"",'5G_NR_raw_UE'!JM3<>0),'5G_NR_raw_UE'!JM3,IF(ISBLANK('5G_NR_raw_UE'!JL3),"",'5G_NR_raw_UE'!JL3)),"") -> -11.04374 | H8: 0.9937603793 | I8: =CONCATENATE(Settings!D5,Settings!E5,Settings!F5) -> >=-15dB | J8: =CONCATENATE(Settings!G5,Settings!H5*100,"%") -> >90% | K8: =IF(H8<>"--",IF(H8>(1*Settings!H5),IF(Settings!I5=TRUE,"Pass-Mandatory","Pass-Non mandatory"),IF(Settings!I5=TRUE,"Fail-Mandatory","Fail-Non mandatory")),"--") -> Pass-Mandatory | L8: MandatoryPass-Mandatory
B9: Av SSB-SINR (dB) | C9: Av SSB-SINR (dB) | D9: =IF(Settings!I6=TRUE,"Mandatory","Non Mandatory") -> Mandatory | E9: =IF(AND(Settings!$M$4=TRUE,SUM(ServSINRDensityUE)>0),SUM(ServSINRDensityUE),SUM(SINRDensityUE)) -> 166196.001 | F9: =IF(AND(Settings!$M$4=TRUE,SUM(ServSINRDensityUE)>0),SUMIFS(ServSINRDensityUE,ServSINRLowerBoundUE,CONCATENATE(Settings!D6,Settings!E6))+SUMIFS('5G_NR_raw_UE'!JF3:JF200,'5G_NR_raw_UE'!JA3:JA200,"..."),SUMIFS(SINRDensityUE,SINRLowerBoundUE,CONCATENATE(Settings!D6,Settings!E6))+SUMIFS('5G_NR_raw_UE'!AA3:AA200,'5G_NR_raw_UE'!V3:V200,"...")) -> 165184.001 | G9: =IFERROR(IF(AND(Settings!$M$4=TRUE,'5G_NR_raw_UE'!JP3<>"",'5G_NR_raw_UE'!JP3<>0),'5G_NR_raw_UE'!JP3,IF(ISBLANK('5G_NR_raw_UE'!JO3),"",'5G_NR_raw_UE'!JO3)),"") -> 13.631073 | H9: 0.9939108041 | I9: =CONCATENATE(Settings!D6,Settings!E6,Settings!F6) -> >=0dB | J9: =CONCATENATE(Settings!G6,Settings!H6*100,"%") -> >95% | K9: =IF(H9<>"--",IF(H9>(1*Settings!H6),IF(Settings!I6=TRUE,"Pass-Mandatory","Pass-Non mandatory"),IF(Settings!I6=TRUE,"Fail-Mandatory","Fail-Non mandatory")),"--") -> Pass-Mandatory | L9: MandatoryPass-Mandatory
B10: SgNB Add SR | D10: =IF(Settings!I37=TRUE,"Mandatory","Non Mandatory") -> Mandatory | E10: =COUNTIF(AccRaw!$AK:$AK,"SN addition request")-COUNTIF(AccRaw!$AK:$AK,"SN addition abort") -> 9 | F10: =COUNTIF(AccRaw!$AK:$AK,"SN addition success") -> 9 | G10: =IF(E10=0,"--",F10/E10) -> 1 | H10: 1 | I10: =CONCATENATE(Settings!D37,Settings!E37,Settings!F37) -> % | J10: =CONCATENATE(Settings!G37,Settings!H37*100,"%") -> >80% | K10: =IF(H10<>"--",IF(H10>(1*Settings!H37),IF(Settings!I37=TRUE,"Pass-Mandatory","Pass-Non mandatory"),IF(Settings!I37=TRUE,"Fail-Mandatory","Fail-Non mandatory")),"--") -> Pass-Mandatory | L10: MandatoryPass-Mandatory
B11: SgNB Modification interruption time (ms) (Pscell change time) | D11: =IF(Settings!I43=TRUE,"Mandatory","Non Mandatory") -> Mandatory | E11: =COUNTIF(RetRaw!Z:Z,">0") -> 8 | F11: =COUNTIFS(RetRaw!Z:Z,CONCATENATE(Settings!D46,Settings!E46)) -> 8 | G11: =IFERROR(SUMIF(RetRaw!Z:Z,">0")/COUNTIFS(RetRaw!Z:Z,">0"),"") -> 59.5 | H11: =IF(E11=0,"--",(F11/E11)) -> 1 | I11: =CONCATENATE(Settings!D43,Settings!E43,Settings!F43) -> % | J11: =CONCATENATE(Settings!G43,Settings!H43*100,"%") -> <5% | K11: =IF(H11<>"--",IF(H11>(1*Settings!H43),IF(Settings!I43=TRUE,"Pass-Mandatory","Pass-Non mandatory"),IF(Settings!I43=TRUE,"Fail-Mandatory","Fail-Non mandatory")),"--") -> Pass-Mandatory | L11: MandatoryPass-Mandatory
B12: SgNB Abnormal Release Rate | D12: =IF(Settings!I44=TRUE,"Mandatory","Non Mandatory") -> Mandatory | E12: =COUNTIF(AccRaw!$R:$R,"NR success") -> 10 | F12: =COUNTIF(AccRaw!$R:$R,"NR dropped")+COUNTIF(AccRaw!$R:$R,"Timeout in drop")+COUNTIF(AccRaw!$R:$R,"NR dropped - SCG failure")-SUM(RetRaw!E:E) -> 0 | G12: =IF(E12=0,"--",(F12/E12)) -> 0 | H12: 0 | I12: =CONCATENATE(Settings!D44,Settings!E44,Settings!F44) -> % | J12: =CONCATENATE(Settings!G44,Settings!H44*100,"%") -> <10% | K12: =IF(H12<>"--",IF(H12<(1*Settings!H44),IF(Settings!I44=TRUE,"Pass-Mandatory","Pass-Non mandatory"),IF(Settings!I44=TRUE,"Fail-Mandatory","Fail-Non mandatory")),"--") -> Pass-Mandatory | L12: MandatoryPass-Mandatory
B13: Pscell Change Success Rate | D13: =IF(Settings!I45=TRUE,"Mandatory","Non Mandatory") -> Mandatory | E13: =IF(COUNTIF(RetRaw!M:M,"NR HO command")>0,COUNTIF(RetRaw!M:M,"NR HO command"),IF((COUNTA(RetRaw!AE:AE)-2+COUNTA(RetRaw!AR:AR)-2)>0,(COUNTA(RetRaw!AE:AE)-2+COUNTA(RetRaw!AR:AR)-2),0)) -> 8 | F13: =IF(COUNTIF(RetRaw!M:M,"NR HO command")>0,COUNTIF(RetRaw!M:M,"NR HO complete")-COUNTIF(RetRaw!AB:AB,"YES"),IF(COUNTA(RetRaw!AE:AE)-2>0,COUNTA(RetRaw!AE:AE)-2,0)) -> 8 | G13: 1 | H13: 1 | I13: =CONCATENATE(Settings!D45,Settings!E45,Settings!F45) -> % | J13: =CONCATENATE(Settings!G45,Settings!H45*100,"%") -> >95% | K13: =IF(H13<>"--",IF(H13>(1*Settings!H45),IF(Settings!I45=TRUE,"Pass-Mandatory","Pass-Non mandatory"),IF(Settings!I45=TRUE,"Fail-Mandatory","Fail-Non mandatory")),"--") -> Pass-Mandatory | L13: MandatoryPass-Mandatory
B14: MeNB change Success Rate (Anchoring change) | E14: 8 | F14: 8 | G14: 1
B15: Av DL User Throughput (Total) 100MHz(TDD)/10Mhz(FDD)(Application) | D15: =IF(Settings!I56=TRUE,"Mandatory","Non Mandatory") -> Mandatory | E15: =SUM(AppDlTputDensity) -> 49652.004 | F15: =SUMIFS(AppDlTputDensity,AppDlTputLowerBound,CONCATENATE(Settings!D56,Settings!E56*1000000))+SUMIFS(AppDlTputDensity,AppDlTputLowerBound,"...") -> 37929.003 | G15: 179.7470032 | H15: =IF(E15=0,"--",F15/E15) -> 0.7638967201 | I15: =CONCATENATE(Settings!D56,Settings!E56,Settings!F56) -> >=150Mbps | J15: =CONCATENATE(Settings!G56,Settings!H56*100,"%") -> >75% | K15: =IF(H15<>"--",IF(H15>(1*Settings!H56),IF(Settings!I56=TRUE,"Pass-Mandatory","Pass-Non mandatory"),IF(Settings!I56=TRUE,"Fail-Mandatory","Fail-Non mandatory")),"--") -> Pass-Mandatory | L15: =CONCATENATE(D15,K15) -> MandatoryPass-Mandatory
B16: Av DL User Throughput (SCG) 100MHz(TDD)/10Mhz(FDD)(MAC) | G16: 102.1742795
B17: Av UL User Throughput (Total) 100MHz(TDD)/10Mhz(FDD) (Application) | D17: =IF(Settings!I57=TRUE,"Mandatory","Non Mandatory") -> Mandatory | E17: =SUM(AppUlTputDensity) -> 0 | F17: =SUMIFS(AppUlTputDensity,AppUlTputLowerBound,CONCATENATE(Settings!D57,Settings!E57*1000000))+SUMIFS(AppUlTputDensity,AppUlTputLowerBound,"...") -> 0 | G17: 49.93707781 | H17: =IF(E17=0,"--",F17/E17) -> -- | I17: =CONCATENATE(Settings!D57,Settings!E57,Settings!F57) -> >=20Mbps | J17: =CONCATENATE(Settings!G57,Settings!H57*100,"%") -> >75% | K17: =IF(H17<>"--",IF(H17>(1*Settings!H57),IF(Settings!I57=TRUE,"Pass-Mandatory","Pass-Non mandatory"),IF(Settings!I57=TRUE,"Fail-Mandatory","Fail-Non mandatory")),"--") -> -- | L17: =CONCATENATE(D17,K17) -> Mandatory--
B18: Av UL User Throughput (SCG) 100MHz(TDD)/10Mhz(FDD) (MAC) | G18: 29.07724378

Sheet Tput_chart_raw (hidden)
B1: PDSCH (filtered) | F1: PUSCH (filtered) | J1: App DL tput | N1: App UL tput | R1: SN addition delay
B2: Throughput (Mbps) | C2: CDF | D2: PDF | F2: Throughput (Mbps) | G2: CDF | H2: PDF | J2: Throughput (Mbps) | K2: CDF | L2: PDF | N2: Throughput (Mbps) | O2: CDF | P2: PDF | R2: Throughput (Mbps) | S2: CDF | T2: PDF
B3: 0 | C3: =1-SUMIFS('5G_NR_raw_UE'!$CE:$CE,'5G_NR_raw_UE'!$CD:$CD,CONCATENATE("<=",Tput_chart_raw!B3*1000000))/C$25 -> 1 | D3: =SUMIFS('5G_NR_raw_UE'!$CE:$CE,'5G_NR_raw_UE'!$CD:$CD,CONCATENATE("<=",Tput_chart_raw!$B3*1000000)) -> 0 | F3: 0 | G3: =1-SUMIFS('5G_NR_raw_UE'!$CO:$CO,'5G_NR_raw_UE'!$CN:$CN,CONCATENATE("<=",Tput_chart_raw!F3*1000000))/G$25 ->  | H3: =SUMIFS('5G_NR_raw_UE'!$CO:$CO,'5G_NR_raw_UE'!$CN:$CN,CONCATENATE("<=",Tput_chart_raw!$F3*1000000)) -> 0 | J3: 0 | K3: =1-SUMIFS('5G_NR_raw_UE'!DC:DC,'5G_NR_raw_UE'!CX:CX,CONCATENATE("<",Tput_chart_raw!J3*1000000))/K$25 -> 1 | L3: =SUMIFS('5G_NR_raw_UE'!DC:DC,'5G_NR_raw_UE'!CX:CX,CONCATENATE("<",Tput_chart_raw!$J3*1000000)) -> 0 | N3: 0 | O3: =1-SUMIFS('5G_NR_raw_UE'!DM:DM,'5G_NR_raw_UE'!DH:DH,CONCATENATE("<",Tput_chart_raw!N3*1000000))/O$25 ->  | P3: =SUMIFS('5G_NR_raw_UE'!DM:DM,'5G_NR_raw_UE'!DH:DH,CONCATENATE("<",Tput_chart_raw!$N3*1000000)) -> 0 | R3: 0 | S3: =1-(T3/S$25) -> 1 | T3: =COUNTIF(AccRaw!AS:AS,CONCATENATE("<=",R3)) -> 0
B4: =B3+C$26 -> 50 | C4: =1-SUMIFS('5G_NR_raw_UE'!$CE:$CE,'5G_NR_raw_UE'!$CD:$CD,CONCATENATE("<=",Tput_chart_raw!B4*1000000))/C$25 -> 0.9834101382 | D4: =SUMIFS('5G_NR_raw_UE'!$CE:$CE,'5G_NR_raw_UE'!$CD:$CD,CONCATENATE("<=",Tput_chart_raw!$B4*1000000))-SUM(D$3:D3) -> 18 | F4: =F3+G$26 -> 10 | G4: =1-SUMIFS('5G_NR_raw_UE'!$CO:$CO,'5G_NR_raw_UE'!$CN:$CN,CONCATENATE("<=",Tput_chart_raw!F4*1000000))/G$25 ->  | H4: =SUMIFS('5G_NR_raw_UE'!$CO:$CO,'5G_NR_raw_UE'!$CN:$CN,CONCATENATE("<=",Tput_chart_raw!$F4*1000000))-SUM(H$3:H3) -> 0 | J4: =J3+K$26 -> 50 | K4: =1-SUMIFS('5G_NR_raw_UE'!DC:DC,'5G_NR_raw_UE'!CX:CX,CONCATENATE("<",Tput_chart_raw!J4*1000000))/K$25 -> 0.9717433157 | L4: =SUMIFS('5G_NR_raw_UE'!DC:DC,'5G_NR_raw_UE'!CX:CX,CONCATENATE("<",Tput_chart_raw!$J4*1000000))-SUM(L$3:L3) -> 1403.001 | N4: =N3+O$26 -> 10 | O4: =1-SUMIFS('5G_NR_raw_UE'!DM:DM,'5G_NR_raw_UE'!DH:DH,CONCATENATE("<",Tput_chart_raw!N4*1000000))/O$25 ->  | P4: =SUMIFS('5G_NR_raw_UE'!DM:DM,'5G_NR_raw_UE'!DH:DH,CONCATENATE("<",Tput_chart_raw!$N4*1000000))-SUM(P$3:P3) -> 0 | R4: =R3+S$26 -> 10 | S4: =1-(SUM(T$3:T4)/S$25) -> 1 | T4: =COUNTIF(AccRaw!AS:AS,CONCATENATE("<=",R4))-SUM(T$3:T3) -> 0
B5: 100 | C5: =1-SUMIFS('5G_NR_raw_UE'!$CE:$CE,'5G_NR_raw_UE'!$CD:$CD,CONCATENATE("<=",Tput_chart_raw!B5*1000000))/C$25 -> 0.801843318 | D5: =SUMIFS('5G_NR_raw_UE'!$CE:$CE,'5G_NR_raw_UE'!$CD:$CD,CONCATENATE("<=",Tput_chart_raw!$B5*1000000))-SUM(D$3:D4) -> 197 | F5: 20 | G5: =1-SUMIFS('5G_NR_raw_UE'!$CO:$CO,'5G_NR_raw_UE'!$CN:$CN,CONCATENATE("<=",Tput_chart_raw!F5*1000000))/G$25 ->  | H5: =SUMIFS('5G_NR_raw_UE'!$CO:$CO,'5G_NR_raw_UE'!$CN:$CN,CONCATENATE("<=",Tput_chart_raw!$F5*1000000))-SUM(H$3:H4) -> 0 | J5: 100 | K5: =1-SUMIFS('5G_NR_raw_UE'!DC:DC,'5G_NR_raw_UE'!CX:CX,CONCATENATE("<",Tput_chart_raw!J5*1000000))/K$25 -> 0.9172641451 | L5: =SUMIFS('5G_NR_raw_UE'!DC:DC,'5G_NR_raw_UE'!CX:CX,CONCATENATE("<",Tput_chart_raw!$J5*1000000))-SUM(L$3:L4) -> 2705 | N5: 20 | O5: =1-SUMIFS('5G_NR_raw_UE'!DM:DM,'5G_NR_raw_UE'!DH:DH,CONCATENATE("<",Tput_chart_raw!N5*1000000))/O$25 ->  | P5: =SUMIFS('5G_NR_raw_UE'!DM:DM,'5G_NR_raw_UE'!DH:DH,CONCATENATE("<",Tput_chart_raw!$N5*1000000))-SUM(P$3:P4) -> 0 | R5: 20 | S5: =1-(SUM(T$3:T5)/S$25) -> 1 | T5: =COUNTIF(AccRaw!AS:AS,CONCATENATE("<=",R5))-SUM(T$3:T4) -> 0
B6: 150 | C6: =1-SUMIFS('5G_NR_raw_UE'!$CE:$CE,'5G_NR_raw_UE'!$CD:$CD,CONCATENATE("<=",Tput_chart_raw!B6*1000000))/C$25 -> 0.2221198157 | D6: =SUMIFS('5G_NR_raw_UE'!$CE:$CE,'5G_NR_raw_UE'!$CD:$CD,CONCATENATE("<=",Tput_chart_raw!$B6*1000000))-SUM(D$3:D5) -> 629 | F6: 30 | G6: =1-SUMIFS('5G_NR_raw_UE'!$CO:$CO,'5G_NR_raw_UE'!$CN:$CN,CONCATENATE("<=",Tput_chart_raw!F6*1000000))/G$25 ->  | H6: =SUMIFS('5G_NR_raw_UE'!$CO:$CO,'5G_NR_raw_UE'!$CN:$CN,CONCATENATE("<=",Tput_chart_raw!$F6*1000000))-SUM(H$3:H5) -> 0 | J6: 150 | K6: =1-SUMIFS('5G_NR_raw_UE'!DC:DC,'5G_NR_raw_UE'!CX:CX,CONCATENATE("<",Tput_chart_raw!J6*1000000))/K$25 -> 0.7638967201 | L6: =SUMIFS('5G_NR_raw_UE'!DC:DC,'5G_NR_raw_UE'!CX:CX,CONCATENATE("<",Tput_chart_raw!$J6*1000000))-SUM(L$3:L5) -> 7615 | N6: 30 | O6: =1-SUMIFS('5G_NR_raw_UE'!DM:DM,'5G_NR_raw_UE'!DH:DH,CONCATENATE("<",Tput_chart_raw!N6*1000000))/O$25 ->  | P6: =SUMIFS('5G_NR_raw_UE'!DM:DM,'5G_NR_raw_UE'!DH:DH,CONCATENATE("<",Tput_chart_raw!$N6*1000000))-SUM(P$3:P5) -> 0 | R6: 30 | S6: =1-(SUM(T$3:T6)/S$25) -> 1 | T6: =COUNTIF(AccRaw!AS:AS,CONCATENATE("<=",R6))-SUM(T$3:T5) -> 0
B7: 200 | C7: =1-SUMIFS('5G_NR_raw_UE'!$CE:$CE,'5G_NR_raw_UE'!$CD:$CD,CONCATENATE("<=",Tput_chart_raw!B7*1000000))/C$25 -> 0 | D7: =SUMIFS('5G_NR_raw_UE'!$CE:$CE,'5G_NR_raw_UE'!$CD:$CD,CONCATENATE("<=",Tput_chart_raw!$B7*1000000))-SUM(D$3:D6) -> 241 | F7: 40 | G7: =1-SUMIFS('5G_NR_raw_UE'!$CO:$CO,'5G_NR_raw_UE'!$CN:$CN,CONCATENATE("<=",Tput_chart_raw!F7*1000000))/G$25 ->  | H7: =SUMIFS('5G_NR_raw_UE'!$CO:$CO,'5G_NR_raw_UE'!$CN:$CN,CONCATENATE("<=",Tput_chart_raw!$F7*1000000))-SUM(H$3:H6) -> 0 | J7: 200 | K7: =1-SUMIFS('5G_NR_raw_UE'!DC:DC,'5G_NR_raw_UE'!CX:CX,CONCATENATE("<",Tput_chart_raw!J7*1000000))/K$25 -> 0.3806896294 | L7: =SUMIFS('5G_NR_raw_UE'!DC:DC,'5G_NR_raw_UE'!CX:CX,CONCATENATE("<",Tput_chart_raw!$J7*1000000))-SUM(L$3:L6) -> 19027 | N7: 40 | O7: =1-SUMIFS('5G_NR_raw_UE'!DM:DM,'5G_NR_raw_UE'!DH:DH,CONCATENATE("<",Tput_chart_raw!N7*1000000))/O$25 ->  | P7: =SUMIFS('5G_NR_raw_UE'!DM:DM,'5G_NR_raw_UE'!DH:DH,CONCATENATE("<",Tput_chart_raw!$N7*1000000))-SUM(P$3:P6) -> 0 | R7: 40 | S7: =1-(SUM(T$3:T7)/S$25) -> 1 | T7: =COUNTIF(AccRaw!AS:AS,CONCATENATE("<=",R7))-SUM(T$3:T6) -> 0
B8: 250 | C8: =1-SUMIFS('5G_NR_raw_UE'!$CE:$CE,'5G_NR_raw_UE'!$CD:$CD,CONCATENATE("<=",Tput_chart_raw!B8*1000000))/C$25 -> 0 | D8: =SUMIFS('5G_NR_raw_UE'!$CE:$CE,'5G_NR_raw_UE'!$CD:$CD,CONCATENATE("<=",Tput_chart_raw!$B8*1000000))-SUM(D$3:D7) -> 0 | F8: 50 | G8: =1-SUMIFS('5G_NR_raw_UE'!$CO:$CO,'5G_NR_raw_UE'!$CN:$CN,CONCATENATE("<=",Tput_chart_raw!F8*1000000))/G$25 ->  | H8: =SUMIFS('5G_NR_raw_UE'!$CO:$CO,'5G_NR_raw_UE'!$CN:$CN,CONCATENATE("<=",Tput_chart_raw!$F8*1000000))-SUM(H$3:H7) -> 0 | J8: 250 | K8: =1-SUMIFS('5G_NR_raw_UE'!DC:DC,'5G_NR_raw_UE'!CX:CX,CONCATENATE("<",Tput_chart_raw!J8*1000000))/K$25 -> 0.1601748441 | L8: =SUMIFS('5G_NR_raw_UE'!DC:DC,'5G_NR_raw_UE'!CX:CX,CONCATENATE("<",Tput_chart_raw!$J8*1000000))-SUM(L$3:L7) -> 10949.001 | N8: 50 | O8: =1-SUMIFS('5G_NR_raw_UE'!DM:DM,'5G_NR_raw_UE'!DH:DH,CONCATENATE("<",Tput_chart_raw!N8*1000000))/O$25 ->  | P8: =SUMIFS('5G_NR_raw_UE'!DM:DM,'5G_NR_raw_UE'!DH:DH,CONCATENATE("<",Tput_chart_raw!$N8*1000000))-SUM(P$3:P7) -> 0 | R8: 50 | S8: =1-(SUM(T$3:T8)/S$25) -> 1 | T8: =COUNTIF(AccRaw!AS:AS,CONCATENATE("<=",R8))-SUM(T$3:T7) -> 0
B9: 300 | C9: =1-SUMIFS('5G_NR_raw_UE'!$CE:$CE,'5G_NR_raw_UE'!$CD:$CD,CONCATENATE("<=",Tput_chart_raw!B9*1000000))/C$25 -> 0 | D9: =SUMIFS('5G_NR_raw_UE'!$CE:$CE,'5G_NR_raw_UE'!$CD:$CD,CONCATENATE("<=",Tput_chart_raw!$B9*1000000))-SUM(D$3:D8) -> 0 | F9: 60 | G9: =1-SUMIFS('5G_NR_raw_UE'!$CO:$CO,'5G_NR_raw_UE'!$CN:$CN,CONCATENATE("<=",Tput_chart_raw!F9*1000000))/G$25 ->  | H9: =SUMIFS('5G_NR_raw_UE'!$CO:$CO,'5G_NR_raw_UE'!$CN:$CN,CONCATENATE("<=",Tput_chart_raw!$F9*1000000))-SUM(H$3:H8) -> 0 | J9: 300 | K9: =1-SUMIFS('5G_NR_raw_UE'!DC:DC,'5G_NR_raw_UE'!CX:CX,CONCATENATE("<",Tput_chart_raw!J9*1000000))/K$25 -> 0 | L9: =SUMIFS('5G_NR_raw_UE'!DC:DC,'5G_NR_raw_UE'!CX:CX,CONCATENATE("<",Tput_chart_raw!$J9*1000000))-SUM(L$3:L8) -> 7953.002 | N9: 60 | O9: =1-SUMIFS('5G_NR_raw_UE'!DM:DM,'5G_NR_raw_UE'!DH:DH,CONCATENATE("<",Tput_chart_raw!N9*1000000))/O$25 ->  | P9: =SUMIFS('5G_NR_raw_UE'!DM:DM,'5G_NR_raw_UE'!DH:DH,CONCATENATE("<",Tput_chart_raw!$N9*1000000))-SUM(P$3:P8) -> 0 | R9: 60 | S9: =1-(SUM(T$3:T9)/S$25) -> 1 | T9: =COUNTIF(AccRaw!AS:AS,CONCATENATE("<=",R9))-SUM(T$3:T8) -> 0
B10: 350 | C10: =1-SUMIFS('5G_NR_raw_UE'!$CE:$CE,'5G_NR_raw_UE'!$CD:$CD,CONCATENATE("<=",Tput_chart_raw!B10*1000000))/C$25 -> 0 | D10: =SUMIFS('5G_NR_raw_UE'!$CE:$CE,'5G_NR_raw_UE'!$CD:$CD,CONCATENATE("<=",Tput_chart_raw!$B10*1000000))-SUM(D$3:D9) -> 0 | F10: 70 | G10: =1-SUMIFS('5G_NR_raw_UE'!$CO:$CO,'5G_NR_raw_UE'!$CN:$CN,CONCATENATE("<=",Tput_chart_raw!F10*1000000))/G$25 ->  | H10: =SUMIFS('5G_NR_raw_UE'!$CO:$CO,'5G_NR_raw_UE'!$CN:$CN,CONCATENATE("<=",Tput_chart_raw!$F10*1000000))-SUM(H$3:H9) -> 0 | J10: 350 | K10: =1-SUMIFS('5G_NR_raw_UE'!DC:DC,'5G_NR_raw_UE'!CX:CX,CONCATENATE("<",Tput_chart_raw!J10*1000000))/K$25 -> 0 | L10: =SUMIFS('5G_NR_raw_UE'!DC:DC,'5G_NR_raw_UE'!CX:CX,CONCATENATE("<",Tput_chart_raw!$J10*1000000))-SUM(L$3:L9) -> 0 | N10: 70 | O10: =1-SUMIFS('5G_NR_raw_UE'!DM:DM,'5G_NR_raw_UE'!DH:DH,CONCATENATE("<",Tput_chart_raw!N10*1000000))/O$25 ->  | P10: =SUMIFS('5G_NR_raw_UE'!DM:DM,'5G_NR_raw_UE'!DH:DH,CONCATENATE("<",Tput_chart_raw!$N10*1000000))-SUM(P$3:P9) -> 0 | R10: 70 | S10: =1-(SUM(T$3:T10)/S$25) -> 1 | T10: =COUNTIF(AccRaw!AS:AS,CONCATENATE("<=",R10))-SUM(T$3:T9) -> 0
B11: 400 | C11: =1-SUMIFS('5G_NR_raw_UE'!$CE:$CE,'5G_NR_raw_UE'!$CD:$CD,CONCATENATE("<=",Tput_chart_raw!B11*1000000))/C$25 -> 0 | D11: =SUMIFS('5G_NR_raw_UE'!$CE:$CE,'5G_NR_raw_UE'!$CD:$CD,CONCATENATE("<=",Tput_chart_raw!$B11*1000000))-SUM(D$3:D10) -> 0 | F11: 80 | G11: =1-SUMIFS('5G_NR_raw_UE'!$CO:$CO,'5G_NR_raw_UE'!$CN:$CN,CONCATENATE("<=",Tput_chart_raw!F11*1000000))/G$25 ->  | H11: =SUMIFS('5G_NR_raw_UE'!$CO:$CO,'5G_NR_raw_UE'!$CN:$CN,CONCATENATE("<=",Tput_chart_raw!$F11*1000000))-SUM(H$3:H10) -> 0 | J11: 400 | K11: =1-SUMIFS('5G_NR_raw_UE'!DC:DC,'5G_NR_raw_UE'!CX:CX,CONCATENATE("<",Tput_chart_raw!J11*1000000))/K$25 -> 0 | L11: =SUMIFS('5G_NR_raw_UE'!DC:DC,'5G_NR_raw_UE'!CX:CX,CONCATENATE("<",Tput_chart_raw!$J11*1000000))-SUM(L$3:L10) -> 0 | N11: 80 | O11: =1-SUMIFS('5G_NR_raw_UE'!DM:DM,'5G_NR_raw_UE'!DH:DH,CONCATENATE("<",Tput_chart_raw!N11*1000000))/O$25 ->  | P11: =SUMIFS('5G_NR_raw_UE'!DM:DM,'5G_NR_raw_UE'!DH:DH,CONCATENATE("<",Tput_chart_raw!$N11*1000000))-SUM(P$3:P10) -> 0 | R11: 80 | S11: =1-(SUM(T$3:T11)/S$25) -> 0.5555555556 | T11: =COUNTIF(AccRaw!AS:AS,CONCATENATE("<=",R11))-SUM(T$3:T10) -> 4
B12: 450 | C12: =1-SUMIFS('5G_NR_raw_UE'!$CE:$CE,'5G_NR_raw_UE'!$CD:$CD,CONCATENATE("<=",Tput_chart_raw!B12*1000000))/C$25 -> 0 | D12: =SUMIFS('5G_NR_raw_UE'!$CE:$CE,'5G_NR_raw_UE'!$CD:$CD,CONCATENATE("<=",Tput_chart_raw!$B12*1000000))-SUM(D$3:D11) -> 0 | F12: 90 | G12: =1-SUMIFS('5G_NR_raw_UE'!$CO:$CO,'5G_NR_raw_UE'!$CN:$CN,CONCATENATE("<=",Tput_chart_raw!F12*1000000))/G$25 ->  | H12: =SUMIFS('5G_NR_raw_UE'!$CO:$CO,'5G_NR_raw_UE'!$CN:$CN,CONCATENATE("<=",Tput_chart_raw!$F12*1000000))-SUM(H$3:H11) -> 0 | J12: 450 | K12: =1-SUMIFS('5G_NR_raw_UE'!DC:DC,'5G_NR_raw_UE'!CX:CX,CONCATENATE("<",Tput_chart_raw!J12*1000000))/K$25 -> 0 | L12: =SUMIFS('5G_NR_raw_UE'!DC:DC,'5G_NR_raw_UE'!CX:CX,CONCATENATE("<",Tput_chart_raw!$J12*1000000))-SUM(L$3:L11) -> 0 | N12: 90 | O12: =1-SUMIFS('5G_NR_raw_UE'!DM:DM,'5G_NR_raw_UE'!DH:DH,CONCATENATE("<",Tput_chart_raw!N12*1000000))/O$25 ->  | P12: =SUMIFS('5G_NR_raw_UE'!DM:DM,'5G_NR_raw_UE'!DH:DH,CONCATENATE("<",Tput_chart_raw!$N12*1000000))-SUM(P$3:P11) -> 0 | R12: 90 | S12: =1-(SUM(T$3:T12)/S$25) -> 0.1111111111 | T12: =COUNTIF(AccRaw!AS:AS,CONCATENATE("<=",R12))-SUM(T$3:T11) -> 4
B13: 500 | C13: =1-SUMIFS('5G_NR_raw_UE'!$CE:$CE,'5G_NR_raw_UE'!$CD:$CD,CONCATENATE("<=",Tput_chart_raw!B13*1000000))/C$25 -> 0 | D13: =SUMIFS('5G_NR_raw_UE'!$CE:$CE,'5G_NR_raw_UE'!$CD:$CD,CONCATENATE("<=",Tput_chart_raw!$B13*1000000))-SUM(D$3:D12) -> 0 | F13: 100 | G13: =1-SUMIFS('5G_NR_raw_UE'!$CO:$CO,'5G_NR_raw_UE'!$CN:$CN,CONCATENATE("<=",Tput_chart_raw!F13*1000000))/G$25 ->  | H13: =SUMIFS('5G_NR_raw_UE'!$CO:$CO,'5G_NR_raw_UE'!$CN:$CN,CONCATENATE("<=",Tput_chart_raw!$F13*1000000))-SUM(H$3:H12) -> 0 | J13: 500 | K13: =1-SUMIFS('5G_NR_raw_UE'!DC:DC,'5G_NR_raw_UE'!CX:CX,CONCATENATE("<",Tput_chart_raw!J13*1000000))/K$25 -> 0 | L13: =SUMIFS('5G_NR_raw_UE'!DC:DC,'5G_NR_raw_UE'!CX:CX,CONCATENATE("<",Tput_chart_raw!$J13*1000000))-SUM(L$3:L12) -> 0 | N13: 100 | O13: =1-SUMIFS('5G_NR_raw_UE'!DM:DM,'5G_NR_raw_UE'!DH:DH,CONCATENATE("<",Tput_chart_raw!N13*1000000))/O$25 ->  | P13: =SUMIFS('5G_NR_raw_UE'!DM:DM,'5G_NR_raw_UE'!DH:DH,CONCATENATE("<",Tput_chart_raw!$N13*1000000))-SUM(P$3:P12) -> 0 | R13: 100 | S13: =1-(SUM(T$3:T13)/S$25) -> 0.1111111111 | T13: =COUNTIF(AccRaw!AS:AS,CONCATENATE("<=",R13))-SUM(T$3:T12) -> 0
B14: 550 | C14: =1-SUMIFS('5G_NR_raw_UE'!$CE:$CE,'5G_NR_raw_UE'!$CD:$CD,CONCATENATE("<=",Tput_chart_raw!B14*1000000))/C$25 -> 0 | D14: =SUMIFS('5G_NR_raw_UE'!$CE:$CE,'5G_NR_raw_UE'!$CD:$CD,CONCATENATE("<=",Tput_chart_raw!$B14*1000000))-SUM(D$3:D13) -> 0 | F14: 110 | G14: =1-SUMIFS('5G_NR_raw_UE'!$CO:$CO,'5G_NR_raw_UE'!$CN:$CN,CONCATENATE("<=",Tput_chart_raw!F14*1000000))/G$25 ->  | H14: =SUMIFS('5G_NR_raw_UE'!$CO:$CO,'5G_NR_raw_UE'!$CN:$CN,CONCATENATE("<=",Tput_chart_raw!$F14*1000000))-SUM(H$3:H13) -> 0 | J14: 550 | K14: =1-SUMIFS('5G_NR_raw_UE'!DC:DC,'5G_NR_raw_UE'!CX:CX,CONCATENATE("<",Tput_chart_raw!J14*1000000))/K$25 -> 0 | L14: =SUMIFS('5G_NR_raw_UE'!DC:DC,'5G_NR_raw_UE'!CX:CX,CONCATENATE("<",Tput_chart_raw!$J14*1000000))-SUM(L$3:L13) -> 0 | N14: 110 | O14: =1-SUMIFS('5G_NR_raw_UE'!DM:DM,'5G_NR_raw_UE'!DH:DH,CONCATENATE("<",Tput_chart_raw!N14*1000000))/O$25 ->  | P14: =SUMIFS('5G_NR_raw_UE'!DM:DM,'5G_NR_raw_UE'!DH:DH,CONCATENATE("<",Tput_chart_raw!$N14*1000000))-SUM(P$3:P13) -> 0 | R14: 110 | S14: =1-(SUM(T$3:T14)/S$25) -> 0 | T14: =COUNTIF(AccRaw!AS:AS,CONCATENATE("<=",R14))-SUM(T$3:T13) -> 1
B15: 600 | C15: =1-SUMIFS('5G_NR_raw_UE'!$CE:$CE,'5G_NR_raw_UE'!$CD:$CD,CONCATENATE("<=",Tput_chart_raw!B15*1000000))/C$25 -> 0 | D15: =SUMIFS('5G_NR_raw_UE'!$CE:$CE,'5G_NR_raw_UE'!$CD:$CD,CONCATENATE("<=",Tput_chart_raw!$B15*1000000))-SUM(D$3:D14) -> 0 | F15: 120 | G15: =1-SUMIFS('5G_NR_raw_UE'!$CO:$CO,'5G_NR_raw_UE'!$CN:$CN,CONCATENATE("<=",Tput_chart_raw!F15*1000000))/G$25 ->  | H15: =SUMIFS('5G_NR_raw_UE'!$CO:$CO,'5G_NR_raw_UE'!$CN:$CN,CONCATENATE("<=",Tput_chart_raw!$F15*1000000))-SUM(H$3:H14) -> 0 | J15: 600 | K15: =1-SUMIFS('5G_NR_raw_UE'!DC:DC,'5G_NR_raw_UE'!CX:CX,CONCATENATE("<",Tput_chart_raw!J15*1000000))/K$25 -> 0 | L15: =SUMIFS('5G_NR_raw_UE'!DC:DC,'5G_NR_raw_UE'!CX:CX,CONCATENATE("<",Tput_chart_raw!$J15*1000000))-SUM(L$3:L14) -> 0 | N15: 120 | O15: =1-SUMIFS('5G_NR_raw_UE'!DM:DM,'5G_NR_raw_UE'!DH:DH,CONCATENATE("<",Tput_chart_raw!N15*1000000))/O$25 ->  | P15: =SUMIFS('5G_NR_raw_UE'!DM:DM,'5G_NR_raw_UE'!DH:DH,CONCATENATE("<",Tput_chart_raw!$N15*1000000))-SUM(P$3:P14) -> 0 | R15: 120 | S15: =1-(SUM(T$3:T15)/S$25) -> 0 | T15: =COUNTIF(AccRaw!AS:AS,CONCATENATE("<=",R15))-SUM(T$3:T14) -> 0
B16: 650 | C16: =1-SUMIFS('5G_NR_raw_UE'!$CE:$CE,'5G_NR_raw_UE'!$CD:$CD,CONCATENATE("<=",Tput_chart_raw!B16*1000000))/C$25 -> 0 | D16: =SUMIFS('5G_NR_raw_UE'!$CE:$CE,'5G_NR_raw_UE'!$CD:$CD,CONCATENATE("<=",Tput_chart_raw!$B16*1000000))-SUM(D$3:D15) -> 0 | F16: 130 | G16: =1-SUMIFS('5G_NR_raw_UE'!$CO:$CO,'5G_NR_raw_UE'!$CN:$CN,CONCATENATE("<=",Tput_chart_raw!F16*1000000))/G$25 ->  | H16: =SUMIFS('5G_NR_raw_UE'!$CO:$CO,'5G_NR_raw_UE'!$CN:$CN,CONCATENATE("<=",Tput_chart_raw!$F16*1000000))-SUM(H$3:H15) -> 0 | J16: 650 | K16: =1-SUMIFS('5G_NR_raw_UE'!DC:DC,'5G_NR_raw_UE'!CX:CX,CONCATENATE("<",Tput_chart_raw!J16*1000000))/K$25 -> 0 | L16: =SUMIFS('5G_NR_raw_UE'!DC:DC,'5G_NR_raw_UE'!CX:CX,CONCATENATE("<",Tput_chart_raw!$J16*1000000))-SUM(L$3:L15) -> 0 | N16: 130 | O16: =1-SUMIFS('5G_NR_raw_UE'!DM:DM,'5G_NR_raw_UE'!DH:DH,CONCATENATE("<",Tput_chart_raw!N16*1000000))/O$25 ->  | P16: =SUMIFS('5G_NR_raw_UE'!DM:DM,'5G_NR_raw_UE'!DH:DH,CONCATENATE("<",Tput_chart_raw!$N16*1000000))-SUM(P$3:P15) -> 0 | R16: 130 | S16: =1-(SUM(T$3:T16)/S$25) -> 0 | T16: =COUNTIF(AccRaw!AS:AS,CONCATENATE("<=",R16))-SUM(T$3:T15) -> 0
B17: 700 | C17: =1-SUMIFS('5G_NR_raw_UE'!$CE:$CE,'5G_NR_raw_UE'!$CD:$CD,CONCATENATE("<=",Tput_chart_raw!B17*1000000))/C$25 -> 0 | D17: =SUMIFS('5G_NR_raw_UE'!$CE:$CE,'5G_NR_raw_UE'!$CD:$CD,CONCATENATE("<=",Tput_chart_raw!$B17*1000000))-SUM(D$3:D16) -> 0 | F17: 140 | G17: =1-SUMIFS('5G_NR_raw_UE'!$CO:$CO,'5G_NR_raw_UE'!$CN:$CN,CONCATENATE("<=",Tput_chart_raw!F17*1000000))/G$25 ->  | H17: =SUMIFS('5G_NR_raw_UE'!$CO:$CO,'5G_NR_raw_UE'!$CN:$CN,CONCATENATE("<=",Tput_chart_raw!$F17*1000000))-SUM(H$3:H16) -> 0 | J17: 700 | K17: =1-SUMIFS('5G_NR_raw_UE'!DC:DC,'5G_NR_raw_UE'!CX:CX,CONCATENATE("<",Tput_chart_raw!J17*1000000))/K$25 -> 0 | L17: =SUMIFS('5G_NR_raw_UE'!DC:DC,'5G_NR_raw_UE'!CX:CX,CONCATENATE("<",Tput_chart_raw!$J17*1000000))-SUM(L$3:L16) -> 0 | N17: 140 | O17: =1-SUMIFS('5G_NR_raw_UE'!DM:DM,'5G_NR_raw_UE'!DH:DH,CONCATENATE("<",Tput_chart_raw!N17*1000000))/O$25 ->  | P17: =SUMIFS('5G_NR_raw_UE'!DM:DM,'5G_NR_raw_UE'!DH:DH,CONCATENATE("<",Tput_chart_raw!$N17*1000000))-SUM(P$3:P16) -> 0 | R17: 140 | S17: =1-(SUM(T$3:T17)/S$25) -> 0 | T17: =COUNTIF(AccRaw!AS:AS,CONCATENATE("<=",R17))-SUM(T$3:T16) -> 0
B18: 750 | C18: =1-SUMIFS('5G_NR_raw_UE'!$CE:$CE,'5G_NR_raw_UE'!$CD:$CD,CONCATENATE("<=",Tput_chart_raw!B18*1000000))/C$25 -> 0 | D18: =SUMIFS('5G_NR_raw_UE'!$CE:$CE,'5G_NR_raw_UE'!$CD:$CD,CONCATENATE("<=",Tput_chart_raw!$B18*1000000))-SUM(D$3:D17) -> 0 | F18: 150 | G18: =1-SUMIFS('5G_NR_raw_UE'!$CO:$CO,'5G_NR_raw_UE'!$CN:$CN,CONCATENATE("<=",Tput_chart_raw!F18*1000000))/G$25 ->  | H18: =SUMIFS('5G_NR_raw_UE'!$CO:$CO,'5G_NR_raw_UE'!$CN:$CN,CONCATENATE("<=",Tput_chart_raw!$F18*1000000))-SUM(H$3:H17) -> 0 | J18: 750 | K18: =1-SUMIFS('5G_NR_raw_UE'!DC:DC,'5G_NR_raw_UE'!CX:CX,CONCATENATE("<",Tput_chart_raw!J18*1000000))/K$25 -> 0 | L18: =SUMIFS('5G_NR_raw_UE'!DC:DC,'5G_NR_raw_UE'!CX:CX,CONCATENATE("<",Tput_chart_raw!$J18*1000000))-SUM(L$3:L17) -> 0 | N18: 150 | O18: =1-SUMIFS('5G_NR_raw_UE'!DM:DM,'5G_NR_raw_UE'!DH:DH,CONCATENATE("<",Tput_chart_raw!N18*1000000))/O$25 ->  | P18: =SUMIFS('5G_NR_raw_UE'!DM:DM,'5G_NR_raw_UE'!DH:DH,CONCATENATE("<",Tput_chart_raw!$N18*1000000))-SUM(P$3:P17) -> 0 | R18: 150 | S18: =1-(SUM(T$3:T18)/S$25) -> 0 | T18: =COUNTIF(AccRaw!AS:AS,CONCATENATE("<=",R18))-SUM(T$3:T17) -> 0
B19: 800 | C19: =1-SUMIFS('5G_NR_raw_UE'!$CE:$CE,'5G_NR_raw_UE'!$CD:$CD,CONCATENATE("<=",Tput_chart_raw!B19*1000000))/C$25 -> 0 | D19: =SUMIFS('5G_NR_raw_UE'!$CE:$CE,'5G_NR_raw_UE'!$CD:$CD,CONCATENATE("<=",Tput_chart_raw!$B19*1000000))-SUM(D$3:D18) -> 0 | F19: 160 | G19: =1-SUMIFS('5G_NR_raw_UE'!$CO:$CO,'5G_NR_raw_UE'!$CN:$CN,CONCATENATE("<=",Tput_chart_raw!F19*1000000))/G$25 ->  | H19: =SUMIFS('5G_NR_raw_UE'!$CO:$CO,'5G_NR_raw_UE'!$CN:$CN,CONCATENATE("<=",Tput_chart_raw!$F19*1000000))-SUM(H$3:H18) -> 0 | J19: 800 | K19: =1-SUMIFS('5G_NR_raw_UE'!DC:DC,'5G_NR_raw_UE'!CX:CX,CONCATENATE("<",Tput_chart_raw!J19*1000000))/K$25 -> 0 | L19: =SUMIFS('5G_NR_raw_UE'!DC:DC,'5G_NR_raw_UE'!CX:CX,CONCATENATE("<",Tput_chart_raw!$J19*1000000))-SUM(L$3:L18) -> 0 | N19: 160 | O19: =1-SUMIFS('5G_NR_raw_UE'!DM:DM,'5G_NR_raw_UE'!DH:DH,CONCATENATE("<",Tput_chart_raw!N19*1000000))/O$25 ->  | P19: =SUMIFS('5G_NR_raw_UE'!DM:DM,'5G_NR_raw_UE'!DH:DH,CONCATENATE("<",Tput_chart_raw!$N19*1000000))-SUM(P$3:P18) -> 0 | R19: 160 | S19: =1-(SUM(T$3:T19)/S$25) -> 0 | T19: =COUNTIF(AccRaw!AS:AS,CONCATENATE("<=",R19))-SUM(T$3:T18) -> 0
B20: 850 | C20: =1-SUMIFS('5G_NR_raw_UE'!$CE:$CE,'5G_NR_raw_UE'!$CD:$CD,CONCATENATE("<=",Tput_chart_raw!B20*1000000))/C$25 -> 0 | D20: =SUMIFS('5G_NR_raw_UE'!$CE:$CE,'5G_NR_raw_UE'!$CD:$CD,CONCATENATE("<=",Tput_chart_raw!$B20*1000000))-SUM(D$3:D19) -> 0 | F20: 170 | G20: =1-SUMIFS('5G_NR_raw_UE'!$CO:$CO,'5G_NR_raw_UE'!$CN:$CN,CONCATENATE("<=",Tput_chart_raw!F20*1000000))/G$25 ->  | H20: =SUMIFS('5G_NR_raw_UE'!$CO:$CO,'5G_NR_raw_UE'!$CN:$CN,CONCATENATE("<=",Tput_chart_raw!$F20*1000000))-SUM(H$3:H19) -> 0 | J20: 850 | K20: =1-SUMIFS('5G_NR_raw_UE'!DC:DC,'5G_NR_raw_UE'!CX:CX,CONCATENATE("<",Tput_chart_raw!J20*1000000))/K$25 -> 0 | L20: =SUMIFS('5G_NR_raw_UE'!DC:DC,'5G_NR_raw_UE'!CX:CX,CONCATENATE("<",Tput_chart_raw!$J20*1000000))-SUM(L$3:L19) -> 0 | N20: 170 | O20: =1-SUMIFS('5G_NR_raw_UE'!DM:DM,'5G_NR_raw_UE'!DH:DH,CONCATENATE("<",Tput_chart_raw!N20*1000000))/O$25 ->  | P20: =SUMIFS('5G_NR_raw_UE'!DM:DM,'5G_NR_raw_UE'!DH:DH,CONCATENATE("<",Tput_chart_raw!$N20*1000000))-SUM(P$3:P19) -> 0 | R20: 170 | S20: =1-(SUM(T$3:T20)/S$25) -> 0 | T20: =COUNTIF(AccRaw!AS:AS,CONCATENATE("<=",R20))-SUM(T$3:T19) -> 0
B21: 900 | C21: =1-SUMIFS('5G_NR_raw_UE'!$CE:$CE,'5G_NR_raw_UE'!$CD:$CD,CONCATENATE("<=",Tput_chart_raw!B21*1000000))/C$25 -> 0 | D21: =SUMIFS('5G_NR_raw_UE'!$CE:$CE,'5G_NR_raw_UE'!$CD:$CD,CONCATENATE("<=",Tput_chart_raw!$B21*1000000))-SUM(D$3:D20) -> 0 | F21: 180 | G21: =1-SUMIFS('5G_NR_raw_UE'!$CO:$CO,'5G_NR_raw_UE'!$CN:$CN,CONCATENATE("<=",Tput_chart_raw!F21*1000000))/G$25 ->  | H21: =SUMIFS('5G_NR_raw_UE'!$CO:$CO,'5G_NR_raw_UE'!$CN:$CN,CONCATENATE("<=",Tput_chart_raw!$F21*1000000))-SUM(H$3:H20) -> 0 | J21: 900 | K21: =1-SUMIFS('5G_NR_raw_UE'!DC:DC,'5G_NR_raw_UE'!CX:CX,CONCATENATE("<",Tput_chart_raw!J21*1000000))/K$25 -> 0 | L21: =SUMIFS('5G_NR_raw_UE'!DC:DC,'5G_NR_raw_UE'!CX:CX,CONCATENATE("<",Tput_chart_raw!$J21*1000000))-SUM(L$3:L20) -> 0 | N21: 180 | O21: =1-SUMIFS('5G_NR_raw_UE'!DM:DM,'5G_NR_raw_UE'!DH:DH,CONCATENATE("<",Tput_chart_raw!N21*1000000))/O$25 ->  | P21: =SUMIFS('5G_NR_raw_UE'!DM:DM,'5G_NR_raw_UE'!DH:DH,CONCATENATE("<",Tput_chart_raw!$N21*1000000))-SUM(P$3:P20) -> 0 | R21: 180 | S21: =1-(SUM(T$3:T21)/S$25) -> 0 | T21: =COUNTIF(AccRaw!AS:AS,CONCATENATE("<=",R21))-SUM(T$3:T20) -> 0
B22: 950 | C22: =1-SUMIFS('5G_NR_raw_UE'!$CE:$CE,'5G_NR_raw_UE'!$CD:$CD,CONCATENATE("<=",Tput_chart_raw!B22*1000000))/C$25 -> 0 | D22: =SUMIFS('5G_NR_raw_UE'!$CE:$CE,'5G_NR_raw_UE'!$CD:$CD,CONCATENATE("<=",Tput_chart_raw!$B22*1000000))-SUM(D$3:D21) -> 0 | F22: 190 | G22: =1-SUMIFS('5G_NR_raw_UE'!$CO:$CO,'5G_NR_raw_UE'!$CN:$CN,CONCATENATE("<=",Tput_chart_raw!F22*1000000))/G$25 ->  | H22: =SUMIFS('5G_NR_raw_UE'!$CO:$CO,'5G_NR_raw_UE'!$CN:$CN,CONCATENATE("<=",Tput_chart_raw!$F22*1000000))-SUM(H$3:H21) -> 0 | J22: 950 | K22: =1-SUMIFS('5G_NR_raw_UE'!DC:DC,'5G_NR_raw_UE'!CX:CX,CONCATENATE("<",Tput_chart_raw!J22*1000000))/K$25 -> 0 | L22: =SUMIFS('5G_NR_raw_UE'!DC:DC,'5G_NR_raw_UE'!CX:CX,CONCATENATE("<",Tput_chart_raw!$J22*1000000))-SUM(L$3:L21) -> 0 | N22: 190 | O22: =1-SUMIFS('5G_NR_raw_UE'!DM:DM,'5G_NR_raw_UE'!DH:DH,CONCATENATE("<",Tput_chart_raw!N22*1000000))/O$25 ->  | P22: =SUMIFS('5G_NR_raw_UE'!DM:DM,'5G_NR_raw_UE'!DH:DH,CONCATENATE("<",Tput_chart_raw!$N22*1000000))-SUM(P$3:P21) -> 0 | R22: 190 | S22: =1-(SUM(T$3:T22)/S$25) -> 0 | T22: =COUNTIF(AccRaw!AS:AS,CONCATENATE("<=",R22))-SUM(T$3:T21) -> 0
B23: 1000 | C23: =1-SUMIFS('5G_NR_raw_UE'!$CE:$CE,'5G_NR_raw_UE'!$CD:$CD,CONCATENATE("<=",Tput_chart_raw!B23*1000000))/C$25 -> 0 | D23: =SUMIFS('5G_NR_raw_UE'!$CE:$CE,'5G_NR_raw_UE'!$CD:$CD,CONCATENATE("<=",Tput_chart_raw!$B23*1000000))-SUM(D$3:D22) -> 0 | F23: 200 | G23: =1-SUMIFS('5G_NR_raw_UE'!$CO:$CO,'5G_NR_raw_UE'!$CN:$CN,CONCATENATE("<=",Tput_chart_raw!F23*1000000))/G$25 ->  | H23: =SUMIFS('5G_NR_raw_UE'!$CO:$CO,'5G_NR_raw_UE'!$CN:$CN,CONCATENATE("<=",Tput_chart_raw!$F23*1000000))-SUM(H$3:H22) -> 0 | J23: 1000 | K23: =1-SUMIFS('5G_NR_raw_UE'!DC:DC,'5G_NR_raw_UE'!CX:CX,CONCATENATE("<",Tput_chart_raw!J23*1000000))/K$25 -> 0 | L23: =SUMIFS('5G_NR_raw_UE'!DC:DC,'5G_NR_raw_UE'!CX:CX,CONCATENATE("<",Tput_chart_raw!$J23*1000000))-SUM(L$3:L22) -> 0 | N23: 200 | O23: =1-SUMIFS('5G_NR_raw_UE'!DM:DM,'5G_NR_raw_UE'!DH:DH,CONCATENATE("<",Tput_chart_raw!N23*1000000))/O$25 ->  | P23: =SUMIFS('5G_NR_raw_UE'!DM:DM,'5G_NR_raw_UE'!DH:DH,CONCATENATE("<",Tput_chart_raw!$N23*1000000))-SUM(P$3:P22) -> 0 | R23: 200 | S23: =1-(SUM(T$3:T23)/S$25) -> 0 | T23: =COUNTIF(AccRaw!AS:AS,CONCATENATE("<=",R23))-SUM(T$3:T22) -> 0
B24: =CONCATENATE(">",B23) -> >1000 | C24: =1-SUMIFS('5G_NR_raw_UE'!$CE:$CE,'5G_NR_raw_UE'!$CD:$CD,CONCATENATE("<=",Tput_chart_raw!B23*100000000))/C$25 -> 0 | D24: =SUMIFS('5G_NR_raw_UE'!$CE:$CE,'5G_NR_raw_UE'!$CD:$CD,CONCATENATE(">",Tput_chart_raw!$B23*1000000)) -> 0 | F24: =CONCATENATE(">",F23) -> >200 | G24: =1-SUMIFS('5G_NR_raw_UE'!$CO:$CO,'5G_NR_raw_UE'!$CN:$CN,CONCATENATE("<=",Tput_chart_raw!F23*100000000))/G$25 ->  | H24: =SUMIFS('5G_NR_raw_UE'!$CO:$CO,'5G_NR_raw_UE'!$CN:$CN,CONCATENATE(">",Tput_chart_raw!$F23*1000000)) -> 0 | J24: =CONCATENATE(">",J23) -> >1000 | K24: =1-SUMIFS('5G_NR_raw_UE'!DC:DC,'5G_NR_raw_UE'!CX:CX,CONCATENATE("<",Tput_chart_raw!J23*100000000))/K$25 -> 0 | L24: =SUMIFS('5G_NR_raw_UE'!DC:DC,'5G_NR_raw_UE'!CX:CX,CONCATENATE(">=",Tput_chart_raw!$J23*1000000)) -> 0 | N24: =CONCATENATE(">",N23) -> >200 | O24: =1-SUMIFS('5G_NR_raw_UE'!DM:DM,'5G_NR_raw_UE'!DH:DH,CONCATENATE("<",Tput_chart_raw!N23*100000000))/O$25 ->  | P24: =SUMIFS('5G_NR_raw_UE'!DM:DM,'5G_NR_raw_UE'!DH:DH,CONCATENATE(">=",Tput_chart_raw!$N23*1000000)) -> 0 | R24: =CONCATENATE(">",R23) -> >200 | S24: =1-(SUM(T$3:T24)/S$25) -> 0 | T24: =COUNTIF(AccRaw!AS:AS,R24) -> 0
B25: All | C25: =SUMIFS('5G_NR_raw_UE'!$CE:$CE,'5G_NR_raw_UE'!$CD:$CD,">=0") -> 1085 | F25: All | G25: =SUMIFS('5G_NR_raw_UE'!$CO:$CO,'5G_NR_raw_UE'!$CN:$CN,">=0") -> 0 | J25: All | K25: =SUM('5G_NR_raw_UE'!DC:DC) -> 49652.004 | N25: All | O25: =SUM('5G_NR_raw_UE'!DM:DM) -> 0 | R25: All | S25: =COUNTIFS(AccRaw!AS:AS,">0") -> 9
B26: Steps | C26: 50 | F26: Steps | G26: 10 | J26: Steps | K26: 50 | N26: Steps | O26: 10 | R26: Steps | S26: =CEILING(MAX(AccRaw!AS:AS)/21,10) -> 10

Sheet 5G_NR_raw_UE (hidden)
B1: SS-RSRP best UE | L1: SS-RSRQ best UE | V1: SS-SINR best UE | AF1: TX power PUSCH | AP1: TX power PUCCH | AZ1: TX power SRS | BJ1: PDSCH throughput total | BM1: PDSCH throughput total | BT1: PUSCH throughput total | BW1: PUSCH throughput total | CD1: PDSCH throughput total filtered | CG1: PDSCH throughput total filtered | CN1: PUSCH throughput total filtered | CQ1: PUSCH throughput total filtered | CX1: App throughput DL | DH1: App throughput UL | DR1: Ping RTT | EB1: Average throughputs | EK1: Packet technology | EP1: EN-DC Downlink Data | ES1: =MAX(COUNTA(EP:EP),COUNTA(ER:ER),COUNTA(EW:EW),COUNTA(EY:EY)) -> 1123 | EW1: EN-DC Uplink Data | FB1: Number of beams within xdB | FH1: PCI | FJ1: MAC Downlink BLER | FR1: RACH PUSCH Power | FZ1: RACH Preamble Initial Power | GH1: RACH Preamble Count | GP1: RACH Preamble Success | GX1: RACH CG Msg4 Decoding fail | HF1: RACH TA | HN1: LTE coverage (RSRP) | HV1: 5G NR coverage (SS-RSRP) | ID1: Peak PDSCH throughput | IG1: Peak PUSCH throughput | IK1: SS-RSRP serving beam UE | IS1: SS-RSRQ serving beam UE | JA1: SS-SINR serving beam UE | JI1: SS-RSRP best | JJ1: SS-RSRP serving | JL1: SS-RSRQ best | JM1: SS-RSRQ serving | JO1: SS-SINR best | JP1: SS-SINR serving | JR1: PDCP duplication indication | JX1: Split bearer indication
B2: lower_bound | C2: upper_bound | D2: cumulation | E2: cumulation_sampled | F2: density | G2: density_sampled | H2: group | L2: lower_bound | M2: upper_bound | N2: cumulation | O2: cumulation_sampled | P2: density | Q2: density_sampled | R2: group | V2: lower_bound | W2: upper_bound | X2: cumulation | Y2: cumulation_sampled | Z2: density | AA2: density_sampled | AB2: group | AF2: lower_bound | AG2: upper_bound | AH2: cumulation | AI2: cumulation_sampled | AJ2: density | AK2: density_sampled | AL2: group | AP2: lower_bound | AQ2: upper_bound | AR2: cumulation | AS2: cumulation_sampled | AT2: density | AU2: density_sampled | AV2: group | AZ2: lower_bound | BA2: upper_bound | BB2: cumulation | BC2: cumulation_sampled | BD2: density | BE2: density_sampled | BF2: group | BJ2: tput | BK2: samples | BM2: avg | BN2: max | BT2: tput | BU2: samples | BW2: avg | BX2: max | CD2: tput | CE2: samples | CG2: avg | CN2: tput | CO2: samples | CQ2: avg | CX2: lower_bound | CY2: upper_bound | CZ2: cumulation | DA2: cumulation_sampled | DB2: density | DC2: density_sampled | DD2: group | DH2: lower_bound | DI2: upper_bound | DJ2: cumulation | DK2: cumulation_sampled | DL2: density | DM2: density_sampled | DN2: group | DR2: lower_bound | DS2: upper_bound | DT2: cumulation | DU2: cumulation_sampled | DV2: density | DW2: density_sampled | DX2: group | EB2: PDSCH | EC2: PUSCH | ED2: PDSCH filt | EE2: PUSCH filt | EF2: App DL | EG2: App UL | EP2: MAC DL bitrate | EQ2: samples | ER2: MAC DL bitrate | ES2: samples | EW2: MAC UL bitrate | EX2: samples | EY2: MAC UL bitrate | EZ2: samples | FB2: lower_bound | FC2: upper_bound | FD2: cumulation | FE2: cumulation_sampled | FF2: density | FG2: density_sampled | FH2: group | FJ2: lower_bound | FK2: upper_bound | FL2: cumulation | FM2: cumulation_sampled | FN2: density | FO2: density_sampled | FP2: group | FR2: lower_bound | FS2: upper_bound | FT2: cumulation | FU2: cumulation_sampled | FV2: density | FW2: density_sampled | FX2: group | FZ2: lower_bound | GA2: upper_bound | GB2: cumulation | GC2: cumulation_sampled | GD2: density | GE2: density_sampled | GF2: group | GH2: lower_bound | GI2: upper_bound | GJ2: cumulation | GK2: cumulation_sampled | GL2: density | GM2: density_sampled | GN2: group | GP2: lower_bound | GQ2: upper_bound | GR2: cumulation | GS2: cumulation_sampled | GT2: density | GU2: density_sampled | GV2: group | GX2: lower_bound | GY2: upper_bound | GZ2: cumulation | HA2: cumulation_sampled | HB2: density | HC2: density_sampled | HD2: group | HF2: lower_bound | HG2: upper_bound | HH2: cumulation | HI2: cumulation_sampled | HJ2: density | HK2: density_sampled | HL2: group | HN2: lower_bound | HO2: upper_bound | HP2: cumulation | HQ2: cumulation_sampled | HR2: density | HS2: density_sampled | HT2: group | HV2: lower_bound | HW2: upper_bound | HX2: cumulation | HY2: cumulation_sampled | HZ2: density | IA2: density_sampled | IB2: group | ID2: no filter | IE2: with coverage filter | IG2: no filter | IH2: with coverage filter | IK2: lower_bound | IL2: upper_bound | IM2: cumulation | IN2: cumulation_sampled | IO2: density | IP2: density_sampled | IQ2: group | IS2: lower_bound | IT2: upper_bound | IU2: cumulation | IV2: cumulation_sampled | IW2: density | IX2: density_sampled | IY2: group | JA2: lower_bound | JB2: upper_bound | JC2: cumulation | JD2: cumulation_sampled | JE2: density | JF2: density_sampled | JG2: group | JI2: Avg | JJ2: Avg | JL2: Avg | JM2: Avg | JO2: Avg | JP2: Avg | JR2: pdcp Duplication | JX2: keyToUse
B3: ... | C3: -140 | D3: 100 | E3: 165591 | F3: 0 | G3: 0 | L3: ... | M3: -30 | N3: 100 | O3: 166196.001 | P3: 0 | Q3: 0 | V3: ... | W3: -30 | X3: 100 | Y3: 166196.001 | Z3: 0 | AA3: 0 | AF3: ... | AG3: -50 | AH3: 100 | AI3: 166196.001 | AJ3: 0 | AK3: 0 | AP3: ... | AQ3: -50 | AR3: 100 | AS3: 166196 | AT3: 0 | AU3: 0 | BJ3: 0 | BK3: 1 | BM3: 114008763.8 | BN3: 170463524 | BT3: 1788 | BU3: 1 | BW3: 336650.9755 | BX3: 1341202 | CD3: 419475 | CE3: 1 | CG3: 119877840.4 | CO3: 0 | CX3: ... | CY3: 0 | CZ3: 100 | DA3: 49652.004 | DB3: 0 | DC3: 0 | EK3: EN-DC | EL3: 165010 | EP3: 101.24518 | EQ3: 509 | ER3: 100.053803 | ES3: 507 | EW3: 0.116882 | EX3: 515 | EY3: 0.101819 | EZ3: 509 | FB3: ... | FC3: 1 | FD3: 100 | FE3: 74403 | FF3: 0 | FG3: 0 | FH3: 702 | FJ3: ... | FK3: 0 | FL3: 100 | FM3: 166196.001 | FN3: 0 | FO3: 0 | FR3: ... | FS3: -50 | FT3: 100 | FU3: 6 | FV3: 0 | FW3: 0 | FZ3: ... | GA3: -50 | GB3: 100 | GC3: 6 | GD3: 0 | GE3: 0 | GH3: ... | GI3: 0 | GJ3: 100 | GK3: 6 | GL3: 0 | GM3: 0 | GP3: ... | GQ3: 0 | GR3: 100 | GS3: 6 | GT3: 0 | GU3: 0 | GX3: ... | GY3: 0 | GZ3: 100 | HA3: 6 | HB3: 0 | HC3: 0 | HF3: ... | HG3: 0 | HH3: 100 | HI3: 6 | HJ3: 0 | HK3: 0 | HN3: ... | HO3: -140 | HP3: 100 | HQ3: 166196.001 | HR3: 0 | HS3: 0 | HV3: ... | HW3: -140 | HX3: 100 | HY3: 165591 | HZ3: 0 | IA3: 0 | IE3: 78076165 | IH3: 626021 | IK3: ... | IL3: -140 | IM3: 100 | IN3: 166196.001 | IO3: 0 | IP3: 0 | IS3: ... | IT3: -30 | IU3: 100 | IV3: 166196.001 | IW3: 0 | IX3: 0 | JA3: ... | JB3: -30 | JC3: 100 | JD3: 166196.001 | JE3: 0 | JF3: 0 | JI3: -73.82188 | JJ3: -73.860189 | JL3: -11.002341 | JM3: -11.04374 | JO3: 13.631073 | JP3: 13.631073 | JX3: 45743.49555 | JY3: 6200 | KA3: RRCConnectionReconfiguration | KB3: 35.85522461 | KC3: 10.60242271
B4: -140 | C4: -135 | D4: 100 | E4: 165591 | F4: 0 | G4: 0 | L4: -30 | M4: -29 | N4: 100 | O4: 166196.001 | P4: 0 | Q4: 0 | V4: -30 | W4: -29 | X4: 100 | Y4: 166196.001 | Z4: 0 | AA4: 0 | AF4: -50 | AG4: -45 | AH4: 100 | AI4: 166196.001 | AJ4: 0 | AK4: 0 | AP4: -50 | AQ4: -45 | AR4: 100 | AS4: 166196 | AT4: 0 | AU4: 0 | BJ4: 25811 | BK4: 1 | BT4: 7426 | BU4: 1 | CD4: 607387 | CE4: 1 | CX4: 0 | CY4: 1000000 | CZ4: 100 | DA4: 49652.004 | DB4: 0 | DC4: 0 | EK4: LTE UL+DL CA | EL4: 1478 | EP4: 10.169564 | EQ4: 515 | ER4: 100.276956 | ES4: 512 | EW4: 1.242844 | EX4: 496 | EY4: 0.103279 | EZ4: 515 | FB4: 1 | FC4: 2 | FD4: 100 | FE4: 74403 | FF4: 74.236254 | FG4: 55234 | FH4: 702 | FJ4: 0 | FK4: 1 | FL4: 100 | FM4: 166196.001 | FN4: 3.38155 | FO4: 5620.001 | FR4: -50 | FS4: -49 | FT4: 100 | FU4: 6 | FV4: 0 | FW4: 0 | FZ4: -50 | GA4: -49 | GB4: 100 | GC4: 6 | GD4: 0 | GE4: 0 | GH4: 0 | GI4: 1 | GJ4: 100 | GK4: 6 | GL4: 0 | GM4: 0 | GP4: 0 | GQ4: 1 | GR4: 100 | GS4: 6 | GT4: 0 | GU4: 0 | GX4: 0 | GY4: 1 | GZ4: 100 | HA4: 6 | HB4: 100 | HC4: 6 | HF4: 0 | HG4: 1 | HH4: 100 | HI4: 6 | HJ4: 33.333333 | HK4: 2 | HN4: -140 | HO4: -130 | HP4: 100 | HQ4: 166196.001 | HR4: 0 | HS4: 0 | HV4: -140 | HW4: -130 | HX4: 100 | HY4: 165591 | HZ4: 0 | IA4: 0 | IK4: -140 | IL4: -135 | IM4: 100 | IN4: 166196.001 | IO4: 0 | IP4: 0 | IS4: -30 | IT4: -29 | IU4: 100 | IV4: 166196.001 | IW4: 0 | IX4: 0 | JA4: -30 | JB4: -29 | JC4: 100 | JD4: 166196.001 | JE4: 0 | JF4: 0 | JX4: 45743.49559 | JY4: 6200 | KA4: RRCConnectionReconfiguration | KB4: 35.85499954 | KC4: 10.60270882
B5: -135 | C5: -130 | D5: 100 | E5: 165591 | F5: 0 | G5: 0 | L5: -29 | M5: -28 | N5: 100 | O5: 166196.001 | P5: 0 | Q5: 0 | V5: -29 | W5: -28 | X5: 100 | Y5: 166196.001 | Z5: 0 | AA5: 0 | AF5: -45 | AG5: -40 | AH5: 100 | AI5: 166196.001 | AJ5: 0 | AK5: 0 | AP5: -45 | AQ5: -40 | AR5: 100 | AS5: 166196 | AT5: 0 | AU5: 0 | BJ5: 29973 | BK5: 1 | BT5: 7607 | BU5: 1 | CD5: 1988023 | CE5: 1 | CX5: 1000000 | CY5: 2000000 | CZ5: 100 | DA5: 49652.004 | DB5: 0 | DC5: 0 | EK5: LTE UL+DL CA | EL5: 3330 | EP5: 101.811634 | EQ5: 509 | ER5: 100.484172 | ES5: 509 | EW5: 1.268983 | EX5: 498 | EY5: 0.105836 | EZ5: 509 | FB5: 2 | FC5: 3 | FD5: 25.763746 | FE5: 19169 | FF5: 18.987138 | FG5: 14127 | FH5: 702 | FJ5: 1 | FK5: 2 | FL5: 96.61845 | FM5: 160576 | FN5: 1.220848 | FO5: 2029 | FR5: -49 | FS5: -48 | FT5: 100 | FU5: 6 | FV5: 0 | FW5: 0 | FZ5: -49 | GA5: -48 | GB5: 100 | GC5: 6 | GD5: 0 | GE5: 0 | GH5: 1 | GI5: 2 | GJ5: 100 | GK5: 6 | GL5: 100 | GM5: 6 | GP5: 1 | GQ5: 2 | GR5: 100 | GS5: 6 | GT5: 100 | GU5: 6 | GX5: 1 | GY5: 2 | GZ5: 0 | HA5: 0 | HB5: 0 | HC5: 0 | HF5: 1 | HG5: 2 | HH5: 66.666667 | HI5: 4 | HJ5: 50 | HK5: 3 | HN5: -130 | HO5: -120 | HP5: 100 | HQ5: 166196.001 | HR5: 0 | HS5: 0 | HV5: -130 | HW5: -120 | HX5: 100 | HY5: 165591 | HZ5: 0 | IA5: 0 | IK5: -135 | IL5: -130 | IM5: 100 | IN5: 166196.001 | IO5: 0 | IP5: 0 | IS5: -29 | IT5: -28 | IU5: 100 | IV5: 166196.001 | IW5: 0 | IX5: 0 | JA5: -29 | JB5: -28 | JC5: 100 | JD5: 166196.001 | JE5: 0 | JF5: 0 | JX5: 45743.49577 | JY5: 6200 | KA5: RRCConnectionReconfiguration | KB5: 35.85462952 | KC5: 10.60346699
B6: -130 | C6: -125 | D6: 100 | E6: 165591 | F6: 0 | G6: 0 | L6: -28 | M6: -27 | N6: 100 | O6: 166196.001 | P6: 0 | Q6: 0 | V6: -28 | W6: -27 | X6: 100 | Y6: 166196.001 | Z6: 0 | AA6: 0 | AF6: -40 | AG6: -35 | AH6: 100 | AI6: 166196.001 | AJ6: 0 | AK6: 0 | AP6: -40 | AQ6: -35 | AR6: 100 | AS6: 166196 | AT6: 0 | AU6: 0 | BJ6: 45220 | BK6: 1 | BT6: 13754 | BU6: 1 | CD6: 13005039 | CE6: 1 | CX6: 2000000 | CY6: 3000000 | CZ6: 100 | DA6: 49652.004 | DB6: 0 | DC6: 0 | EP6: 102.396298 | EQ6: 511 | ER6: 100.552201 | ES6: 516 | EW6: 0.012967 | EX6: 485 | EY6: 0.110667 | EZ6: 510 | FB6: 3 | FC6: 4 | FD6: 6.776608 | FE6: 5042 | FF6: 6.776608 | FG6: 5042 | FH6: 702 | FJ6: 2 | FK6: 3 | FL6: 95.397602 | FM6: 158547 | FN6: 1.521697 | FO6: 2529 | FR6: -48 | FS6: -47 | FT6: 100 | FU6: 6 | FV6: 0 | FW6: 0 | FZ6: -48 | GA6: -47 | GB6: 100 | GC6: 6 | GD6: 0 | GE6: 0 | GH6: 2 | GI6: 3 | GJ6: 0 | GK6: 0 | GL6: 0 | GM6: 0 | GP6: 2 | GQ6: 3 | GR6: 0 | GS6: 0 | GT6: 0 | GU6: 0 | GX6: 2 | GY6: 3 | GZ6: 0 | HA6: 0 | HB6: 0 | HC6: 0 | HF6: 2 | HG6: 3 | HH6: 16.666667 | HI6: 1 | HJ6: 16.666667 | HK6: 1 | HN6: -120 | HO6: -110 | HP6: 100 | HQ6: 166196.001 | HR6: 0 | HS6: 0 | HV6: -120 | HW6: -110 | HX6: 100 | HY6: 165591 | HZ6: 0 | IA6: 0 | IK6: -130 | IL6: -125 | IM6: 100 | IN6: 166196.001 | IO6: 0 | IP6: 0 | IS6: -28 | IT6: -27 | IU6: 100 | IV6: 166196.001 | IW6: 0 | IX6: 0 | JA6: -28 | JB6: -27 | JC6: 100 | JD6: 166196.001 | JE6: 0 | JF6: 0 | JX6: 45743.49606 | JY6: 6200 | KA6: RRCConnectionReconfiguration | KB6: 35.85566711 | KC6: 10.60410976
B7: -125 | C7: -120 | D7: 100 | E7: 165591 | F7: 0 | G7: 0 | L7: -27 | M7: -26 | N7: 100 | O7: 166196.001 | P7: 0 | Q7: 0 | V7: -27 | W7: -26 | X7: 100 | Y7: 166196.001 | Z7: 0 | AA7: 0 | AF7: -35 | AG7: -30 | AH7: 100 | AI7: 166196.001 | AJ7: 0 | AK7: 0 | AP7: -35 | AQ7: -30 | AR7: 100 | AS7: 166196 | AT7: 0 | AU7: 0 | BJ7: 46060 | BK7: 1 | BT7: 20573 | BU7: 1 | CD7: 17751310 | CE7: 1 | CX7: 3000000 | CY7: 4000000 | CZ7: 100 | DA7: 49652.004 | DB7: 0 | DC7: 0 | EP7: 102.823057 | EQ7: 514 | ER7: 100.690864 | ES7: 498 | EW7: 0.013 | EX7: 3555 | EY7: 0.111705 | EZ7: 492 | FB7: 4 | FC7: 5 | FD7: 0 | FE7: 0 | FF7: 0 | FG7: 0 | FH7: 702 | FJ7: 3 | FK7: 4 | FL7: 93.875905 | FM7: 156018 | FN7: 1.534935 | FO7: 2551 | FR7: -47 | FS7: -46 | FT7: 100 | FU7: 6 | FV7: 0 | FW7: 0 | FZ7: -47 | GA7: -46 | GB7: 100 | GC7: 6 | GD7: 0 | GE7: 0 | GH7: 3 | GI7: 4 | GJ7: 0 | GK7: 0 | GL7: 0 | GM7: 0 | GP7: 3 | GQ7: 4 | GR7: 0 | GS7: 0 | GT7: 0 | GU7: 0 | GX7: 3 | GY7: 4 | GZ7: 0 | HA7: 0 | HB7: 0 | HC7: 0 | HF7: 3 | HG7: 4 | HH7: 0 | HI7: 0 | HJ7: 0 | HK7: 0 | HN7: -110 | HO7: -100 | HP7: 100 | HQ7: 166196.001 | HR7: 0 | HS7: 0 | HV7: -110 | HW7: -100 | HX7: 100 | HY7: 165591 | HZ7: 0 | IA7: 0 | IK7: -125 | IL7: -120 | IM7: 100 | IN7: 166196.001 | IO7: 0 | IP7: 0 | IS7: -27 | IT7: -26 | IU7: 100 | IV7: 166196.001 | IW7: 0 | IX7: 0 | JA7: -27 | JB7: -26 | JC7: 100 | JD7: 166196.001 | JE7: 0 | JF7: 0 | JX7: 45720.62166 | JY7: 276 | KA7: RRCConnectionReconfiguration | KB7: 36.44685745 | KC7: 10.75113773
B8: -120 | C8: -115 | D8: 100 | E8: 165591 | F8: 0 | G8: 0 | L8: -26 | M8: -25 | N8: 100 | O8: 166196.001 | P8: 0 | Q8: 0 | V8: -26 | W8: -25 | X8: 100 | Y8: 166196.001 | Z8: 0 | AA8: 0 | AF8: -30 | AG8: -25 | AH8: 100 | AI8: 166196.001 | AJ8: 0 | AK8: 0 | AP8: -30 | AQ8: -25 | AR8: 100 | AS8: 166196 | AT8: 0.909167 | AU8: 1511 | BJ8: 64395 | BK8: 1 | BT8: 24860 | BU8: 1 | CD8: 20212410 | CE8: 1 | CX8: 4000000 | CY8: 5000000 | CZ8: 100 | DA8: 49652.004 | DB8: 0 | DC8: 0 | EP8: 10.305844 | EQ8: 517 | ER8: 100.817616 | ES8: 501 | EW8: 1.311605 | EX8: 513 | EY8: 0.11228 | EZ8: 507 | FB8: 5 | FC8: 6 | FD8: 0 | FE8: 0 | FF8: 0 | FG8: 0 | FH8: 702 | FJ8: 4 | FK8: 5 | FL8: 92.34097 | FM8: 153467 | FN8: 3.618017 | FO8: 6013 | FR8: -46 | FS8: -45 | FT8: 100 | FU8: 6 | FV8: 0 | FW8: 0 | FZ8: -46 | GA8: -45 | GB8: 100 | GC8: 6 | GD8: 0 | GE8: 0 | GH8: 4 | GI8: 5 | GJ8: 0 | GK8: 0 | GL8: 0 | GM8: 0 | GP8: 4 | GQ8: 5 | GR8: 0 | GS8: 0 | GT8: 0 | GU8: 0 | GX8: 4 | GY8: 5 | GZ8: 0 | HA8: 0 | HB8: 0 | HC8: 0 | HF8: 4 | HG8: 5 | HH8: 0 | HI8: 0 | HJ8: 0 | HK8: 0 | HN8: -100 | HO8: -90 | HP8: 100 | HQ8: 166196.001 | HR8: 0 | HS8: 0 | HV8: -100 | HW8: -90 | HX8: 100 | HY8: 165591 | HZ8: 0 | IA8: 0 | IK8: -120 | IL8: -115 | IM8: 100 | IN8: 166196.001 | IO8: 0 | IP8: 0 | IS8: -26 | IT8: -25 | IU8: 100 | IV8: 166196.001 | IW8: 0 | IX8: 0 | JA8: -26 | JB8: -25 | JC8: 100 | JD8: 166196.001 | JE8: 0 | JF8: 0 | JX8: 45720.62178 | JY8: 276 | KA8: RRCConnectionReconfiguration | KB8: 36.447052 | KC8: 10.75100327
B9: -115 | C9: -110 | D9: 100 | E9: 165591 | F9: 0 | G9: 0 | L9: -25 | M9: -24 | N9: 100 | O9: 166196.001 | P9: 0 | Q9: 0 | V9: -25 | W9: -24 | X9: 100 | Y9: 166196.001 | Z9: 0 | AA9: 0 | AF9: -25 | AG9: -20 | AH9: 100 | AI9: 166196.001 | AJ9: 0 | AK9: 0 | AP9: -25 | AQ9: -20 | AR9: 99.090833 | AS9: 164685 | AT9: 3.352066 | AU9: 5571 | BJ9: 155972 | BK9: 1 | BT9: 26304 | BU9: 1 | CD9: 20600473 | CE9: 1 | CX9: 5000000 | CY9: 6000000 | CZ9: 100 | DA9: 49652.004 | DB9: 0 | DC9: 0 | EP9: 10.331148 | EQ9: 505 | ER9: 101.359984 | ES9: 507 | EW9: 0.13394 | EX9: 489 | EY9: 0.117529 | EZ9: 1004 | FB9: 6 | FC9: 7 | FD9: 0 | FE9: 0 | FF9: 0 | FG9: 0 | FH9: 702 | FJ9: 5 | FK9: 6 | FL9: 88.722953 | FM9: 147454 | FN9: 4.908662 | FO9: 8158 | FR9: -45 | FS9: -44 | FT9: 100 | FU9: 6 | FV9: 0 | FW9: 0 | FZ9: -45 | GA9: -44 | GB9: 100 | GC9: 6 | GD9: 0 | GE9: 0 | GH9: 5 | GI9: 6 | GJ9: 0 | GK9: 0 | GL9: 0 | GM9: 0 | GP9: 5 | GQ9: 6 | GR9: 0 | GS9: 0 | GT9: 0 | GU9: 0 | GX9: 5 | GY9: 6 | GZ9: 0 | HA9: 0 | HB9: 0 | HC9: 0 | HF9: 5 | HG9: 6 | HH9: 0 | HI9: 0 | HJ9: 0 | HK9: 0 | HN9: -90 | HO9: -80 | HP9: 100 | HQ9: 166196.001 | HR9: 7.607283 | HS9: 12643 | HV9: -90 | HW9: -80 | HX9: 100 | HY9: 165591 | HZ9: 13.721156 | IA9: 22721 | IK9: -115 | IL9: -110 | IM9: 100 | IN9: 166196.001 | IO9: 0 | IP9: 0 | IS9: -25 | IT9: -24 | IU9: 100 | IV9: 166196.001 | IW9: 0 | IX9: 0 | JA9: -25 | JB9: -24 | JC9: 100 | JD9: 166196.001 | JE9: 0 | JF9: 0 | JX9: 45720.62328 | JY9: 276 | KA9: RRCConnectionReconfiguration | KB9: 36.44689178 | KC9: 10.75132084
B10: -110 | C10: -105 | D10: 100 | E10: 165591 | F10: 0 | G10: 0 | L10: -24 | M10: -23 | N10: 100 | O10: 166196.001 | P10: 0 | Q10: 0 | V10: -24 | W10: -23 | X10: 100 | Y10: 166196.001 | Z10: 0 | AA10: 0 | AF10: -20 | AG10: -15 | AH10: 100 | AI10: 166196.001 | AJ10: 0 | AK10: 0 | AP10: -20 | AQ10: -15 | AR10: 95.738766 | AS10: 159114 | AT10: 18.022094 | AU10: 29952 | BJ10: 173133 | BK10: 1 | BT10: 35169 | BU10: 1 | CD10: 23479541 | CE10: 1 | CX10: 6000000 | CY10: 7000000 | CZ10: 100 | DA10: 49652.004 | DB10: 0 | DC10: 0 | EP10: 10.503193 | EQ10: 516 | ER10: 1.017473 | ES10: 509 | EW10: 1.393722 | EX10: 498 | EY10: 1.188576 | EZ10: 513 | FB10: 7 | FC10: 8 | FD10: 0 | FE10: 0 | FF10: 0 | FG10: 0 | FH10: 702 | FJ10: 6 | FK10: 7 | FL10: 83.814291 | FM10: 139296 | FN10: 9.384101 | FO10: 15596 | FR10: -44 | FS10: -43 | FT10: 100 | FU10: 6 | FV10: 0 | FW10: 0 | FZ10: -44 | GA10: -43 | GB10: 100 | GC10: 6 | GD10: 0 | GE10: 0 | GH10: 6 | GI10: 7 | GJ10: 0 | GK10: 0 | GL10: 0 | GM10: 0 | GP10: 6 | GQ10: 7 | GR10: 0 | GS10: 0 | GT10: 0 | GU10: 0 | GX10: 6 | GY10: 7 | GZ10: 0 | HA10: 0 | HB10: 0 | HC10: 0 | HF10: 6 | HG10: 7 | HH10: 0 | HI10: 0 | HJ10: 0 | HK10: 0 | HN10: -80 | HO10: -70 | HP10: 92.392717 | HQ10: 153553.001 | HR10: 51.465739 | HS10: 85534 | HV10: -80 | HW10: -70 | HX10: 86.278844 | HY10: 142870 | HZ10: 57.247073 | IA10: 94796 | IK10: -110 | IL10: -105 | IM10: 100 | IN10: 166196.001 | IO10: 0 | IP10: 0 | IS10: -24 | IT10: -23 | IU10: 100 | IV10: 166196.001 | IW10: 0 | IX10: 0 | JA10: -24 | JB10: -23 | JC10: 100 | JD10: 166196.001 | JE10: 0 | JF10: 0 | JX10: 45720.62526 | JY10: 276 | KA10: RRCConnectionReconfiguration | KB10: 36.44908905 | KC10: 10.75121975
B11: -105 | C11: -100 | D11: 100 | E11: 165591 | F11: 0 | G11: 0 | L11: -23 | M11: -22 | N11: 100 | O11: 166196.001 | P11: 0 | Q11: 0 | V11: -23 | W11: -22 | X11: 100 | Y11: 166196.001 | Z11: 0 | AA11: 0 | AF11: -15 | AG11: -10 | AH11: 100 | AI11: 166196.001 | AJ11: 0 | AK11: 0 | AP11: -15 | AQ11: -10 | AR11: 77.716672 | AS11: 129162 | AT11: 25.047534 | AU11: 41628 | BJ11: 200772 | BK11: 1 | BT11: 46044 | BU11: 1 | CD11: 29517220 | CE11: 1 | CX11: 7000000 | CY11: 8000000 | CZ11: 100 | DA11: 49652.004 | DB11: 0 | DC11: 0 | EP11: 10.525661 | EQ11: 513 | ER11: 102.070046 | ES11: 520 | EW11: 0.000148 | EX11: 15155 | EY11: 0.124886 | EZ11: 504 | FB11: 8 | FC11: 9 | FD11: 0 | FE11: 0 | FF11: 0 | FG11: 0 | FH11: 702 | FJ11: 7 | FK11: 8 | FL11: 74.43019 | FM11: 123700 | FN11: 13.138704 | FO11: 21836 | FR11: -43 | FS11: -42 | FT11: 100 | FU11: 6 | FV11: 0 | FW11: 0 | FZ11: -43 | GA11: -42 | GB11: 100 | GC11: 6 | GD11: 0 | GE11: 0 | GH11: 7 | GI11: 8 | GJ11: 0 | GK11: 0 | GL11: 0 | GM11: 0 | GP11: 7 | GQ11: 8 | GR11: 0 | GS11: 0 | GT11: 0 | GU11: 0 | GX11: 7 | GY11: 8 | GZ11: 0 | HA11: 0 | HB11: 0 | HC11: 0 | HF11: 7 | HG11: 8 | HH11: 0 | HI11: 0 | HJ11: 0 | HK11: 0 | HN11: -70 | HO11: -60 | HP11: 40.926978 | HQ11: 68019.001 | HR11: 39.404077 | HS11: 65488.001 | HV11: -70 | HW11: -60 | HX11: 29.031771 | HY11: 48074 | HZ11: 27.188072 | IA11: 45021 | IK11: -105 | IL11: -100 | IM11: 100 | IN11: 166196.001 | IO11: 0 | IP11: 0 | IS11: -23 | IT11: -22 | IU11: 100 | IV11: 166196.001 | IW11: 0 | IX11: 0 | JA11: -23 | JB11: -22 | JC11: 100 | JD11: 166196.001 | JE11: 0 | JF11: 0 | JX11: 45720.62564 | JY11: 276 | KA11: RRCConnectionReconfiguration | KB11: 36.44850159 | KC11: 10.75089741
B12: -100 | C12: -95 | D12: 100 | E12: 165591 | F12: 0 | G12: 0 | L12: -22 | M12: -21 | N12: 100 | O12: 166196.001 | P12: 0 | Q12: 0 | V12: -22 | W12: -21 | X12: 100 | Y12: 166196.001 | Z12: 0 | AA12: 0 | AF12: -10 | AG12: -5 | AH12: 100 | AI12: 166196.001 | AJ12: 1.205805 | AK12: 2004 | AP12: -10 | AQ12: -5 | AR12: 52.669138 | AS12: 87534 | AT12: 41.705577 | AU12: 69313 | BJ12: 256000 | BK12: 1 | BT12: 49321 | BU12: 1 | CD12: 29685338 | CE12: 1 | CX12: 8000000 | CY12: 9000000 | CZ12: 100 | DA12: 49652.004 | DB12: 0 | DC12: 0 | EP12: 10.569319 | EQ12: 493 | ER12: 102.518592 | ES12: 498 | EW12: 0.176577 | EX12: 497 | EY12: 0.125388 | EZ12: 516 | FB12: 9 | FC12: 10 | FD12: 0 | FE12: 0 | FF12: 0 | FG12: 0 | FH12: 702 | FJ12: 8 | FK12: 9 | FL12: 61.291487 | FM12: 101864 | FN12: 13.752437 | FO12: 22856 | FR12: -42 | FS12: -41 | FT12: 100 | FU12: 6 | FV12: 0 | FW12: 0 | FZ12: -42 | GA12: -41 | GB12: 100 | GC12: 6 | GD12: 0 | GE12: 0 | GH12: 8 | GI12: 9 | GJ12: 0 | GK12: 0 | GL12: 0 | GM12: 0 | GP12: 8 | GQ12: 9 | GR12: 0 | GS12: 0 | GT12: 0 | GU12: 0 | GX12: 8 | GY12: 9 | GZ12: 0 | HA12: 0 | HB12: 0 | HC12: 0 | HF12: 8 | HG12: 9 | HH12: 0 | HI12: 0 | HJ12: 0 | HK12: 0 | HN12: -60 | HO12: -50 | HP12: 1.522901 | HQ12: 2531 | HR12: 1.522901 | HS12: 2531 | HV12: -60 | HW12: -50 | HX12: 1.843699 | HY12: 3053 | HZ12: 1.843699 | IA12: 3053 | IK12: -100 | IL12: -95 | IM12: 100 | IN12: 166196.001 | IO12: 0 | IP12: 0 | IS12: -22 | IT12: -21 | IU12: 100 | IV12: 166196.001 | IW12: 0 | IX12: 0 | JA12: -22 | JB12: -21 | JC12: 100 | JD12: 166196.001 | JE12: 0 | JF12: 0
B13: -95 | C13: -90 | D13: 100 | E13: 165591 | F13: 0 | G13: 0 | L13: -21 | M13: -20 | N13: 100 | O13: 166196.001 | P13: 0 | Q13: 0 | V13: -21 | W13: -20 | X13: 100 | Y13: 166196.001 | Z13: 0 | AA13: 0 | AF13: -5 | AG13: 0 | AH13: 98.794195 | AI13: 164192.001 | AJ13: 7.62052 | AK13: 12665 | AP13: -5 | AQ13: 0 | AR13: 10.963561 | AS13: 18221 | AT13: 10.054995 | AU13: 16711 | BJ13: 288682 | BK13: 1 | BT13: 58165 | BU13: 1 | CD13: 33399789 | CE13: 1 | CX13: 9000000 | CY13: 10000000 | CZ13: 100 | DA13: 49652.004 | DB13: 0 | DC13: 0 | EP13: 10.611 | EQ13: 487 | ER13: 103.466117 | ES13: 507 | EW13: 0.21169 | EX13: 441 | EY13: 0.125846 | EZ13: 1028 | FB13: 10 | FC13: 11 | FD13: 0 | FE13: 0 | FF13: 0 | FG13: 0 | FH13: 702 | FJ13: 9 | FK13: 10 | FL13: 47.53905 | FM13: 79008 | FN13: 14.577968 | FO13: 24228 | FR13: -41 | FS13: -40 | FT13: 100 | FU13: 6 | FV13: 0 | FW13: 0 | FZ13: -41 | GA13: -40 | GB13: 100 | GC13: 6 | GD13: 0 | GE13: 0 | GH13: 9 | GI13: 10 | GJ13: 0 | GK13: 0 | GL13: 0 | GM13: 0 | GP13: 9 | GQ13: 10 | GR13: 0 | GS13: 0 | GT13: 0 | GU13: 0 | GX13: 9 | GY13: 10 | GZ13: 0 | HA13: 0 | HB13: 0 | HC13: 0 | HF13: 9 | HG13: 10 | HH13: 0 | HI13: 0 | HJ13: 0 | HK13: 0 | HN13: -50 | HO13: -40 | HP13: 0 | HQ13: 0 | HR13: 0 | HS13: 0 | HV13: -50 | HW13: -40 | HX13: 0 | HY13: 0 | HZ13: 0 | IA13: 0 | IK13: -95 | IL13: -90 | IM13: 100 | IN13: 166196.001 | IO13: 0 | IP13: 0 | IS13: -21 | IT13: -20 | IU13: 100 | IV13: 166196.001 | IW13: 0 | IX13: 0 | JA13: -21 | JB13: -20 | JC13: 100 | JD13: 166196.001 | JE13: 0 | JF13: 0
B14: -90 | C14: -85 | D14: 100 | E14: 165591 | F14: 5.224922 | G14: 8652 | L14: -20 | M14: -19 | N14: 100 | O14: 166196.001 | P14: 0 | Q14: 0 | V14: -20 | W14: -19 | X14: 100 | Y14: 166196.001 | Z14: 0 | AA14: 0 | AF14: 0 | AG14: 5 | AH14: 91.173675 | AI14: 151527.001 | AJ14: 18.973381 | AK14: 31533.001 | AP14: 0 | AQ14: 5 | AR14: 0.908566 | AS14: 1510 | AT14: 0.908566 | AU14: 1510 | BJ14: 325889 | BK14: 1 | BT14: 58941 | BU14: 1 | CD14: 39328643 | CE14: 1 | CX14: 10000000 | CY14: 11000000 | CZ14: 100 | DA14: 49652.004 | DB14: 0 | DC14: 0 | EP14: 106.957857 | EQ14: 507 | ER14: 103.688125 | ES14: 508 | EW14: 0.212472 | EX14: 528 | EY14: 1.259555 | EZ14: 496 | FB14: 11 | FC14: 12 | FD14: 0 | FE14: 0 | FF14: 0 | FG14: 0 | FH14: 702 | FJ14: 10 | FK14: 11 | FL14: 32.961082 | FM14: 54780 | FN14: 9.739103 | FO14: 16186 | FR14: -40 | FS14: -39 | FT14: 100 | FU14: 6 | FV14: 0 | FW14: 0 | FZ14: -40 | GA14: -39 | GB14: 100 | GC14: 6 | GD14: 0 | GE14: 0 | GH14: 10 | GI14: 11 | GJ14: 0 | GK14: 0 | GL14: 0 | GM14: 0 | GP14: 10 | GQ14: 11 | GR14: 0 | GS14: 0 | GT14: 0 | GU14: 0 | GX14: 10 | GY14: 11 | GZ14: 0 | HA14: 0 | HB14: 0 | HC14: 0 | HF14: 10 | HG14: 11 | HH14: 0 | HI14: 0 | HJ14: 0 | HK14: 0 | HN14: -40 | HO14: -35 | HP14: 0 | HQ14: 0 | HR14: 0 | HS14: 0 | HV14: -40 | HW14: -35 | HX14: 0 | HY14: 0 | HZ14: 0 | IA14: 0 | IK14: -90 | IL14: -85 | IM14: 100 | IN14: 166196.001 | IO14: 5.183037 | IP14: 8614 | IS14: -20 | IT14: -19 | IU14: 100 | IV14: 166196.001 | IW14: 0 | IX14: 0 | JA14: -20 | JB14: -19 | JC14: 100 | JD14: 166196.001 | JE14: 0 | JF14: 0
B15: -85 | C15: -80 | D15: 94.775078 | E15: 156939 | F15: 8.496235 | G15: 14069 | L15: -19 | M15: -18 | N15: 100 | O15: 166196.001 | P15: 0 | Q15: 0 | V15: -19 | W15: -18 | X15: 100 | Y15: 166196.001 | Z15: 0 | AA15: 0 | AF15: 5 | AG15: 10 | AH15: 72.200293 | AI15: 119994 | AJ15: 40.216371 | AK15: 66838 | AP15: 5 | AQ15: 10 | AR15: 0 | AS15: 0 | AT15: 0 | AU15: 0 | BJ15: 344558 | BK15: 1 | BT15: 61863 | BU15: 1 | CD15: 39410626 | CE15: 1 | CX15: 11000000 | CY15: 12000000 | CZ15: 100 | DA15: 49652.004 | DB15: 0 | DC15: 0 | EP15: 107.41363 | EQ15: 503 | ER15: 104.104839 | ES15: 506 | EW15: 0.214653 | EX15: 521 | EY15: 1.296638 | EZ15: 498 | FB15: 12 | FC15: 13 | FD15: 0 | FE15: 0 | FF15: 0 | FG15: 0 | FH15: 702 | FJ15: 11 | FK15: 12 | FL15: 23.221979 | FM15: 38594 | FN15: 9.691569 | FO15: 16107 | FR15: -39 | FS15: -38 | FT15: 100 | FU15: 6 | FV15: 0 | FW15: 0 | FZ15: -39 | GA15: -38 | GB15: 100 | GC15: 6 | GD15: 0 | GE15: 0 | GH15: 11 | GI15: 12 | GJ15: 0 | GK15: 0 | GL15: 0 | GM15: 0 | GP15: 11 | GQ15: 12 | GR15: 0 | GS15: 0 | GT15: 0 | GU15: 0 | GX15: 11 | GY15: 12 | GZ15: 0 | HA15: 0 | HB15: 0 | HC15: 0 | HF15: 11 | HG15: 12 | HH15: 0 | HI15: 0 | HJ15: 0 | HK15: 0 | HN15: -35 | HO15: ... | HP15: 0 | HQ15: 0 | HR15: 0 | HS15: 0 | HV15: -35 | HW15: ... | HX15: 0 | HY15: 0 | HZ15: 0 | IA15: 0 | IK15: -85 | IL15: -80 | IM15: 94.816963 | IN15: 157582.001 | IO15: 9.134997 | IP15: 15182 | IS15: -19 | IT15: -18 | IU15: 100 | IV15: 166196.001 | IW15: 0 | IX15: 0 | JA15: -19 | JB15: -18 | JC15: 100 | JD15: 166196.001 | JE15: 0 | JF15: 0
B16: -80 | C16: -75 | D16: 86.278844 | E16: 142870 | F16: 28.460484 | G16: 47128 | L16: -18 | M16: -17 | N16: 100 | O16: 166196.001 | P16: 0 | Q16: 0 | V16: -18 | W16: -17 | X16: 100 | Y16: 166196.001 | Z16: 0 | AA16: 0 | AF16: 10 | AG16: 15 | AH16: 31.983922 | AI16: 53156 | AJ16: 29.565092 | AK16: 49136 | AP16: 10 | AQ16: 15 | AR16: 0 | AS16: 0 | AT16: 0 | AU16: 0 | BJ16: 419475 | BK16: 1 | BT16: 64566 | BU16: 1 | CD16: 41289253 | CE16: 1 | CX16: 12000000 | CY16: 13000000 | CZ16: 100 | DA16: 49652.004 | DB16: 0 | DC16: 0 | EP16: 10.76603 | EQ16: 516 | ER16: 104.66278 | ES16: 505 | EW16: 0.002159 | EX16: 0.001 | EY16: 0.133885 | EZ16: 504 | FB16: 13 | FC16: 14 | FD16: 0 | FE16: 0 | FF16: 0 | FG16: 0 | FH16: 702 | FJ16: 12 | FK16: 13 | FL16: 13.53041 | FM16: 22487 | FN16: 4.867746 | FO16: 8090 | FR16: -38 | FS16: -37 | FT16: 100 | FU16: 6 | FV16: 0 | FW16: 0 | FZ16: -38 | GA16: -37 | GB16: 100 | GC16: 6 | GD16: 0 | GE16: 0 | GH16: 12 | GI16: 13 | GJ16: 0 | GK16: 0 | GL16: 0 | GM16: 0 | GP16: 12 | GQ16: 13 | GR16: 0 | GS16: 0 | GT16: 0 | GU16: 0 | GX16: 12 | GY16: 13 | GZ16: 0 | HA16: 0 | HB16: 0 | HC16: 0 | HF16: 12 | HG16: 13 | HH16: 0 | HI16: 0 | HJ16: 0 | HK16: 0 | IK16: -80 | IL16: -75 | IM16: 85.681966 | IN16: 142400.001 | IO16: 27.685383 | IP16: 46012 | IS16: -18 | IT16: -17 | IU16: 100 | IV16: 166196.001 | IW16: 0 | IX16: 0 | JA16: -18 | JB16: -17 | JC16: 100 | JD16: 166196.001 | JE16: 0 | JF16: 0
B17: -75 | C17: -70 | D17: 57.81836 | E17: 95742 | F17: 28.786589 | G17: 47668 | L17: -17 | M17: -16 | N17: 100 | O17: 166196.001 | P17: 0 | Q17: 0 | V17: -17 | W17: -16 | X17: 100 | Y17: 166196.001 | Z17: 0 | AA17: 0 | AF17: 15 | AG17: 20 | AH17: 2.418831 | AI17: 4020 | AJ17: 2.418831 | AK17: 4020 | AP17: 15 | AQ17: 20 | AR17: 0 | AS17: 0 | AT17: 0 | AU17: 0 | BJ17: 445145 | BK17: 1 | BT17: 66344 | BU17: 1 | CD17: 42656097 | CE17: 1 | CX17: 13000000 | CY17: 14000000 | CZ17: 100 | DA17: 49652.004 | DB17: 0 | DC17: 0 | EP17: 11.009216 | EQ17: 508 | ER17: 104.730043 | ES17: 506 | EW17: 0.216728 | EX17: 510 | EY17: 0.134938 | EZ17: 490 | FB17: 14 | FC17: 15 | FD17: 0 | FE17: 0 | FF17: 0 | FG17: 0 | FH17: 702 | FJ17: 13 | FK17: 14 | FL17: 8.662663 | FM17: 14397 | FN17: 2.170931 | FO17: 3608 | FR17: -37 | FS17: -36 | FT17: 100 | FU17: 6 | FV17: 0 | FW17: 0 | FZ17: -37 | GA17: -36 | GB17: 100 | GC17: 6 | GD17: 0 | GE17: 0 | GH17: 13 | GI17: 14 | GJ17: 0 | GK17: 0 | GL17: 0 | GM17: 0 | GP17: 13 | GQ17: 14 | GR17: 0 | GS17: 0 | GT17: 0 | GU17: 0 | GX17: 13 | GY17: 14 | GZ17: 0 | HA17: 0 | HB17: 0 | HC17: 0 | HF17: 13 | HG17: 14 | HH17: 0 | HI17: 0 | HJ17: 0 | HK17: 0 | IK17: -75 | IL17: -70 | IM17: 57.996583 | IN17: 96388.001 | IO17: 29.33043 | IP17: 48746.001 | IS17: -17 | IT17: -16 | IU17: 100 | IV17: 166196.001 | IW17: 0 | IX17: 0 | JA17: -17 | JB17: -16 | JC17: 100 | JD17: 166196.001 | JE17: 0 | JF17: 0
B18: -70 | C18: -65 | D18: 29.031771 | E18: 48074 | F18: 23.490407 | G18: 38898 | L18: -16 | M18: -15 | N18: 100 | O18: 166196.001 | P18: 0 | Q18: 0 | V18: -16 | W18: -15 | X18: 100 | Y18: 166196.001 | Z18: 0 | AA18: 0 | AF18: 20 | AG18: 25 | AH18: 0 | AI18: 0 | AJ18: 0 | AK18: 0 | AP18: 20 | AQ18: 25 | AR18: 0 | AS18: 0 | AT18: 0 | AU18: 0 | BJ18: 481905 | BK18: 1 | BT18: 74640 | BU18: 1 | CD18: 44368714 | CE18: 1 | CX18: 14000000 | CY18: 15000000 | CZ18: 100 | DA18: 49652.004 | DB18: 0 | DC18: 0 | EP18: 11.0704 | EQ18: 511 | ER18: 105.024078 | ES18: 510 | EW18: 0.216796 | EX18: 518 | EY18: 0.13679 | EZ18: 504 | FB18: 15 | FC18: 16 | FD18: 0 | FE18: 0 | FF18: 0 | FG18: 0 | FH18: 702 | FJ18: 14 | FK18: 15 | FL18: 6.491733 | FM18: 10789 | FN18: 1.846615 | FO18: 3069 | FR18: -36 | FS18: -35 | FT18: 100 | FU18: 6 | FV18: 0 | FW18: 0 | FZ18: -36 | GA18: -35 | GB18: 100 | GC18: 6 | GD18: 0 | GE18: 0 | GH18: 14 | GI18: 15 | GJ18: 0 | GK18: 0 | GL18: 0 | GM18: 0 | GP18: 14 | GQ18: 15 | GR18: 0 | GS18: 0 | GT18: 0 | GU18: 0 | GX18: 14 | GY18: 15 | GZ18: 0 | HA18: 0 | HB18: 0 | HC18: 0 | HF18: 14 | HG18: 15 | HH18: 0 | HI18: 0 | HJ18: 0 | HK18: 0 | IK18: -70 | IL18: -65 | IM18: 28.666153 | IN18: 47642 | IO18: 23.164216 | IP18: 38498 | IS18: -16 | IT18: -15 | IU18: 100 | IV18: 166196.001 | IW18: 0.623962 | IX18: 1037 | JA18: -16 | JB18: -15 | JC18: 100 | JD18: 166196.001 | JE18: 0 | JF18: 0
B19: -65 | C19: -60 | D19: 5.541364 | E19: 9176 | F19: 3.697665 | G19: 6123 | L19: -15 | M19: -14 | N19: 100 | O19: 166196.001 | P19: 0.609521 | Q19: 1013 | V19: -15 | W19: -14 | X19: 100 | Y19: 166196.001 | Z19: 0 | AA19: 0 | AF19: 25 | AG19: 30 | AH19: 0 | AI19: 0 | AJ19: 0 | AK19: 0 | AP19: 25 | AQ19: 30 | AR19: 0 | AS19: 0 | AT19: 0 | AU19: 0 | BJ19: 607387 | BK19: 1 | BT19: 77746 | BU19: 1 | CD19: 48083424 | CE19: 1 | CX19: 15000000 | CY19: 16000000 | CZ19: 100 | DA19: 49652.004 | DB19: 0 | DC19: 0 | EP19: 114.016096 | EQ19: 505 | ER19: 105.07396 | ES19: 509 | EW19: 0.224561 | EX19: 482 | EY19: 0.013754 | EZ19: 518 | FB19: 16 | FC19: 17 | FD19: 0 | FE19: 0 | FF19: 0 | FG19: 0 | FH19: 702 | FJ19: 15 | FK19: 16 | FL19: 4.645118 | FM19: 7720 | FN19: 2.438687 | FO19: 4053 | FR19: -35 | FS19: -34 | FT19: 100 | FU19: 6 | FV19: 0 | FW19: 0 | FZ19: -35 | GA19: -34 | GB19: 100 | GC19: 6 | GD19: 0 | GE19: 0 | GH19: 15 | GI19: 16 | GJ19: 0 | GK19: 0 | GL19: 0 | GM19: 0 | GP19: 15 | GQ19: 16 | GR19: 0 | GS19: 0 | GT19: 0 | GU19: 0 | GX19: 15 | GY19: 16 | GZ19: 0 | HA19: 0 | HB19: 0 | HC19: 0 | HF19: 15 | HG19: 16 | HH19: 0 | HI19: 0 | HJ19: 0 | HK19: 0 | IK19: -65 | IL19: -60 | IM19: 5.501937 | IN19: 9144 | IO19: 3.642687 | IP19: 6054 | IS19: -15 | IT19: -14 | IU19: 99.376038 | IV19: 165159.001 | IW19: 1.20761 | IX19: 2007 | JA19: -15 | JB19: -14 | JC19: 100 | JD19: 166196.001 | JE19: 0 | JF19: 0
B20: -60 | C20: -55 | D20: 1.843699 | E20: 3053 | F20: 1.843699 | G20: 3053 | L20: -14 | M20: -13 | N20: 99.390479 | O20: 165183.001 | P20: 2.134829 | Q20: 3548 | V20: -14 | W20: -13 | X20: 100 | Y20: 166196.001 | Z20: 0 | AA20: 0 | AF20: 30 | AG20: 35 | AH20: 0 | AI20: 0 | AJ20: 0 | AK20: 0 | AP20: 30 | AQ20: 35 | AR20: 0 | AS20: 0 | AT20: 0 | AU20: 0 | BJ20: 1842951 | BK20: 1 | BT20: 81019 | BU20: 1 | CD20: 48676288 | CE20: 1 | CX20: 16000000 | CY20: 17000000 | CZ20: 100 | DA20: 49652.004 | DB20: 0 | DC20: 0 | EP20: 0.011453 | EQ20: 441 | ER20: 105.598603 | ES20: 509 | EW20: 0.022788 | EX20: 516 | EY20: 0.142034 | EZ20: 505 | FB20: 17 | FC20: 18 | FD20: 0 | FE20: 0 | FF20: 0 | FG20: 0 | FH20: 702 | FJ20: 16 | FK20: 17 | FL20: 2.206431 | FM20: 3667 | FN20: 0.30446 | FO20: 506 | FR20: -34 | FS20: -33 | FT20: 100 | FU20: 6 | FV20: 0 | FW20: 0 | FZ20: -34 | GA20: -33 | GB20: 100 | GC20: 6 | GD20: 0 | GE20: 0 | GH20: 16 | GI20: 17 | GJ20: 0 | GK20: 0 | GL20: 0 | GM20: 0 | GP20: 16 | GQ20: 17 | GR20: 0 | GS20: 0 | GT20: 0 | GU20: 0 | GX20: 16 | GY20: 17 | GZ20: 0 | HA20: 0 | HB20: 0 | HC20: 0 | HF20: 16 | HG20: 17 | HH20: 0 | HI20: 0 | HJ20: 0 | HK20: 0 | IK20: -60 | IL20: -55 | IM20: 1.859251 | IN20: 3090 | IO20: 1.859251 | IP20: 3090 | IS20: -14 | IT20: -13 | IU20: 98.168428 | IV20: 163152.001 | IW20: 3.049412 | IX20: 5068 | JA20: -14 | JB20: -13 | JC20: 100 | JD20: 166196.001 | JE20: 0 | JF20: 0
B21: -55 | C21: -50 | D21: 0 | E21: 0 | F21: 0 | G21: 0 | L21: -13 | M21: -12 | N21: 97.25565 | O21: 161635.001 | P21: 7.871429 | Q21: 13082 | V21: -13 | W21: -12 | X21: 100 | Y21: 166196.001 | Z21: 0 | AA21: 0 | AF21: 35 | AG21: 40 | AH21: 0 | AI21: 0 | AJ21: 0 | AK21: 0 | AP21: 35 | AQ21: 40 | AR21: 0 | AS21: 0 | AT21: 0 | AU21: 0 | BJ21: 1988023 | BK21: 1 | BT21: 95905 | BU21: 1 | CD21: 50623236 | CE21: 1 | CX21: 17000000 | CY21: 18000000 | CZ21: 100 | DA21: 49652.004 | DB21: 0 | DC21: 0 | EP21: 11.499603 | EQ21: 517 | ER21: 106.377292 | ES21: 497 | EW21: 0.22861 | EX21: 524 | EY21: 0.149353 | EZ21: 508 | FB21: 18 | FC21: 19 | FD21: 0 | FE21: 0 | FF21: 0 | FG21: 0 | FH21: 702 | FJ21: 17 | FK21: 18 | FL21: 1.901971 | FM21: 3161 | FN21: 0 | FO21: 0 | FR21: -33 | FS21: -32 | FT21: 100 | FU21: 6 | FV21: 0 | FW21: 0 | FZ21: -33 | GA21: -32 | GB21: 100 | GC21: 6 | GD21: 0 | GE21: 0 | GH21: 17 | GI21: 18 | GJ21: 0 | GK21: 0 | GL21: 0 | GM21: 0 | GP21: 17 | GQ21: 18 | GR21: 0 | GS21: 0 | GT21: 0 | GU21: 0 | GX21: 17 | GY21: 18 | GZ21: 0 | HA21: 0 | HB21: 0 | HC21: 0 | HF21: 17 | HG21: 18 | HH21: 0 | HI21: 0 | HJ21: 0 | HK21: 0 | IK21: -55 | IL21: -50 | IM21: 0 | IN21: 0 | IO21: 0 | IP21: 0 | IS21: -13 | IT21: -12 | IU21: 95.119016 | IV21: 158084.001 | IW21: 6.34913 | IX21: 10552 | JA21: -13 | JB21: -12 | JC21: 100 | JD21: 166196.001 | JE21: 0 | JF21: 0
B22: -50 | C22: -45 | D22: 0 | E22: 0 | F22: 0 | G22: 0 | L22: -12 | M22: -11 | N22: 89.384221 | O22: 148553.001 | P22: 19.226696 | Q22: 31954 | V22: -12 | W22: -11 | X22: 100 | Y22: 166196.001 | Z22: 0 | AA22: 0 | AF22: 40 | AG22: ... | AH22: 0 | AI22: 0 | AJ22: 0 | AK22: 0 | AP22: 40 | AQ22: ... | AR22: 0 | AS22: 0 | AT22: 0 | AU22: 0 | BJ22: 13005039 | BK22: 1 | BT22: 99260 | BU22: 1 | CD22: 50701003 | CE22: 1 | CX22: 18000000 | CY22: 19000000 | CZ22: 100 | DA22: 49652.004 | DB22: 0 | DC22: 0 | EP22: 11.640665 | EQ22: 490 | ER22: 106.703207 | ES22: 507 | EW22: 0.23429 | EX22: 487 | EY22: 0.155017 | EZ22: 503 | FB22: 19 | FC22: 20 | FD22: 0 | FE22: 0 | FF22: 0 | FG22: 0 | FH22: 702 | FJ22: 18 | FK22: 19 | FL22: 1.901971 | FM22: 3161 | FN22: 0.303858 | FO22: 505 | FR22: -32 | FS22: -31 | FT22: 100 | FU22: 6 | FV22: 0 | FW22: 0 | FZ22: -32 | GA22: -31 | GB22: 100 | GC22: 6 | GD22: 0 | GE22: 0 | GH22: 18 | GI22: 19 | GJ22: 0 | GK22: 0 | GL22: 0 | GM22: 0 | GP22: 18 | GQ22: 19 | GR22: 0 | GS22: 0 | GT22: 0 | GU22: 0 | GX22: 18 | GY22: 19 | GZ22: 0 | HA22: 0 | HB22: 0 | HC22: 0 | HF22: 18 | HG22: 19 | HH22: 0 | HI22: 0 | HJ22: 0 | HK22: 0 | IK22: -50 | IL22: -45 | IM22: 0 | IN22: 0 | IO22: 0 | IP22: 0 | IS22: -12 | IT22: -11 | IU22: 88.769886 | IV22: 147532.001 | IW22: 18.612361 | IX22: 30933 | JA22: -12 | JB22: -11 | JC22: 100 | JD22: 166196.001 | JE22: 0 | JF22: 0
B23: -45 | C23: -40 | D23: 0 | E23: 0 | F23: 0 | G23: 0 | L23: -11 | M23: -10 | N23: 70.157525 | O23: 116599.001 | P23: 70.157525 | Q23: 116599.001 | V23: -11 | W23: -10 | X23: 100 | Y23: 166196.001 | Z23: 0 | AA23: 0 | BJ23: 17751310 | BK23: 1 | BT23: 101819 | BU23: 1 | CD23: 56660007 | CE23: 1 | CX23: 19000000 | CY23: 20000000 | CZ23: 100 | DA23: 49652.004 | DB23: 0 | DC23: 0 | EP23: 11.78406 | EQ23: 516 | ER23: 106.768792 | ES23: 505 | EW23: 0.241779 | EX23: 513 | EY23: 0.1637 | EZ23: 494 | FB23: 20 | FC23: 21 | FD23: 0 | FE23: 0 | FF23: 0 | FG23: 0 | FH23: 702 | FJ23: 19 | FK23: 20 | FL23: 1.598113 | FM23: 2656 | FN23: 0.303858 | FO23: 505 | FR23: -31 | FS23: -30 | FT23: 100 | FU23: 6 | FV23: 0 | FW23: 0 | FZ23: -31 | GA23: -30 | GB23: 100 | GC23: 6 | GD23: 0 | GE23: 0 | GH23: 19 | GI23: 20 | GJ23: 0 | GK23: 0 | GL23: 0 | GM23: 0 | GP23: 19 | GQ23: 20 | GR23: 0 | GS23: 0 | GT23: 0 | GU23: 0 | GX23: 19 | GY23: 20 | GZ23: 0 | HA23: 0 | HB23: 0 | HC23: 0 | HF23: 19 | HG23: 20 | HH23: 0 | HI23: 0 | HJ23: 0 | HK23: 0 | IK23: -45 | IL23: -40 | IM23: 0 | IN23: 0 | IO23: 0 | IP23: 0 | IS23: -11 | IT23: -10 | IU23: 70.157525 | IV23: 116599.001 | IW23: 70.157525 | IX23: 116599.001 | JA23: -11 | JB23: -10 | JC23: 100 | JD23: 166196.001 | JE23: 0 | JF23: 0
B24: -40 | C24: -35 | D24: 0 | E24: 0 | F24: 0 | G24: 0 | L24: -10 | M24: -9 | N24: 0 | O24: 0 | P24: 0 | Q24: 0 | V24: -10 | W24: -9 | X24: 100 | Y24: 166196.001 | Z24: 0 | AA24: 0 | BJ24: 20212410 | BK24: 1 | BT24: 102674 | BU24: 1 | CD24: 59806806 | CE24: 1 | CX24: 20000000 | CY24: 21000000 | CZ24: 100 | DA24: 49652.004 | DB24: 0 | DC24: 0 | EP24: 11.885211 | EQ24: 503 | ER24: 0.000107 | ES24: 518 | EW24: 0.250347 | EX24: 490 | EY24: 0.165619 | EZ24: 504 | FB24: 21 | FC24: 22 | FD24: 0 | FE24: 0 | FF24: 0 | FG24: 0 | FH24: 702 | FJ24: 20 | FK24: 21 | FL24: 1.294255 | FM24: 2151 | FN24: 0 | FO24: 0 | FR24: -30 | FS24: -29 | FT24: 100 | FU24: 6 | FV24: 0 | FW24: 0 | FZ24: -30 | GA24: -29 | GB24: 100 | GC24: 6 | GD24: 0 | GE24: 0 | GH24: 20 | GI24: 21 | GJ24: 0 | GK24: 0 | GL24: 0 | GM24: 0 | GP24: 20 | GQ24: 21 | GR24: 0 | GS24: 0 | GT24: 0 | GU24: 0 | GX24: 20 | GY24: 21 | GZ24: 0 | HA24: 0 | HB24: 0 | HC24: 0 | HF24: 20 | HG24: 21 | HH24: 0 | HI24: 0 | HJ24: 0 | HK24: 0 | IK24: -40 | IL24: -35 | IM24: 0 | IN24: 0 | IO24: 0 | IP24: 0 | IS24: -10 | IT24: -9 | IU24: 0 | IV24: 0 | IW24: 0 | IX24: 0 | JA24: -10 | JB24: -9 | JC24: 100 | JD24: 166196.001 | JE24: 0 | JF24: 0
B25: -35 | C25: ... | D25: 0 | E25: 0 | F25: 0 | G25: 0 | L25: -9 | M25: -8 | N25: 0 | O25: 0 | P25: 0 | Q25: 0 | V25: -9 | W25: -8 | X25: 100 | Y25: 166196.001 | Z25: 0 | AA25: 0 | BJ25: 20600473 | BK25: 1 | BT25: 105836 | BU25: 1 | CD25: 62647639 | CE25: 1 | CX25: 21000000 | CY25: 22000000 | CZ25: 100 | DA25: 49652.004 | DB25: 0 | DC25: 0 | EP25: 0.000122 | EQ25: 485 | ER25: 107.127854 | ES25: 494 | EW25: 0.253237 | EX25: 509 | EY25: 0.166347 | EZ25: 495 | FB25: 22 | FC25: 23 | FD25: 0 | FE25: 0 | FF25: 0 | FG25: 0 | FH25: 702 | FJ25: 21 | FK25: 22 | FL25: 1.294255 | FM25: 2151 | FN25: 0 | FO25: 0 | FR25: -29 | FS25: -28 | FT25: 100 | FU25: 6 | FV25: 0 | FW25: 0 | FZ25: -29 | GA25: -28 | GB25: 100 | GC25: 6 | GD25: 0 | GE25: 0 | GH25: 21 | GI25: 22 | GJ25: 0 | GK25: 0 | GL25: 0 | GM25: 0 | GP25: 21 | GQ25: 22 | GR25: 0 | GS25: 0 | GT25: 0 | GU25: 0 | GX25: 21 | GY25: 22 | GZ25: 0 | HA25: 0 | HB25: 0 | HC25: 0 | HF25: 21 | HG25: 22 | HH25: 0 | HI25: 0 | HJ25: 0 | HK25: 0 | IK25: -35 | IL25: ... | IM25: 0 | IN25: 0 | IO25: 0 | IP25: 0 | IS25: -9 | IT25: -8 | IU25: 0 | IV25: 0 | IW25: 0 | IX25: 0 | JA25: -9 | JB25: -8 | JC25: 100 | JD25: 166196.001 | JE25: 0 | JF25: 0
L26: -8 | M26: -7 | N26: 0 | O26: 0 | P26: 0 | Q26: 0 | V26: -8 | W26: -7 | X26: 100 | Y26: 166196.001 | Z26: 0 | AA26: 0 | BJ26: 23479541 | BK26: 1 | BT26: 106787 | BU26: 1 | CD26: 65796539 | CE26: 1 | CX26: 22000000 | CY26: 23000000 | CZ26: 100 | DA26: 49652.004 | DB26: 0.187304 | DC26: 93 | EP26: 12.313606 | EQ26: 490 | ER26: 107.149709 | ES26: 513 | EW26: 0.264 | EX26: 516 | EY26: 0.168423 | EZ26: 517 | FB26: 23 | FC26: 24 | FD26: 0 | FE26: 0 | FF26: 0 | FG26: 0 | FH26: 702 | FJ26: 22 | FK26: 23 | FL26: 1.294255 | FM26: 2151 | FN26: 0.618547 | FO26: 1028 | FR26: -28 | FS26: -27 | FT26: 100 | FU26: 6 | FV26: 0 | FW26: 0 | FZ26: -28 | GA26: -27 | GB26: 100 | GC26: 6 | GD26: 0 | GE26: 0 | GH26: 22 | GI26: 23 | GJ26: 0 | GK26: 0 | GL26: 0 | GM26: 0 | GP26: 22 | GQ26: 23 | GR26: 0 | GS26: 0 | GT26: 0 | GU26: 0 | GX26: 22 | GY26: 23 | GZ26: 0 | HA26: 0 | HB26: 0 | HC26: 0 | HF26: 22 | HG26: 23 | HH26: 0 | HI26: 0 | HJ26: 0 | HK26: 0 | IS26: -8 | IT26: -7 | IU26: 0 | IV26: 0 | IW26: 0 | IX26: 0 | JA26: -8 | JB26: -7 | JC26: 100 | JD26: 166196.001 | JE26: 0 | JF26: 0
L27: -7 | M27: -6 | N27: 0 | O27: 0 | P27: 0 | Q27: 0 | V27: -7 | W27: -6 | X27: 100 | Y27: 166196.001 | Z27: 0 | AA27: 0 | BJ27: 29517220 | BK27: 1 | BT27: 110667 | BU27: 1 | CD27: 66377317 | CE27: 1 | CX27: 23000000 | CY27: 24000000 | CZ27: 99.812696 | DA27: 49559.004 | DB27: 1.438008 | DC27: 714 | EP27: 12.316401 | EQ27: 513 | ER27: 107.257536 | ES27: 502 | EW27: 0.275131 | EX27: 492 | EY27: 0.17675 | EZ27: 504 | FB27: 24 | FC27: 25 | FD27: 0 | FE27: 0 | FF27: 0 | FG27: 0 | FH27: 702 | FJ27: 23 | FK27: 24 | FL27: 0.675708 | FM27: 1123 | FN27: 0 | FO27: 0 | FR27: -27 | FS27: -26 | FT27: 100 | FU27: 6 | FV27: 0 | FW27: 0 | FZ27: -27 | GA27: -26 | GB27: 100 | GC27: 6 | GD27: 0 | GE27: 0 | GH27: 23 | GI27: 24 | GJ27: 0 | GK27: 0 | GL27: 0 | GM27: 0 | GP27: 23 | GQ27: 24 | GR27: 0 | GS27: 0 | GT27: 0 | GU27: 0 | GX27: 23 | GY27: 24 | GZ27: 0 | HA27: 0 | HB27: 0 | HC27: 0 | HF27: 23 | HG27: 24 | HH27: 0 | HI27: 0 | HJ27: 0 | HK27: 0 | IS27: -7 | IT27: -6 | IU27: 0 | IV27: 0 | IW27: 0 | IX27: 0 | JA27: -7 | JB27: -6 | JC27: 100 | JD27: 166196.001 | JE27: 0 | JF27: 0
L28: -6 | M28: -5 | N28: 0 | O28: 0 | P28: 0 | Q28: 0 | V28: -6 | W28: -5 | X28: 100 | Y28: 166196.001 | Z28: 0 | AA28: 0 | BJ28: 29685338 | BK28: 1 | BT28: 112280 | BU28: 1 | CD28: 67614804 | CE28: 1 | CX28: 24000000 | CY28: 25000000 | CZ28: 98.374688 | DA28: 48845.004 | DB28: 0 | DC28: 0 | EP28: 12.31982 | EQ28: 504 | ER28: 107.504728 | ES28: 503 | EW28: 0.278879 | EX28: 507 | EY28: 0.177251 | EZ28: 497 | FB28: 25 | FC28: 26 | FD28: 0 | FE28: 0 | FF28: 0 | FG28: 0 | FH28: 702 | FJ28: 24 | FK28: 25 | FL28: 0.675708 | FM28: 1123 | FN28: 0 | FO28: 0 | FR28: -26 | FS28: -25 | FT28: 100 | FU28: 6 | FV28: 0 | FW28: 0 | FZ28: -26 | GA28: -25 | GB28: 100 | GC28: 6 | GD28: 0 | GE28: 0 | GH28: 24 | GI28: 25 | GJ28: 0 | GK28: 0 | GL28: 0 | GM28: 0 | GP28: 24 | GQ28: 25 | GR28: 0 | GS28: 0 | GT28: 0 | GU28: 0 | GX28: 24 | GY28: 25 | GZ28: 0 | HA28: 0 | HB28: 0 | HC28: 0 | HF28: 24 | HG28: 25 | HH28: 0 | HI28: 0 | HJ28: 0 | HK28: 0 | IS28: -6 | IT28: -5 | IU28: 0 | IV28: 0 | IW28: 0 | IX28: 0 | JA28: -6 | JB28: -5 | JC28: 100 | JD28: 166196.001 | JE28: 0 | JF28: 0
L29: -5 | M29: -4 | N29: 0 | O29: 0 | P29: 0 | Q29: 0 | V29: -5 | W29: -4 | X29: 100 | Y29: 166196.001 | Z29: 0 | AA29: 0 | BJ29: 33399789 | BK29: 1 | BT29: 115234 | BU29: 1 | CD29: 70697866 | CE29: 1 | CX29: 25000000 | CY29: 26000000 | CZ29: 98.374688 | DA29: 48845.004 | DB29: 0 | DC29: 0 | EP29: 12.407095 | EQ29: 512 | ER29: 108.164704 | ES29: 506 | EW29: 0.2815 | EX29: 541 | EY29: 0.178649 | EZ29: 498 | FB29: 26 | FC29: 27 | FD29: 0 | FE29: 0 | FF29: 0 | FG29: 0 | FH29: 702 | FJ29: 25 | FK29: 26 | FL29: 0.675708 | FM29: 1123 | FN29: 0 | FO29: 0 | FR29: -25 | FS29: -24 | FT29: 100 | FU29: 6 | FV29: 0 | FW29: 0 | FZ29: -25 | GA29: -24 | GB29: 100 | GC29: 6 | GD29: 16.666667 | GE29: 1 | GH29: 25 | GI29: 26 | GJ29: 0 | GK29: 0 | GL29: 0 | GM29: 0 | GP29: 25 | GQ29: 26 | GR29: 0 | GS29: 0 | GT29: 0 | GU29: 0 | GX29: 25 | GY29: 26 | GZ29: 0 | HA29: 0 | HB29: 0 | HC29: 0 | HF29: 25 | HG29: 26 | HH29: 0 | HI29: 0 | HJ29: 0 | HK29: 0 | IS29: -5 | IT29: -4 | IU29: 0 | IV29: 0 | IW29: 0 | IX29: 0 | JA29: -5 | JB29: -4 | JC29: 100 | JD29: 166196.001 | JE29: 0 | JF29: 0
L30: -4 | M30: -3 | N30: 0 | O30: 0 | P30: 0 | Q30: 0 | V30: -4 | W30: -3 | X30: 100 | Y30: 166196.001 | Z30: 0 | AA30: 0 | BJ30: 39328643 | BK30: 1 | BT30: 124886 | BU30: 1 | CD30: 72777788 | CE30: 1 | CX30: 26000000 | CY30: 27000000 | CZ30: 98.374688 | DA30: 48845.004 | DB30: 0.868044 | DC30: 431.001 | EP30: 12.427303 | EQ30: 492 | ER30: 108.377196 | ES30: 515 | EW30: 0.281686 | EX30: 497 | EY30: 0.001788 | EZ30: 0.001 | FB30: 27 | FC30: 28 | FD30: 0 | FE30: 0 | FF30: 0 | FG30: 0 | FH30: 702 | FJ30: 26 | FK30: 27 | FL30: 0.675708 | FM30: 1123 | FN30: 0 | FO30: 0 | FR30: -24 | FS30: -23 | FT30: 100 | FU30: 6 | FV30: 0 | FW30: 0 | FZ30: -24 | GA30: -23 | GB30: 83.333333 | GC30: 5 | GD30: 0 | GE30: 0 | GH30: 26 | GI30: 27 | GJ30: 0 | GK30: 0 | GL30: 0 | GM30: 0 | GP30: 26 | GQ30: 27 | GR30: 0 | GS30: 0 | GT30: 0 | GU30: 0 | GX30: 26 | GY30: 27 | GZ30: 0 | HA30: 0 | HB30: 0 | HC30: 0 | HF30: 26 | HG30: 27 | HH30: 0 | HI30: 0 | HJ30: 0 | HK30: 0 | IS30: -4 | IT30: -3 | IU30: 0 | IV30: 0 | IW30: 0 | IX30: 0 | JA30: -4 | JB30: -3 | JC30: 100 | JD30: 166196.001 | JE30: 0 | JF30: 0
L31: -3 | M31: -2 | N31: 0 | O31: 0 | P31: 0 | Q31: 0 | V31: -3 | W31: -2 | X31: 100 | Y31: 166196.001 | Z31: 0.296638 | AA31: 493 | BJ31: 39410626 | BK31: 1 | BT31: 125388 | BU31: 1 | CD31: 74924669 | CE31: 1 | CX31: 27000000 | CY31: 28000000 | CZ31: 97.506644 | DA31: 48414.003 | DB31: 0 | DC31: 0 | EP31: 12.466858 | EQ31: 494 | ER31: 108.775264 | ES31: 500 | EW31: 0.28425 | EX31: 504 | EY31: 0.179179 | EZ31: 510 | FB31: 28 | FC31: 29 | FD31: 0 | FE31: 0 | FF31: 0 | FG31: 0 | FH31: 702 | FJ31: 27 | FK31: 28 | FL31: 0.675708 | FM31: 1123 | FN31: 0 | FO31: 0 | FR31: -23 | FS31: -22 | FT31: 100 | FU31: 6 | FV31: 0 | FW31: 0 | FZ31: -23 | GA31: -22 | GB31: 83.333333 | GC31: 5 | GD31: 0 | GE31: 0 | GH31: 27 | GI31: 28 | GJ31: 0 | GK31: 0 | GL31: 0 | GM31: 0 | GP31: 27 | GQ31: 28 | GR31: 0 | GS31: 0 | GT31: 0 | GU31: 0 | GX31: 27 | GY31: 28 | GZ31: 0 | HA31: 0 | HB31: 0 | HC31: 0 | HF31: 27 | HG31: 28 | HH31: 0 | HI31: 0 | HJ31: 0 | HK31: 0 | IS31: -3 | IT31: -2 | IU31: 0 | IV31: 0 | IW31: 0 | IX31: 0 | JA31: -3 | JB31: -2 | JC31: 100 | JD31: 166196.001 | JE31: 0.296638 | JF31: 493
L32: -2 | M32: -1 | N32: 0 | O32: 0 | P32: 0 | Q32: 0 | V32: -2 | W32: -1 | X32: 99.703362 | Y32: 165703.001 | Z32: 0 | AA32: 0 | BJ32: 41289253 | BK32: 1 | BT32: 137351 | BU32: 1 | CD32: 78098840 | CE32: 1 | CX32: 28000000 | CY32: 29000000 | CZ32: 97.506644 | DA32: 48414.003 | DB32: 0 | DC32: 0 | EP32: 12.857242 | EQ32: 515 | ER32: 108.801866 | ES32: 514 | EW32: 0.301258 | EX32: 501 | EY32: 0.179257 | EZ32: 500 | FB32: 29 | FC32: 30 | FD32: 0 | FE32: 0 | FF32: 0 | FG32: 0 | FH32: 702 | FJ32: 28 | FK32: 29 | FL32: 0.675708 | FM32: 1123 | FN32: 0 | FO32: 0 | FR32: -22 | FS32: -21 | FT32: 100 | FU32: 6 | FV32: 0 | FW32: 0 | FZ32: -22 | GA32: -21 | GB32: 83.333333 | GC32: 5 | GD32: 0 | GE32: 0 | GH32: 28 | GI32: 29 | GJ32: 0 | GK32: 0 | GL32: 0 | GM32: 0 | GP32: 28 | GQ32: 29 | GR32: 0 | GS32: 0 | GT32: 0 | GU32: 0 | GX32: 28 | GY32: 29 | GZ32: 0 | HA32: 0 | HB32: 0 | HC32: 0 | HF32: 28 | HG32: 29 | HH32: 0 | HI32: 0 | HJ32: 0 | HK32: 0 | IS32: -2 | IT32: -1 | IU32: 0 | IV32: 0 | IW32: 0 | IX32: 0 | JA32: -2 | JB32: -1 | JC32: 99.703362 | JD32: 165703.001 | JE32: 0 | JF32: 0
L33: -1 | M33: 0 | N33: 0 | O33: 0 | P33: 0 | Q33: 0 | V33: -1 | W33: 0 | X33: 99.703362 | Y33: 165703.001 | Z33: 0.312282 | AA33: 519 | BJ33: 42656097 | BK33: 1 | BT33: 140991 | BU33: 1 | CD33: 80820111 | CE33: 1 | CX33: 29000000 | CY33: 30000000 | CZ33: 97.506644 | DA33: 48414.003 | DB33: 0 | DC33: 0 | EP33: 0.001303 | EQ33: 528 | ER33: 108.983798 | ES33: 510 | EW33: 0.301452 | EX33: 515 | EY33: 0.181147 | EZ33: 510 | FB33: 30 | FC33: 31 | FD33: 0 | FE33: 0 | FF33: 0 | FG33: 0 | FH33: 702 | FJ33: 29 | FK33: 30 | FL33: 0.675708 | FM33: 1123 | FN33: 0 | FO33: 0 | FR33: -21 | FS33: -20 | FT33: 100 | FU33: 6 | FV33: 0 | FW33: 0 | FZ33: -21 | GA33: -20 | GB33: 83.333333 | GC33: 5 | GD33: 0 | GE33: 0 | GH33: 29 | GI33: 30 | GJ33: 0 | GK33: 0 | GL33: 0 | GM33: 0 | GP33: 29 | GQ33: 30 | GR33: 0 | GS33: 0 | GT33: 0 | GU33: 0 | GX33: 29 | GY33: 30 | GZ33: 0 | HA33: 0 | HB33: 0 | HC33: 0 | HF33: 29 | HG33: 30 | HH33: 0 | HI33: 0 | HJ33: 0 | HK33: 0 | IS33: -1 | IT33: 0 | IU33: 0 | IV33: 0 | IW33: 0 | IX33: 0 | JA33: -1 | JB33: 0 | JC33: 99.703362 | JD33: 165703.001 | JE33: 0.312282 | JF33: 519
L34: 0 | M34: ... | N34: 0 | O34: 0 | P34: 0 | Q34: 0 | V34: 0 | W34: 1 | X34: 99.39108 | Y34: 165184.001 | Z34: 1.520494 | AA34: 2527 | BJ34: 44368714 | BK34: 1 | BT34: 142034 | BU34: 1 | CD34: 82269798 | CE34: 1 | CX34: 30000000 | CY34: 31000000 | CZ34: 97.506644 | DA34: 48414.003 | DB34: 0 | DC34: 0 | EP34: 13.053436 | EQ34: 490 | ER34: 109.09451 | ES34: 505 | EW34: 0.303285 | EX34: 517 | EY34: 0.181897 | EZ34: 504 | FB34: 31 | FC34: 32 | FD34: 0 | FE34: 0 | FF34: 0 | FG34: 0 | FH34: 702 | FJ34: 30 | FK34: 31 | FL34: 0.675708 | FM34: 1123 | FN34: 0 | FO34: 0 | FR34: -20 | FS34: -19 | FT34: 100 | FU34: 6 | FV34: 0 | FW34: 0 | FZ34: -20 | GA34: -19 | GB34: 83.333333 | GC34: 5 | GD34: 0 | GE34: 0 | GH34: 30 | GI34: ... | GJ34: 0 | GK34: 0 | GL34: 0 | GM34: 0 | GP34: 30 | GQ34: ... | GR34: 0 | GS34: 0 | GT34: 0 | GU34: 0 | GX34: 30 | GY34: ... | GZ34: 0 | HA34: 0 | HB34: 0 | HC34: 0 | HF34: 30 | HG34: 31 | HH34: 0 | HI34: 0 | HJ34: 0 | HK34: 0 | IS34: 0 | IT34: ... | IU34: 0 | IV34: 0 | IW34: 0 | IX34: 0 | JA34: 0 | JB34: 1 | JC34: 99.39108 | JD34: 165184.001 | JE34: 1.520494 | JF34: 2527
V35: 1 | W35: 2 | X35: 97.870587 | Y35: 162657.001 | Z35: 2.741943 | AA35: 4557 | BJ35: 48083424 | BK35: 1 | BT35: 143058 | BU35: 1 | CD35: 86091168 | CE35: 1 | CX35: 31000000 | CY35: 32000000 | CZ35: 97.506644 | DA35: 48414.003 | DB35: 0 | DC35: 0 | EP35: 13.166452 | EQ35: 498 | ER35: 109.96304 | ES35: 503 | EW35: 0.309372 | EX35: 505 | EY35: 0.182383 | EZ35: 509 | FB35: 32 | FC35: 33 | FD35: 0 | FE35: 0 | FF35: 0 | FG35: 0 | FH35: 702 | FJ35: 31 | FK35: 32 | FL35: 0.675708 | FM35: 1123 | FN35: 0 | FO35: 0 | FR35: -19 | FS35: -18 | FT35: 100 | FU35: 6 | FV35: 0 | FW35: 0 | FZ35: -19 | GA35: -18 | GB35: 83.333333 | GC35: 5 | GD35: 0 | GE35: 0 | HF35: 31 | HG35: 32 | HH35: 0 | HI35: 0 | HJ35: 0 | HK35: 0 | JA35: 1 | JB35: 2 | JC35: 97.870587 | JD35: 162657.001 | JE35: 2.741943 | JF35: 4557
V36: 2 | W36: 3 | X36: 95.128643 | Y36: 158100.001 | Z36: 1.207009 | AA36: 2006 | BJ36: 48676288 | BK36: 1 | BT36: 149722 | BU36: 1 | CD36: 86699640 | CE36: 1 | CX36: 32000000 | CY36: 33000000 | CZ36: 97.506644 | DA36: 48414.003 | DB36: 0 | DC36: 0 | EP36: 13.257198 | EQ36: 490 | ER36: 110.194344 | ES36: 505 | EW36: 0.309989 | EX36: 503 | EY36: 0.183336 | EZ36: 500 | FB36: 33 | FC36: 34 | FD36: 0 | FE36: 0 | FF36: 0 | FG36: 0 | FH36: 702 | FJ36: 32 | FK36: 33 | FL36: 0.675708 | FM36: 1123 | FN36: 0 | FO36: 0 | FR36: -18 | FS36: -17 | FT36: 100 | FU36: 6 | FV36: 0 | FW36: 0 | FZ36: -18 | GA36: -17 | GB36: 83.333333 | GC36: 5 | GD36: 0 | GE36: 0 | HF36: 32 | HG36: 33 | HH36: 0 | HI36: 0 | HJ36: 0 | HK36: 0 | JA36: 2 | JB36: 3 | JC36: 95.128643 | JD36: 158100.001 | JE36: 1.207009 | JF36: 2006
V37: 3 | W37: 4 | X37: 93.921635 | Y37: 156094.001 | Z37: 3.05603 | AA37: 5079 | BJ37: 50623236 | BK37: 1 | BT37: 150405 | BU37: 1 | CD37: 86754531 | CE37: 1 | CX37: 33000000 | CY37: 34000000 | CZ37: 97.506644 | DA37: 48414.003 | DB37: 0 | DC37: 0 | EP37: 13.299897 | EQ37: 512 | ER37: 110.23933 | ES37: 493 | EW37: 0.311894 | EX37: 506 | EY37: 0.184311 | EZ37: 508 | FB37: 34 | FC37: 35 | FD37: 0 | FE37: 0 | FF37: 0 | FG37: 0 | FH37: 702 | FJ37: 33 | FK37: 34 | FL37: 0.675708 | FM37: 1123 | FN37: 0.31168 | FO37: 518 | FR37: -17 | FS37: -16 | FT37: 100 | FU37: 6 | FV37: 0 | FW37: 0 | FZ37: -17 | GA37: -16 | GB37: 83.333333 | GC37: 5 | GD37: 33.333333 | GE37: 2 | HF37: 33 | HG37: 34 | HH37: 0 | HI37: 0 | HJ37: 0 | HK37: 0 | JA37: 3 | JB37: 4 | JC37: 93.921635 | JD37: 156094.001 | JE37: 3.05603 | JF37: 5079
V38: 4 | W38: 5 | X38: 90.865605 | Y38: 151015.001 | Z38: 1.813521 | AA38: 3014 | BJ38: 50701003 | BK38: 1 | BT38: 157192 | BU38: 1 | CD38: 87992354 | CE38: 1 | CX38: 34000000 | CY38: 35000000 | CZ38: 97.506644 | DA38: 48414.003 | DB38: 0 | DC38: 0 | EP38: 13.310528 | EQ38: 501 | ER38: 1.1024 | ES38: 515 | EW38: 0.317865 | EX38: 504 | EY38: 0.186494 | EZ38: 508 | FB38: 35 | FC38: 36 | FD38: 0 | FE38: 0 | FF38: 0 | FG38: 0 | FH38: 702 | FJ38: 34 | FK38: 35 | FL38: 0.364028 | FM38: 605 | FN38: 0 | FO38: 0 | FR38: -16 | FS38: -15 | FT38: 100 | FU38: 6 | FV38: 0 | FW38: 0 | FZ38: -16 | GA38: -15 | GB38: 50 | GC38: 3 | GD38: 0 | GE38: 0 | HF38: 34 | HG38: 35 | HH38: 0 | HI38: 0 | HJ38: 0 | HK38: 0 | JA38: 4 | JB38: 5 | JC38: 90.865605 | JD38: 151015.001 | JE38: 1.813521 | JF38: 3014
V39: 5 | W39: 6 | X39: 89.052083 | Y39: 148001.001 | Z39: 1.803894 | AA39: 2998 | BJ39: 56660007 | BK39: 1 | BT39: 163700 | BU39: 1 | CD39: 88010672 | CE39: 1 | CX39: 35000000 | CY39: 36000000 | CZ39: 97.506644 | DA39: 48414.003 | DB39: 0 | DC39: 0 | EP39: 13.407105 | EQ39: 511 | ER39: 110.410208 | ES39: 502 | EW39: 0.320606 | EX39: 515 | EY39: 0.190575 | EZ39: 502 | FB39: 36 | FC39: 37 | FD39: 0 | FE39: 0 | FF39: 0 | FG39: 0 | FH39: 702 | FJ39: 35 | FK39: 36 | FL39: 0.364028 | FM39: 605 | FN39: 0 | FO39: 0 | FR39: -15 | FS39: -14 | FT39: 100 | FU39: 6 | FV39: 0 | FW39: 0 | FZ39: -15 | GA39: -14 | GB39: 50 | GC39: 3 | GD39: 0 | GE39: 0 | HF39: 35 | HG39: 36 | HH39: 0 | HI39: 0 | HJ39: 0 | HK39: 0 | JA39: 5 | JB39: 6 | JC39: 89.052083 | JD39: 148001.001 | JE39: 1.803894 | JF39: 2998
V40: 6 | W40: 7 | X40: 87.248189 | Y40: 145003.001 | Z40: 3.615009 | AA40: 6008 | BJ40: 59806806 | BK40: 1 | BT40: 166158 | BU40: 1 | CD40: 88837947 | CE40: 1 | CX40: 36000000 | CY40: 37000000 | CZ40: 97.506644 | DA40: 48414.003 | DB40: 0 | DC40: 0 | EP40: 13.449474 | EQ40: 520 | ER40: 110.519686 | ES40: 510 | EW40: 0.320611 | EX40: 512 | EY40: 0.191845 | EZ40: 497 | FB40: 37 | FC40: 38 | FD40: 0 | FE40: 0 | FF40: 0 | FG40: 0 | FH40: 702 | FJ40: 36 | FK40: 37 | FL40: 0.364028 | FM40: 605 | FN40: 0 | FO40: 0 | FR40: -14 | FS40: -13 | FT40: 100 | FU40: 6 | FV40: 0 | FW40: 0 | FZ40: -14 | GA40: -13 | GB40: 50 | GC40: 3 | GD40: 0 | GE40: 0 | HF40: 36 | HG40: 37 | HH40: 0 | HI40: 0 | HJ40: 0 | HK40: 0 | JA40: 6 | JB40: 7 | JC40: 87.248189 | JD40: 145003.001 | JE40: 3.615009 | JF40: 6008
V41: 7 | W41: 8 | X41: 83.63318 | Y41: 138995.001 | Z41: 3.057234 | AA41: 5081 | BJ41: 62647639 | BK41: 1 | BT41: 168479 | BU41: 1 | CD41: 88974724 | CE41: 1 | CX41: 37000000 | CY41: 38000000 | CZ41: 97.506644 | DA41: 48414.003 | DB41: 0 | DC41: 0 | EP41: 13.575609 | EQ41: 510 | ER41: 110.662306 | ES41: 513 | EW41: 0.322101 | EX41: 504 | EY41: 0.193051 | EZ41: 514 | FB41: 38 | FC41: 39 | FD41: 0 | FE41: 0 | FF41: 0 | FG41: 0 | FH41: 702 | FJ41: 37 | FK41: 38 | FL41: 0.364028 | FM41: 605 | FN41: 0 | FO41: 0 | FR41: -13 | FS41: -12 | FT41: 100 | FU41: 6 | FV41: 0 | FW41: 0 | FZ41: -13 | GA41: -12 | GB41: 50 | GC41: 3 | GD41: 0 | GE41: 0 | HF41: 37 | HG41: 38 | HH41: 0 | HI41: 0 | HJ41: 0 | HK41: 0 | JA41: 7 | JB41: 8 | JC41: 83.63318 | JD41: 138995.001 | JE41: 3.057234 | JF41: 5081
V42: 8 | W42: 9 | X42: 80.575947 | Y42: 133914.001 | Z42: 7.33351 | AA42: 12188 | BJ42: 65796539 | BK42: 1 | BT42: 172194 | BU42: 1 | CD42: 89147480 | CE42: 1 | CX42: 38000000 | CY42: 39000000 | CZ42: 97.506644 | DA42: 48414.003 | DB42: 0 | DC42: 0 | EP42: 13.765319 | EQ42: 519 | ER42: 110.712896 | ES42: 501 | EW42: 0.322413 | EX42: 527 | EY42: 0.197357 | EZ42: 498 | FB42: 39 | FC42: 40 | FD42: 0 | FE42: 0 | FF42: 0 | FG42: 0 | FH42: 702 | FJ42: 38 | FK42: 39 | FL42: 0.364028 | FM42: 605 | FN42: 0 | FO42: 0 | FR42: -12 | FS42: -11 | FT42: 100 | FU42: 6 | FV42: 0 | FW42: 0 | FZ42: -12 | GA42: -11 | GB42: 50 | GC42: 3 | GD42: 0 | GE42: 0 | HF42: 38 | HG42: 39 | HH42: 0 | HI42: 0 | HJ42: 0 | HK42: 0 | JA42: 8 | JB42: 9 | JC42: 80.575947 | JD42: 133914.001 | JE42: 7.33351 | JF42: 12188
V43: 9 | W43: 10 | X43: 73.242437 | Y43: 121726.001 | Z43: 3.378541 | AA43: 5615 | BJ43: 66377317 | BK43: 1 | BT43: 179257 | BU43: 1 | CD43: 89787215 | CE43: 1 | CX43: 39000000 | CY43: 40000000 | CZ43: 97.506644 | DA43: 48414.003 | DB43: 0 | DC43: 0 | EP43: 13.813622 | EQ43: 507 | ER43: 110.793744 | ES43: 502 | EW43: 0.322549 | EX43: 503 | EY43: 0.197747 | EZ43: 515 | FB43: 40 | FC43: 41 | FD43: 0 | FE43: 0 | FF43: 0 | FG43: 0 | FH43: 702 | FJ43: 39 | FK43: 40 | FL43: 0.364028 | FM43: 605 | FN43: 0 | FO43: 0 | FR43: -11 | FS43: -10 | FT43: 100 | FU43: 6 | FV43: 0 | FW43: 0 | FZ43: -11 | GA43: -10 | GB43: 50 | GC43: 3 | GD43: 0 | GE43: 0 | HF43: 39 | HG43: 40 | HH43: 0 | HI43: 0 | HJ43: 0 | HK43: 0 | JA43: 9 | JB43: 10 | JC43: 73.242437 | JD43: 121726.001 | JE43: 3.378541 | JF43: 5615
V44: 10 | W44: 11 | X44: 69.863896 | Y44: 116111.001 | Z44: 5.503743 | AA44: 9147 | BJ44: 67614804 | BK44: 1 | BT44: 180295 | BU44: 1 | CD44: 89910774 | CE44: 1 | CX44: 40000000 | CY44: 41000000 | CZ44: 97.506644 | DA44: 48414.003 | DB44: 0 | DC44: 0 | EP44: 13.834164 | EQ44: 512 | ER44: 111.143559 | ES44: 493 | EW44: 0.324528 | EX44: 504 | EY44: 0.200248 | EZ44: 503 | FB44: 41 | FC44: 42 | FD44: 0 | FE44: 0 | FF44: 0 | FG44: 0 | FH44: 702 | FJ44: 40 | FK44: 41 | FL44: 0.364028 | FM44: 605 | FN44: 0 | FO44: 0 | FR44: -10 | FS44: -9 | FT44: 100 | FU44: 6 | FV44: 0 | FW44: 0 | FZ44: -10 | GA44: -9 | GB44: 50 | GC44: 3 | GD44: 16.666667 | GE44: 1 | HF44: 40 | HG44: 41 | HH44: 0 | HI44: 0 | HJ44: 0 | HK44: 0 | JA44: 10 | JB44: 11 | JC44: 69.863896 | JD44: 116111.001 | JE44: 5.503743 | JF44: 9147
V45: 11 | W45: 12 | X45: 64.360153 | Y45: 106964.001 | Z45: 4.883391 | AA45: 8116 | BJ45: 70697866 | BK45: 1 | BT45: 186172 | BU45: 1 | CD45: 89947262 | CE45: 1 | CX45: 41000000 | CY45: 42000000 | CZ45: 97.506644 | DA45: 48414.003 | DB45: 0 | DC45: 0 | EP45: 0.001403 | EQ45: 515 | ER45: 111.238784 | ES45: 498 | EW45: 0.325456 | EX45: 510 | EY45: 0.200462 | EZ45: 541 | FB45: 42 | FC45: 43 | FD45: 0 | FE45: 0 | FF45: 0 | FG45: 0 | FH45: 702 | FJ45: 41 | FK45: 42 | FL45: 0.364028 | FM45: 605 | FN45: 0 | FO45: 0 | FR45: -9 | FS45: -8 | FT45: 100 | FU45: 6 | FV45: 16.666667 | FW45: 1 | FZ45: -9 | GA45: -8 | GB45: 33.333333 | GC45: 2 | GD45: 0 | GE45: 0 | HF45: 41 | HG45: 42 | HH45: 0 | HI45: 0 | HJ45: 0 | HK45: 0 | JA45: 11 | JB45: 12 | JC45: 64.360153 | JD45: 106964.001 | JE45: 4.883391 | JF45: 8116
V46: 12 | W46: 13 | X46: 59.476763 | Y46: 98848.001 | Z46: 2.753977 | AA46: 4577 | BJ46: 72777788 | BK46: 1 | BT46: 187185 | BU46: 1 | CD46: 90505421 | CE46: 1 | CX46: 42000000 | CY46: 43000000 | CZ46: 97.506644 | DA46: 48414.003 | DB46: 0 | DC46: 0 | EP46: 14.214673 | EQ46: 511 | ER46: 111.336823 | ES46: 506 | EW46: 0.326713 | EX46: 504 | EY46: 0.201085 | EZ46: 517 | FB46: 43 | FC46: 44 | FD46: 0 | FE46: 0 | FF46: 0 | FG46: 0 | FH46: 702 | FJ46: 42 | FK46: 43 | FL46: 0.364028 | FM46: 605 | FN46: 0 | FO46: 0 | FR46: -8 | FS46: -7 | FT46: 83.333333 | FU46: 5 | FV46: 0 | FW46: 0 | FZ46: -8 | GA46: -7 | GB46: 33.333333 | GC46: 2 | GD46: 0 | GE46: 0 | HF46: 42 | HG46: 43 | HH46: 0 | HI46: 0 | HJ46: 0 | HK46: 0 | JA46: 12 | JB46: 13 | JC46: 59.476763 | JD46: 98848.001 | JE46: 2.753977 | JF46: 4577
V47: 13 | W47: 14 | X47: 56.722785 | Y47: 94271.001 | Z47: 6.365977 | AA47: 10580 | BJ47: 74924669 | BK47: 1 | BT47: 187618 | BU47: 1 | CD47: 90825113 | CE47: 1 | CX47: 43000000 | CY47: 44000000 | CZ47: 97.506644 | DA47: 48414.003 | DB47: 0 | DC47: 0 | EP47: 14.297569 | EQ47: 496 | ER47: 111.432031 | ES47: 506 | EW47: 0.327201 | EX47: 494 | EY47: 0.201627 | EZ47: 510 | FB47: 44 | FC47: 45 | FD47: 0 | FE47: 0 | FF47: 0 | FG47: 0 | FH47: 702 | FJ47: 43 | FK47: 44 | FL47: 0.364028 | FM47: 605 | FN47: 0 | FO47: 0 | FR47: -7 | FS47: -6 | FT47: 83.333333 | FU47: 5 | FV47: 0 | FW47: 0 | FZ47: -7 | GA47: -6 | GB47: 33.333333 | GC47: 2 | GD47: 0 | GE47: 0 | HF47: 43 | HG47: 44 | HH47: 0 | HI47: 0 | HJ47: 0 | HK47: 0 | JA47: 13 | JB47: 14 | JC47: 56.722785 | JD47: 94271.001 | JE47: 6.365977 | JF47: 10580
V48: 14 | W48: 15 | X48: 50.356808 | Y48: 83691.001 | Z48: 6.722183 | AA48: 11172 | BJ48: 78098840 | BK48: 1 | BT48: 188853 | BU48: 1 | CD48: 91719619 | CE48: 1 | CX48: 44000000 | CY48: 45000000 | CZ48: 97.506644 | DA48: 48414.003 | DB48: 0 | DC48: 0 | EP48: 14.477284 | EQ48: 525 | ER48: 111.626792 | ES48: 507 | EW48: 0.328016 | EX48: 514 | EY48: 0.20186 | EZ48: 514 | FB48: 45 | FC48: 46 | FD48: 0 | FE48: 0 | FF48: 0 | FG48: 0 | FH48: 702 | FJ48: 44 | FK48: 45 | FL48: 0.364028 | FM48: 605 | FN48: 0 | FO48: 0 | FR48: -6 | FS48: -5 | FT48: 83.333333 | FU48: 5 | FV48: 0 | FW48: 0 | FZ48: -6 | GA48: -5 | GB48: 33.333333 | GC48: 2 | GD48: 0 | GE48: 0 | HF48: 44 | HG48: 45 | HH48: 0 | HI48: 0 | HJ48: 0 | HK48: 0 | JA48: 14 | JB48: 15 | JC48: 50.356808 | JD48: 83691.001 | JE48: 6.722183 | JF48: 11172
V49: 15 | W49: 16 | X49: 43.634625 | Y49: 72519.001 | Z49: 5.790152 | AA49: 9623.001 | BJ49: 80820111 | BK49: 1 | BT49: 191849 | BU49: 1 | CD49: 92400563 | CE49: 1 | CX49: 45000000 | CY49: 46000000 | CZ49: 97.506644 | DA49: 48414.003 | DB49: 0 | DC49: 0 | EP49: 14.661972 | EQ49: 514 | ER49: 111.747453 | ES49: 503 | EW49: 0.333203 | EX49: 506 | EY49: 0.203745 | EZ49: 506 | FB49: 46 | FC49: 47 | FD49: 0 | FE49: 0 | FF49: 0 | FG49: 0 | FH49: 702 | FJ49: 45 | FK49: 46 | FL49: 0.364028 | FM49: 605 | FN49: 0 | FO49: 0 | FR49: -5 | FS49: -4 | FT49: 83.333333 | FU49: 5 | FV49: 0 | FW49: 0 | FZ49: -5 | GA49: -4 | GB49: 33.333333 | GC49: 2 | GD49: 0 | GE49: 0 | HF49: 45 | HG49: 46 | HH49: 0 | HI49: 0 | HJ49: 0 | HK49: 0 | JA49: 15 | JB49: 16 | JC49: 43.634625 | JD49: 72519.001 | JE49: 5.790152 | JF49: 9623.001
V50: 16 | W50: 17 | X50: 37.844473 | Y50: 62896 | Z50: 6.985126 | AA50: 11609 | BJ50: 82269798 | BK50: 1 | BT50: 192731 | BU50: 1 | CD50: 92570211 | CE50: 1 | CX50: 46000000 | CY50: 47000000 | CZ50: 97.506644 | DA50: 48414.003 | DB50: 0 | DC50: 0 | EP50: 0.000147 | EQ50: 600 | ER50: 111.840966 | ES50: 506 | EW50: 0.333238 | EX50: 512 | EY50: 0.205608 | EZ50: 496 | FB50: 47 | FC50: 48 | FD50: 0 | FE50: 0 | FF50: 0 | FG50: 0 | FH50: 702 | FJ50: 46 | FK50: 47 | FL50: 0.364028 | FM50: 605 | FN50: 0 | FO50: 0 | FR50: -4 | FS50: -3 | FT50: 83.333333 | FU50: 5 | FV50: 0 | FW50: 0 | FZ50: -4 | GA50: -3 | GB50: 33.333333 | GC50: 2 | GD50: 0 | GE50: 0 | HF50: 46 | HG50: 47 | HH50: 0 | HI50: 0 | HJ50: 0 | HK50: 0 | JA50: 16 | JB50: 17 | JC50: 37.844473 | JD50: 62896 | JE50: 6.985126 | JF50: 11609
V51: 17 | W51: 18 | X51: 30.859347 | Y51: 51287 | Z51: 3.345448 | AA51: 5560 | BJ51: 86091168 | BK51: 1 | BT51: 195607 | BU51: 1 | CD51: 93185227 | CE51: 1 | CX51: 47000000 | CY51: 48000000 | CZ51: 97.506644 | DA51: 48414.003 | DB51: 0 | DC51: 0 | EP51: 14.738067 | EQ51: 504 | ER51: 112.370368 | ES51: 501 | EW51: 0.333762 | EX51: 503 | EY51: 0.205637 | EZ51: 482 | FB51: 48 | FC51: 49 | FD51: 0 | FE51: 0 | FF51: 0 | FG51: 0 | FH51: 702 | FJ51: 47 | FK51: 48 | FL51: 0.364028 | FM51: 605 | FN51: 0 | FO51: 0 | FR51: -3 | FS51: -2 | FT51: 83.333333 | FU51: 5 | FV51: 0 | FW51: 0 | FZ51: -3 | GA51: -2 | GB51: 33.333333 | GC51: 2 | GD51: 0 | GE51: 0 | HF51: 47 | HG51: 48 | HH51: 0 | HI51: 0 | HJ51: 0 | HK51: 0 | JA51: 17 | JB51: 18 | JC51: 30.859347 | JD51: 51287 | JE51: 3.345448 | JF51: 5560
V52: 18 | W52: 19 | X52: 27.513899 | Y52: 45727 | Z52: 4.549448 | AA52: 7561 | BJ52: 86699640 | BK52: 1 | BT52: 196859 | BU52: 1 | CD52: 93603897 | CE52: 1 | CX52: 48000000 | CY52: 49000000 | CZ52: 97.506644 | DA52: 48414.003 | DB52: 0 | DC52: 0 | EP52: 15.157922 | EQ52: 490 | ER52: 112.53413 | ES52: 502 | EW52: 0.33567 | EX52: 503 | EY52: 0.020573 | EZ52: 600 | FB52: 49 | FC52: 50 | FD52: 0 | FE52: 0 | FF52: 0 | FG52: 0 | FH52: 702 | FJ52: 48 | FK52: 49 | FL52: 0.364028 | FM52: 605 | FN52: 0 | FO52: 0 | FR52: -2 | FS52: -1 | FT52: 83.333333 | FU52: 5 | FV52: 0 | FW52: 0 | FZ52: -2 | GA52: -1 | GB52: 33.333333 | GC52: 2 | GD52: 0 | GE52: 0 | HF52: 48 | HG52: 49 | HH52: 0 | HI52: 0 | HJ52: 0 | HK52: 0 | JA52: 18 | JB52: 19 | JC52: 27.513899 | JD52: 45727 | JE52: 4.549448 | JF52: 7561
V53: 19 | W53: 20 | X53: 22.964451 | Y53: 38166 | Z53: 4.237166 | AA53: 7042 | BJ53: 86754531 | BK53: 1 | BT53: 197032 | BU53: 1 | CD53: 93674815 | CE53: 1 | CX53: 49000000 | CY53: 50000000 | CZ53: 97.506644 | DA53: 48414.003 | DB53: 0.332313 | DC53: 165 | EP53: 15.19038 | EQ53: 498 | ER53: 112.6978 | ES53: 517 | EW53: 0.33722 | EX53: 506 | EY53: 0.205818 | EZ53: 495 | FB53: 50 | FC53: 51 | FD53: 0 | FE53: 0 | FF53: 0 | FG53: 0 | FH53: 702 | FJ53: 49 | FK53: 50 | FL53: 0.364028 | FM53: 605 | FN53: 0 | FO53: 0 | FR53: -1 | FS53: 0 | FT53: 83.333333 | FU53: 5 | FV53: 33.333333 | FW53: 2 | FZ53: -1 | GA53: 0 | GB53: 33.333333 | GC53: 2 | GD53: 16.666667 | GE53: 1 | HF53: 49 | HG53: 50 | HH53: 0 | HI53: 0 | HJ53: 0 | HK53: 0 | JA53: 19 | JB53: 20 | JC53: 22.964451 | JD53: 38166 | JE53: 4.237166 | JF53: 7042
V54: 20 | W54: 21 | X54: 18.727286 | Y54: 31124 | Z54: 4.593973 | AA54: 7635 | BJ54: 87992354 | BK54: 1 | BT54: 197172 | BU54: 1 | CD54: 94292100 | CE54: 1 | CX54: 50000000 | CY54: 51000000 | CZ54: 97.174332 | DA54: 48249.003 | DB54: 0 | DC54: 0 | EP54: 15.44524 | EQ54: 510 | ER54: 112.734243 | ES54: 511 | EW54: 0.34053 | EX54: 507 | EY54: 0.211717 | EZ54: 516 | FB54: 51 | FC54: 52 | FD54: 0 | FE54: 0 | FF54: 0 | FG54: 0 | FH54: 702 | FJ54: 50 | FK54: 51 | FL54: 0.364028 | FM54: 605 | FN54: 0.364028 | FO54: 605 | FR54: 0 | FS54: 1 | FT54: 50 | FU54: 3 | FV54: 0 | FW54: 0 | FZ54: 0 | GA54: 1 | GB54: 16.666667 | GC54: 1 | GD54: 0 | GE54: 0 | HF54: 50 | HG54: 51 | HH54: 0 | HI54: 0 | HJ54: 0 | HK54: 0 | JA54: 20 | JB54: 21 | JC54: 18.727286 | JD54: 31124 | JE54: 4.593973 | JF54: 7635
V55: 21 | W55: 22 | X55: 14.133312 | Y55: 23489 | Z55: 3.414643 | AA55: 5675 | BJ55: 88010672 | BK55: 1 | BT55: 199403 | BU55: 1 | CD55: 94585681 | CE55: 1 | CX55: 51000000 | CY55: 52000000 | CZ55: 97.174332 | DA55: 48249.003 | DB55: 0 | DC55: 0 | EP55: 0.015595 | EQ55: 497 | ER55: 112.837232 | ES55: 500 | EW55: 0.342305 | EX55: 517 | EY55: 0.211942 | EZ55: 501 | FB55: 52 | FC55: 53 | FD55: 0 | FE55: 0 | FF55: 0 | FG55: 0 | FH55: 702 | FJ55: 51 | FK55: 52 | FL55: 0 | FM55: 0 | FN55: 0 | FO55: 0 | FR55: 1 | FS55: 2 | FT55: 50 | FU55: 3 | FV55: 0 | FW55: 0 | FZ55: 1 | GA55: 2 | GB55: 16.666667 | GC55: 1 | GD55: 16.666667 | GE55: 1 | HF55: 51 | HG55: 52 | HH55: 0 | HI55: 0 | HJ55: 0 | HK55: 0 | JA55: 21 | JB55: 22 | JC55: 14.133312 | JD55: 23489 | JE55: 3.414643 | JF55: 5675
V56: 22 | W56: 23 | X56: 10.718669 | Y56: 17814 | Z56: 1.53313 | AA56: 2548 | BJ56: 88837947 | BK56: 1 | BT56: 202648 | BU56: 1 | CD56: 94832982 | CE56: 1 | CX56: 52000000 | CY56: 53000000 | CZ56: 97.174332 | DA56: 48249.003 | DB56: 0 | DC56: 0 | EP56: 15.722261 | EQ56: 510 | ER56: 112.837259 | ES56: 504 | EW56: 0.34483 | EX56: 510 | EY56: 0.212147 | EZ56: 506 | FB56: 53 | FC56: 54 | FD56: 0 | FE56: 0 | FF56: 0 | FG56: 0 | FH56: 702 | FJ56: 52 | FK56: 53 | FL56: 0 | FM56: 0 | FN56: 0 | FO56: 0 | FR56: 2 | FS56: 3 | FT56: 50 | FU56: 3 | FV56: 0 | FW56: 0 | FZ56: 2 | GA56: 3 | GB56: 0 | GC56: 0 | GD56: 0 | GE56: 0 | HF56: 52 | HG56: 53 | HH56: 0 | HI56: 0 | HJ56: 0 | HK56: 0 | JA56: 22 | JB56: 23 | JC56: 10.718669 | JD56: 17814 | JE56: 1.53313 | JF56: 2548
V57: 23 | W57: 24 | X57: 9.18554 | Y57: 15266 | Z57: 3.380948 | AA57: 5619 | BJ57: 88974724 | BK57: 1 | BT57: 208646 | BU57: 1 | CD57: 94902239 | CE57: 1 | CX57: 53000000 | CY57: 54000000 | CZ57: 97.174332 | DA57: 48249.003 | DB57: 0 | DC57: 0 | EP57: 15.997752 | EQ57: 514 | ER57: 112.983903 | ES57: 498 | EW57: 0.345123 | EX57: 490 | EY57: 0.213378 | EZ57: 504 | FB57: 54 | FC57: 55 | FD57: 0 | FE57: 0 | FF57: 0 | FG57: 0 | FH57: 702 | FJ57: 53 | FK57: 54 | FL57: 0 | FM57: 0 | FN57: 0 | FO57: 0 | FR57: 3 | FS57: 4 | FT57: 50 | FU57: 3 | FV57: 0 | FW57: 0 | FZ57: 3 | GA57: 4 | GB57: 0 | GC57: 0 | GD57: 0 | GE57: 0 | HF57: 53 | HG57: 54 | HH57: 0 | HI57: 0 | HJ57: 0 | HK57: 0 | JA57: 23 | JB57: 24 | JC57: 9.18554 | JD57: 15266 | JE57: 3.380948 | JF57: 5619
V58: 24 | W58: 25 | X58: 5.804592 | Y58: 9647 | Z58: 2.441094 | AA58: 4057 | BJ58: 89147480 | BK58: 1 | BT58: 209147 | BU58: 1 | CD58: 95107460 | CE58: 1 | CX58: 54000000 | CY58: 55000000 | CZ58: 97.174332 | DA58: 48249.003 | DB58: 0.592121 | DC58: 294 | EP58: 16.040881 | EQ58: 501 | ER58: 113.611308 | ES58: 517 | EW58: 0.345767 | EX58: 506 | EY58: 0.213504 | EZ58: 517 | FB58: 55 | FC58: 56 | FD58: 0 | FE58: 0 | FF58: 0 | FG58: 0 | FH58: 702 | FJ58: 54 | FK58: 55 | FL58: 0 | FM58: 0 | FN58: 0 | FO58: 0 | FR58: 4 | FS58: 5 | FT58: 50 | FU58: 3 | FV58: 0 | FW58: 0 | FZ58: 4 | GA58: 5 | GB58: 0 | GC58: 0 | GD58: 0 | GE58: 0 | HF58: 54 | HG58: 55 | HH58: 0 | HI58: 0 | HJ58: 0 | HK58: 0 | JA58: 24 | JB58: 25 | JC58: 5.804592 | JD58: 9647 | JE58: 2.441094 | JF58: 4057
V59: 25 | W59: 26 | X59: 3.363498 | Y59: 5590 | Z59: 1.829166 | AA59: 3040 | BJ59: 89787215 | BK59: 1 | BT59: 211018 | BU59: 1 | CD59: 95140313 | CE59: 1 | CX59: 55000000 | CY59: 56000000 | CZ59: 96.58221 | DA59: 47955.003 | DB59: 0 | DC59: 0 | EP59: 16.047024 | EQ59: 510 | ER59: 113.943262 | ES59: 508 | EW59: 0.346215 | EX59: 508 | EY59: 0.214012 | EZ59: 497 | FB59: 56 | FC59: 57 | FD59: 0 | FE59: 0 | FF59: 0 | FG59: 0 | FH59: 702 | FJ59: 55 | FK59: 56 | FL59: 0 | FM59: 0 | FN59: 0 | FO59: 0 | FR59: 5 | FS59: 6 | FT59: 50 | FU59: 3 | FV59: 0 | FW59: 0 | FZ59: 5 | GA59: 6 | GB59: 0 | GC59: 0 | GD59: 0 | GE59: 0 | HF59: 55 | HG59: 56 | HH59: 0 | HI59: 0 | HJ59: 0 | HK59: 0 | JA59: 25 | JB59: 26 | JC59: 3.363498 | JD59: 5590 | JE59: 1.829166 | JF59: 3040
V60: 26 | W60: 27 | X60: 1.534333 | Y60: 2550 | Z60: 0.61975 | AA60: 1030 | BJ60: 89910774 | BK60: 1 | BT60: 211533 | BU60: 1 | CD60: 95816237 | CE60: 1 | CX60: 56000000 | CY60: 57000000 | CZ60: 96.58221 | DA60: 47955.003 | DB60: 0 | DC60: 0 | EP60: 16.075151 | EQ60: 502 | ER60: 114.766352 | ES60: 499 | EW60: 0.349571 | EX60: 500 | EY60: 0.21447 | EZ60: 498 | FB60: 57 | FC60: 58 | FD60: 0 | FE60: 0 | FF60: 0 | FG60: 0 | FH60: 702 | FJ60: 56 | FK60: 57 | FL60: 0 | FM60: 0 | FN60: 0 | FO60: 0 | FR60: 6 | FS60: 7 | FT60: 50 | FU60: 3 | FV60: 16.666667 | FW60: 1 | FZ60: 6 | GA60: 7 | GB60: 0 | GC60: 0 | GD60: 0 | GE60: 0 | HF60: 56 | HG60: 57 | HH60: 0 | HI60: 0 | HJ60: 0 | HK60: 0 | JA60: 26 | JB60: 27 | JC60: 1.534333 | JD60: 2550 | JE60: 0.61975 | JF60: 1030
V61: 27 | W61: 28 | X61: 0.914583 | Y61: 1520 | Z61: 0.914583 | AA61: 1520 | BJ61: 89947262 | BK61: 1 | BT61: 211543 | BU61: 1 | CD61: 95833133 | CE61: 1 | CX61: 57000000 | CY61: 58000000 | CZ61: 96.58221 | DA61: 47955.003 | DB61: 0 | DC61: 0 | EP61: 16.079783 | EQ61: 505 | ER61: 114.77907 | ES61: 496 | EW61: 0.350254 | EX61: 500 | EY61: 0.215658 | EZ61: 523 | FB61: 58 | FC61: 59 | FD61: 0 | FE61: 0 | FF61: 0 | FG61: 0 | FH61: 702 | FJ61: 57 | FK61: 58 | FL61: 0 | FM61: 0 | FN61: 0 | FO61: 0 | FR61: 7 | FS61: 8 | FT61: 33.333333 | FU61: 2 | FV61: 0 | FW61: 0 | FZ61: 7 | GA61: 8 | GB61: 0 | GC61: 0 | GD61: 0 | GE61: 0 | HF61: 57 | HG61: 58 | HH61: 0 | HI61: 0 | HJ61: 0 | HK61: 0 | JA61: 27 | JB61: 28 | JC61: 0.914583 | JD61: 1520 | JE61: 0.914583 | JF61: 1520
V62: 28 | W62: 29 | X62: 0 | Y62: 0 | Z62: 0 | AA62: 0 | BJ62: 90505421 | BK62: 1 | BT62: 211942 | BU62: 1 | CD62: 95888466 | CE62: 1 | CX62: 58000000 | CY62: 59000000 | CZ62: 96.58221 | DA62: 47955.003 | DB62: 0 | DC62: 0 | EP62: 16.122722 | EQ62: 506 | ER62: 115.044831 | ES62: 512 | EW62: 0.351572 | EX62: 498 | EY62: 0.216287 | EZ62: 506 | FB62: 59 | FC62: 60 | FD62: 0 | FE62: 0 | FF62: 0 | FG62: 0 | FH62: 702 | FJ62: 58 | FK62: 59 | FL62: 0 | FM62: 0 | FN62: 0 | FO62: 0 | FR62: 8 | FS62: 9 | FT62: 33.333333 | FU62: 2 | FV62: 0 | FW62: 0 | FZ62: 8 | GA62: 9 | GB62: 0 | GC62: 0 | GD62: 0 | GE62: 0 | HF62: 58 | HG62: 59 | HH62: 0 | HI62: 0 | HJ62: 0 | HK62: 0 | JA62: 28 | JB62: 29 | JC62: 0 | JD62: 0 | JE62: 0 | JF62: 0
V63: 29 | W63: 30 | X63: 0 | Y63: 0 | Z63: 0 | AA63: 0 | BJ63: 90825113 | BK63: 1 | BT63: 213504 | BU63: 1 | CD63: 95987953 | CE63: 1 | CX63: 59000000 | CY63: 60000000 | CZ63: 96.58221 | DA63: 47955.003 | DB63: 0 | DC63: 0 | EP63: 16.123001 | EQ63: 507 | ER63: 115.25478 | ES63: 506 | EW63: 0.352 | EX63: 497 | EY63: 0.216352 | EZ63: 501 | FB63: 60 | FC63: 61 | FD63: 0 | FE63: 0 | FF63: 0 | FG63: 0 | FH63: 702 | FJ63: 59 | FK63: 60 | FL63: 0 | FM63: 0 | FN63: 0 | FO63: 0 | FR63: 9 | FS63: 10 | FT63: 33.333333 | FU63: 2 | FV63: 0 | FW63: 0 | FZ63: 9 | GA63: 10 | GB63: 0 | GC63: 0 | GD63: 0 | GE63: 0 | HF63: 59 | HG63: 60 | HH63: 0 | HI63: 0 | HJ63: 0 | HK63: 0 | JA63: 29 | JB63: 30 | JC63: 0 | JD63: 0 | JE63: 0 | JF63: 0
V64: 30 | W64: 31 | X64: 0 | Y64: 0 | Z64: 0 | AA64: 0 | BJ64: 91719619 | BK64: 1 | BT64: 215244 | BU64: 1 | CD64: 96559838 | CE64: 1 | CX64: 60000000 | CY64: 61000000 | CZ64: 96.58221 | DA64: 47955.003 | DB64: 0 | DC64: 0 | EP64: 16.166346 | EQ64: 502 | ER64: 115.37768 | ES64: 497 | EW64: 0.352113 | EX64: 511 | EY64: 0.216779 | EZ64: 510 | FB64: 61 | FC64: 62 | FD64: 0 | FE64: 0 | FF64: 0 | FG64: 0 | FH64: 702 | FJ64: 60 | FK64: 61 | FL64: 0 | FM64: 0 | FN64: 0 | FO64: 0 | FR64: 10 | FS64: 11 | FT64: 33.333333 | FU64: 2 | FV64: 0 | FW64: 0 | FZ64: 10 | GA64: 11 | GB64: 0 | GC64: 0 | GD64: 0 | GE64: 0 | HF64: 60 | HG64: 61 | HH64: 0 | HI64: 0 | HJ64: 0 | HK64: 0 | JA64: 30 | JB64: 31 | JC64: 0 | JD64: 0 | JE64: 0 | JF64: 0
V65: 31 | W65: 32 | X65: 0 | Y65: 0 | Z65: 0 | AA65: 0 | BJ65: 92400563 | BK65: 1 | BT65: 217435 | BU65: 1 | CD65: 98017274 | CE65: 1 | CX65: 61000000 | CY65: 62000000 | CZ65: 96.58221 | DA65: 47955.003 | DB65: 0 | DC65: 0 | EP65: 16.224033 | EQ65: 487 | ER65: 115.403569 | ES65: 516 | EW65: 0.352778 | EX65: 500 | EY65: 0.217097 | EZ65: 504 | FB65: 62 | FC65: 63 | FD65: 0 | FE65: 0 | FF65: 0 | FG65: 0 | FH65: 702 | FJ65: 61 | FK65: 62 | FL65: 0 | FM65: 0 | FN65: 0 | FO65: 0 | FR65: 11 | FS65: 12 | FT65: 33.333333 | FU65: 2 | FV65: 0 | FW65: 0 | FZ65: 11 | GA65: 12 | GB65: 0 | GC65: 0 | GD65: 0 | GE65: 0 | HF65: 61 | HG65: 62 | HH65: 0 | HI65: 0 | HJ65: 0 | HK65: 0 | JA65: 31 | JB65: 32 | JC65: 0 | JD65: 0 | JE65: 0 | JF65: 0
V66: 32 | W66: 33 | X66: 0 | Y66: 0 | Z66: 0 | AA66: 0 | BJ66: 92570211 | BK66: 1 | BT66: 218042 | BU66: 1 | CD66: 98619118 | CE66: 1 | CX66: 62000000 | CY66: 63000000 | CZ66: 96.58221 | DA66: 47955.003 | DB66: 0 | DC66: 0 | EP66: 16.26749 | EQ66: 496 | ER66: 115.626432 | ES66: 498 | EW66: 0.353051 | EX66: 510 | EY66: 0.218655 | EZ66: 506 | FB66: 63 | FC66: 64 | FD66: 0 | FE66: 0 | FF66: 0 | FG66: 0 | FH66: 702 | FJ66: 62 | FK66: 63 | FL66: 0 | FM66: 0 | FN66: 0 | FO66: 0 | FR66: 12 | FS66: 13 | FT66: 33.333333 | FU66: 2 | FV66: 0 | FW66: 0 | FZ66: 12 | GA66: 13 | GB66: 0 | GC66: 0 | GD66: 0 | GE66: 0 | HF66: 62 | HG66: 63 | HH66: 0 | HI66: 0 | HJ66: 0 | HK66: 0 | JA66: 32 | JB66: 33 | JC66: 0 | JD66: 0 | JE66: 0 | JF66: 0
V67: 33 | W67: 34 | X67: 0 | Y67: 0 | Z67: 0 | AA67: 0 | BJ67: 93185227 | BK67: 1 | BT67: 218109 | BU67: 1 | CD67: 98728108 | CE67: 1 | CX67: 63000000 | CY67: 64000000 | CZ67: 96.58221 | DA67: 47955.003 | DB67: 0 | DC67: 0 | EP67: 16.283091 | EQ67: 502 | ER67: 116.550368 | ES67: 506 | EW67: 0.35369 | EX67: 511 | EY67: 0.22004 | EZ67: 509 | FB67: 64 | FC67: ... | FD67: 0 | FE67: 0 | FF67: 0 | FG67: 0 | FH67: 702 | FJ67: 63 | FK67: 64 | FL67: 0 | FM67: 0 | FN67: 0 | FO67: 0 | FR67: 13 | FS67: 14 | FT67: 33.333333 | FU67: 2 | FV67: 0 | FW67: 0 | FZ67: 13 | GA67: 14 | GB67: 0 | GC67: 0 | GD67: 0 | GE67: 0 | HF67: 63 | HG67: 64 | HH67: 0 | HI67: 0 | HJ67: 0 | HK67: 0 | JA67: 33 | JB67: 34 | JC67: 0 | JD67: 0 | JE67: 0 | JF67: 0
V68: 34 | W68: 35 | X68: 0 | Y68: 0 | Z68: 0 | AA68: 0 | BJ68: 93603897 | BK68: 1 | BT68: 218655 | BU68: 1 | CD68: 99012535 | CE68: 1 | CX68: 64000000 | CY68: 65000000 | CZ68: 96.58221 | DA68: 47955.003 | DB68: 0 | DC68: 0 | EP68: 16.360628 | EQ68: 517 | ER68: 116.893021 | ES68: 504 | EW68: 0.354907 | EX68: 505 | EY68: 0.220126 | EZ68: 507 | FB68: ... | FC68: 1 | FD68: 100 | FE68: 49662 | FF68: 0 | FG68: 0 | FH68: 703 | FJ68: 64 | FK68: 65 | FL68: 0 | FM68: 0 | FN68: 0 | FO68: 0 | FR68: 14 | FS68: 15 | FT68: 33.333333 | FU68: 2 | FV68: 0 | FW68: 0 | FZ68: 14 | GA68: 15 | GB68: 0 | GC68: 0 | GD68: 0 | GE68: 0 | HF68: 64 | HG68: 65 | HH68: 0 | HI68: 0 | HJ68: 0 | HK68: 0 | JA68: 34 | JB68: 35 | JC68: 0 | JD68: 0 | JE68: 0 | JF68: 0
V69: 35 | W69: 36 | X69: 0 | Y69: 0 | Z69: 0 | AA69: 0 | BJ69: 93674815 | BK69: 1 | BT69: 219097 | BU69: 1 | CD69: 99526250 | CE69: 1 | CX69: 65000000 | CY69: 66000000 | CZ69: 96.58221 | DA69: 47955.003 | DB69: 0 | DC69: 0 | EP69: 16.40259 | EQ69: 506 | ER69: 116.989616 | ES69: 498 | EW69: 0.356425 | EX69: 507 | EY69: 0.220371 | EZ69: 504 | FB69: 1 | FC69: 2 | FD69: 100 | FE69: 49662 | FF69: 96.886956 | FG69: 48116 | FH69: 703 | FJ69: 65 | FK69: 66 | FL69: 0 | FM69: 0 | FN69: 0 | FO69: 0 | FR69: 15 | FS69: 16 | FT69: 33.333333 | FU69: 2 | FV69: 16.666667 | FW69: 1 | FZ69: 15 | GA69: 16 | GB69: 0 | GC69: 0 | GD69: 0 | GE69: 0 | HF69: 65 | HG69: 66 | HH69: 0 | HI69: 0 | HJ69: 0 | HK69: 0 | JA69: 35 | JB69: 36 | JC69: 0 | JD69: 0 | JE69: 0 | JF69: 0
V70: 36 | W70: 37 | X70: 0 | Y70: 0 | Z70: 0 | AA70: 0 | BJ70: 94292100 | BK70: 1 | BT70: 220126 | BU70: 1 | CD70: 99946551 | CE70: 1 | CX70: 66000000 | CY70: 67000000 | CZ70: 96.58221 | DA70: 47955.003 | DB70: 0 | DC70: 0 | EP70: 16.559582 | EQ70: 506 | ER70: 117.122619 | ES70: 509 | EW70: 0.356512 | EX70: 508 | EY70: 0.220606 | EZ70: 1012 | FB70: 2 | FC70: 3 | FD70: 3.113044 | FE70: 1546 | FF70: 3.113044 | FG70: 1546 | FH70: 703 | FJ70: 66 | FK70: 67 | FL70: 0 | FM70: 0 | FN70: 0 | FO70: 0 | FR70: 16 | FS70: 17 | FT70: 16.666667 | FU70: 1 | FV70: 0 | FW70: 0 | FZ70: 16 | GA70: 17 | GB70: 0 | GC70: 0 | GD70: 0 | GE70: 0 | HF70: 66 | HG70: 67 | HH70: 0 | HI70: 0 | HJ70: 0 | HK70: 0 | JA70: 36 | JB70: 37 | JC70: 0 | JD70: 0 | JE70: 0 | JF70: 0
V71: 37 | W71: 38 | X71: 0 | Y71: 0 | Z71: 0 | AA71: 0 | BJ71: 94585681 | BK71: 1 | BT71: 221568 | BU71: 1 | CD71: 100014749 | CE71: 1 | CX71: 67000000 | CY71: 68000000 | CZ71: 96.58221 | DA71: 47955.003 | DB71: 0 | DC71: 0 | EP71: 16.564463 | EQ71: 509 | ER71: 117.246748 | ES71: 505 | EW71: 0.359049 | EX71: 495 | EY71: 0.22067 | EZ71: 527 | FB71: 3 | FC71: 4 | FD71: 0 | FE71: 0 | FF71: 0 | FG71: 0 | FH71: 703 | FJ71: 67 | FK71: 68 | FL71: 0 | FM71: 0 | FN71: 0 | FO71: 0 | FR71: 17 | FS71: 18 | FT71: 16.666667 | FU71: 1 | FV71: 16.666667 | FW71: 1 | FZ71: 17 | GA71: 18 | GB71: 0 | GC71: 0 | GD71: 0 | GE71: 0 | HF71: 67 | HG71: 68 | HH71: 0 | HI71: 0 | HJ71: 0 | HK71: 0 | JA71: 37 | JB71: 38 | JC71: 0 | JD71: 0 | JE71: 0 | JF71: 0
V72: 38 | W72: 39 | X72: 0 | Y72: 0 | Z72: 0 | AA72: 0 | BJ72: 94832982 | BK72: 1 | BT72: 223068 | BU72: 1 | CD72: 101258312 | CE72: 1 | CX72: 68000000 | CY72: 69000000 | CZ72: 96.58221 | DA72: 47955.003 | DB72: 0 | DC72: 0 | EP72: 16.676313 | EQ72: 505 | ER72: 117.273678 | ES72: 508 | EW72: 0.359519 | EX72: 501 | EY72: 0.22183 | EZ72: 505 | FB72: 4 | FC72: 5 | FD72: 0 | FE72: 0 | FF72: 0 | FG72: 0 | FH72: 703 | FJ72: 68 | FK72: 69 | FL72: 0 | FM72: 0 | FN72: 0 | FO72: 0 | FR72: 18 | FS72: 19 | FT72: 0 | FU72: 0 | FV72: 0 | FW72: 0 | FZ72: 18 | GA72: 19 | GB72: 0 | GC72: 0 | GD72: 0 | GE72: 0 | HF72: 68 | HG72: 69 | HH72: 0 | HI72: 0 | HJ72: 0 | HK72: 0 | JA72: 38 | JB72: 39 | JC72: 0 | JD72: 0 | JE72: 0 | JF72: 0
V73: 39 | W73: 40 | X73: 0 | Y73: 0 | Z73: 0 | AA73: 0 | BJ73: 94902239 | BK73: 1 | BT73: 224876 | BU73: 1 | CD73: 101740726 | CE73: 1 | CX73: 69000000 | CY73: 70000000 | CZ73: 96.58221 | DA73: 47955.003 | DB73: 0.608233 | DC73: 302 | EP73: 0.000168 | EQ73: 516 | ER73: 117.45296 | ES73: 502 | EW73: 0.36113 | EX73: 523 | EY73: 0.223033 | EZ73: 517 | FB73: 5 | FC73: 6 | FD73: 0 | FE73: 0 | FF73: 0 | FG73: 0 | FH73: 703 | FJ73: 69 | FK73: 70 | FL73: 0 | FM73: 0 | FN73: 0 | FO73: 0 | FR73: 19 | FS73: 20 | FT73: 0 | FU73: 0 | FV73: 0 | FW73: 0 | FZ73: 19 | GA73: 20 | GB73: 0 | GC73: 0 | GD73: 0 | GE73: 0 | HF73: 69 | HG73: 70 | HH73: 0 | HI73: 0 | HJ73: 0 | HK73: 0 | JA73: 39 | JB73: 40 | JC73: 0 | JD73: 0 | JE73: 0 | JF73: 0
V74: 40 | W74: ... | X74: 0 | Y74: 0 | Z74: 0 | AA74: 0 | BJ74: 95107460 | BK74: 1 | BT74: 225051 | BU74: 1 | CD74: 102940133 | CE74: 1 | CX74: 70000000 | CY74: 71000000 | CZ74: 95.973977 | DA74: 47653.003 | DB74: 0 | DC74: 0 | EP74: 16.848742 | EQ74: 468 | ER74: 117.46271 | ES74: 494 | EW74: 0.362598 | EX74: 502 | EY74: 0.223446 | EZ74: 502 | FB74: 6 | FC74: 7 | FD74: 0 | FE74: 0 | FF74: 0 | FG74: 0 | FH74: 703 | FJ74: 70 | FK74: 71 | FL74: 0 | FM74: 0 | FN74: 0 | FO74: 0 | FR74: 20 | FS74: 21 | FT74: 0 | FU74: 0 | FV74: 0 | FW74: 0 | FZ74: 20 | GA74: 21 | GB74: 0 | GC74: 0 | GD74: 0 | GE74: 0 | HF74: 70 | HG74: 71 | HH74: 0 | HI74: 0 | HJ74: 0 | HK74: 0 | JA74: 40 | JB74: ... | JC74: 0 | JD74: 0 | JE74: 0 | JF74: 0
BJ75: 95140313 | BK75: 1 | BT75: 225727 | BU75: 1 | CD75: 103620631 | CE75: 1 | CX75: 71000000 | CY75: 72000000 | CZ75: 95.973977 | DA75: 47653.003 | DB75: 0 | DC75: 0 | EP75: 16.900155 | EQ75: 510 | ER75: 117.715104 | ES75: 503 | EW75: 0.364755 | EX75: 500 | EY75: 0.226174 | EZ75: 496 | FB75: 7 | FC75: 8 | FD75: 0 | FE75: 0 | FF75: 0 | FG75: 0 | FH75: 703 | FJ75: 71 | FK75: 72 | FL75: 0 | FM75: 0 | FN75: 0 | FO75: 0 | FR75: 21 | FS75: 22 | FT75: 0 | FU75: 0 | FV75: 0 | FW75: 0 | FZ75: 21 | GA75: 22 | GB75: 0 | GC75: 0 | GD75: 0 | GE75: 0 | HF75: 71 | HG75: 72 | HH75: 0 | HI75: 0 | HJ75: 0 | HK75: 0
BJ76: 95816237 | BK76: 1 | BT76: 227110 | BU76: 1 | CD76: 103646601 | CE76: 1 | CX76: 72000000 | CY76: 73000000 | CZ76: 95.973977 | DA76: 47653.003 | DB76: 0 | DC76: 0 | EP76: 17.051215 | EQ76: 507 | ER76: 118.068913 | ES76: 495 | EW76: 0.364946 | EX76: 497 | EY76: 0.231913 | EZ76: 500 | FB76: 8 | FC76: 9 | FD76: 0 | FE76: 0 | FF76: 0 | FG76: 0 | FH76: 703 | FJ76: 72 | FK76: 73 | FL76: 0 | FM76: 0 | FN76: 0 | FO76: 0 | FR76: 22 | FS76: 23 | FT76: 0 | FU76: 0 | FV76: 0 | FW76: 0 | FZ76: 22 | GA76: 23 | GB76: 0 | GC76: 0 | GD76: 0 | GE76: 0 | HF76: 72 | HG76: 73 | HH76: 0 | HI76: 0 | HJ76: 0 | HK76: 0
BJ77: 95833133 | BK77: 1 | BT77: 227442 | BU77: 1 | CD77: 103978505 | CE77: 1 | CX77: 73000000 | CY77: 74000000 | CZ77: 95.973977 | DA77: 47653.003 | DB77: 0 | DC77: 0 | EP77: 17.077062 | EQ77: 510 | ER77: 118.125192 | ES77: 512 | EW77: 0.365069 | EX77: 517 | EY77: 0.232522 | EZ77: 512 | FB77: 9 | FC77: 10 | FD77: 0 | FE77: 0 | FF77: 0 | FG77: 0 | FH77: 703 | FJ77: 73 | FK77: 74 | FL77: 0 | FM77: 0 | FN77: 0 | FO77: 0 | FR77: 23 | FS77: 24 | FT77: 0 | FU77: 0 | FV77: 0 | FW77: 0 | FZ77: 23 | GA77: 24 | GB77: 0 | GC77: 0 | GD77: 0 | GE77: 0 | HF77: 73 | HG77: 74 | HH77: 0 | HI77: 0 | HJ77: 0 | HK77: 0
BJ78: 95888466 | BK78: 1 | BT78: 227832 | BU78: 1 | CD78: 104826811 | CE78: 1 | CX78: 74000000 | CY78: 75000000 | CZ78: 95.973977 | DA78: 47653.003 | DB78: 0 | DC78: 0 | EP78: 17.131938 | EQ78: 498 | ER78: 118.284208 | ES78: 504 | EW78: 0.365232 | EX78: 509 | EY78: 0.233114 | EZ78: 517 | FB78: 10 | FC78: 11 | FD78: 0 | FE78: 0 | FF78: 0 | FG78: 0 | FH78: 703 | FJ78: 74 | FK78: 75 | FL78: 0 | FM78: 0 | FN78: 0 | FO78: 0 | FR78: 24 | FS78: 25 | FT78: 0 | FU78: 0 | FV78: 0 | FW78: 0 | FZ78: 24 | GA78: 25 | GB78: 0 | GC78: 0 | GD78: 0 | GE78: 0 | HF78: 74 | HG78: 75 | HH78: 0 | HI78: 0 | HJ78: 0 | HK78: 0
BJ79: 95987953 | BK79: 1 | BT79: 227839 | BU79: 1 | CD79: 104988930 | CE79: 1 | CX79: 75000000 | CY79: 76000000 | CZ79: 95.973977 | DA79: 47653.003 | DB79: 0 | DC79: 0 | EP79: 17.174843 | EQ79: 506 | ER79: 118.399239 | ES79: 504 | EW79: 0.365714 | EX79: 516 | EY79: 0.234394 | EZ79: 515 | FB79: 11 | FC79: 12 | FD79: 0 | FE79: 0 | FF79: 0 | FG79: 0 | FH79: 703 | FJ79: 75 | FK79: 76 | FL79: 0 | FM79: 0 | FN79: 0 | FO79: 0 | FR79: 25 | FS79: 26 | FT79: 0 | FU79: 0 | FV79: 0 | FW79: 0 | FZ79: 25 | GA79: 26 | GB79: 0 | GC79: 0 | GD79: 0 | GE79: 0 | HF79: 75 | HG79: 76 | HH79: 0 | HI79: 0 | HJ79: 0 | HK79: 0
BJ80: 96559838 | BK80: 1 | BT80: 228341 | BU80: 1 | CD80: 105280251 | CE80: 1 | CX80: 76000000 | CY80: 77000000 | CZ80: 95.973977 | DA80: 47653.003 | DB80: 0 | DC80: 0 | EP80: 17.3625 | EQ80: 500 | ER80: 118.649696 | ES80: 500 | EW80: 0.366051 | EX80: 504 | EY80: 0.234829 | EZ80: 511 | FB80: 12 | FC80: 13 | FD80: 0 | FE80: 0 | FF80: 0 | FG80: 0 | FH80: 703 | FJ80: 76 | FK80: 77 | FL80: 0 | FM80: 0 | FN80: 0 | FO80: 0 | FR80: 26 | FS80: 27 | FT80: 0 | FU80: 0 | FV80: 0 | FW80: 0 | FZ80: 26 | GA80: 27 | GB80: 0 | GC80: 0 | GD80: 0 | GE80: 0 | HF80: 76 | HG80: 77 | HH80: 0 | HI80: 0 | HJ80: 0 | HK80: 0
BJ81: 98017274 | BK81: 1 | BT81: 230810 | BU81: 1 | CD81: 105977972 | CE81: 1 | CX81: 77000000 | CY81: 78000000 | CZ81: 95.973977 | DA81: 47653.003 | DB81: 0 | DC81: 0 | EP81: 17.38538 | EQ81: 501 | ER81: 119.258523 | ES81: 521 | EW81: 0.366336 | EX81: 498 | EY81: 0.235291 | EZ81: 507 | FB81: 13 | FC81: 14 | FD81: 0 | FE81: 0 | FF81: 0 | FG81: 0 | FH81: 703 | FJ81: 77 | FK81: 78 | FL81: 0 | FM81: 0 | FN81: 0 | FO81: 0 | FR81: 27 | FS81: 28 | FT81: 0 | FU81: 0 | FV81: 0 | FW81: 0 | FZ81: 27 | GA81: 28 | GB81: 0 | GC81: 0 | GD81: 0 | GE81: 0 | HF81: 77 | HG81: 78 | HH81: 0 | HI81: 0 | HJ81: 0 | HK81: 0
BJ82: 98619118 | BK82: 1 | BT82: 230969 | BU82: 1 | CD82: 106008433 | CE82: 1 | CX82: 78000000 | CY82: 79000000 | CZ82: 95.973977 | DA82: 47653.003 | DB82: 0 | DC82: 0 | EP82: 17.388324 | EQ82: 504 | ER82: 119.309301 | ES82: 498 | EW82: 0.36685 | EX82: 506 | EY82: 0.236156 | EZ82: 509 | FB82: 14 | FC82: 15 | FD82: 0 | FE82: 0 | FF82: 0 | FG82: 0 | FH82: 703 | FJ82: 78 | FK82: 79 | FL82: 0 | FM82: 0 | FN82: 0 | FO82: 0 | FR82: 28 | FS82: 29 | FT82: 0 | FU82: 0 | FV82: 0 | FW82: 0 | FZ82: 28 | GA82: 29 | GB82: 0 | GC82: 0 | GD82: 0 | GE82: 0 | HF82: 78 | HG82: 79 | HH82: 0 | HI82: 0 | HJ82: 0 | HK82: 0
BJ83: 98728108 | BK83: 1 | BT83: 231324 | BU83: 1 | CD83: 106025319 | CE83: 1 | CX83: 79000000 | CY83: 80000000 | CZ83: 95.973977 | DA83: 47653.003 | DB83: 0 | DC83: 0 | EP83: 17.617552 | EQ83: 508 | ER83: 119.5832 | ES83: 509 | EW83: 0.36749 | EX83: 498 | EY83: 0.237843 | EZ83: 508 | FB83: 15 | FC83: 16 | FD83: 0 | FE83: 0 | FF83: 0 | FG83: 0 | FH83: 703 | FJ83: 79 | FK83: 80 | FL83: 0 | FM83: 0 | FN83: 0 | FO83: 0 | FR83: 29 | FS83: 30 | FT83: 0 | FU83: 0 | FV83: 0 | FW83: 0 | FZ83: 29 | GA83: 30 | GB83: 0 | GC83: 0 | GD83: 0 | GE83: 0 | HF83: 79 | HG83: 80 | HH83: 0 | HI83: 0 | HJ83: 0 | HK83: 0
BJ84: 99012535 | BK84: 1 | BT84: 231477 | BU84: 1 | CD84: 106540737 | CE84: 1 | CX84: 80000000 | CY84: 81000000 | CZ84: 95.973977 | DA84: 47653.003 | DB84: 0 | DC84: 0 | EP84: 17.625333 | EQ84: 490 | ER84: 119.607588 | ES84: 507 | EW84: 0.367557 | EX84: 515 | EY84: 0.238168 | EZ84: 503 | FB84: 16 | FC84: 17 | FD84: 0 | FE84: 0 | FF84: 0 | FG84: 0 | FH84: 703 | FJ84: 80 | FK84: 81 | FL84: 0 | FM84: 0 | FN84: 0 | FO84: 0 | FR84: 30 | FS84: 31 | FT84: 0 | FU84: 0 | FV84: 0 | FW84: 0 | FZ84: 30 | GA84: 31 | GB84: 0 | GC84: 0 | GD84: 0 | GE84: 0 | HF84: 80 | HG84: 81 | HH84: 0 | HI84: 0 | HJ84: 0 | HK84: 0
BJ85: 99526250 | BK85: 1 | BT85: 232678 | BU85: 1 | CD85: 106575700 | CE85: 1 | CX85: 81000000 | CY85: 82000000 | CZ85: 95.973977 | DA85: 47653.003 | DB85: 0 | DC85: 0 | EP85: 17.683754 | EQ85: 503 | ER85: 119.651074 | ES85: 509 | EW85: 0.36759 | EX85: 499 | EY85: 0.239288 | EZ85: 499 | FB85: 17 | FC85: 18 | FD85: 0 | FE85: 0 | FF85: 0 | FG85: 0 | FH85: 703 | FJ85: 81 | FK85: 82 | FL85: 0 | FM85: 0 | FN85: 0 | FO85: 0 | FR85: 31 | FS85: 32 | FT85: 0 | FU85: 0 | FV85: 0 | FW85: 0 | FZ85: 31 | GA85: 32 | GB85: 0 | GC85: 0 | GD85: 0 | GE85: 0 | HF85: 81 | HG85: 82 | HH85: 0 | HI85: 0 | HJ85: 0 | HK85: 0
BJ86: 99946551 | BK86: 1 | BT86: 234133 | BU86: 1 | CD86: 106656396 | CE86: 1 | CX86: 82000000 | CY86: 83000000 | CZ86: 95.973977 | DA86: 47653.003 | DB86: 0 | DC86: 0 | EP86: 17.781887 | EQ86: 517 | ER86: 119.722 | ES86: 500 | EW86: 0.367904 | EX86: 504 | EY86: 0.239808 | EZ86: 512 | FB86: 18 | FC86: 19 | FD86: 0 | FE86: 0 | FF86: 0 | FG86: 0 | FH86: 703 | FJ86: 82 | FK86: 83 | FL86: 0 | FM86: 0 | FN86: 0 | FO86: 0 | FR86: 32 | FS86: 33 | FT86: 0 | FU86: 0 | FV86: 0 | FW86: 0 | FZ86: 32 | GA86: 33 | GB86: 0 | GC86: 0 | GD86: 0 | GE86: 0 | HF86: 82 | HG86: 83 | HH86: 0 | HI86: 0 | HJ86: 0 | HK86: 0
BJ87: 100014749 | BK87: 1 | BT87: 235397 | BU87: 1 | CD87: 106839079 | CE87: 1 | CX87: 83000000 | CY87: 84000000 | CZ87: 95.973977 | DA87: 47653.003 | DB87: 0 | DC87: 0 | EP87: 17.820358 | EQ87: 544 | ER87: 119.748476 | ES87: 517 | EW87: 0.368593 | EX87: 517 | EY87: 0.23995 | EZ87: 503 | FB87: 19 | FC87: 20 | FD87: 0 | FE87: 0 | FF87: 0 | FG87: 0 | FH87: 703 | FJ87: 83 | FK87: 84 | FL87: 0 | FM87: 0 | FN87: 0 | FO87: 0 | FR87: 33 | FS87: 34 | FT87: 0 | FU87: 0 | FV87: 0 | FW87: 0 | FZ87: 33 | GA87: 34 | GB87: 0 | GC87: 0 | GD87: 0 | GE87: 0 | HF87: 83 | HG87: 84 | HH87: 0 | HI87: 0 | HJ87: 0 | HK87: 0
BJ88: 101258312 | BK88: 1 | BT88: 237834 | BU88: 1 | CD88: 107006933 | CE88: 1 | CX88: 84000000 | CY88: 85000000 | CZ88: 95.973977 | DA88: 47653.003 | DB88: 0 | DC88: 0 | EP88: 17.855637 | EQ88: 514 | ER88: 119.908688 | ES88: 499 | EW88: 0.372423 | EX88: 525 | EY88: 0.241721 | EZ88: 501 | FB88: 20 | FC88: 21 | FD88: 0 | FE88: 0 | FF88: 0 | FG88: 0 | FH88: 703 | FJ88: 84 | FK88: 85 | FL88: 0 | FM88: 0 | FN88: 0 | FO88: 0 | FR88: 34 | FS88: 35 | FT88: 0 | FU88: 0 | FV88: 0 | FW88: 0 | FZ88: 34 | GA88: 35 | GB88: 0 | GC88: 0 | GD88: 0 | GE88: 0 | HF88: 84 | HG88: 85 | HH88: 0 | HI88: 0 | HJ88: 0 | HK88: 0
BJ89: 101740726 | BK89: 1 | BT89: 238405 | BU89: 1 | CD89: 107207741 | CE89: 1 | CX89: 85000000 | CY89: 86000000 | CZ89: 95.973977 | DA89: 47653.003 | DB89: 0.569967 | DC89: 283 | EP89: 17.90755 | EQ89: 502 | ER89: 119.929522 | ES89: 517 | EW89: 0.372477 | EX89: 496 | EY89: 0.244843 | EZ89: 506 | FB89: 21 | FC89: 22 | FD89: 0 | FE89: 0 | FF89: 0 | FG89: 0 | FH89: 703 | FJ89: 85 | FK89: 86 | FL89: 0 | FM89: 0 | FN89: 0 | FO89: 0 | FR89: 35 | FS89: 36 | FT89: 0 | FU89: 0 | FV89: 0 | FW89: 0 | FZ89: 35 | GA89: 36 | GB89: 0 | GC89: 0 | GD89: 0 | GE89: 0 | HF89: 85 | HG89: 86 | HH89: 0 | HI89: 0 | HJ89: 0 | HK89: 0
BJ90: 102940133 | BK90: 1 | BT90: 239199 | BU90: 1 | CD90: 107455534 | CE90: 1 | CX90: 86000000 | CY90: 87000000 | CZ90: 95.40401 | DA90: 47370.003 | DB90: 1.379602 | DC90: 685 | EP90: 17.913878 | EQ90: 501 | ER90: 120.171572 | ES90: 517 | EW90: 0.373152 | EX90: 500 | EY90: 0.247603 | EZ90: 504 | FB90: 22 | FC90: 23 | FD90: 0 | FE90: 0 | FF90: 0 | FG90: 0 | FH90: 703 | FJ90: 86 | FK90: 87 | FL90: 0 | FM90: 0 | FN90: 0 | FO90: 0 | FR90: 36 | FS90: 37 | FT90: 0 | FU90: 0 | FV90: 0 | FW90: 0 | FZ90: 36 | GA90: 37 | GB90: 0 | GC90: 0 | GD90: 0 | GE90: 0 | HF90: 86 | HG90: 87 | HH90: 0 | HI90: 0 | HJ90: 0 | HK90: 0
BJ91: 103620631 | BK91: 1 | BT91: 240376 | BU91: 1 | CD91: 107737224 | CE91: 1 | CX91: 87000000 | CY91: 88000000 | CZ91: 94.024408 | DA91: 46685.003 | DB91: 0 | DC91: 0 | EP91: 17.964809 | EQ91: 511 | ER91: 120.220564 | ES91: 510 | EW91: 0.3748 | EX91: 509 | EY91: 0.02486 | EZ91: 485 | FB91: 23 | FC91: 24 | FD91: 0 | FE91: 0 | FF91: 0 | FG91: 0 | FH91: 703 | FJ91: 87 | FK91: 88 | FL91: 0 | FM91: 0 | FN91: 0 | FO91: 0 | FR91: 37 | FS91: 38 | FT91: 0 | FU91: 0 | FV91: 0 | FW91: 0 | FZ91: 37 | GA91: 38 | GB91: 0 | GC91: 0 | GD91: 0 | GE91: 0 | HF91: 87 | HG91: 88 | HH91: 0 | HI91: 0 | HJ91: 0 | HK91: 0
BJ92: 103646601 | BK92: 1 | BT92: 240478 | BU92: 1 | CD92: 107796838 | CE92: 1 | CX92: 88000000 | CY92: 89000000 | CZ92: 94.024408 | DA92: 46685.003 | DB92: 0 | DC92: 0 | EP92: 18.012582 | EQ92: 499 | ER92: 120.249709 | ES92: 505 | EW92: 0.376076 | EX92: 504 | EY92: 0.248894 | EZ92: 510 | FB92: 24 | FC92: 25 | FD92: 0 | FE92: 0 | FF92: 0 | FG92: 0 | FH92: 703 | FJ92: 88 | FK92: 89 | FL92: 0 | FM92: 0 | FN92: 0 | FO92: 0 | FR92: 38 | FS92: 39 | FT92: 0 | FU92: 0 | FV92: 0 | FW92: 0 | FZ92: 38 | GA92: 39 | GB92: 0 | GC92: 0 | GD92: 0 | GE92: 0 | HF92: 88 | HG92: 89 | HH92: 0 | HI92: 0 | HJ92: 0 | HK92: 0
BJ93: 103978505 | BK93: 1 | BT93: 240748 | BU93: 1 | CD93: 107971221 | CE93: 1 | CX93: 89000000 | CY93: 90000000 | CZ93: 94.024408 | DA93: 46685.003 | DB93: 0 | DC93: 0 | EP93: 18.014508 | EQ93: 506 | ER93: 120.37497 | ES93: 506 | EW93: 0.376365 | EX93: 507 | EY93: 0.252751 | EZ93: 500 | FB93: 25 | FC93: 26 | FD93: 0 | FE93: 0 | FF93: 0 | FG93: 0 | FH93: 703 | FJ93: 89 | FK93: 90 | FL93: 0 | FM93: 0 | FN93: 0 | FO93: 0 | FR93: 39 | FS93: 40 | FT93: 0 | FU93: 0 | FV93: 0 | FW93: 0 | FZ93: 39 | GA93: 40 | GB93: 0 | GC93: 0 | GD93: 0 | GE93: 0 | HF93: 89 | HG93: 90 | HH93: 0 | HI93: 0 | HJ93: 0 | HK93: 0
BJ94: 104826811 | BK94: 1 | BT94: 240785 | BU94: 1 | CD94: 108022056 | CE94: 1 | CX94: 90000000 | CY94: 91000000 | CZ94: 94.024408 | DA94: 46685.003 | DB94: 0 | DC94: 0 | EP94: 18.057505 | EQ94: 517 | ER94: 120.380598 | ES94: 517 | EW94: 0.381717 | EX94: 509 | EY94: 0.253875 | EZ94: 500 | FB94: 26 | FC94: 27 | FD94: 0 | FE94: 0 | FF94: 0 | FG94: 0 | FH94: 703 | FJ94: 90 | FK94: 91 | FL94: 0 | FM94: 0 | FN94: 0 | FO94: 0 | FR94: 40 | FS94: ... | FT94: 0 | FU94: 0 | FV94: 0 | FW94: 0 | FZ94: 40 | GA94: ... | GB94: 0 | GC94: 0 | GD94: 0 | GE94: 0 | HF94: 90 | HG94: 91 | HH94: 0 | HI94: 0 | HJ94: 0 | HK94: 0
BJ95: 104988930 | BK95: 1 | BT95: 241721 | BU95: 1 | CD95: 108531417 | CE95: 1 | CX95: 91000000 | CY95: 92000000 | CZ95: 94.024408 | DA95: 46685.003 | DB95: 0 | DC95: 0 | EP95: 1.813351 | EQ95: 527 | ER95: 120.391224 | ES95: 496 | EW95: 0.381964 | EX95: 517 | EY95: 0.254115 | EZ95: 504 | FB95: 27 | FC95: 28 | FD95: 0 | FE95: 0 | FF95: 0 | FG95: 0 | FH95: 703 | FJ95: 91 | FK95: 92 | FL95: 0 | FM95: 0 | FN95: 0 | FO95: 0 | HF95: 91 | HG95: 92 | HH95: 0 | HI95: 0 | HJ95: 0 | HK95: 0
BJ96: 105280251 | BK96: 1 | BT96: 245829 | BU96: 1 | CD96: 108735841 | CE96: 1 | CX96: 92000000 | CY96: 93000000 | CZ96: 94.024408 | DA96: 46685.003 | DB96: 0 | DC96: 0 | EP96: 18.151968 | EQ96: 501 | ER96: 120.5096 | ES96: 510 | EW96: 0.382522 | EX96: 510 | EY96: 0.256465 | EZ96: 511 | FB96: 28 | FC96: 29 | FD96: 0 | FE96: 0 | FF96: 0 | FG96: 0 | FH96: 703 | FJ96: 92 | FK96: 93 | FL96: 0 | FM96: 0 | FN96: 0 | FO96: 0 | HF96: 92 | HG96: 93 | HH96: 0 | HI96: 0 | HJ96: 0 | HK96: 0
BJ97: 105977972 | BK97: 1 | BT97: 247130 | BU97: 1 | CD97: 109178106 | CE97: 1 | CX97: 93000000 | CY97: 94000000 | CZ97: 94.024408 | DA97: 46685.003 | DB97: 0.976798 | DC97: 485 | EP97: 18.172709 | EQ97: 514 | ER97: 120.550881 | ES97: 517 | EW97: 0.385457 | EX97: 487 | EY97: 0.257124 | EZ97: 494 | FB97: 29 | FC97: 30 | FD97: 0 | FE97: 0 | FF97: 0 | FG97: 0 | FH97: 703 | FJ97: 93 | FK97: 94 | FL97: 0 | FM97: 0 | FN97: 0 | FO97: 0 | HF97: 93 | HG97: 94 | HH97: 0 | HI97: 0 | HJ97: 0 | HK97: 0
BJ98: 106008433 | BK98: 1 | BT98: 248894 | BU98: 1 | CD98: 109677996 | CE98: 1 | CX98: 94000000 | CY98: 95000000 | CZ98: 93.04761 | DA98: 46200.003 | DB98: 1.162088 | DC98: 577 | EP98: 18.19595 | EQ98: 482 | ER98: 121.32512 | ES98: 502 | EW98: 0.38564 | EX98: 508 | EY98: 0.257286 | EZ98: 506 | FB98: 30 | FC98: 31 | FD98: 0 | FE98: 0 | FF98: 0 | FG98: 0 | FH98: 703 | FJ98: 94 | FK98: 95 | FL98: 0 | FM98: 0 | FN98: 0 | FO98: 0 | HF98: 94 | HG98: 95 | HH98: 0 | HI98: 0 | HJ98: 0 | HK98: 0
BJ99: 106025319 | BK99: 1 | BT99: 249540 | BU99: 1 | CD99: 109835009 | CE99: 1 | CX99: 95000000 | CY99: 96000000 | CZ99: 91.885522 | DA99: 45623.003 | DB99: 0 | DC99: 0 | EP99: 18.239597 | EQ99: 497 | ER99: 121.373449 | ES99: 507 | EW99: 0.386125 | EX99: 510 | EY99: 0.257388 | EZ99: 506 | FB99: 31 | FC99: 32 | FD99: 0 | FE99: 0 | FF99: 0 | FG99: 0 | FH99: 703 | FJ99: 95 | FK99: 96 | FL99: 0 | FM99: 0 | FN99: 0 | FO99: 0 | HF99: 95 | HG99: 96 | HH99: 0 | HI99: 0 | HJ99: 0 | HK99: 0
BJ100: 106540737 | BK100: 1 | BT100: 249559 | BU100: 1 | CD100: 110200657 | CE100: 1 | CX100: 96000000 | CY100: 97000000 | CZ100: 91.885522 | DA100: 45623.003 | DB100: 0.159107 | DC100: 79 | EP100: 18.330409 | EQ100: 505 | ER100: 121.414305 | ES100: 510 | EW100: 0.386134 | EX100: 504 | EY100: 0.259493 | EZ100: 510 | FB100: 32 | FC100: 33 | FD100: 0 | FE100: 0 | FF100: 0 | FG100: 0 | FH100: 703 | FJ100: 96 | FK100: 97 | FL100: 0 | FM100: 0 | FN100: 0 | FO100: 0 | HF100: 96 | HG100: 97 | HH100: 0 | HI100: 0 | HJ100: 0 | HK100: 0
BJ101: 106575700 | BK101: 1 | BT101: 250016 | BU101: 1 | CD101: 110476213 | CE101: 1 | CX101: 97000000 | CY101: 98000000 | CZ101: 91.726415 | DA101: 45544.003 | DB101: 0 | DC101: 0 | EP101: 18.358996 | EQ101: 501 | ER101: 121.471184 | ES101: 499 | EW101: 0.389248 | EX101: 499 | EY101: 0.260597 | EZ101: 505 | FB101: 33 | FC101: 34 | FD101: 0 | FE101: 0 | FF101: 0 | FG101: 0 | FH101: 703 | FJ101: 97 | FK101: 98 | FL101: 0 | FM101: 0 | FN101: 0 | FO101: 0 | HF101: 97 | HG101: 98 | HH101: 0 | HI101: 0 | HJ101: 0 | HK101: 0
BJ102: 106656396 | BK102: 1 | BT102: 251225 | BU102: 1 | CD102: 110505000 | CE102: 1 | CX102: 98000000 | CY102: 99000000 | CZ102: 91.726415 | DA102: 45544.003 | DB102: 0 | DC102: 0 | EP102: 18.452061 | EQ102: 510 | ER102: 121.512759 | ES102: 495 | EW102: 0.389442 | EX102: 501 | EY102: 0.261872 | EZ102: 505 | FB102: 34 | FC102: 35 | FD102: 0 | FE102: 0 | FF102: 0 | FG102: 0 | FH102: 703 | FJ102: 98 | FK102: 99 | FL102: 0 | FM102: 0 | FN102: 0 | FO102: 0 | HF102: 98 | HG102: 99 | HH102: 0 | HI102: 0 | HJ102: 0 | HK102: 0
BJ103: 106839079 | BK103: 1 | BT103: 251849 | BU103: 1 | CD103: 110988064 | CE103: 1 | CX103: 99000000 | CY103: 100000000 | CZ103: 91.726415 | DA103: 45544.003 | DB103: 0 | DC103: 0 | EP103: 18.567139 | EQ103: 494 | ER103: 121.584242 | ES103: 497 | EW103: 0.39079 | EX103: 506 | EY103: 0.026304 | EZ103: 441 | FB103: 35 | FC103: 36 | FD103: 0 | FE103: 0 | FF103: 0 | FG103: 0 | FH103: 703 | FJ103: 99 | FK103: 100 | FL103: 0 | FM103: 0 | FN103: 0 | FO103: 0 | HF103: 99 | HG103: 100 | HH103: 0 | HI103: 0 | HJ103: 0 | HK103: 0
BJ104: 107006933 | BK104: 1 | BT104: 257231 | BU104: 1 | CD104: 111551504 | CE104: 1 | CX104: 100000000 | CY104: 101000000 | CZ104: 91.726415 | DA104: 45544.003 | DB104: 0 | DC104: 0 | EP104: 18.699264 | EQ104: 507 | ER104: 121.666149 | ES104: 510 | EW104: 0.391072 | EX104: 511 | EY104: 0.263629 | EZ104: 513 | FB104: 36 | FC104: 37 | FD104: 0 | FE104: 0 | FF104: 0 | FG104: 0 | FH104: 703 | FJ104: 100 | FK104: ... | FL104: 0 | FM104: 0 | FN104: 0 | FO104: 0 | HF104: 100 | HG104: ... | HH104: 0 | HI104: 0 | HJ104: 0 | HK104: 0
BJ105: 107207741 | BK105: 1 | BT105: 257468 | BU105: 1 | CD105: 111664000 | CE105: 1 | CX105: 101000000 | CY105: 102000000 | CZ105: 91.726415 | DA105: 45544.003 | DB105: 0 | DC105: 0 | EP105: 18.889356 | EQ105: 496 | ER105: 122.166058 | ES105: 514 | EW105: 0.391788 | EX105: 514 | EY105: 0.271681 | EZ105: 505 | FB105: 37 | FC105: 38 | FD105: 0 | FE105: 0 | FF105: 0 | FG105: 0 | FH105: 703
BJ106: 107455534 | BK106: 1 | BT106: 259209 | BU106: 1 | CD106: 111979706 | CE106: 1 | CX106: 102000000 | CY106: 103000000 | CZ106: 91.726415 | DA106: 45544.003 | DB106: 0 | DC106: 0 | EP106: 19.024912 | EQ106: 509 | ER106: 122.294305 | ES106: 510 | EW106: 0.39387 | EX106: 495 | EY106: 0.272269 | EZ106: 499 | FB106: 38 | FC106: 39 | FD106: 0 | FE106: 0 | FF106: 0 | FG106: 0 | FH106: 703
BJ107: 107737224 | BK107: 1 | BT107: 261192 | BU107: 1 | CD107: 112561009 | CE107: 1 | CX107: 103000000 | CY107: 104000000 | CZ107: 91.726415 | DA107: 45544.003 | DB107: 0 | DC107: 0 | EP107: 19.033345 | EQ107: 514 | ER107: 122.363523 | ES107: 496 | EW107: 0.393939 | EX107: 506 | EY107: 0.274045 | EZ107: 506 | FB107: 39 | FC107: 40 | FD107: 0 | FE107: 0 | FF107: 0 | FG107: 0 | FH107: 703
BJ108: 107796838 | BK108: 1 | BT108: 261919 | BU108: 1 | CD108: 113246904 | CE108: 1 | CX108: 104000000 | CY108: 105000000 | CZ108: 91.726415 | DA108: 45544.003 | DB108: 0 | DC108: 0 | EP108: 19.113093 | EQ108: 521 | ER108: 122.571248 | ES108: 496 | EW108: 0.394044 | EX108: 510 | EY108: 0.275036 | EZ108: 505 | FB108: 40 | FC108: 41 | FD108: 0 | FE108: 0 | FF108: 0 | FG108: 0 | FH108: 703
BJ109: 107971221 | BK109: 1 | BT109: 265211 | BU109: 1 | CD109: 113649140 | CE109: 1 | CX109: 105000000 | CY109: 106000000 | CZ109: 91.726415 | DA109: 45544.003 | DB109: 0.422944 | DC109: 210 | EP109: 19.116629 | EQ109: 513 | ER109: 122.931216 | ES109: 500 | EW109: 0.396 | EX109: 502 | EY109: 0.275868 | EZ109: 502 | FB109: 41 | FC109: 42 | FD109: 0 | FE109: 0 | FF109: 0 | FG109: 0 | FH109: 703
BJ110: 108022056 | BK110: 1 | BT110: 267498 | BU110: 1 | CD110: 113777333 | CE110: 1 | CX110: 106000000 | CY110: 107000000 | CZ110: 91.303471 | DA110: 45334.003 | DB110: 0 | DC110: 0 | EP110: 19.145588 | EQ110: 496 | ER110: 123.083326 | ES110: 507 | EW110: 0.396116 | EX110: 514 | EY110: 0.276504 | EZ110: 503 | FB110: 42 | FC110: 43 | FD110: 0 | FE110: 0 | FF110: 0 | FG110: 0 | FH110: 703
BJ111: 108531417 | BK111: 1 | BT111: 268802 | BU111: 1 | CD111: 114165474 | CE111: 1 | CX111: 107000000 | CY111: 108000000 | CZ111: 91.303471 | DA111: 45334.003 | DB111: 1.200354 | DC111: 596 | EP111: 19.181307 | EQ111: 509 | ER111: 123.109008 | ES111: 500 | EW111: 0.397221 | EX111: 511 | EY111: 0.277055 | EZ111: 498 | FB111: 43 | FC111: 44 | FD111: 0 | FE111: 0 | FF111: 0 | FG111: 0 | FH111: 703
BJ112: 108735841 | BK112: 1 | BT112: 269640 | BU112: 1 | CD112: 115173585 | CE112: 1 | CX112: 108000000 | CY112: 109000000 | CZ112: 90.103116 | DA112: 44738.003 | DB112: 0.404817 | DC112: 201 | EP112: 19.202785 | EQ112: 500 | ER112: 0.012316 | ES112: 528 | EW112: 0.39737 | EX112: 514 | EY112: 0.278 | EZ112: 500 | FB112: 44 | FC112: 45 | FD112: 0 | FE112: 0 | FF112: 0 | FG112: 0 | FH112: 703
BJ113: 109178106 | BK113: 1 | BT113: 275434 | BU113: 1 | CD113: 115229927 | CE113: 1 | CX113: 109000000 | CY113: 110000000 | CZ113: 89.698299 | DA113: 44537.003 | DB113: 0 | DC113: 0 | EP113: 19.207918 | EQ113: 505 | ER113: 123.419702 | ES113: 523 | EW113: 0.39763 | EX113: 517 | EY113: 0.280549 | EZ113: 509 | FB113: 45 | FC113: 46 | FD113: 0 | FE113: 0 | FF113: 0 | FG113: 0 | FH113: 703
BJ114: 109677996 | BK114: 1 | BT114: 277318 | BU114: 1 | CD114: 116008158 | CE114: 1 | CX114: 110000000 | CY114: 111000000 | CZ114: 89.698299 | DA114: 44537.003 | DB114: 2.223475 | DC114: 1104 | EP114: 19.272721 | EQ114: 502 | ER114: 123.505267 | ES114: 504 | EW114: 0.3977 | EX114: 482 | EY114: 0.2811 | EZ114: 517 | FB114: 46 | FC114: 47 | FD114: 0 | FE114: 0 | FF114: 0 | FG114: 0 | FH114: 703
BJ115: 109835009 | BK115: 1 | BT115: 278226 | BU115: 1 | CD115: 116834518 | CE115: 1 | CX115: 111000000 | CY115: 112000000 | CZ115: 87.474824 | DA115: 43433.003 | DB115: 0.261822 | DC115: 130 | EP115: 19.37661 | EQ115: 506 | ER115: 123.534637 | ES115: 505 | EW115: 0.39784 | EX115: 506 | EY115: 0.281374 | EZ115: 506 | FB115: 47 | FC115: 48 | FD115: 0 | FE115: 0 | FF115: 0 | FG115: 0 | FH115: 703
BJ116: 110200657 | BK116: 1 | BT116: 278441 | BU116: 1 | CD116: 117158648 | CE116: 1 | CX116: 112000000 | CY116: 113000000 | CZ116: 87.213002 | DA116: 43303.003 | DB116: 0.348425 | DC116: 173 | EP116: 19.472402 | EQ116: 515 | ER116: 124.330914 | ES116: 503 | EW116: 0.40099 | EX116: 506 | EY116: 0.282668 | EZ116: 498 | FB116: 48 | FC116: 49 | FD116: 0 | FE116: 0 | FF116: 0 | FG116: 0 | FH116: 703
BJ117: 110476213 | BK117: 1 | BT117: 281201 | BU117: 1 | CD117: 117576770 | CE117: 1 | CX117: 113000000 | CY117: 114000000 | CZ117: 86.864577 | DA117: 43130.003 | DB117: 0 | DC117: 0 | EP117: 19.532707 | EQ117: 500 | ER117: 124.502274 | ES117: 510 | EW117: 0.402484 | EX117: 517 | EY117: 0.282885 | EZ117: 511 | FB117: 49 | FC117: 50 | FD117: 0 | FE117: 0 | FF117: 0 | FG117: 0 | FH117: 703
BJ118: 110505000 | BK118: 1 | BT118: 289035 | BU118: 1 | CD118: 117964537 | CE118: 1 | CX118: 114000000 | CY118: 115000000 | CZ118: 86.864577 | DA118: 43130.003 | DB118: 0 | DC118: 0 | EP118: 19.599592 | EQ118: 498 | ER118: 124.706594 | ES118: 514 | EW118: 0.403984 | EX118: 500 | EY118: 0.285185 | EZ118: 500 | FB118: 50 | FC118: 51 | FD118: 0 | FE118: 0 | FF118: 0 | FG118: 0 | FH118: 703
BJ119: 110988064 | BK119: 1 | BT119: 289147 | BU119: 1 | CD119: 118079545 | CE119: 1 | CX119: 115000000 | CY119: 116000000 | CZ119: 86.864577 | DA119: 43130.003 | DB119: 0 | DC119: 0 | EP119: 19.717375 | EQ119: 505 | ER119: 124.835811 | ES119: 511 | EW119: 0.406729 | EX119: 498 | EY119: 0.285423 | EZ119: 494 | FB119: 51 | FC119: 52 | FD119: 0 | FE119: 0 | FF119: 0 | FG119: 0 | FH119: 703
BJ120: 111551504 | BK120: 1 | BT120: 289504 | BU120: 1 | CD120: 118768031 | CE120: 1 | CX120: 116000000 | CY120: 117000000 | CZ120: 86.864577 | DA120: 43130.003 | DB120: 0 | DC120: 0 | EP120: 0.001977 | EQ120: 510 | ER120: 124.866217 | ES120: 504 | EW120: 0.407753 | EX120: 504 | EY120: 0.285871 | EZ120: 517 | FB120: 52 | FC120: 53 | FD120: 0 | FE120: 0 | FF120: 0 | FG120: 0 | FH120: 703
BJ121: 111664000 | BK121: 1 | BT121: 290758 | BU121: 1 | CD121: 119034861 | CE121: 1 | CX121: 117000000 | CY121: 118000000 | CZ121: 86.864577 | DA121: 43130.003 | DB121: 0 | DC121: 0 | EP121: 19.785865 | EQ121: 507 | ER121: 124.959524 | ES121: 502 | EW121: 0.408098 | EX121: 515 | EY121: 0.287349 | EZ121: 507 | FB121: 53 | FC121: 54 | FD121: 0 | FE121: 0 | FF121: 0 | FG121: 0 | FH121: 703
BJ122: 111979706 | BK122: 1 | BT122: 291260 | BU122: 1 | CD122: 119180277 | CE122: 1 | CX122: 118000000 | CY122: 119000000 | CZ122: 86.864577 | DA122: 43130.003 | DB122: 0 | DC122: 0 | EP122: 19.794421 | EQ122: 504 | ER122: 125.039088 | ES122: 498 | EW122: 0.410551 | EX122: 502 | EY122: 0.28799 | EZ122: 510 | FB122: 54 | FC122: 55 | FD122: 0 | FE122: 0 | FF122: 0 | FG122: 0 | FH122: 703
BJ123: 112561009 | BK123: 1 | BT123: 291460 | BU123: 1 | CD123: 119381279 | CE123: 1 | CX123: 119000000 | CY123: 120000000 | CZ123: 86.864577 | DA123: 43130.003 | DB123: 0.580037 | DC123: 288 | EP123: 19.820942 | EQ123: 494 | ER123: 125.05888 | ES123: 498 | EW123: 0.411275 | EX123: 504 | EY123: 0.288181 | EZ123: 512 | FB123: 55 | FC123: 56 | FD123: 0 | FE123: 0 | FF123: 0 | FG123: 0 | FH123: 703
BJ124: 113246904 | BK124: 1 | BT124: 293328 | BU124: 1 | CD124: 119471968 | CE124: 1 | CX124: 120000000 | CY124: 121000000 | CZ124: 86.284539 | DA124: 42842.003 | DB124: 0 | DC124: 0 | EP124: 1.986522 | EQ124: 487 | ER124: 125.130933 | ES124: 507 | EW124: 0.41258 | EX124: 516 | EY124: 0.289552 | EZ124: 507 | FB124: 56 | FC124: 57 | FD124: 0 | FE124: 0 | FF124: 0 | FG124: 0 | FH124: 703
BJ125: 113649140 | BK125: 1 | BT125: 294199 | BU125: 1 | CD125: 119585138 | CE125: 1 | CX125: 121000000 | CY125: 122000000 | CZ125: 86.284539 | DA125: 42842.003 | DB125: 0 | DC125: 0 | EP125: 19.894573 | EQ125: 506 | ER125: 0.01255 | ES125: 441 | EW125: 0.413503 | EX125: 517 | EY125: 0.289792 | EZ125: 504 | FB125: 57 | FC125: 58 | FD125: 0 | FE125: 0 | FF125: 0 | FG125: 0 | FH125: 703
BJ126: 113777333 | BK126: 1 | BT126: 294362 | BU126: 1 | CD126: 119728788 | CE126: 1 | CX126: 122000000 | CY126: 123000000 | CZ126: 86.284539 | DA126: 42842.003 | DB126: 0 | DC126: 0 | EP126: 19.951351 | EQ126: 503 | ER126: 125.502067 | ES126: 506 | EW126: 0.413673 | EX126: 502 | EY126: 0.28994 | EZ126: 501 | FB126: 58 | FC126: 59 | FD126: 0 | FE126: 0 | FF126: 0 | FG126: 0 | FH126: 703
BJ127: 114165474 | BK127: 1 | BT127: 294823 | BU127: 1 | CD127: 120026339 | CE127: 1 | CX127: 123000000 | CY127: 124000000 | CZ127: 86.284539 | DA127: 42842.003 | DB127: 0.523645 | DC127: 260 | EP127: 19.963775 | EQ127: 513 | ER127: 125.801264 | ES127: 497 | EW127: 0.413716 | EX127: 498 | EY127: 0.289965 | EZ127: 502 | FB127: 59 | FC127: 60 | FD127: 0 | FE127: 0 | FF127: 0 | FG127: 0 | FH127: 703
BJ128: 115173585 | BK128: 1 | BT128: 294934 | BU128: 1 | CD128: 120367173 | CE128: 1 | CX128: 124000000 | CY128: 125000000 | CZ128: 85.760895 | DA128: 42582.003 | DB128: 0 | DC128: 0 | EP128: 19.967442 | EQ128: 502 | ER128: 125.846542 | ES128: 503 | EW128: 0.414296 | EX128: 505 | EY128: 0.291661 | EZ128: 493 | FB128: 60 | FC128: 61 | FD128: 0 | FE128: 0 | FF128: 0 | FG128: 0 | FH128: 703
BJ129: 115229927 | BK129: 1 | BT129: 294998 | BU129: 1 | CD129: 120399717 | CE129: 1 | CX129: 125000000 | CY129: 126000000 | CZ129: 85.760895 | DA129: 42582.003 | DB129: 1.401756 | DC129: 696 | EP129: 20.285075 | EQ129: 498 | ER129: 126.034096 | ES129: 504 | EW129: 0.41519 | EX129: 506 | EY129: 0.291863 | EZ129: 502 | FB129: 61 | FC129: 62 | FD129: 0 | FE129: 0 | FF129: 0 | FG129: 0 | FH129: 703
BJ130: 116008158 | BK130: 1 | BT130: 295141 | BU130: 1 | CD130: 120558928 | CE130: 1 | CX130: 126000000 | CY130: 127000000 | CZ130: 84.359139 | DA130: 41886.003 | DB130: 0 | DC130: 0 | EP130: 20.380096 | EQ130: 514 | ER130: 126.414906 | ES130: 506 | EW130: 0.415226 | EX130: 505 | EY130: 0.293519 | EZ130: 495 | FB130: 62 | FC130: 63 | FD130: 0 | FE130: 0 | FF130: 0 | FG130: 0 | FH130: 703
BJ131: 116834518 | BK131: 1 | BT131: 296420 | BU131: 1 | CD131: 120628293 | CE131: 1 | CX131: 127000000 | CY131: 128000000 | CZ131: 84.359139 | DA131: 41886.003 | DB131: 0 | DC131: 0 | EP131: 20.473085 | EQ131: 517 | ER131: 126.844116 | ES131: 516 | EW131: 0.416046 | EX131: 502 | EY131: 0.293773 | EZ131: 501 | FB131: 63 | FC131: 64 | FD131: 0 | FE131: 0 | FF131: 0 | FG131: 0 | FH131: 703
BJ132: 117158648 | BK132: 1 | BT132: 296721 | BU132: 1 | CD132: 120885643 | CE132: 1 | CX132: 128000000 | CY132: 129000000 | CZ132: 84.359139 | DA132: 41886.003 | DB132: 0 | DC132: 0 | EP132: 20.506804 | EQ132: 497 | ER132: 126.863121 | ES132: 508 | EW132: 0.416421 | EX132: 496 | EY132: 0.295141 | EZ132: 499 | FB132: 64 | FC132: ... | FD132: 0 | FE132: 0 | FF132: 0 | FG132: 0 | FH132: 703
BJ133: 117576770 | BK133: 1 | BT133: 297436 | BU133: 1 | CD133: 121029924 | CE133: 1 | CX133: 129000000 | CY133: 130000000 | CZ133: 84.359139 | DA133: 41886.003 | DB133: 0 | DC133: 0 | EP133: 20.604812 | EQ133: 510 | ER133: 126.883648 | ES133: 498 | EW133: 0.416426 | EX133: 501 | EY133: 0.295843 | EZ133: 509 | FB133: ... | FC133: 1 | FD133: 100 | FE133: 42131.001 | FF133: 0 | FG133: 0 | FH133: 704
BJ134: 117964537 | BK134: 1 | BT134: 297727 | BU134: 1 | CD134: 121184616 | CE134: 1 | CX134: 130000000 | CY134: 131000000 | CZ134: 84.359139 | DA134: 41886.003 | DB134: 0.561911 | DC134: 279 | EP134: 20.661952 | EQ134: 501 | ER134: 126.954221 | ES134: 519 | EW134: 0.422229 | EX134: 500 | EY134: 0.296894 | EZ134: 513 | FB134: 1 | FC134: 2 | FD134: 100 | FE134: 42131.001 | FF134: 100 | FG134: 42131.001 | FH134: 704
BJ135: 118079545 | BK135: 1 | BT135: 297980 | BU135: 1 | CD135: 121237876 | CE135: 1 | CX135: 131000000 | CY135: 132000000 | CZ135: 83.797228 | DA135: 41607.003 | DB135: 1.075485 | DC135: 534 | EP135: 20.664048 | EQ135: 504 | ER135: 127.097251 | ES135: 504 | EW135: 0.422707 | EX135: 510 | EY135: 0.297228 | EZ135: 498 | FB135: 2 | FC135: 3 | FD135: 0 | FE135: 0 | FF135: 0 | FG135: 0 | FH135: 704
BJ136: 118768031 | BK136: 1 | BT136: 298886 | BU136: 1 | CD136: 121397705 | CE136: 1 | CX136: 132000000 | CY136: 133000000 | CZ136: 82.721743 | DA136: 41073.003 | DB136: 0.366551 | DC136: 182 | EP136: 20.726048 | EQ136: 509 | ER136: 127.209505 | ES136: 510 | EW136: 0.422819 | EX136: 517 | EY136: 0.298498 | EZ136: 507 | FB136: 3 | FC136: 4 | FD136: 0 | FE136: 0 | FF136: 0 | FG136: 0 | FH136: 704
BJ137: 119034861 | BK137: 1 | BT137: 300476 | BU137: 1 | CD137: 121853799 | CE137: 1 | CX137: 133000000 | CY137: 134000000 | CZ137: 82.355192 | DA137: 40891.003 | DB137: 0.533715 | DC137: 265 | EP137: 20.805623 | EQ137: 500 | ER137: 128.100094 | ES137: 508 | EW137: 0.424346 | EX137: 493 | EY137: 0.298664 | EZ137: 518 | FB137: 4 | FC137: 5 | FD137: 0 | FE137: 0 | FF137: 0 | FG137: 0 | FH137: 704
BJ138: 119180277 | BK138: 1 | BT138: 301605 | BU138: 1 | CD138: 122104643 | CE138: 1 | CX138: 134000000 | CY138: 135000000 | CZ138: 81.821477 | DA138: 40626.003 | DB138: 0 | DC138: 0 | EP138: 20.872192 | EQ138: 500 | ER138: 128.314164 | ES138: 510 | EW138: 0.425798 | EX138: 505 | EY138: 0.29938 | EZ138: 510 | FB138: 5 | FC138: 6 | FD138: 0 | FE138: 0 | FF138: 0 | FG138: 0 | FH138: 704
BJ139: 119381279 | BK139: 1 | BT139: 301960 | BU139: 1 | CD139: 122441103 | CE139: 1 | CX139: 135000000 | CY139: 136000000 | CZ139: 81.821477 | DA139: 40626.003 | DB139: 0 | DC139: 0 | EP139: 21.022779 | EQ139: 502 | ER139: 128.515814 | ES139: 495 | EW139: 0.426217 | EX139: 494 | EY139: 0.29983 | EZ139: 506 | FB139: 6 | FC139: 7 | FD139: 0 | FE139: 0 | FF139: 0 | FG139: 0 | FH139: 704
BJ140: 119471968 | BK140: 1 | BT140: 303576 | BU140: 1 | CD140: 122487006 | CE140: 1 | CX140: 136000000 | CY140: 137000000 | CZ140: 81.821477 | DA140: 40626.003 | DB140: 0.191332 | DC140: 95 | EP140: 21.034916 | EQ140: 504 | ER140: 128.58632 | ES140: 502 | EW140: 0.426266 | EX140: 500 | EY140: 0.300029 | EZ140: 508 | FB140: 7 | FC140: 8 | FD140: 0 | FE140: 0 | FF140: 0 | FG140: 0 | FH140: 704
BJ141: 119585138 | BK141: 1 | BT141: 305319 | BU141: 1 | CD141: 122679235 | CE141: 1 | CX141: 137000000 | CY141: 138000000 | CZ141: 81.630145 | DA141: 40531.003 | DB141: 1.411826 | DC141: 701 | EP141: 21.040847 | EQ141: 510 | ER141: 128.587008 | ES141: 498 | EW141: 0.427099 | EX141: 509 | EY141: 0.300743 | EZ141: 522 | FB141: 8 | FC141: 9 | FD141: 0 | FE141: 0 | FF141: 0 | FG141: 0 | FH141: 704
BJ142: 119728788 | BK142: 1 | BT142: 305815 | BU142: 1 | CD142: 123169616 | CE142: 1 | CX142: 138000000 | CY142: 139000000 | CZ142: 80.218319 | DA142: 39830.003 | DB142: 0 | DC142: 0 | EP142: 21.072379 | EQ142: 500 | ER142: 128.878542 | ES142: 504 | EW142: 0.427305 | EX142: 505 | EY142: 0.301515 | EZ142: 515 | FB142: 9 | FC142: 10 | FD142: 0 | FE142: 0 | FF142: 0 | FG142: 0 | FH142: 704
BJ143: 120026339 | BK143: 1 | BT143: 306971 | BU143: 1 | CD143: 123673346 | CE143: 1 | CX143: 139000000 | CY143: 140000000 | CZ143: 80.218319 | DA143: 39830.003 | DB143: 0 | DC143: 0 | EP143: 21.089603 | EQ143: 497 | ER143: 129.04696 | ES143: 500 | EW143: 0.427914 | EX143: 494 | EY143: 0.302318 | EZ143: 502 | FB143: 10 | FC143: 11 | FD143: 0 | FE143: 0 | FF143: 0 | FG143: 0 | FH143: 704
BJ144: 120367173 | BK144: 1 | BT144: 307277 | BU144: 1 | CD144: 123872080 | CE144: 1 | CX144: 140000000 | CY144: 141000000 | CZ144: 80.218319 | DA144: 39830.003 | DB144: 0.878112 | DC144: 436 | EP144: 21.184063 | EQ144: 506 | ER144: 129.245492 | ES144: 520 | EW144: 0.428075 | EX144: 504 | EY144: 0.302459 | EZ144: 517 | FB144: 11 | FC144: 12 | FD144: 0 | FE144: 0 | FF144: 0 | FG144: 0 | FH144: 704
BJ145: 120399717 | BK145: 1 | BT145: 307341 | BU145: 1 | CD145: 124150257 | CE145: 1 | CX145: 141000000 | CY145: 142000000 | CZ145: 79.340207 | DA145: 39394.003 | DB145: 0 | DC145: 0 | EP145: 21.363009 | EQ145: 503 | ER145: 130.377709 | ES145: 506 | EW145: 0.428254 | EX145: 521 | EY145: 0.030246 | EZ145: 539 | FB145: 12 | FC145: 13 | FD145: 0 | FE145: 0 | FF145: 0 | FG145: 0 | FH145: 704
BJ146: 120558928 | BK146: 1 | BT146: 309538 | BU146: 1 | CD146: 124273593 | CE146: 1 | CX146: 142000000 | CY146: 143000000 | CZ146: 79.340207 | DA146: 39394.003 | DB146: 0 | DC146: 0 | EP146: 21.375409 | EQ146: 514 | ER146: 130.484955 | ES146: 516 | EW146: 0.430087 | EX146: 504 | EY146: 0.30429 | EZ146: 513 | FB146: 13 | FC146: 14 | FD146: 0 | FE146: 0 | FF146: 0 | FG146: 0 | FH146: 704
BJ147: 120628293 | BK147: 1 | BT147: 309917 | BU147: 1 | CD147: 124567794 | CE147: 1 | CX147: 143000000 | CY147: 144000000 | CZ147: 79.340207 | DA147: 39394.003 | DB147: 0 | DC147: 0 | EP147: 21.856628 | EQ147: 509 | ER147: 130.724551 | ES147: 513 | EW147: 0.431112 | EX147: 511 | EY147: 0.304974 | EZ147: 508 | FB147: 14 | FC147: 15 | FD147: 0 | FE147: 0 | FF147: 0 | FG147: 0 | FH147: 704
BJ148: 120885643 | BK148: 1 | BT148: 311072 | BU148: 1 | CD148: 124578206 | CE148: 1 | CX148: 144000000 | CY148: 145000000 | CZ148: 79.340207 | DA148: 39394.003 | DB148: 0 | DC148: 0 | EP148: 21.870284 | EQ148: 468 | ER148: 130.765088 | ES148: 502 | EW148: 0.431856 | EX148: 502 | EY148: 0.305299 | EZ148: 502 | FB148: 15 | FC148: 16 | FD148: 0 | FE148: 0 | FF148: 0 | FG148: 0 | FH148: 704
BJ149: 121029924 | BK149: 1 | BT149: 311218 | BU149: 1 | CD149: 124684580 | CE149: 1 | CX149: 145000000 | CY149: 146000000 | CZ149: 79.340207 | DA149: 39394.003 | DB149: 0 | DC149: 0 | EP149: 21.895069 | EQ149: 499 | ER149: 130.796349 | ES149: 517 | EW149: 0.432942 | EX149: 518 | EY149: 0.305367 | EZ149: 517 | FB149: 16 | FC149: 17 | FD149: 0 | FE149: 0 | FF149: 0 | FG149: 0 | FH149: 704
BJ150: 121184616 | BK150: 1 | BT150: 311429 | BU150: 1 | CD150: 124706698 | CE150: 1 | CX150: 146000000 | CY150: 147000000 | CZ150: 79.340207 | DA150: 39394.003 | DB150: 1.170144 | DC150: 581 | EP150: 21.928553 | EQ150: 515 | ER150: 130.834788 | ES150: 505 | EW150: 0.433027 | EX150: 520 | EY150: 0.307548 | EZ150: 507 | FB150: 17 | FC150: 18 | FD150: 0 | FE150: 0 | FF150: 0 | FG150: 0 | FH150: 704
BJ151: 121237876 | BK151: 1 | BT151: 312010 | BU151: 1 | CD151: 124732008 | CE151: 1 | CX151: 147000000 | CY151: 148000000 | CZ151: 78.170063 | DA151: 38813.003 | DB151: 0 | DC151: 0 | EP151: 21.96064 | EQ151: 499 | ER151: 130.856352 | ES151: 502 | EW151: 0.433618 | EX151: 509 | EY151: 0.308089 | EZ151: 506 | FB151: 18 | FC151: 19 | FD151: 0 | FE151: 0 | FF151: 0 | FG151: 0 | FH151: 704
BJ152: 121397705 | BK152: 1 | BT152: 313040 | BU152: 1 | CD152: 124907718 | CE152: 1 | CX152: 148000000 | CY152: 149000000 | CZ152: 78.170063 | DA152: 38813.003 | DB152: 0 | DC152: 0 | EP152: 21.982978 | EQ152: 505 | ER152: 130.947584 | ES152: 501 | EW152: 0.434301 | EX152: 507 | EY152: 0.30843 | EZ152: 507 | FB152: 19 | FC152: 20 | FD152: 0 | FE152: 0 | FF152: 0 | FG152: 0 | FH152: 704
BJ153: 121853799 | BK153: 1 | BT153: 314286 | BU153: 1 | CD153: 125057244 | CE153: 1 | CX153: 149000000 | CY153: 150000000 | CZ153: 78.170063 | DA153: 38813.003 | DB153: 1.780391 | DC153: 884 | EP153: 22.011866 | EQ153: 496 | ER153: 131.067058 | ES153: 510 | EW153: 0.435421 | EX153: 506 | EY153: 0.308832 | EZ153: 500 | FB153: 20 | FC153: 21 | FD153: 0 | FE153: 0 | FF153: 0 | FG153: 0 | FH153: 704
BJ154: 122104643 | BK154: 1 | BT154: 317125 | BU154: 1 | CD154: 125479744 | CE154: 1 | CX154: 150000000 | CY154: 151000000 | CZ154: 76.389672 | DA154: 37929.003 | DB154: 1.329251 | DC154: 660 | EP154: 22.026476 | EQ154: 508 | ER154: 131.277782 | ES154: 501 | EW154: 0.436078 | EX154: 511 | EY154: 0.308846 | EZ154: 506 | FB154: 21 | FC154: 22 | FD154: 0 | FE154: 0 | FF154: 0 | FG154: 0 | FH154: 704
BJ155: 122441103 | BK155: 1 | BT155: 318235 | BU155: 1 | CD155: 125879598 | CE155: 1 | CX155: 151000000 | CY155: 152000000 | CZ155: 75.060421 | DA155: 37269.003 | DB155: 2.380569 | DC155: 1182 | EP155: 22.070314 | EQ155: 505 | ER155: 131.768941 | ES155: 510 | EW155: 0.437026 | EX155: 503 | EY155: 0.309771 | EZ155: 511 | FB155: 22 | FC155: 23 | FD155: 0 | FE155: 0 | FF155: 0 | FG155: 0 | FH155: 704
BJ156: 122487006 | BK156: 1 | BT156: 319526 | BU156: 1 | CD156: 125953686 | CE156: 1 | CX156: 152000000 | CY156: 153000000 | CZ156: 72.679852 | DA156: 36087.003 | DB156: 0 | DC156: 0 | EP156: 22.360576 | EQ156: 510 | ER156: 132.212704 | ES156: 502 | EW156: 0.440095 | EX156: 506 | EY156: 0.309931 | EZ156: 520 | FB156: 23 | FC156: 24 | FD156: 0 | FE156: 0 | FF156: 0 | FG156: 0 | FH156: 704
BJ157: 122679235 | BK157: 1 | BT157: 320039 | BU157: 1 | CD157: 126750077 | CE157: 1 | CX157: 153000000 | CY157: 154000000 | CZ157: 72.679852 | DA157: 36087.003 | DB157: 0 | DC157: 0 | EP157: 22.367792 | EQ157: 511 | ER157: 132.664221 | ES157: 505 | EW157: 0.44146 | EX157: 501 | EY157: 0.310076 | EZ157: 505 | FB157: 24 | FC157: 25 | FD157: 0 | FE157: 0 | FF157: 0 | FG157: 0 | FH157: 704
BJ158: 123169616 | BK158: 1 | BT158: 320201 | BU158: 1 | CD158: 126919043 | CE158: 1 | CX158: 154000000 | CY158: 155000000 | CZ158: 72.679852 | DA158: 36087.003 | DB158: 0 | DC158: 0 | EP158: 22.542169 | EQ158: 517 | ER158: 132.669756 | ES158: 509 | EW158: 0.442261 | EX158: 508 | EY158: 0.313972 | EZ158: 502 | FB158: 25 | FC158: 26 | FD158: 0 | FE158: 0 | FF158: 0 | FG158: 0 | FH158: 704
BJ159: 123673346 | BK159: 1 | BT159: 320387 | BU159: 1 | CD159: 127091952 | CE159: 1 | CX159: 155000000 | CY159: 156000000 | CZ159: 72.679852 | DA159: 36087.003 | DB159: 0.138967 | DC159: 69 | EP159: 22.870043 | EQ159: 507 | ER159: 132.820116 | ES159: 512 | EW159: 0.442463 | EX159: 509 | EY159: 0.314286 | EZ159: 516 | FB159: 26 | FC159: 27 | FD159: 0 | FE159: 0 | FF159: 0 | FG159: 0 | FH159: 704
BJ160: 123872080 | BK160: 1 | BT160: 320533 | BU160: 1 | CD160: 127139442 | CE160: 1 | CX160: 156000000 | CY160: 157000000 | CZ160: 72.540885 | DA160: 36018.003 | DB160: 0.964714 | DC160: 479 | EP160: 22.871771 | EQ160: 510 | ER160: 133.598745 | ES160: 513 | EW160: 0.443349 | EX160: 510 | EY160: 0.31565 | EZ160: 501 | FB160: 27 | FC160: 28 | FD160: 0 | FE160: 0 | FF160: 0 | FG160: 0 | FH160: 704
BJ161: 124150257 | BK161: 1 | BT161: 321960 | BU161: 1 | CD161: 127261745 | CE161: 1 | CX161: 157000000 | CY161: 158000000 | CZ161: 71.57617 | DA161: 35539.003 | DB161: 0 | DC161: 0 | EP161: 22.899609 | EQ161: 510 | ER161: 134.192277 | ES161: 491 | EW161: 0.444032 | EX161: 515 | EY161: 0.315918 | EZ161: 499 | FB161: 28 | FC161: 29 | FD161: 0 | FE161: 0 | FF161: 0 | FG161: 0 | FH161: 704
BJ162: 124273593 | BK162: 1 | BT162: 322514 | BU162: 1 | CD162: 127426992 | CE162: 1 | CX162: 158000000 | CY162: 159000000 | CZ162: 71.57617 | DA162: 35539.003 | DB162: 2.700797 | DC162: 1341 | EP162: 0.229508 | EQ162: 531 | ER162: 134.332308 | ES162: 504 | EW162: 0.444416 | EX162: 505 | EY162: 0.315942 | EZ162: 512 | FB162: 29 | FC162: 30 | FD162: 0 | FE162: 0 | FF162: 0 | FG162: 0 | FH162: 704
BJ163: 124567794 | BK163: 1 | BT163: 323701 | BU163: 1 | CD163: 127437108 | CE163: 1 | CX163: 159000000 | CY163: 160000000 | CZ163: 68.875373 | DA163: 34198.003 | DB163: 0 | DC163: 0 | EP163: 22.964619 | EQ163: 504 | ER163: 134.542211 | ES163: 510 | EW163: 0.444641 | EX163: 507 | EY163: 0.316533 | EZ163: 508 | FB163: 30 | FC163: 31 | FD163: 0 | FE163: 0 | FF163: 0 | FG163: 0 | FH163: 704
BJ164: 124578206 | BK164: 1 | BT164: 323896 | BU164: 1 | CD164: 127621963 | CE164: 1 | CX164: 160000000 | CY164: 161000000 | CZ164: 68.875373 | DA164: 34198.003 | DB164: 0.729074 | DC164: 362 | EP164: 23.019151 | EQ164: 510 | ER164: 134.586585 | ES164: 497 | EW164: 0.445088 | EX164: 508 | EY164: 0.318475 | EZ164: 502 | FB164: 31 | FC164: 32 | FD164: 0 | FE164: 0 | FF164: 0 | FG164: 0 | FH164: 704
BJ165: 124684580 | BK165: 1 | BT165: 327919 | BU165: 1 | CD165: 127812265 | CE165: 1 | CX165: 161000000 | CY165: 162000000 | CZ165: 68.146299 | DA165: 33836.003 | DB165: 2.302022 | DC165: 1143 | EP165: 23.091338 | EQ165: 498 | ER165: 134.609188 | ES165: 502 | EW165: 0.446406 | EX165: 510 | EY165: 0.319009 | EZ165: 521 | FB165: 32 | FC165: 33 | FD165: 0 | FE165: 0 | FF165: 0 | FG165: 0 | FH165: 704
BJ166: 124706698 | BK166: 1 | BT166: 328540 | BU166: 1 | CD166: 128004458 | CE166: 1 | CX166: 162000000 | CY166: 163000000 | CZ166: 65.844277 | DA166: 32693.003 | DB166: 1.721985 | DC166: 855 | EP166: 23.129263 | EQ166: 505 | ER166: 135.051878 | ES166: 494 | EW166: 0.446898 | EX166: 505 | EY166: 0.319095 | EZ166: 519 | FB166: 33 | FC166: 34 | FD166: 0 | FE166: 0 | FF166: 0 | FG166: 0 | FH166: 704
BJ167: 124732008 | BK167: 1 | BT167: 328609 | BU167: 1 | CD167: 128711410 | CE167: 1 | CX167: 163000000 | CY167: 164000000 | CZ167: 64.122292 | DA167: 31838.003 | DB167: 1.319181 | DC167: 655 | EP167: 23.201726 | EQ167: 498 | ER167: 135.624711 | ES167: 494 | EW167: 0.448094 | EX167: 507 | EY167: 0.3194 | EZ167: 511 | FB167: 34 | FC167: 35 | FD167: 0 | FE167: 0 | FF167: 0 | FG167: 0 | FH167: 704
BJ168: 124907718 | BK168: 1 | BT168: 328622 | BU168: 1 | CD168: 129151158 | CE168: 1 | CX168: 164000000 | CY168: 165000000 | CZ168: 62.803111 | DA168: 31183.003 | DB168: 0 | DC168: 0 | EP168: 23.273889 | EQ168: 506 | ER168: 135.658851 | ES168: 506 | EW168: 0.448705 | EX168: 494 | EY168: 0.319754 | EZ168: 514 | FB168: 35 | FC168: 36 | FD168: 0 | FE168: 0 | FF168: 0 | FG168: 0 | FH168: 704
BJ169: 125057244 | BK169: 1 | BT169: 328880 | BU169: 1 | CD169: 129751891 | CE169: 1 | CX169: 165000000 | CY169: 166000000 | CZ169: 62.803111 | DA169: 31183.003 | DB169: 0.555869 | DC169: 276 | EP169: 23.301269 | EQ169: 504 | ER169: 135.710637 | ES169: 503 | EW169: 0.450442 | EX169: 509 | EY169: 0.320087 | EZ169: 505 | FB169: 36 | FC169: 37 | FD169: 0 | FE169: 0 | FF169: 0 | FG169: 0 | FH169: 704
BJ170: 125479744 | BK170: 1 | BT170: 330949 | BU170: 1 | CD170: 129798650 | CE170: 1 | CX170: 166000000 | CY170: 167000000 | CZ170: 62.247242 | DA170: 30907.003 | DB170: 2.708853 | DC170: 1345 | EP170: 23.303786 | EQ170: 515 | ER170: 135.871878 | ES170: 522 | EW170: 0.450763 | EX170: 506 | EY170: 0.320533 | EZ170: 504 | FB170: 37 | FC170: 38 | FD170: 0 | FE170: 0 | FF170: 0 | FG170: 0 | FH170: 704
BJ171: 125879598 | BK171: 1 | BT171: 336746 | BU171: 1 | CD171: 129811264 | CE171: 1 | CX171: 167000000 | CY171: 168000000 | CZ171: 59.538388 | DA171: 29562.003 | DB171: 0.46121 | DC171: 229 | EP171: 23.314258 | EQ171: 504 | ER171: 135.876784 | ES171: 520 | EW171: 0.450916 | EX171: 502 | EY171: 0.320621 | EZ171: 498 | FB171: 38 | FC171: 39 | FD171: 0 | FE171: 0 | FF171: 0 | FG171: 0 | FH171: 704
BJ172: 125953686 | BK172: 1 | BT172: 336911 | BU172: 1 | CD172: 129865514 | CE172: 1 | CX172: 168000000 | CY172: 169000000 | CZ172: 59.077178 | DA172: 29333.003 | DB172: 3.073391 | DC172: 1526 | EP172: 23.374805 | EQ172: 509 | ER172: 136.41418 | ES172: 508 | EW172: 0.453679 | EX172: 498 | EY172: 0.321531 | EZ172: 516 | FB172: 39 | FC172: 40 | FD172: 0 | FE172: 0 | FF172: 0 | FG172: 0 | FH172: 704
BJ173: 126750077 | BK173: 1 | BT173: 337270 | BU173: 1 | CD173: 129961281 | CE173: 1 | CX173: 169000000 | CY173: 170000000 | CZ173: 56.003788 | DA173: 27807.003 | DB173: 0.946588 | DC173: 470 | EP173: 23.39176 | EQ173: 544 | ER173: 136.63978 | ES173: 507 | EW173: 0.45447 | EX173: 513 | EY173: 0.323759 | EZ173: 507 | FB173: 40 | FC173: 41 | FD173: 0 | FE173: 0 | FF173: 0 | FG173: 0 | FH173: 704
BJ174: 126919043 | BK174: 1 | BT174: 338688 | BU174: 1 | CD174: 130118615 | CE174: 1 | CX174: 170000000 | CY174: 171000000 | CZ174: 55.0572 | DA174: 27337.003 | DB174: 0 | DC174: 0 | EP174: 23.529803 | EQ174: 522 | ER174: 136.67705 | ES174: 511 | EW174: 0.454566 | EX174: 507 | EY174: 0.326034 | EZ174: 504 | FB174: 41 | FC174: 42 | FD174: 0 | FE174: 0 | FF174: 0 | FG174: 0 | FH174: 704
BJ175: 127091952 | BK175: 1 | BT175: 339008 | BU175: 1 | CD175: 130129209 | CE175: 1 | CX175: 171000000 | CY175: 172000000 | CZ175: 55.0572 | DA175: 27337.003 | DB175: 0.628373 | DC175: 312 | EP175: 23.561029 | EQ175: 498 | ER175: 136.751699 | ES175: 508 | EW175: 0.455586 | EX175: 499 | EY175: 0.326806 | EZ175: 516 | FB175: 42 | FC175: 43 | FD175: 0 | FE175: 0 | FF175: 0 | FG175: 0 | FH175: 704
BJ176: 127139442 | BK176: 1 | BT176: 339039 | BU176: 1 | CD176: 130129975 | CE176: 1 | CX176: 172000000 | CY176: 173000000 | CZ176: 54.428826 | DA176: 27025.003 | DB176: 0.283976 | DC176: 141 | EP176: 23.623275 | EQ176: 516 | ER176: 136.870246 | ES176: 520 | EW176: 0.456 | EX176: 498 | EY176: 0.328432 | EZ176: 511 | FB176: 43 | FC176: 44 | FD176: 0 | FE176: 0 | FF176: 0 | FG176: 0 | FH176: 704
BJ177: 127261745 | BK177: 1 | BT177: 339411 | BU177: 1 | CD177: 130252226 | CE177: 1 | CX177: 173000000 | CY177: 174000000 | CZ177: 54.14485 | DA177: 26884.003 | DB177: 1.514541 | DC177: 752 | EP177: 23.660824 | EQ177: 506 | ER177: 137.276015 | ES177: 513 | EW177: 0.456497 | EX177: 499 | EY177: 0.328698 | EZ177: 494 | FB177: 44 | FC177: 45 | FD177: 0 | FE177: 0 | FF177: 0 | FG177: 0 | FH177: 704
BJ178: 127426992 | BK178: 1 | BT178: 339588 | BU178: 1 | CD178: 130266015 | CE178: 1 | CX178: 174000000 | CY178: 175000000 | CZ178: 52.630309 | DA178: 26132.003 | DB178: 0.793523 | DC178: 394 | EP178: 23.727139 | EQ178: 494 | ER178: 137.783033 | ES178: 507 | EW178: 0.004567 | EX178: 0.001 | EY178: 0.328869 | EZ178: 495 | FB178: 45 | FC178: 46 | FD178: 0 | FE178: 0 | FF178: 0 | FG178: 0 | FH178: 704
BJ179: 127437108 | BK179: 1 | BT179: 341327 | BU179: 1 | CD179: 130282788 | CE179: 1 | CX179: 175000000 | CY179: 176000000 | CZ179: 51.836786 | DA179: 25738.003 | DB179: 0 | DC179: 0 | EP179: 23.736376 | EQ179: 505 | ER179: 137.890217 | ES179: 503 | EW179: 0.456751 | EX179: 501 | EY179: 0.329392 | EZ179: 507 | FB179: 46 | FC179: 47 | FD179: 0 | FE179: 0 | FF179: 0 | FG179: 0 | FH179: 704
BJ180: 127621963 | BK180: 1 | BT180: 342091 | BU180: 1 | CD180: 130292621 | CE180: 1 | CX180: 176000000 | CY180: 177000000 | CZ180: 51.836786 | DA180: 25738.003 | DB180: 0.400789 | DC180: 199 | EP180: 24.023489 | EQ180: 515 | ER180: 138.589678 | ES180: 511 | EW180: 0.456994 | EX180: 500 | EY180: 0.331772 | EZ180: 508 | FB180: 47 | FC180: 48 | FD180: 0 | FE180: 0 | FF180: 0 | FG180: 0 | FH180: 704
BJ181: 127812265 | BK181: 1 | BT181: 342227 | BU181: 1 | CD181: 130850956 | CE181: 1 | CX181: 177000000 | CY181: 178000000 | CZ181: 51.435996 | DA181: 25539.003 | DB181: 0.819705 | DC181: 407 | EP181: 24.164696 | EQ181: 495 | ER181: 138.621568 | ES181: 512 | EW181: 0.457077 | EX181: 505 | EY181: 0.332102 | EZ181: 506 | FB181: 48 | FC181: 49 | FD181: 0 | FE181: 0 | FF181: 0 | FG181: 0 | FH181: 704
BJ182: 128004458 | BK182: 1 | BT182: 343687 | BU182: 1 | CD182: 130869466 | CE182: 1 | CX182: 178000000 | CY182: 179000000 | CZ182: 50.616291 | DA182: 25132.003 | DB182: 1.478289 | DC182: 734 | EP182: 24.174093 | EQ182: 517 | ER182: 138.801885 | ES182: 504 | EW182: 0.458265 | EX182: 517 | EY182: 0.332258 | EZ182: 503 | FB182: 49 | FC182: 50 | FD182: 0 | FE182: 0 | FF182: 0 | FG182: 0 | FH182: 704
BJ183: 128711410 | BK183: 1 | BT183: 344565 | BU183: 1 | CD183: 131062568 | CE183: 1 | CX183: 179000000 | CY183: 180000000 | CZ183: 49.138003 | DA183: 24398.003 | DB183: 1.454121 | DC183: 722 | EP183: 24.235991 | EQ183: 504 | ER183: 139.260768 | ES183: 509 | EW183: 0.458671 | EX183: 514 | EY183: 0.332602 | EZ183: 514 | FB183: 50 | FC183: 51 | FD183: 0 | FE183: 0 | FF183: 0 | FG183: 0 | FH183: 704
BJ184: 129151158 | BK184: 1 | BT184: 345132 | BU184: 1 | CD184: 131165663 | CE184: 1 | CX184: 180000000 | CY184: 181000000 | CZ184: 47.683882 | DA184: 23676.003 | DB184: 1.66962 | DC184: 829 | EP184: 24.263844 | EQ184: 506 | ER184: 139.528419 | ES184: 519 | EW184: 0.460492 | EX184: 501 | EY184: 0.333422 | EZ184: 498 | FB184: 51 | FC184: 52 | FD184: 0 | FE184: 0 | FF184: 0 | FG184: 0 | FH184: 704
BJ185: 129751891 | BK185: 1 | BT185: 345225 | BU185: 1 | CD185: 131782632 | CE185: 1 | CX185: 181000000 | CY185: 182000000 | CZ185: 46.014262 | DA185: 22847.003 | DB185: 1.869008 | DC185: 928 | EP185: 24.440176 | EQ185: 506 | ER185: 139.647953 | ES185: 515 | EW185: 0.460715 | EX185: 511 | EY185: 0.333434 | EZ185: 509 | FB185: 52 | FC185: 53 | FD185: 0 | FE185: 0 | FF185: 0 | FG185: 0 | FH185: 704
BJ186: 129798650 | BK186: 1 | BT186: 345546 | BU186: 1 | CD186: 131856270 | CE186: 1 | CX186: 182000000 | CY186: 183000000 | CZ186: 44.145253 | DA186: 21919.003 | DB186: 0 | DC186: 0 | EP186: 24.713671 | EQ186: 507 | ER186: 14.004844 | ES186: 541 | EW186: 0.461338 | EX186: 501 | EY186: 0.335971 | EZ186: 510 | FB186: 53 | FC186: 54 | FD186: 0 | FE186: 0 | FF186: 0 | FG186: 0 | FH186: 704
BJ187: 129811264 | BK187: 1 | BT187: 345783 | BU187: 1 | CD187: 131868910 | CE187: 1 | CX187: 183000000 | CY187: 184000000 | CZ187: 44.145253 | DA187: 21919.003 | DB187: 0 | DC187: 0 | EP187: 24.886612 | EQ187: 511 | ER187: 140.156245 | ES187: 503 | EW187: 0.462861 | EX187: 503 | EY187: 0.336228 | EZ187: 505 | FB187: 54 | FC187: 55 | FD187: 0 | FE187: 0 | FF187: 0 | FG187: 0 | FH187: 704
BJ188: 129865514 | BK188: 1 | BT188: 347154 | BU188: 1 | CD188: 131925475 | CE188: 1 | CX188: 184000000 | CY188: 185000000 | CZ188: 44.145253 | DA188: 21919.003 | DB188: 0 | DC188: 0 | EP188: 25.126326 | EQ188: 503 | ER188: 140.161317 | ES188: 508 | EW188: 0.463255 | EX188: 508 | EY188: 0.336256 | EZ188: 498 | FB188: 55 | FC188: 56 | FD188: 0 | FE188: 0 | FF188: 0 | FG188: 0 | FH188: 704
BJ189: 129961281 | BK189: 1 | BT189: 347326 | BU189: 1 | CD189: 131926807 | CE189: 1 | CX189: 185000000 | CY189: 186000000 | CZ189: 44.145253 | DA189: 21919.003 | DB189: 0.19536 | DC189: 97 | EP189: 25.164089 | EQ189: 507 | ER189: 140.16933 | ES189: 509 | EW189: 0.464273 | EX189: 502 | EY189: 0.33626 | EZ189: 505 | FB189: 56 | FC189: 57 | FD189: 0 | FE189: 0 | FF189: 0 | FG189: 0 | FH189: 704
BJ190: 130118615 | BK190: 1 | BT190: 348512 | BU190: 1 | CD190: 132156549 | CE190: 1 | CX190: 186000000 | CY190: 187000000 | CZ190: 43.949894 | DA190: 21822.003 | DB190: 0.779425 | DC190: 387 | EP190: 25.350387 | EQ190: 496 | ER190: 140.789672 | ES190: 497 | EW190: 0.464512 | EX190: 495 | EY190: 0.337 | EZ190: 503 | FB190: 57 | FC190: 58 | FD190: 0 | FE190: 0 | FF190: 0 | FG190: 0 | FH190: 704
BJ191: 130129209 | BK191: 1 | BT191: 349918 | BU191: 1 | CD191: 132633333 | CE191: 1 | CX191: 187000000 | CY191: 188000000 | CZ191: 43.170469 | DA191: 21435.003 | DB191: 0 | DC191: 0 | EP191: 25.418427 | EQ191: 504 | ER191: 141.03349 | ES191: 511 | EW191: 0.464552 | EX191: 499 | EY191: 0.337676 | EZ191: 510 | FB191: 58 | FC191: 59 | FD191: 0 | FE191: 0 | FF191: 0 | FG191: 0 | FH191: 704
BJ192: 130129975 | BK192: 1 | BT192: 350781 | BU192: 1 | CD192: 132671888 | CE192: 1 | CX192: 188000000 | CY192: 189000000 | CZ192: 43.170469 | DA192: 21435.003 | DB192: 0 | DC192: 0 | EP192: 25.613382 | EQ192: 510 | ER192: 141.090281 | ES192: 506 | EW192: 0.464912 | EX192: 507 | EY192: 0.337871 | EZ192: 508 | FB192: 59 | FC192: 60 | FD192: 0 | FE192: 0 | FF192: 0 | FG192: 0 | FH192: 704
BJ193: 130252226 | BK193: 1 | BT193: 350844 | BU193: 1 | CD193: 132741988 | CE193: 1 | CX193: 189000000 | CY193: 190000000 | CZ193: 43.170469 | DA193: 21435.003 | DB193: 1.526625 | DC193: 758 | EP193: 25.639334 | EQ193: 482 | ER193: 141.786745 | ES193: 509 | EW193: 0.465584 | EX193: 507 | EY193: 0.338153 | EZ193: 509 | FB193: 60 | FC193: 61 | FD193: 0 | FE193: 0 | FF193: 0 | FG193: 0 | FH193: 704
BJ194: 130266015 | BK194: 1 | BT194: 351579 | BU194: 1 | CD194: 132828111 | CE194: 1 | CX194: 190000000 | CY194: 191000000 | CZ194: 41.643844 | DA194: 20677.003 | DB194: 0 | DC194: 0 | EP194: 25.691968 | EQ194: 508 | ER194: 141.849165 | ES194: 513 | EW194: 0.465713 | EX194: 504 | EY194: 0.338996 | EZ194: 509 | FB194: 61 | FC194: 62 | FD194: 0 | FE194: 0 | FF194: 0 | FG194: 0 | FH194: 704
BJ195: 130282788 | BK195: 1 | BT195: 351836 | BU195: 1 | CD195: 133028063 | CE195: 1 | CX195: 191000000 | CY195: 192000000 | CZ195: 41.643844 | DA195: 20677.003 | DB195: 0.811649 | DC195: 403 | EP195: 0.025741 | EQ195: 509 | ER195: 142.666592 | ES195: 501 | EW195: 0.466241 | EX195: 510 | EY195: 0.339011 | EZ195: 504 | FB195: 62 | FC195: 63 | FD195: 0 | FE195: 0 | FF195: 0 | FG195: 0 | FH195: 704
BJ196: 130292621 | BK196: 1 | BT196: 352415 | BU196: 1 | CD196: 133078994 | CE196: 1 | CX196: 192000000 | CY196: 193000000 | CZ196: 40.832195 | DA196: 20274.003 | DB196: 0.312173 | DC196: 155 | EP196: 25.76676 | EQ196: 502 | ER196: 142.75904 | ES196: 501 | EW196: 0.467232 | EX196: 502 | EY196: 0.339777 | EZ196: 506 | FB196: 63 | FC196: 64 | FD196: 0 | FE196: 0 | FF196: 0 | FG196: 0 | FH196: 704
BJ197: 130850956 | BK197: 1 | BT197: 352877 | BU197: 1 | CD197: 133140416 | CE197: 1 | CX197: 193000000 | CY197: 194000000 | CZ197: 40.520022 | DA197: 20119.003 | DB197: 0.815677 | DC197: 405 | EP197: 25.822081 | EQ197: 496 | ER197: 142.892736 | ES197: 501 | EW197: 0.467718 | EX197: 510 | EY197: 0.340332 | EZ197: 514 | FB197: 64 | FC197: ... | FD197: 0 | FE197: 0 | FF197: 0 | FG197: 0 | FH197: 704
BJ198: 130869466 | BK198: 1 | BT198: 354331 | BU198: 1 | CD198: 133403397 | CE198: 1 | CX198: 194000000 | CY198: 195000000 | CZ198: 39.704345 | DA198: 19714.003 | DB198: 0 | DC198: 0 | EP198: 25.899229 | EQ198: 498 | ER198: 142.894272 | ES198: 501 | EW198: 0.468899 | EX198: 513 | EY198: 0.341327 | EZ198: 498
BJ199: 131062568 | BK199: 1 | BT199: 355743 | BU199: 1 | CD199: 133444564 | CE199: 1 | CX199: 195000000 | CY199: 196000000 | CZ199: 39.704345 | DA199: 19714.003 | DB199: 1.496415 | DC199: 743 | EP199: 25.953926 | EQ199: 517 | ER199: 143.96778 | ES199: 511 | EW199: 0.469723 | EX199: 513 | EY199: 0.341354 | EZ199: 510
BJ200: 131165663 | BK200: 1 | BT200: 355830 | BU200: 1 | CD200: 133599152 | CE200: 1 | CX200: 196000000 | CY200: 197000000 | CZ200: 38.20793 | DA200: 18971.003 | DB200: 0 | DC200: 0 | EP200: 26.000507 | EQ200: 506 | ER200: 144.332486 | ES200: 510 | EW200: 0.47006 | EX200: 502 | EY200: 0.341931 | EZ200: 503
... 362 more rows

Sheet 5G_NR_raw_scanner (hidden)
B1: SS-RSRP best scanner | L1: SS-RSRQ best scanner | V1: SS-SINR best scanner | AF1: Number of beams within xdB
B2: lower_bound | C2: upper_bound | D2: cumulation | E2: cumulation_sampled | F2: density | G2: density_sampled | H2: group | L2: lower_bound | M2: upper_bound | N2: cumulation | O2: cumulation_sampled | P2: density | Q2: density_sampled | R2: group | V2: lower_bound | W2: upper_bound | X2: cumulation | Y2: cumulation_sampled | Z2: density | AA2: density_sampled | AB2: group | AF2: lower_bound | AG2: upper_bound | AH2: cumulation | AI2: cumulation_sampled | AJ2: density | AK2: density_sampled | AL2: group

Sheet PCI-BI_raw_UE (hidden)
A1: PCIs detected | B1: count | D1: ARFCN-PCI | E1: count | G1: ARFCN-PCI-BI | H1: Avg SS-RSRP | J1: SS-RSRP distribution | R1: ARFCN-PCI-BI | S1: Avg SS-RSRQ | U1: SS-RSRQ distribution | AC1: ARFCN-PCI-BI | AD1: Avg SS-SINR | AF1: SS-SINR distribution | AN1: NR-ARFCN | AO1: count
J2: lower_bound | K2: upper_bound | L2: cumulation | M2: cumulation_sampled | N2: density | O2: density_sampled | P2: group | U2: lower_bound | V2: upper_bound | W2: cumulation | X2: cumulation_sampled | Y2: density | Z2: density_sampled | AA2: group | AF2: lower_bound | AG2: upper_bound | AH2: cumulation | AI2: cumulation_sampled | AJ2: density | AK2: density_sampled | AL2: group
A3: 703 | B3: -91135 | D3: 361490_702 | E3: 74403 | G3: 361490_702_0 | H3: -79.639821 | J3: ... | K3: -140 | L3: 100 | M3: 74403 | N3: 0 | O3: 0 | P3: 361490_702_0 | R3: 361490_702_0 | S3: -15.619286 | U3: ... | V3: -30 | W3: 100 | X3: 74403 | Y3: 0 | Z3: 0 | AA3: 361490_702_0 | AC3: 361490_702_0 | AD3: 9.856417 | AF3: ... | AG3: -30 | AH3: 100 | AI3: 26389 | AJ3: 0 | AK3: 0 | AL3: 361490_702_0 | AN3: 361490 | AO3: 343872.002
A4: 704 | B4: -159643 | D4: 361490_703 | E4: 91135.001 | G4: 361490_703_0 | H4: -87.748091 | J4: -140 | K4: -135 | L4: 100 | M4: 74403 | N4: 0 | O4: 0 | P4: 361490_702_0 | R4: 361490_703_0 | S4: -18.038397 | U4: -30 | V4: -29 | W4: 100 | X4: 74403 | Y4: 0 | Z4: 0 | AA4: 361490_702_0 | AC4: 361490_703_0 | AD4: 4.871039 | AF4: -30 | AG4: -29 | AH4: 100 | AI4: 26389 | AJ4: 0 | AK4: 0 | AL4: 361490_702_0
A5: 996 | B5: -18691 | D5: 361490_704 | E5: 159643.001 | G5: 361490_704_0 | H5: -78.046013 | J5: -135 | K5: -130 | L5: 100 | M5: 74403 | N5: 0 | O5: 0 | P5: 361490_702_0 | R5: 361490_704_0 | S5: -12.821712 | U5: -29 | V5: -28 | W5: 100 | X5: 74403 | Y5: 0 | Z5: 0 | AA5: 361490_702_0 | AC5: 361490_704_0 | AD5: 15.764992 | AF5: -29 | AG5: -28 | AH5: 100 | AI5: 26389 | AJ5: 0 | AK5: 0 | AL5: 361490_702_0
A6: 702 | B6: -74403 | D6: 361490_996 | E6: 18691 | G6: 361490_996_0 | H6: -101.712729 | J6: -130 | K6: -125 | L6: 100 | M6: 74403 | N6: 0 | O6: 0 | P6: 361490_702_0 | R6: 361490_996_0 | S6: -19.978728 | U6: -28 | V6: -27 | W6: 100 | X6: 74403 | Y6: 0 | Z6: 0 | AA6: 361490_702_0 | AF6: -28 | AG6: -27 | AH6: 100 | AI6: 26389 | AJ6: 0 | AK6: 0 | AL6: 361490_702_0
J7: -125 | K7: -120 | L7: 100 | M7: 74403 | N7: 0 | O7: 0 | P7: 361490_702_0 | U7: -27 | V7: -26 | W7: 100 | X7: 74403 | Y7: 0 | Z7: 0 | AA7: 361490_702_0 | AF7: -27 | AG7: -26 | AH7: 100 | AI7: 26389 | AJ7: 0 | AK7: 0 | AL7: 361490_702_0
J8: -120 | K8: -115 | L8: 100 | M8: 74403 | N8: 0 | O8: 0 | P8: 361490_702_0 | U8: -26 | V8: -25 | W8: 100 | X8: 74403 | Y8: 0.667984 | Z8: 497 | AA8: 361490_702_0 | AF8: -26 | AG8: -25 | AH8: 100 | AI8: 26389 | AJ8: 0 | AK8: 0 | AL8: 361490_702_0
J9: -115 | K9: -110 | L9: 100 | M9: 74403 | N9: 0 | O9: 0 | P9: 361490_702_0 | U9: -25 | V9: -24 | W9: 99.332016 | X9: 73906 | Y9: 0 | Z9: 0 | AA9: 361490_702_0 | AF9: -25 | AG9: -24 | AH9: 100 | AI9: 26389 | AJ9: 0 | AK9: 0 | AL9: 361490_702_0
J10: -110 | K10: -105 | L10: 100 | M10: 74403 | N10: 1.358816 | O10: 1011 | P10: 361490_702_0 | U10: -24 | V10: -23 | W10: 99.332016 | X10: 73906 | Y10: 1.378977 | Z10: 1026 | AA10: 361490_702_0 | AF10: -24 | AG10: -23 | AH10: 100 | AI10: 26389 | AJ10: 0 | AK10: 0 | AL10: 361490_702_0
J11: -105 | K11: -100 | L11: 98.641184 | M11: 73392 | N11: 6.132817 | O11: 4563 | P11: 361490_702_0 | U11: -23 | V11: -22 | W11: 97.95304 | X11: 72880 | Y11: 2.069809 | Z11: 1540 | AA11: 361490_702_0 | AF11: -23 | AG11: -22 | AH11: 100 | AI11: 26389 | AJ11: 0 | AK11: 0 | AL11: 361490_702_0
J12: -100 | K12: -95 | L12: 92.508367 | M12: 68829 | N12: 7.466097 | O12: 5555 | P12: 361490_702_0 | U12: -22 | V12: -21 | W12: 95.883231 | X12: 71340 | Y12: 6.815585 | Z12: 5071 | AA12: 361490_702_0 | AF12: -22 | AG12: -21 | AH12: 100 | AI12: 26389 | AJ12: 0 | AK12: 0 | AL12: 361490_702_0
J13: -95 | K13: -90 | L13: 85.04227 | M13: 63274 | N13: 9.502305 | O13: 7070 | P13: 361490_702_0 | U13: -21 | V13: -20 | W13: 89.067645 | X13: 66269 | Y13: 8.078975 | Z13: 6011 | AA13: 361490_702_0 | AF13: -21 | AG13: -20 | AH13: 100 | AI13: 26389 | AJ13: 0 | AK13: 0 | AL13: 361490_702_0
J14: -90 | K14: -85 | L14: 75.539965 | M14: 56204 | N14: 3.419217 | O14: 2544 | P14: 361490_702_0 | U14: -20 | V14: -19 | W14: 80.98867 | X14: 60258 | Y14: 4.748464 | Z14: 3533 | AA14: 361490_702_0 | AF14: -20 | AG14: -19 | AH14: 100 | AI14: 26389 | AJ14: 0 | AK14: 0 | AL14: 361490_702_0
J15: -85 | K15: -80 | L15: 72.120748 | M15: 53660 | N15: 14.269586 | O15: 10617 | P15: 361490_702_0 | U15: -19 | V15: -18 | W15: 76.240205 | X15: 56725 | Y15: 6.783329 | Z15: 5047 | AA15: 361490_702_0 | AF15: -19 | AG15: -18 | AH15: 100 | AI15: 26389 | AJ15: 0 | AK15: 0 | AL15: 361490_702_0
J16: -80 | K16: -75 | L16: 57.851162 | M16: 43043 | N16: 12.245474 | O16: 9111 | P16: 361490_702_0 | U16: -18 | V16: -17 | W16: 69.456877 | X16: 51678 | Y16: 7.506418 | Z16: 5585 | AA16: 361490_702_0 | AF16: -18 | AG16: -17 | AH16: 100 | AI16: 26389 | AJ16: 0 | AK16: 0 | AL16: 361490_702_0
J17: -75 | K17: -70 | L17: 45.605688 | M17: 33932 | N17: 23.235622 | O17: 17288 | P17: 361490_702_0 | U17: -17 | V17: -16 | W17: 61.950459 | X17: 46093 | Y17: 9.52381 | Z17: 7086 | AA17: 361490_702_0 | AF17: -17 | AG17: -16 | AH17: 100 | AI17: 26389 | AJ17: 0 | AK17: 0 | AL17: 361490_702_0
J18: -70 | K18: -65 | L18: 22.370066 | M18: 16644 | N18: 16.915985 | O18: 12586 | P18: 361490_702_0 | U18: -16 | V18: -15 | W18: 52.426649 | X18: 39007 | Y18: 6.105937 | Z18: 4543 | AA18: 361490_702_0 | AF18: -16 | AG18: -15 | AH18: 100 | AI18: 26389 | AJ18: 0 | AK18: 0 | AL18: 361490_702_0
J19: -65 | K19: -60 | L19: 5.454081 | M19: 4058 | N19: 2.677311 | O19: 1992 | P19: 361490_702_0 | U19: -15 | V19: -14 | W19: 46.320713 | X19: 34464 | Y19: 6.069648 | Z19: 4516 | AA19: 361490_702_0 | AF19: -15 | AG19: -14 | AH19: 100 | AI19: 26389 | AJ19: 0 | AK19: 0 | AL19: 361490_702_0
J20: -60 | K20: -55 | L20: 2.77677 | M20: 2066 | N20: 2.77677 | O20: 2066 | P20: 361490_702_0 | U20: -14 | V20: -13 | W20: 40.251065 | X20: 29948 | Y20: 4.106017 | Z20: 3055 | AA20: 361490_702_0 | AF20: -14 | AG20: -13 | AH20: 100 | AI20: 26389 | AJ20: 0 | AK20: 0 | AL20: 361490_702_0
J21: -55 | K21: -50 | L21: 0 | M21: 0 | N21: 0 | O21: 0 | P21: 361490_702_0 | U21: -13 | V21: -12 | W21: 36.145048 | X21: 26893 | Y21: 3.38024 | Z21: 2515 | AA21: 361490_702_0 | AF21: -13 | AG21: -12 | AH21: 100 | AI21: 26389 | AJ21: 0 | AK21: 0 | AL21: 361490_702_0
J22: -50 | K22: -45 | L22: 0 | M22: 0 | N22: 0 | O22: 0 | P22: 361490_702_0 | U22: -12 | V22: -11 | W22: 32.764808 | X22: 24378 | Y22: 12.304611 | Z22: 9155 | AA22: 361490_702_0 | AF22: -12 | AG22: -11 | AH22: 100 | AI22: 26389 | AJ22: 0 | AK22: 0 | AL22: 361490_702_0
J23: -45 | K23: -40 | L23: 0 | M23: 0 | N23: 0 | O23: 0 | P23: 361490_702_0 | U23: -11 | V23: -10 | W23: 20.460196 | X23: 15223 | Y23: 20.460196 | Z23: 15223 | AA23: 361490_702_0 | AF23: -11 | AG23: -10 | AH23: 100 | AI23: 26389 | AJ23: 0 | AK23: 0 | AL23: 361490_702_0
J24: -40 | K24: -35 | L24: 0 | M24: 0 | N24: 0 | O24: 0 | P24: 361490_702_0 | U24: -10 | V24: -9 | W24: 0 | X24: 0 | Y24: 0 | Z24: 0 | AA24: 361490_702_0 | AF24: -10 | AG24: -9 | AH24: 100 | AI24: 26389 | AJ24: 0 | AK24: 0 | AL24: 361490_702_0
J25: -35 | K25: ... | L25: 0 | M25: 0 | N25: 0 | O25: 0 | P25: 361490_702_0 | U25: -9 | V25: -8 | W25: 0 | X25: 0 | Y25: 0 | Z25: 0 | AA25: 361490_702_0 | AF25: -9 | AG25: -8 | AH25: 100 | AI25: 26389 | AJ25: 0 | AK25: 0 | AL25: 361490_702_0
J26: ... | K26: -140 | L26: 100 | M26: 91135.001 | N26: 0 | O26: 0 | P26: 361490_703_0 | U26: -8 | V26: -7 | W26: 0 | X26: 0 | Y26: 0 | Z26: 0 | AA26: 361490_702_0 | AF26: -8 | AG26: -7 | AH26: 100 | AI26: 26389 | AJ26: 0 | AK26: 0 | AL26: 361490_702_0
J27: -140 | K27: -135 | L27: 100 | M27: 91135.001 | N27: 0 | O27: 0 | P27: 361490_703_0 | U27: -7 | V27: -6 | W27: 0 | X27: 0 | Y27: 0 | Z27: 0 | AA27: 361490_702_0 | AF27: -7 | AG27: -6 | AH27: 100 | AI27: 26389 | AJ27: 0 | AK27: 0 | AL27: 361490_702_0
J28: -135 | K28: -130 | L28: 100 | M28: 91135.001 | N28: 0 | O28: 0 | P28: 361490_703_0 | U28: -6 | V28: -5 | W28: 0 | X28: 0 | Y28: 0 | Z28: 0 | AA28: 361490_702_0 | AF28: -6 | AG28: -5 | AH28: 100 | AI28: 26389 | AJ28: 0 | AK28: 0 | AL28: 361490_702_0
J29: -130 | K29: -125 | L29: 100 | M29: 91135.001 | N29: 0 | O29: 0 | P29: 361490_703_0 | U29: -5 | V29: -4 | W29: 0 | X29: 0 | Y29: 0 | Z29: 0 | AA29: 361490_702_0 | AF29: -5 | AG29: -4 | AH29: 100 | AI29: 26389 | AJ29: 0 | AK29: 0 | AL29: 361490_702_0
J30: -125 | K30: -120 | L30: 100 | M30: 91135.001 | N30: 0 | O30: 0 | P30: 361490_703_0 | U30: -4 | V30: -3 | W30: 0 | X30: 0 | Y30: 0 | Z30: 0 | AA30: 361490_702_0 | AF30: -4 | AG30: -3 | AH30: 100 | AI30: 26389 | AJ30: 0 | AK30: 0 | AL30: 361490_702_0
J31: -120 | K31: -115 | L31: 100 | M31: 91135.001 | N31: 0.556318 | O31: 507 | P31: 361490_703_0 | U31: -3 | V31: -2 | W31: 0 | X31: 0 | Y31: 0 | Z31: 0 | AA31: 361490_702_0 | AF31: -3 | AG31: -2 | AH31: 100 | AI31: 26389 | AJ31: 0 | AK31: 0 | AL31: 361490_702_0
J32: -115 | K32: -110 | L32: 99.443682 | M32: 90628.001 | N32: 3.333517 | O32: 3038.001 | P32: 361490_703_0 | U32: -2 | V32: -1 | W32: 0 | X32: 0 | Y32: 0 | Z32: 0 | AA32: 361490_702_0 | AF32: -2 | AG32: -1 | AH32: 100 | AI32: 26389 | AJ32: 0 | AK32: 0 | AL32: 361490_702_0
J33: -110 | K33: -105 | L33: 96.110165 | M33: 87590 | N33: 4.43847 | O33: 4045 | P33: 361490_703_0 | U33: -1 | V33: 0 | W33: 0 | X33: 0 | Y33: 0 | Z33: 0 | AA33: 361490_702_0 | AF33: -1 | AG33: 0 | AH33: 100 | AI33: 26389 | AJ33: 1.966729 | AK33: 519 | AL33: 361490_702_0
J34: -105 | K34: -100 | L34: 91.671695 | M34: 83545 | N34: 5.56537 | O34: 5072 | P34: 361490_703_0 | U34: 0 | V34: ... | W34: 0 | X34: 0 | Y34: 0 | Z34: 0 | AA34: 361490_702_0 | AF34: 0 | AG34: 1 | AH34: 98.033271 | AI34: 25870 | AJ34: 0 | AK34: 0 | AL34: 361490_702_0
J35: -100 | K35: -95 | L35: 86.106325 | M35: 78473 | N35: 13.85088 | O35: 12623 | P35: 361490_703_0 | U35: ... | V35: -30 | W35: 100 | X35: 91135.001 | Y35: 0 | Z35: 0 | AA35: 361490_703_0 | AF35: 1 | AG35: 2 | AH35: 98.033271 | AI35: 25870 | AJ35: 3.812194 | AK35: 1006 | AL35: 361490_702_0
J36: -95 | K36: -90 | L36: 72.255444 | M36: 65850 | N36: 21.160915 | O36: 19285 | P36: 361490_703_0 | U36: -30 | V36: -29 | W36: 100 | X36: 91135.001 | Y36: 0 | Z36: 0 | AA36: 361490_703_0 | AF36: 2 | AG36: 3 | AH36: 94.221077 | AI36: 24864 | AJ36: 3.827352 | AK36: 1010 | AL36: 361490_702_0
J37: -90 | K37: -85 | L37: 51.09453 | M37: 46565 | N37: 18.93345 | O37: 17255 | P37: 361490_703_0 | U37: -29 | V37: -28 | W37: 100 | X37: 91135.001 | Y37: 0.560707 | Z37: 511 | AA37: 361490_703_0 | AF37: 3 | AG37: 4 | AH37: 90.393725 | AI37: 23854 | AJ37: 0 | AK37: 0 | AL37: 361490_702_0
J38: -85 | K38: -80 | L38: 32.161079 | M38: 29310 | N38: 5.016733 | O38: 4572 | P38: 361490_703_0 | U38: -28 | V38: -27 | W38: 99.439293 | X38: 90624.001 | Y38: 0 | Z38: 0 | AA38: 361490_703_0 | AF38: 4 | AG38: 5 | AH38: 90.393725 | AI38: 23854 | AJ38: 0 | AK38: 0 | AL38: 361490_702_0
J39: -80 | K39: -75 | L39: 27.144346 | M39: 24738 | N39: 4.40226 | O39: 4012 | P39: 361490_703_0 | U39: -27 | V39: -26 | W39: 99.439293 | X39: 90624.001 | Y39: 0 | Z39: 0 | AA39: 361490_703_0 | AF39: 5 | AG39: 6 | AH39: 90.393725 | AI39: 23854 | AJ39: 3.671985 | AK39: 969 | AL39: 361490_702_0
J40: -75 | K40: -70 | L40: 22.742086 | M40: 20726 | N40: 9.398146 | O40: 8565 | P40: 361490_703_0 | U40: -26 | V40: -25 | W40: 99.439293 | X40: 90624.001 | Y40: 0.549734 | Z40: 501 | AA40: 361490_703_0 | AF40: 6 | AG40: 7 | AH40: 86.72174 | AI40: 22885 | AJ40: 1.88336 | AK40: 497 | AL40: 361490_702_0
J41: -70 | K41: -65 | L41: 13.34394 | M41: 12161 | N41: 10.546991 | O41: 9612 | P41: 361490_703_0 | U41: -25 | V41: -24 | W41: 98.889559 | X41: 90123.001 | Y41: 2.218688 | Z41: 2022.001 | AA41: 361490_703_0 | AF41: 7 | AG41: 8 | AH41: 84.83838 | AI41: 22388 | AJ41: 3.884194 | AK41: 1025 | AL41: 361490_702_0
J42: -65 | K42: -60 | L42: 2.79695 | M42: 2549 | N42: 1.673342 | O42: 1525 | P42: 361490_703_0 | U42: -24 | V42: -23 | W42: 96.670872 | X42: 88101 | Y42: 4.435179 | Z42: 4042 | AA42: 361490_703_0 | AF42: 8 | AG42: 9 | AH42: 80.954185 | AI42: 21363 | AJ42: 13.471522 | AK42: 3555 | AL42: 361490_702_0
J43: -60 | K43: -55 | L43: 1.123608 | M43: 1024 | N43: 1.123608 | O43: 1024 | P43: 361490_703_0 | U43: -23 | V43: -22 | W43: 92.235693 | X43: 84059 | Y43: 4.995885 | Z43: 4553 | AA43: 361490_703_0 | AF43: 9 | AG43: 10 | AH43: 67.482663 | AI43: 17808 | AJ43: 9.78059 | AK43: 2581 | AL43: 361490_702_0
J44: -55 | K44: -50 | L44: 0 | M44: 0 | N44: 0 | O44: 0 | P44: 361490_703_0 | U44: -22 | V44: -21 | W44: 87.239808 | X44: 79506 | Y44: 10.605146 | Z44: 9665 | AA44: 361490_703_0 | AF44: 10 | AG44: 11 | AH44: 57.702073 | AI44: 15227 | AJ44: 11.610898 | AK44: 3064 | AL44: 361490_702_0
J45: -50 | K45: -45 | L45: 0 | M45: 0 | N45: 0 | O45: 0 | P45: 361490_703_0 | U45: -21 | V45: -20 | W45: 76.634662 | X45: 69841 | Y45: 8.949361 | Z45: 8156 | AA45: 361490_703_0 | AF45: 11 | AG45: 12 | AH45: 46.091174 | AI45: 12163 | AJ45: 23.104324 | AK45: 6097 | AL45: 361490_702_0
J46: -45 | K46: -40 | L46: 0 | M46: 0 | N46: 0 | O46: 0 | P46: 361490_703_0 | U46: -20 | V46: -19 | W46: 67.685301 | X46: 61685 | Y46: 8.919734 | Z46: 8129 | AA46: 361490_703_0 | AF46: 12 | AG46: 13 | AH46: 22.986851 | AI46: 6066 | AJ46: 7.635757 | AK46: 2015 | AL46: 361490_702_0
J47: -40 | K47: -35 | L47: 0 | M47: 0 | N47: 0 | O47: 0 | P47: 361490_703_0 | U47: -19 | V47: -18 | W47: 58.765567 | X47: 53556 | Y47: 11.68596 | Z47: 10650 | AA47: 361490_703_0 | AF47: 13 | AG47: 14 | AH47: 15.351093 | AI47: 4051 | AJ47: 5.710713 | AK47: 1507 | AL47: 361490_702_0
J48: -35 | K48: ... | L48: 0 | M48: 0 | N48: 0 | O48: 0 | P48: 361490_703_0 | U48: -18 | V48: -17 | W48: 47.079607 | X48: 42906 | Y48: 12.628518 | Z48: 11509 | AA48: 361490_703_0 | AF48: 14 | AG48: 15 | AH48: 9.64038 | AI48: 2544 | AJ48: 5.771344 | AK48: 1523 | AL48: 361490_702_0
J49: ... | K49: -140 | L49: 100 | M49: 159643.001 | N49: 0 | O49: 0 | P49: 361490_704_0 | U49: -17 | V49: -16 | W49: 34.451089 | X49: 31397 | Y49: 6.6802 | Z49: 6088 | AA49: 361490_703_0 | AF49: 15 | AG49: 16 | AH49: 3.869036 | AI49: 1021 | AJ49: 1.95915 | AK49: 517 | AL49: 361490_702_0
J50: -140 | K50: -135 | L50: 100 | M50: 159643.001 | N50: 0 | O50: 0 | P50: 361490_704_0 | U50: -16 | V50: -15 | W50: 27.770889 | X50: 25309 | Y50: 7.248587 | Z50: 6606 | AA50: 361490_703_0 | AF50: 16 | AG50: 17 | AH50: 1.909887 | AI50: 504 | AJ50: 1.909887 | AK50: 504 | AL50: 361490_702_0
J51: -135 | K51: -130 | L51: 100 | M51: 159643.001 | N51: 0 | O51: 0 | P51: 361490_704_0 | U51: -15 | V51: -14 | W51: 20.522302 | X51: 18703 | Y51: 3.297306 | Z51: 3005 | AA51: 361490_703_0 | AF51: 17 | AG51: 18 | AH51: 0 | AI51: 0 | AJ51: 0 | AK51: 0 | AL51: 361490_702_0
J52: -130 | K52: -125 | L52: 100 | M52: 159643.001 | N52: 0 | O52: 0 | P52: 361490_704_0 | U52: -14 | V52: -13 | W52: 17.224996 | X52: 15698 | Y52: 2.781588 | Z52: 2535 | AA52: 361490_703_0 | AF52: 18 | AG52: 19 | AH52: 0 | AI52: 0 | AJ52: 0 | AK52: 0 | AL52: 361490_702_0
J53: -125 | K53: -120 | L53: 100 | M53: 159643.001 | N53: 0 | O53: 0 | P53: 361490_704_0 | U53: -13 | V53: -12 | W53: 14.443408 | X53: 13163 | Y53: 3.85911 | Z53: 3517 | AA53: 361490_703_0 | AF53: 19 | AG53: 20 | AH53: 0 | AI53: 0 | AJ53: 0 | AK53: 0 | AL53: 361490_702_0
J54: -120 | K54: -115 | L54: 100 | M54: 159643.001 | N54: 0 | O54: 0 | P54: 361490_704_0 | U54: -12 | V54: -11 | W54: 10.584298 | X54: 9646 | Y54: 8.915345 | Z54: 8125 | AA54: 361490_703_0 | AF54: 20 | AG54: 21 | AH54: 0 | AI54: 0 | AJ54: 0 | AK54: 0 | AL54: 361490_702_0
J55: -115 | K55: -110 | L55: 100 | M55: 159643.001 | N55: 0.375839 | O55: 600 | P55: 361490_704_0 | U55: -11 | V55: -10 | W55: 1.668953 | X55: 1521 | Y55: 1.668953 | Z55: 1521 | AA55: 361490_703_0 | AF55: 21 | AG55: 22 | AH55: 0 | AI55: 0 | AJ55: 0 | AK55: 0 | AL55: 361490_702_0
J56: -110 | K56: -105 | L56: 99.624161 | M56: 159043.001 | N56: 0 | O56: 0 | P56: 361490_704_0 | U56: -10 | V56: -9 | W56: 0 | X56: 0 | Y56: 0 | Z56: 0 | AA56: 361490_703_0 | AF56: 22 | AG56: 23 | AH56: 0 | AI56: 0 | AJ56: 0 | AK56: 0 | AL56: 361490_702_0
J57: -105 | K57: -100 | L57: 99.624161 | M57: 159043.001 | N57: 0.945234 | O57: 1509 | P57: 361490_704_0 | U57: -9 | V57: -8 | W57: 0 | X57: 0 | Y57: 0 | Z57: 0 | AA57: 361490_703_0 | AF57: 23 | AG57: 24 | AH57: 0 | AI57: 0 | AJ57: 0 | AK57: 0 | AL57: 361490_702_0
J58: -100 | K58: -95 | L58: 98.678927 | M58: 157534.001 | N58: 2.177985 | O58: 3477 | P58: 361490_704_0 | U58: -8 | V58: -7 | W58: 0 | X58: 0 | Y58: 0 | Z58: 0 | AA58: 361490_703_0 | AF58: 24 | AG58: 25 | AH58: 0 | AI58: 0 | AJ58: 0 | AK58: 0 | AL58: 361490_702_0
J59: -95 | K59: -90 | L59: 96.500943 | M59: 154057.001 | N59: 2.257537 | O59: 3604 | P59: 361490_704_0 | U59: -7 | V59: -6 | W59: 0 | X59: 0 | Y59: 0 | Z59: 0 | AA59: 361490_703_0 | AF59: 25 | AG59: 26 | AH59: 0 | AI59: 0 | AJ59: 0 | AK59: 0 | AL59: 361490_702_0
J60: -90 | K60: -85 | L60: 94.243406 | M60: 150453.001 | N60: 12.340034 | O60: 19700 | P60: 361490_704_0 | U60: -6 | V60: -5 | W60: 0 | X60: 0 | Y60: 0 | Z60: 0 | AA60: 361490_703_0 | AF60: 26 | AG60: 27 | AH60: 0 | AI60: 0 | AJ60: 0 | AK60: 0 | AL60: 361490_702_0
J61: -85 | K61: -80 | L61: 81.903372 | M61: 130753.001 | N61: 14.295021 | O61: 22821 | P61: 361490_704_0 | U61: -5 | V61: -4 | W61: 0 | X61: 0 | Y61: 0 | Z61: 0 | AA61: 361490_703_0 | AF61: 27 | AG61: 28 | AH61: 0 | AI61: 0 | AJ61: 0 | AK61: 0 | AL61: 361490_702_0
J62: -80 | K62: -75 | L62: 67.608351 | M62: 107932.001 | N62: 30.740464 | O62: 49075 | P62: 361490_704_0 | U62: -4 | V62: -3 | W62: 0 | X62: 0 | Y62: 0 | Z62: 0 | AA62: 361490_703_0 | AF62: 28 | AG62: 29 | AH62: 0 | AI62: 0 | AJ62: 0 | AK62: 0 | AL62: 361490_702_0
J63: -75 | K63: -70 | L63: 36.867887 | M63: 58857.001 | N63: 22.840338 | O63: 36463.001 | P63: 361490_704_0 | U63: -3 | V63: -2 | W63: 0 | X63: 0 | Y63: 0 | Z63: 0 | AA63: 361490_703_0 | AF63: 29 | AG63: 30 | AH63: 0 | AI63: 0 | AJ63: 0 | AK63: 0 | AL63: 361490_702_0
J64: -70 | K64: -65 | L64: 14.027549 | M64: 22394 | N64: 12.438378 | O64: 19857 | P64: 361490_704_0 | U64: -2 | V64: -1 | W64: 0 | X64: 0 | Y64: 0 | Z64: 0 | AA64: 361490_703_0 | AF64: 30 | AG64: 31 | AH64: 0 | AI64: 0 | AJ64: 0 | AK64: 0 | AL64: 361490_702_0
J65: -65 | K65: -60 | L65: 1.589171 | M65: 2537 | N65: 1.589171 | O65: 2537 | P65: 361490_704_0 | U65: -1 | V65: 0 | W65: 0 | X65: 0 | Y65: 0 | Z65: 0 | AA65: 361490_703_0 | AF65: 31 | AG65: 32 | AH65: 0 | AI65: 0 | AJ65: 0 | AK65: 0 | AL65: 361490_702_0
J66: -60 | K66: -55 | L66: 0 | M66: 0 | N66: 0 | O66: 0 | P66: 361490_704_0 | U66: 0 | V66: ... | W66: 0 | X66: 0 | Y66: 0 | Z66: 0 | AA66: 361490_703_0 | AF66: 32 | AG66: 33 | AH66: 0 | AI66: 0 | AJ66: 0 | AK66: 0 | AL66: 361490_702_0
J67: -55 | K67: -50 | L67: 0 | M67: 0 | N67: 0 | O67: 0 | P67: 361490_704_0 | U67: ... | V67: -30 | W67: 100 | X67: 159643.001 | Y67: 0 | Z67: 0 | AA67: 361490_704_0 | AF67: 33 | AG67: 34 | AH67: 0 | AI67: 0 | AJ67: 0 | AK67: 0 | AL67: 361490_702_0
J68: -50 | K68: -45 | L68: 0 | M68: 0 | N68: 0 | O68: 0 | P68: 361490_704_0 | U68: -30 | V68: -29 | W68: 100 | X68: 159643.001 | Y68: 0 | Z68: 0 | AA68: 361490_704_0 | AF68: 34 | AG68: 35 | AH68: 0 | AI68: 0 | AJ68: 0 | AK68: 0 | AL68: 361490_702_0
J69: -45 | K69: -40 | L69: 0 | M69: 0 | N69: 0 | O69: 0 | P69: 361490_704_0 | U69: -29 | V69: -28 | W69: 100 | X69: 159643.001 | Y69: 0 | Z69: 0 | AA69: 361490_704_0 | AF69: 35 | AG69: 36 | AH69: 0 | AI69: 0 | AJ69: 0 | AK69: 0 | AL69: 361490_702_0
J70: -40 | K70: -35 | L70: 0 | M70: 0 | N70: 0 | O70: 0 | P70: 361490_704_0 | U70: -28 | V70: -27 | W70: 100 | X70: 159643.001 | Y70: 0.375839 | Z70: 600 | AA70: 361490_704_0 | AF70: 36 | AG70: 37 | AH70: 0 | AI70: 0 | AJ70: 0 | AK70: 0 | AL70: 361490_702_0
J71: -35 | K71: ... | L71: 0 | M71: 0 | N71: 0 | O71: 0 | P71: 361490_704_0 | U71: -27 | V71: -26 | W71: 99.624161 | X71: 159043.001 | Y71: 0 | Z71: 0 | AA71: 361490_704_0 | AF71: 37 | AG71: 38 | AH71: 0 | AI71: 0 | AJ71: 0 | AK71: 0 | AL71: 361490_702_0
J72: ... | K72: -140 | L72: 100 | M72: 18691 | N72: 0 | O72: 0 | P72: 361490_996_0 | U72: -26 | V72: -25 | W72: 99.624161 | X72: 159043.001 | Y72: 0 | Z72: 0 | AA72: 361490_704_0 | AF72: 38 | AG72: 39 | AH72: 0 | AI72: 0 | AJ72: 0 | AK72: 0 | AL72: 361490_702_0
J73: -140 | K73: -135 | L73: 100 | M73: 18691 | N73: 0 | O73: 0 | P73: 361490_996_0 | U73: -25 | V73: -24 | W73: 99.624161 | X73: 159043.001 | Y73: 0 | Z73: 0 | AA73: 361490_704_0 | AF73: 39 | AG73: 40 | AH73: 0 | AI73: 0 | AJ73: 0 | AK73: 0 | AL73: 361490_702_0
J74: -135 | K74: -130 | L74: 100 | M74: 18691 | N74: 0 | O74: 0 | P74: 361490_996_0 | U74: -24 | V74: -23 | W74: 99.624161 | X74: 159043.001 | Y74: 0.62765 | Z74: 1002 | AA74: 361490_704_0 | AF74: 40 | AG74: ... | AH74: 0 | AI74: 0 | AJ74: 0 | AK74: 0 | AL74: 361490_702_0
J75: -130 | K75: -125 | L75: 100 | M75: 18691 | N75: 0 | O75: 0 | P75: 361490_996_0 | U75: -23 | V75: -22 | W75: 98.996511 | X75: 158041.001 | Y75: 1.899864 | Z75: 3033 | AA75: 361490_704_0 | AF75: ... | AG75: -30 | AH75: 100 | AI75: 18242 | AJ75: 0 | AK75: 0 | AL75: 361490_703_0
J76: -125 | K76: -120 | L76: 100 | M76: 18691 | N76: 0 | O76: 0 | P76: 361490_996_0 | U76: -22 | V76: -21 | W76: 97.096647 | X76: 155008.001 | Y76: 4.430511 | Z76: 7073 | AA76: 361490_704_0 | AF76: -30 | AG76: -29 | AH76: 100 | AI76: 18242 | AJ76: 0 | AK76: 0 | AL76: 361490_703_0
J77: -120 | K77: -115 | L77: 100 | M77: 18691 | N77: 0 | O77: 0 | P77: 361490_996_0 | U77: -21 | V77: -20 | W77: 92.666136 | X77: 147935.001 | Y77: 3.490914 | Z77: 5573 | AA77: 361490_704_0 | AF77: -29 | AG77: -28 | AH77: 100 | AI77: 18242 | AJ77: 0 | AK77: 0 | AL77: 361490_703_0
J78: -115 | K78: -110 | L78: 100 | M78: 18691 | N78: 2.717886 | O78: 508 | P78: 361490_996_0 | U78: -20 | V78: -19 | W78: 89.175222 | X78: 142362.001 | Y78: 3.183979 | Z78: 5083 | AA78: 361490_704_0 | AF78: -28 | AG78: -27 | AH78: 100 | AI78: 18242 | AJ78: 0 | AK78: 0 | AL78: 361490_703_0
J79: -110 | K79: -105 | L79: 97.282114 | M79: 18183 | N79: 24.471671 | O79: 4574 | P79: 361490_996_0 | U79: -19 | V79: -18 | W79: 85.991243 | X79: 137279.001 | Y79: 2.863264 | Z79: 4571 | AA79: 361490_704_0 | AF79: -27 | AG79: -26 | AH79: 100 | AI79: 18242 | AJ79: 0 | AK79: 0 | AL79: 361490_703_0
J80: -105 | K80: -100 | L80: 72.810444 | M80: 13609 | N80: 43.047456 | O80: 8046 | P80: 361490_996_0 | U80: -18 | V80: -17 | W80: 83.127979 | X80: 132708.001 | Y80: 2.210557 | Z80: 3529 | AA80: 361490_704_0 | AF80: -26 | AG80: -25 | AH80: 100 | AI80: 18242 | AJ80: 0 | AK80: 0 | AL80: 361490_703_0
J81: -100 | K81: -95 | L81: 29.762988 | M81: 5563 | N81: 18.993098 | O81: 3550 | P81: 361490_996_0 | U81: -17 | V81: -16 | W81: 80.917422 | X81: 129179.001 | Y81: 1.596688 | Z81: 2549 | AA81: 361490_704_0 | AF81: -25 | AG81: -24 | AH81: 100 | AI81: 18242 | AJ81: 0 | AK81: 0 | AL81: 361490_703_0
J82: -95 | K82: -90 | L82: 10.769889 | M82: 2013 | N82: 8.046653 | O82: 1504 | P82: 361490_996_0 | U82: -16 | V82: -15 | W82: 79.320735 | X82: 126630.001 | Y82: 0.633914 | Z82: 1012 | AA82: 361490_704_0 | AF82: -24 | AG82: -23 | AH82: 100 | AI82: 18242 | AJ82: 0 | AK82: 0 | AL82: 361490_703_0
J83: -90 | K83: -85 | L83: 2.723236 | M83: 509 | N83: 2.723236 | O83: 509 | P83: 361490_996_0 | U83: -15 | V83: -14 | W83: 78.68682 | X83: 125618.001 | Y83: 1.268455 | Z83: 2025 | AA83: 361490_704_0 | AF83: -23 | AG83: -22 | AH83: 100 | AI83: 18242 | AJ83: 0 | AK83: 0 | AL83: 361490_703_0
J84: -85 | K84: -80 | L84: 0 | M84: 0 | N84: 0 | O84: 0 | P84: 361490_996_0 | U84: -14 | V84: -13 | W84: 77.418365 | X84: 123593.001 | Y84: 1.261565 | Z84: 2014 | AA84: 361490_704_0 | AF84: -22 | AG84: -21 | AH84: 100 | AI84: 18242 | AJ84: 0 | AK84: 0 | AL84: 361490_703_0
J85: -80 | K85: -75 | L85: 0 | M85: 0 | N85: 0 | O85: 0 | P85: 361490_996_0 | U85: -13 | V85: -12 | W85: 76.1568 | X85: 121579.001 | Y85: 4.416103 | Z85: 7050 | AA85: 361490_704_0 | AF85: -21 | AG85: -20 | AH85: 100 | AI85: 18242 | AJ85: 0 | AK85: 0 | AL85: 361490_703_0
J86: -75 | K86: -70 | L86: 0 | M86: 0 | N86: 0 | O86: 0 | P86: 361490_996_0 | U86: -12 | V86: -11 | W86: 71.740697 | X86: 114529.001 | Y86: 9.191759 | Z86: 14674 | AA86: 361490_704_0 | AF86: -20 | AG86: -19 | AH86: 100 | AI86: 18242 | AJ86: 0 | AK86: 0 | AL86: 361490_703_0
J87: -70 | K87: -65 | L87: 0 | M87: 0 | N87: 0 | O87: 0 | P87: 361490_996_0 | U87: -11 | V87: -10 | W87: 62.548938 | X87: 99855.001 | Y87: 62.548938 | Z87: 99855.001 | AA87: 361490_704_0 | AF87: -19 | AG87: -18 | AH87: 100 | AI87: 18242 | AJ87: 0 | AK87: 0 | AL87: 361490_703_0
J88: -65 | K88: -60 | L88: 0 | M88: 0 | N88: 0 | O88: 0 | P88: 361490_996_0 | U88: -10 | V88: -9 | W88: 0 | X88: 0 | Y88: 0 | Z88: 0 | AA88: 361490_704_0 | AF88: -18 | AG88: -17 | AH88: 100 | AI88: 18242 | AJ88: 0 | AK88: 0 | AL88: 361490_703_0
J89: -60 | K89: -55 | L89: 0 | M89: 0 | N89: 0 | O89: 0 | P89: 361490_996_0 | U89: -9 | V89: -8 | W89: 0 | X89: 0 | Y89: 0 | Z89: 0 | AA89: 361490_704_0 | AF89: -17 | AG89: -16 | AH89: 100 | AI89: 18242 | AJ89: 0 | AK89: 0 | AL89: 361490_703_0
J90: -55 | K90: -50 | L90: 0 | M90: 0 | N90: 0 | O90: 0 | P90: 361490_996_0 | U90: -8 | V90: -7 | W90: 0 | X90: 0 | Y90: 0 | Z90: 0 | AA90: 361490_704_0 | AF90: -16 | AG90: -15 | AH90: 100 | AI90: 18242 | AJ90: 0 | AK90: 0 | AL90: 361490_703_0
J91: -50 | K91: -45 | L91: 0 | M91: 0 | N91: 0 | O91: 0 | P91: 361490_996_0 | U91: -7 | V91: -6 | W91: 0 | X91: 0 | Y91: 0 | Z91: 0 | AA91: 361490_704_0 | AF91: -15 | AG91: -14 | AH91: 100 | AI91: 18242 | AJ91: 0 | AK91: 0 | AL91: 361490_703_0
J92: -45 | K92: -40 | L92: 0 | M92: 0 | N92: 0 | O92: 0 | P92: 361490_996_0 | U92: -6 | V92: -5 | W92: 0 | X92: 0 | Y92: 0 | Z92: 0 | AA92: 361490_704_0 | AF92: -14 | AG92: -13 | AH92: 100 | AI92: 18242 | AJ92: 0 | AK92: 0 | AL92: 361490_703_0
J93: -40 | K93: -35 | L93: 0 | M93: 0 | N93: 0 | O93: 0 | P93: 361490_996_0 | U93: -5 | V93: -4 | W93: 0 | X93: 0 | Y93: 0 | Z93: 0 | AA93: 361490_704_0 | AF93: -13 | AG93: -12 | AH93: 100 | AI93: 18242 | AJ93: 0 | AK93: 0 | AL93: 361490_703_0
J94: -35 | K94: ... | L94: 0 | M94: 0 | N94: 0 | O94: 0 | P94: 361490_996_0 | U94: -4 | V94: -3 | W94: 0 | X94: 0 | Y94: 0 | Z94: 0 | AA94: 361490_704_0 | AF94: -12 | AG94: -11 | AH94: 100 | AI94: 18242 | AJ94: 0 | AK94: 0 | AL94: 361490_703_0
U95: -3 | V95: -2 | W95: 0 | X95: 0 | Y95: 0 | Z95: 0 | AA95: 361490_704_0 | AF95: -11 | AG95: -10 | AH95: 100 | AI95: 18242 | AJ95: 0 | AK95: 0 | AL95: 361490_703_0
U96: -2 | V96: -1 | W96: 0 | X96: 0 | Y96: 0 | Z96: 0 | AA96: 361490_704_0 | AF96: -10 | AG96: -9 | AH96: 100 | AI96: 18242 | AJ96: 0 | AK96: 0 | AL96: 361490_703_0
U97: -1 | V97: 0 | W97: 0 | X97: 0 | Y97: 0 | Z97: 0 | AA97: 361490_704_0 | AF97: -9 | AG97: -8 | AH97: 100 | AI97: 18242 | AJ97: 0 | AK97: 0 | AL97: 361490_703_0
U98: 0 | V98: ... | W98: 0 | X98: 0 | Y98: 0 | Z98: 0 | AA98: 361490_704_0 | AF98: -8 | AG98: -7 | AH98: 100 | AI98: 18242 | AJ98: 0 | AK98: 0 | AL98: 361490_703_0
U99: ... | V99: -30 | W99: 100 | X99: 18691 | Y99: 0 | Z99: 0 | AA99: 361490_996_0 | AF99: -7 | AG99: -6 | AH99: 100 | AI99: 18242 | AJ99: 0 | AK99: 0 | AL99: 361490_703_0
U100: -30 | V100: -29 | W100: 100 | X100: 18691 | Y100: 0 | Z100: 0 | AA100: 361490_996_0 | AF100: -6 | AG100: -5 | AH100: 100 | AI100: 18242 | AJ100: 0 | AK100: 0 | AL100: 361490_703_0
U101: -29 | V101: -28 | W101: 100 | X101: 18691 | Y101: 0 | Z101: 0 | AA101: 361490_996_0 | AF101: -5 | AG101: -4 | AH101: 100 | AI101: 18242 | AJ101: 0 | AK101: 0 | AL101: 361490_703_0
U102: -28 | V102: -27 | W102: 100 | X102: 18691 | Y102: 0 | Z102: 0 | AA102: 361490_996_0 | AF102: -4 | AG102: -3 | AH102: 100 | AI102: 18242 | AJ102: 0 | AK102: 0 | AL102: 361490_703_0
U103: -27 | V103: -26 | W103: 100 | X103: 18691 | Y103: 0 | Z103: 0 | AA103: 361490_996_0 | AF103: -3 | AG103: -2 | AH103: 100 | AI103: 18242 | AJ103: 2.702555 | AK103: 493 | AL103: 361490_703_0
U104: -26 | V104: -25 | W104: 100 | X104: 18691 | Y104: 0 | Z104: 0 | AA104: 361490_996_0 | AF104: -2 | AG104: -1 | AH104: 97.297445 | AI104: 17749 | AJ104: 0 | AK104: 0 | AL104: 361490_703_0
U105: -25 | V105: -24 | W105: 100 | X105: 18691 | Y105: 0 | Z105: 0 | AA105: 361490_996_0 | AF105: -1 | AG105: 0 | AH105: 97.297445 | AI105: 17749 | AJ105: 0 | AK105: 0 | AL105: 361490_703_0
U106: -24 | V106: -23 | W106: 100 | X106: 18691 | Y106: 5.435771 | Z106: 1016 | AA106: 361490_996_0 | AF106: 0 | AG106: 1 | AH106: 97.297445 | AI106: 17749 | AJ106: 11.100756 | AK106: 2025 | AL106: 361490_703_0
U107: -23 | V107: -22 | W107: 94.564229 | X107: 17675 | Y107: 8.175058 | Z107: 1528 | AA107: 361490_996_0 | AF107: 1 | AG107: 2 | AH107: 86.196689 | AI107: 15724 | AJ107: 11.276176 | AK107: 2057 | AL107: 361490_703_0
U108: -22 | V108: -21 | W108: 86.389171 | X108: 16147 | Y108: 13.450324 | Z108: 2514 | AA108: 361490_996_0 | AF108: 2 | AG108: 3 | AH108: 74.920513 | AI108: 13667 | AJ108: 2.751891 | AK108: 502 | AL108: 361490_703_0
U109: -21 | V109: -20 | W109: 72.938848 | X109: 13633 | Y109: 24.204162 | Z109: 4524 | AA109: 361490_996_0 | AF109: 3 | AG109: 4 | AH109: 72.168622 | AI109: 13165 | AJ109: 13.97873 | AK109: 2550 | AL109: 361490_703_0
U110: -20 | V110: -19 | W110: 48.734685 | X110: 9109 | Y110: 18.768391 | Z110: 3508 | AA110: 361490_996_0 | AF110: 4 | AG110: 5 | AH110: 58.189891 | AI110: 10615 | AJ110: 8.189891 | AK110: 1494 | AL110: 361490_703_0
U111: -19 | V111: -18 | W111: 29.966294 | X111: 5601 | Y111: 8.303462 | Z111: 1552 | AA111: 361490_996_0 | AF111: 5 | AG111: 6 | AH111: 50 | AI111: 9121 | AJ111: 2.801228 | AK111: 511 | AL111: 361490_703_0
U112: -18 | V112: -17 | W112: 21.662832 | X112: 4049 | Y112: 16.071906 | Z112: 3004 | AA112: 361490_996_0 | AF112: 6 | AG112: 7 | AH112: 47.198772 | AI112: 8610 | AJ112: 22.01513 | AK112: 4016 | AL112: 361490_703_0
U113: -17 | V113: -16 | W113: 5.590926 | X113: 1045 | Y113: 0 | Z113: 0 | AA113: 361490_996_0 | AF113: 7 | AG113: 8 | AH113: 25.183642 | AI113: 4594 | AJ113: 0 | AK113: 0 | AL113: 361490_703_0
U114: -16 | V114: -15 | W114: 5.590926 | X114: 1045 | Y114: 2.707185 | Z114: 506 | AA114: 361490_996_0 | AF114: 8 | AG114: 9 | AH114: 25.183642 | AI114: 4594 | AJ114: 19.564741 | AK114: 3569 | AL114: 361490_703_0
U115: -15 | V115: -14 | W115: 2.883741 | X115: 539 | Y115: 2.883741 | Z115: 539 | AA115: 361490_996_0 | AF115: 9 | AG115: 10 | AH115: 5.618901 | AI115: 1025 | AJ115: 5.618901 | AK115: 1025 | AL115: 361490_703_0
U116: -14 | V116: -13 | W116: 0 | X116: 0 | Y116: 0 | Z116: 0 | AA116: 361490_996_0 | AF116: 10 | AG116: 11 | AH116: 0 | AI116: 0 | AJ116: 0 | AK116: 0 | AL116: 361490_703_0
U117: -13 | V117: -12 | W117: 0 | X117: 0 | Y117: 0 | Z117: 0 | AA117: 361490_996_0 | AF117: 11 | AG117: 12 | AH117: 0 | AI117: 0 | AJ117: 0 | AK117: 0 | AL117: 361490_703_0
U118: -12 | V118: -11 | W118: 0 | X118: 0 | Y118: 0 | Z118: 0 | AA118: 361490_996_0 | AF118: 12 | AG118: 13 | AH118: 0 | AI118: 0 | AJ118: 0 | AK118: 0 | AL118: 361490_703_0
U119: -11 | V119: -10 | W119: 0 | X119: 0 | Y119: 0 | Z119: 0 | AA119: 361490_996_0 | AF119: 13 | AG119: 14 | AH119: 0 | AI119: 0 | AJ119: 0 | AK119: 0 | AL119: 361490_703_0
U120: -10 | V120: -9 | W120: 0 | X120: 0 | Y120: 0 | Z120: 0 | AA120: 361490_996_0 | AF120: 14 | AG120: 15 | AH120: 0 | AI120: 0 | AJ120: 0 | AK120: 0 | AL120: 361490_703_0
U121: -9 | V121: -8 | W121: 0 | X121: 0 | Y121: 0 | Z121: 0 | AA121: 361490_996_0 | AF121: 15 | AG121: 16 | AH121: 0 | AI121: 0 | AJ121: 0 | AK121: 0 | AL121: 361490_703_0
U122: -8 | V122: -7 | W122: 0 | X122: 0 | Y122: 0 | Z122: 0 | AA122: 361490_996_0 | AF122: 16 | AG122: 17 | AH122: 0 | AI122: 0 | AJ122: 0 | AK122: 0 | AL122: 361490_703_0
U123: -7 | V123: -6 | W123: 0 | X123: 0 | Y123: 0 | Z123: 0 | AA123: 361490_996_0 | AF123: 17 | AG123: 18 | AH123: 0 | AI123: 0 | AJ123: 0 | AK123: 0 | AL123: 361490_703_0
U124: -6 | V124: -5 | W124: 0 | X124: 0 | Y124: 0 | Z124: 0 | AA124: 361490_996_0 | AF124: 18 | AG124: 19 | AH124: 0 | AI124: 0 | AJ124: 0 | AK124: 0 | AL124: 361490_703_0
U125: -5 | V125: -4 | W125: 0 | X125: 0 | Y125: 0 | Z125: 0 | AA125: 361490_996_0 | AF125: 19 | AG125: 20 | AH125: 0 | AI125: 0 | AJ125: 0 | AK125: 0 | AL125: 361490_703_0
U126: -4 | V126: -3 | W126: 0 | X126: 0 | Y126: 0 | Z126: 0 | AA126: 361490_996_0 | AF126: 20 | AG126: 21 | AH126: 0 | AI126: 0 | AJ126: 0 | AK126: 0 | AL126: 361490_703_0
U127: -3 | V127: -2 | W127: 0 | X127: 0 | Y127: 0 | Z127: 0 | AA127: 361490_996_0 | AF127: 21 | AG127: 22 | AH127: 0 | AI127: 0 | AJ127: 0 | AK127: 0 | AL127: 361490_703_0
U128: -2 | V128: -1 | W128: 0 | X128: 0 | Y128: 0 | Z128: 0 | AA128: 361490_996_0 | AF128: 22 | AG128: 23 | AH128: 0 | AI128: 0 | AJ128: 0 | AK128: 0 | AL128: 361490_703_0
U129: -1 | V129: 0 | W129: 0 | X129: 0 | Y129: 0 | Z129: 0 | AA129: 361490_996_0 | AF129: 23 | AG129: 24 | AH129: 0 | AI129: 0 | AJ129: 0 | AK129: 0 | AL129: 361490_703_0
U130: 0 | V130: ... | W130: 0 | X130: 0 | Y130: 0 | Z130: 0 | AA130: 361490_996_0 | AF130: 24 | AG130: 25 | AH130: 0 | AI130: 0 | AJ130: 0 | AK130: 0 | AL130: 361490_703_0
AF131: 25 | AG131: 26 | AH131: 0 | AI131: 0 | AJ131: 0 | AK131: 0 | AL131: 361490_703_0
AF132: 26 | AG132: 27 | AH132: 0 | AI132: 0 | AJ132: 0 | AK132: 0 | AL132: 361490_703_0
AF133: 27 | AG133: 28 | AH133: 0 | AI133: 0 | AJ133: 0 | AK133: 0 | AL133: 361490_703_0
AF134: 28 | AG134: 29 | AH134: 0 | AI134: 0 | AJ134: 0 | AK134: 0 | AL134: 361490_703_0
AF135: 29 | AG135: 30 | AH135: 0 | AI135: 0 | AJ135: 0 | AK135: 0 | AL135: 361490_703_0
AF136: 30 | AG136: 31 | AH136: 0 | AI136: 0 | AJ136: 0 | AK136: 0 | AL136: 361490_703_0
AF137: 31 | AG137: 32 | AH137: 0 | AI137: 0 | AJ137: 0 | AK137: 0 | AL137: 361490_703_0
AF138: 32 | AG138: 33 | AH138: 0 | AI138: 0 | AJ138: 0 | AK138: 0 | AL138: 361490_703_0
AF139: 33 | AG139: 34 | AH139: 0 | AI139: 0 | AJ139: 0 | AK139: 0 | AL139: 361490_703_0
AF140: 34 | AG140: 35 | AH140: 0 | AI140: 0 | AJ140: 0 | AK140: 0 | AL140: 361490_703_0
AF141: 35 | AG141: 36 | AH141: 0 | AI141: 0 | AJ141: 0 | AK141: 0 | AL141: 361490_703_0
AF142: 36 | AG142: 37 | AH142: 0 | AI142: 0 | AJ142: 0 | AK142: 0 | AL142: 361490_703_0
AF143: 37 | AG143: 38 | AH143: 0 | AI143: 0 | AJ143: 0 | AK143: 0 | AL143: 361490_703_0
AF144: 38 | AG144: 39 | AH144: 0 | AI144: 0 | AJ144: 0 | AK144: 0 | AL144: 361490_703_0
AF145: 39 | AG145: 40 | AH145: 0 | AI145: 0 | AJ145: 0 | AK145: 0 | AL145: 361490_703_0
AF146: 40 | AG146: ... | AH146: 0 | AI146: 0 | AJ146: 0 | AK146: 0 | AL146: 361490_703_0
AF147: ... | AG147: -30 | AH147: 100 | AI147: 121565.001 | AJ147: 0 | AK147: 0 | AL147: 361490_704_0
AF148: -30 | AG148: -29 | AH148: 100 | AI148: 121565.001 | AJ148: 0 | AK148: 0 | AL148: 361490_704_0
AF149: -29 | AG149: -28 | AH149: 100 | AI149: 121565.001 | AJ149: 0 | AK149: 0 | AL149: 361490_704_0
AF150: -28 | AG150: -27 | AH150: 100 | AI150: 121565.001 | AJ150: 0 | AK150: 0 | AL150: 361490_704_0
AF151: -27 | AG151: -26 | AH151: 100 | AI151: 121565.001 | AJ151: 0 | AK151: 0 | AL151: 361490_704_0
AF152: -26 | AG152: -25 | AH152: 100 | AI152: 121565.001 | AJ152: 0 | AK152: 0 | AL152: 361490_704_0
AF153: -25 | AG153: -24 | AH153: 100 | AI153: 121565.001 | AJ153: 0 | AK153: 0 | AL153: 361490_704_0
AF154: -24 | AG154: -23 | AH154: 100 | AI154: 121565.001 | AJ154: 0 | AK154: 0 | AL154: 361490_704_0
AF155: -23 | AG155: -22 | AH155: 100 | AI155: 121565.001 | AJ155: 0 | AK155: 0 | AL155: 361490_704_0
AF156: -22 | AG156: -21 | AH156: 100 | AI156: 121565.001 | AJ156: 0 | AK156: 0 | AL156: 361490_704_0
AF157: -21 | AG157: -20 | AH157: 100 | AI157: 121565.001 | AJ157: 0 | AK157: 0 | AL157: 361490_704_0
AF158: -20 | AG158: -19 | AH158: 100 | AI158: 121565.001 | AJ158: 0 | AK158: 0 | AL158: 361490_704_0
AF159: -19 | AG159: -18 | AH159: 100 | AI159: 121565.001 | AJ159: 0 | AK159: 0 | AL159: 361490_704_0
AF160: -18 | AG160: -17 | AH160: 100 | AI160: 121565.001 | AJ160: 0 | AK160: 0 | AL160: 361490_704_0
AF161: -17 | AG161: -16 | AH161: 100 | AI161: 121565.001 | AJ161: 0 | AK161: 0 | AL161: 361490_704_0
AF162: -16 | AG162: -15 | AH162: 100 | AI162: 121565.001 | AJ162: 0 | AK162: 0 | AL162: 361490_704_0
AF163: -15 | AG163: -14 | AH163: 100 | AI163: 121565.001 | AJ163: 0 | AK163: 0 | AL163: 361490_704_0
AF164: -14 | AG164: -13 | AH164: 100 | AI164: 121565.001 | AJ164: 0 | AK164: 0 | AL164: 361490_704_0
AF165: -13 | AG165: -12 | AH165: 100 | AI165: 121565.001 | AJ165: 0 | AK165: 0 | AL165: 361490_704_0
AF166: -12 | AG166: -11 | AH166: 100 | AI166: 121565.001 | AJ166: 0 | AK166: 0 | AL166: 361490_704_0
AF167: -11 | AG167: -10 | AH167: 100 | AI167: 121565.001 | AJ167: 0 | AK167: 0 | AL167: 361490_704_0
AF168: -10 | AG168: -9 | AH168: 100 | AI168: 121565.001 | AJ168: 0 | AK168: 0 | AL168: 361490_704_0
AF169: -9 | AG169: -8 | AH169: 100 | AI169: 121565.001 | AJ169: 0 | AK169: 0 | AL169: 361490_704_0
AF170: -8 | AG170: -7 | AH170: 100 | AI170: 121565.001 | AJ170: 0 | AK170: 0 | AL170: 361490_704_0
AF171: -7 | AG171: -6 | AH171: 100 | AI171: 121565.001 | AJ171: 0 | AK171: 0 | AL171: 361490_704_0
AF172: -6 | AG172: -5 | AH172: 100 | AI172: 121565.001 | AJ172: 0 | AK172: 0 | AL172: 361490_704_0
AF173: -5 | AG173: -4 | AH173: 100 | AI173: 121565.001 | AJ173: 0 | AK173: 0 | AL173: 361490_704_0
AF174: -4 | AG174: -3 | AH174: 100 | AI174: 121565.001 | AJ174: 0 | AK174: 0 | AL174: 361490_704_0
AF175: -3 | AG175: -2 | AH175: 100 | AI175: 121565.001 | AJ175: 0 | AK175: 0 | AL175: 361490_704_0
AF176: -2 | AG176: -1 | AH176: 100 | AI176: 121565.001 | AJ176: 0 | AK176: 0 | AL176: 361490_704_0
AF177: -1 | AG177: 0 | AH177: 100 | AI177: 121565.001 | AJ177: 0 | AK177: 0 | AL177: 361490_704_0
AF178: 0 | AG178: 1 | AH178: 100 | AI178: 121565.001 | AJ178: 0.412948 | AK178: 502 | AL178: 361490_704_0
AF179: 1 | AG179: 2 | AH179: 99.587052 | AI179: 121063.001 | AJ179: 1.228972 | AK179: 1494 | AL179: 361490_704_0
AF180: 2 | AG180: 3 | AH180: 98.35808 | AI180: 119569.001 | AJ180: 0.406367 | AK180: 494 | AL180: 361490_704_0
AF181: 3 | AG181: 4 | AH181: 97.951713 | AI181: 119075.001 | AJ181: 2.080369 | AK181: 2529 | AL181: 361490_704_0
AF182: 4 | AG182: 5 | AH182: 95.871345 | AI182: 116546.001 | AJ182: 1.25036 | AK182: 1520 | AL182: 361490_704_0
AF183: 5 | AG183: 6 | AH183: 94.620985 | AI183: 115026.001 | AJ183: 1.248715 | AK183: 1518 | AL183: 361490_704_0
AF184: 6 | AG184: 7 | AH184: 93.37227 | AI184: 113508.001 | AJ184: 1.229795 | AK184: 1495 | AL184: 361490_704_0
AF185: 7 | AG185: 8 | AH185: 92.142475 | AI185: 112013.001 | AJ185: 3.336487 | AK185: 4056 | AL185: 361490_704_0
AF186: 8 | AG186: 9 | AH186: 88.805989 | AI186: 107957.001 | AJ186: 4.165673 | AK186: 5064 | AL186: 361490_704_0
AF187: 9 | AG187: 10 | AH187: 84.640316 | AI187: 102893.001 | AJ187: 1.652614 | AK187: 2009 | AL187: 361490_704_0
AF188: 10 | AG188: 11 | AH188: 82.987702 | AI188: 100884.001 | AJ188: 5.003907 | AK188: 6083 | AL188: 361490_704_0
AF189: 11 | AG189: 12 | AH189: 77.983795 | AI189: 94801.001 | AJ189: 1.66084 | AK189: 2019 | AL189: 361490_704_0
AF190: 12 | AG190: 13 | AH190: 76.322955 | AI190: 92782.001 | AJ190: 2.107514 | AK190: 2562 | AL190: 361490_704_0
AF191: 13 | AG191: 14 | AH191: 74.215441 | AI191: 90220.001 | AJ191: 7.463497 | AK191: 9073 | AL191: 361490_704_0
AF192: 14 | AG192: 15 | AH192: 66.751944 | AI192: 81147.001 | AJ192: 7.937317 | AK192: 9649 | AL192: 361490_704_0
AF193: 15 | AG193: 16 | AH193: 58.814626 | AI193: 71498.001 | AJ193: 7.490644 | AK193: 9106.001 | AL193: 361490_704_0
AF194: 16 | AG194: 17 | AH194: 51.323983 | AI194: 62392 | AJ194: 9.135031 | AK194: 11105 | AL194: 361490_704_0
AF195: 17 | AG195: 18 | AH195: 42.188952 | AI195: 51287 | AJ195: 4.573685 | AK195: 5560 | AL195: 361490_704_0
AF196: 18 | AG196: 19 | AH196: 37.615267 | AI196: 45727 | AJ196: 6.219718 | AK196: 7561 | AL196: 361490_704_0
AF197: 19 | AG197: 20 | AH197: 31.395549 | AI197: 38166 | AJ197: 5.792786 | AK197: 7042 | AL197: 361490_704_0
AF198: 20 | AG198: 21 | AH198: 25.602764 | AI198: 31124 | AJ198: 6.280591 | AK198: 7635 | AL198: 361490_704_0
AF199: 21 | AG199: 22 | AH199: 19.322173 | AI199: 23489 | AJ199: 4.668284 | AK199: 5675 | AL199: 361490_704_0
AF200: 22 | AG200: 23 | AH200: 14.653889 | AI200: 17814 | AJ200: 2.095998 | AK200: 2548 | AL200: 361490_704_0
... 90 more rows

Sheet PCI-BI_raw_scanner (hidden)
A1: PCIs detected | B1: count | D1: PCI-BI | E1: count | G1: ARFCN-PCI-BI | H1: Avg SS-RSRP | J1: SS-RSRP distribution | R1: ARFCN-PCI-BI | S1: Avg SS-RSRQ | U1: SS-RSRQ distribution | AC1: ARFCN-PCI-BI | AD1: Avg SS-SINR | AF1: SS-SINR distribution | AN1: NR-ARFCN | AO1: count
J2: lower_bound | K2: upper_bound | L2: cumulation | M2: cumulation_sampled | N2: density | O2: density_sampled | P2: group | U2: lower_bound | V2: upper_bound | W2: cumulation | X2: cumulation_sampled | Y2: density | Z2: density_sampled | AA2: group | AF2: lower_bound | AG2: upper_bound | AH2: cumulation | AI2: cumulation_sampled | AJ2: density | AK2: density_sampled | AL2: group

Sheet AccRaw (hidden)
A1: 5G NR RACH Success | D1: 5G NR RACH Failed | G1: RACH Access delay | N1: Accessibity KPIs from state machine script - development version! | AC1: =COUNTA(N:N) -> 32 | AD1: Valid access times | AG1: 5G NR SN addition sessions KPI WB script DOES THIS NEED ADJUSTEMENT TOO! | AR1: =COUNTA(AG:AG) -> 28 | AS1: Valid SN delays
G2: lower_bound | H2: upper_bound | I2: cumulation | J2: cumulation_sampled | K2: density | L2: density_sampled | M2: group | N2: Start Time | O2: End Time | P2: time_interval | Q2: index | R2: text | S2: Event ID | T2: Message name | U2: Status | V2: RRC rel. cause | W2: nr-Config-r15 | X2: RRC msg | Y2: failureType-r15 | Z2: RRC rel. status | AA2: RACH result | AD2: =IF(AND(R2="NR attempt",R3="NR success",P2>0),P2,"") ->  | AE2: =IF(AND(R2="NR attempt",R3="NR success"),(N3-N2)*86400000,"") ->  | AG2: Start Time | AH2: End Time | AI2: time_interval | AJ2: index | AK2: text | AL2: Event ID | AM2: Message name | AN2: nr-Config-r15 | AO2: RRC msg | AP2: failureType-r15 | AQ2: RACH result | AR2: =COLUMN(AR1) -> 44 | AS2: SN addition delay (ms) | AU2: SN session duration (s)
A3: 6 | D3: 0 | G3: ... | H3: 0 | I3: 100 | J3: 6 | K3: 0 | L3: 0 | N3: 45743.49555 | O3: 45743.49555 | P3: 306 | Q3: 0 | R3: NR completed | S3: RRCSM | T3: RRCConnectionReconfiguration | U3: Status | V3: RRC rel. cause | W3: nr-Config-r15 | X3: MeasurementReport | Y3: failureType-r15 | Z3: RRC rel. status | AA3: RACH result | AB3: rat-Type | AG3: 45743.49555 | AH3: 45743.49555 | AI3: 343 | AJ3: 0 | AK3: SN release | AL3: RRCSM | AM3: RRCConnectionReconfiguration | AN3: FALSE | AO3: RRCConnectionReconfiguration | AS3: =IF(AND(AK2="SN addition request",AK3="SN addition success"),IFERROR(86400000*(AG3-AG2),""),"") ->  | AU3: =IF(AK3="SN addition success",IFERROR(86400*(AG4-AG3),""),"") -> 
G4: 0 | H4: 5 | I4: 100 | J4: 6 | K4: 0 | L4: 0 | N4: 45743.49555 | O4: 45743.49555 | P4: 116 | Q4: 0 | R4: NR attempt | X4: MeasurementReport | AD4: 116 | AE4: 115.9996726 | AG4: 45743.49555 | AH4: 45743.49555 | AI4: 79 | AJ4: 0 | AK4: SN addition request | AN4: FALSE | AO4: RRCConnectionReconfiguration
G5: 5 | H5: 10 | I5: 100 | J5: 6 | K5: 0 | L5: 0 | N5: 45743.49555 | O5: 45743.49557 | P5: 1000 | Q5: 64 | R5: NR success | S5: RRCSM | T5: RRCConnectionReconfiguration | AG5: 45743.49555 | AH5: 45743.49557 | AI5: 1000 | AJ5: 64 | AK5: SN addition success | AL5: RRCSM | AM5: RRCConnectionReconfiguration | AS5: 79.00027558 | AU5: 3.066000016
G6: 10 | H6: 15 | I6: 100 | J6: 6 | K6: 0 | L6: 0 | N6: 45743.49559 | O6: 45743.49559 | P6: 398 | Q6: 1 | R6: NR completed | S6: RRCSM | T6: RRCConnectionReconfiguration | X6: MeasurementReport | AG6: 45743.49559 | AH6: 45743.49559 | AI6: 440 | AJ6: 1 | AK6: SN release | AL6: RRCSM | AM6: RRCConnectionReconfiguration | AN6: FALSE | AO6: RRCConnectionReconfiguration
G7: 15 | H7: 20 | I7: 100 | J7: 6 | K7: 33.333333 | L7: 2 | N7: 45743.49559 | O7: 45743.4956 | P7: 126 | Q7: 1 | R7: NR attempt | X7: MeasurementReport | AD7: 126 | AE7: 126.0001212 | AG7: 45743.49559 | AH7: 45743.4956 | AI7: 84 | AJ7: 1 | AK7: SN addition request | AN7: FALSE | AO7: RRCConnectionReconfiguration
G8: 20 | H8: 25 | I8: 66.666667 | J8: 4 | K8: 50 | L8: 3 | N8: 45743.4956 | O8: 45743.49561 | P8: 1000 | Q8: 66 | R8: NR success | S8: RRD | U8: Normal release | V8: Other | AG8: 45743.4956 | AH8: 45743.49561 | AI8: 1000 | AJ8: 66 | AK8: SN addition success | AL8: RRD | AS8: 83.99987128 | AU8: 14.73799967
G9: 25 | H9: 30 | I9: 16.666667 | J9: 1 | K9: 16.666667 | L9: 1 | N9: 45743.49577 | O9: 45743.49577 | P9: 356 | Q9: 2 | R9: NR completed | S9: RRCSM | T9: RRCConnectionReconfiguration | X9: MeasurementReport | AG9: 45743.49577 | AH9: 45743.49577 | AI9: 394 | AJ9: 2 | AK9: SN release | AL9: RRCSM | AM9: RRCConnectionReconfiguration | AN9: FALSE | AO9: RRCConnectionReconfiguration
G10: 30 | H10: 35 | I10: 0 | J10: 0 | K10: 0 | L10: 0 | N10: 45743.49577 | O10: 45743.49577 | P10: 121 | Q10: 2 | R10: NR attempt | S10: RRCSM | T10: RRCConnectionReconfiguration | X10: MeasurementReport | AD10: 121 | AE10: 120.9998969 | AG10: 45743.49577 | AH10: 45743.49577 | AI10: 83 | AJ10: 2 | AK10: SN addition request | AN10: FALSE | AO10: RRCConnectionReconfiguration
G11: 35 | H11: 40 | I11: 0 | J11: 0 | K11: 0 | L11: 0 | N11: 45743.49577 | O11: 45743.49578 | P11: 1000 | Q11: 80 | R11: NR success | W11: FALSE | X11: RRCConnectionReconfiguration | AG11: 45743.49577 | AH11: 45743.49578 | AI11: 1000 | AJ11: 80 | AK11: SN addition success | AL11: RRCSM | AM11: RRCConnectionReconfiguration | AS11: 83.00032932 | AU11: 24.72599996
G12: 40 | H12: 45 | I12: 0 | J12: 0 | K12: 0 | L12: 0 | N12: 45743.49606 | O12: 45743.49606 | P12: 210 | Q12: 3 | R12: NR completed | S12: RRCSM | T12: RRCConnectionReconfiguration | AG12: 45743.49606 | AH12: 45743.49606 | AI12: 288 | AJ12: 3 | AK12: SN release | AL12: RRCSM | AM12: RRCConnectionReconfiguration | AN12: FALSE | AO12: RRCConnectionReconfiguration
G13: 45 | H13: 50 | I13: 0 | J13: 0 | K13: 0 | L13: 0 | N13: 45743.49606 | O13: 45743.49606 | P13: 164 | Q13: 3 | R13: NR attempt | S13: RRCSM | T13: RRCConnectionReconfiguration | X13: MeasurementReport | AD13: 164 | AE13: 163.9996888 | AG13: 45743.49606 | AH13: 45743.49606 | AI13: 86 | AJ13: 3 | AK13: SN addition request | AN13: FALSE | AO13: RRCConnectionReconfiguration
G14: 50 | H14: 55 | I14: 0 | J14: 0 | K14: 0 | L14: 0 | N14: 45743.49606 | O14: 45743.49607 | P14: 1000 | Q14: 102 | R14: NR success | X14: MeasurementReport | AG14: 45743.49606 | AH14: 45743.49607 | AI14: 1000 | AJ14: 102 | AK14: SN addition success | AL14: RRCSM | AM14: RRCConnectionReconfiguration | AS14: 85.99958383 | AU14: -1976347.911
G15: 55 | H15: 60 | I15: 0 | J15: 0 | K15: 0 | L15: 0 | N15: 45720.62161 | O15: 45720.62162 | P15: 1000 | Q15: 168 | R15: NR success | AG15: 45720.62166 | AH15: 45720.62167 | AI15: 86 | AJ15: 4 | AK15: SN addition request | AN15: FALSE | AO15: RRCConnectionReconfiguration
G16: 60 | H16: 65 | I16: 0 | J16: 0 | K16: 0 | L16: 0 | N16: 45720.62166 | O16: 45720.62166 | P16: 485 | Q16: 4 | R16: NR completed | S16: RRCSM | T16: RRCConnectionReconfiguration | AG16: 45720.62167 | AH16: 45720.62168 | AI16: 1000 | AJ16: 171 | AK16: SN addition success | AS16: 86.00021247 | AU16: 9.142999467
G17: 65 | H17: 70 | I17: 0 | J17: 0 | K17: 0 | L17: 0 | N17: 45720.62166 | O17: 45720.62167 | P17: 120 | Q17: 4 | R17: NR attempt | X17: MeasurementReport | AD17: 120 | AE17: 120.0003549 | AG17: 45720.62177 | AH17: 45720.62178 | AI17: 458 | AJ17: 5 | AK17: SN release | AL17: RRCSM | AM17: RRCConnectionReconfiguration
G18: 70 | H18: 75 | I18: 0 | J18: 0 | K18: 0 | L18: 0 | N18: 45720.62167 | O18: 45720.62168 | P18: 1000 | Q18: 171 | R18: NR success | AG18: 45720.62178 | AH18: 45720.62178 | AI18: 74 | AJ18: 5 | AK18: SN addition request | AN18: FALSE | AO18: RRCConnectionReconfiguration
G19: 75 | H19: 80 | I19: 0 | J19: 0 | K19: 0 | L19: 0 | N19: 45720.62177 | O19: 45720.62178 | P19: 416 | Q19: 5 | R19: NR completed | S19: RRCSM | T19: RRCConnectionReconfiguration | AG19: 45720.62178 | AH19: 45720.62179 | AI19: 1000 | AJ19: 179 | AK19: SN addition success | AS19: 74.00005125 | AU19: 129.3859998
G20: 80 | H20: 85 | I20: 0 | J20: 0 | K20: 0 | L20: 0 | N20: 45720.62178 | O20: 45720.62178 | P20: 116 | Q20: 5 | R20: NR attempt | X20: MeasurementReport | AD20: 116 | AE20: 115.9996726 | AG20: 45720.62328 | AH20: 45720.62328 | AI20: 461 | AJ20: 6 | AK20: SN release | AL20: RRCSM | AM20: RRCConnectionReconfiguration
G21: 85 | H21: 90 | I21: 0 | J21: 0 | K21: 0 | L21: 0 | N21: 45720.62178 | O21: 45720.62179 | P21: 1000 | Q21: 179 | R21: NR success | AG21: 45720.62328 | AH21: 45720.62328 | AI21: 71 | AJ21: 6 | AK21: SN addition request | AN21: FALSE | AO21: RRCConnectionReconfiguration
G22: 90 | H22: 95 | I22: 0 | J22: 0 | K22: 0 | L22: 0 | N22: 45720.62328 | O22: 45720.62328 | P22: 417 | Q22: 6 | R22: NR completed | S22: RRCSM | T22: RRCConnectionReconfiguration | AG22: 45720.62328 | AH22: 45720.62329 | AI22: 1000 | AJ22: 302 | AK22: SN addition success | AS22: 71.0001681 | AU22: 170.3849998
G23: 95 | H23: 100 | I23: 0 | J23: 0 | K23: 0 | L23: 0 | N23: 45720.62328 | O23: 45720.62328 | P23: 115 | Q23: 6 | R23: NR attempt | X23: MeasurementReport | AD23: 115 | AE23: 115.0001306 | AG23: 45720.62525 | AH23: 45720.62526 | AI23: 583 | AJ23: 7 | AK23: SN release | AL23: RRCSM | AM23: RRCConnectionReconfiguration
G24: 100 | H24: 105 | I24: 0 | J24: 0 | K24: 0 | L24: 0 | N24: 45720.62328 | O24: 45720.62329 | P24: 1000 | Q24: 302 | R24: NR success | AG24: 45720.62526 | AH24: 45720.62526 | AI24: 105 | AJ24: 7 | AK24: SN addition request | AN24: FALSE | AO24: RRCConnectionReconfiguration
G25: 105 | H25: 110 | I25: 0 | J25: 0 | K25: 0 | L25: 0 | N25: 45720.62525 | O25: 45720.62526 | P25: 233 | Q25: 7 | R25: NR completed | S25: RRCSM | T25: RRCConnectionReconfiguration | AG25: 45720.62526 | AH25: 45720.62527 | AI25: 1000 | AJ25: 466 | AK25: SN addition success | AS25: 105.0003106 | AU25: 32.19600006
G26: 110 | H26: 115 | I26: 0 | J26: 0 | K26: 0 | L26: 0 | N26: 45720.62526 | O26: 45720.62526 | P26: 205 | Q26: 1 | R26: NR attempt | X26: MeasurementReport | AG26: 45720.62563 | AH26: 45720.62564 | AI26: 328 | AJ26: 8 | AK26: SN release | AL26: RRCSM | AM26: RRCConnectionReconfiguration
G27: 115 | H27: 120 | I27: 0 | J27: 0 | K27: 0 | L27: 0 | N27: 45720.62526 | O27: 45720.62526 | P27: 145 | Q27: 1 | R27: NR aborted | S27: RRCSM | T27: RRCConnectionReconfiguration | AG27: 45720.62564 | AH27: 45720.62564 | AI27: 72 | AJ27: 8 | AK27: SN addition request | AN27: FALSE | AO27: RRCConnectionReconfiguration
G28: 120 | H28: 125 | I28: 0 | J28: 0 | K28: 0 | L28: 0 | N28: 45720.62526 | O28: 45720.62526 | P28: 105 | Q28: 7 | R28: NR attempt | W28: FALSE | X28: RRCConnectionReconfiguration | AD28: 105 | AE28: 105.0003106 | AG28: 45720.62564 | AH28: 45720.62565 | AI28: 1000 | AJ28: 496 | AK28: SN addition success | AS28: 71.99971005 | AU28: -3950262055
G29: 125 | H29: 130 | I29: 0 | J29: 0 | K29: 0 | L29: 0 | N29: 45720.62526 | O29: 45720.62527 | P29: 1000 | Q29: 466 | R29: NR success
G30: 130 | H30: 135 | I30: 0 | J30: 0 | K30: 0 | L30: 0 | N30: 45720.62563 | O30: 45720.62564 | P30: 328 | Q30: 2 | R30: NR completed | S30: RRCSM | T30: RRCConnectionReconfiguration
G31: 135 | H31: 140 | I31: 0 | J31: 0 | K31: 0 | L31: 0 | N31: 45720.62564 | O31: 45720.62564 | P31: 72 | Q31: 8 | R31: NR attempt | W31: FALSE | X31: RRCConnectionReconfiguration | AD31: 72 | AE31: 71.99971005 | AT31: =IF(AND(AK31="SN addition request",AK32="SN addition success"),AI31,"") ->  | AU31: =IF(AK31="SN addition success",AI31/1000,"") -> 
G32: 140 | H32: 145 | I32: 0 | J32: 0 | K32: 0 | L32: 0 | N32: 45720.62564 | O32: 45720.62565 | P32: 1000 | Q32: 496 | R32: NR success
G33: 145 | H33: 150 | I33: 0 | J33: 0 | K33: 0 | L33: 0
G34: 150 | H34: 155 | I34: 0 | J34: 0 | K34: 0 | L34: 0
G35: 155 | H35: 160 | I35: 0 | J35: 0 | K35: 0 | L35: 0
G36: 160 | H36: 165 | I36: 0 | J36: 0 | K36: 0 | L36: 0
G37: 165 | H37: 170 | I37: 0 | J37: 0 | K37: 0 | L37: 0
G38: 170 | H38: 175 | I38: 0 | J38: 0 | K38: 0 | L38: 0
G39: 175 | H39: 180 | I39: 0 | J39: 0 | K39: 0 | L39: 0
G40: 180 | H40: 185 | I40: 0 | J40: 0 | K40: 0 | L40: 0
G41: 185 | H41: 190 | I41: 0 | J41: 0 | K41: 0 | L41: 0
G42: 190 | H42: 195 | I42: 0 | J42: 0 | K42: 0 | L42: 0
G43: 195 | H43: 200 | I43: 0 | J43: 0 | K43: 0 | L43: 0
G44: 200 | H44: 205 | I44: 0 | J44: 0 | K44: 0 | L44: 0
G45: 205 | H45: 210 | I45: 0 | J45: 0 | K45: 0 | L45: 0
G46: 210 | H46: 215 | I46: 0 | J46: 0 | K46: 0 | L46: 0
G47: 215 | H47: 220 | I47: 0 | J47: 0 | K47: 0 | L47: 0
G48: 220 | H48: 225 | I48: 0 | J48: 0 | K48: 0 | L48: 0
G49: 225 | H49: 230 | I49: 0 | J49: 0 | K49: 0 | L49: 0
G50: 230 | H50: 235 | I50: 0 | J50: 0 | K50: 0 | L50: 0
G51: 235 | H51: 240 | I51: 0 | J51: 0 | K51: 0 | L51: 0
G52: 240 | H52: 245 | I52: 0 | J52: 0 | K52: 0 | L52: 0
G53: 245 | H53: 250 | I53: 0 | J53: 0 | K53: 0 | L53: 0
G54: 250 | H54: 255 | I54: 0 | J54: 0 | K54: 0 | L54: 0
G55: 255 | H55: 260 | I55: 0 | J55: 0 | K55: 0 | L55: 0
G56: 260 | H56: 265 | I56: 0 | J56: 0 | K56: 0 | L56: 0
G57: 265 | H57: 270 | I57: 0 | J57: 0 | K57: 0 | L57: 0
G58: 270 | H58: 275 | I58: 0 | J58: 0 | K58: 0 | L58: 0
G59: 275 | H59: 280 | I59: 0 | J59: 0 | K59: 0 | L59: 0
G60: 280 | H60: 285 | I60: 0 | J60: 0 | K60: 0 | L60: 0
G61: 285 | H61: 290 | I61: 0 | J61: 0 | K61: 0 | L61: 0
G62: 290 | H62: 295 | I62: 0 | J62: 0 | K62: 0 | L62: 0
G63: 295 | H63: 300 | I63: 0 | J63: 0 | K63: 0 | L63: 0
G64: 300 | H64: 305 | I64: 0 | J64: 0 | K64: 0 | L64: 0
G65: 305 | H65: 310 | I65: 0 | J65: 0 | K65: 0 | L65: 0
G66: 310 | H66: 315 | I66: 0 | J66: 0 | K66: 0 | L66: 0
G67: 315 | H67: 320 | I67: 0 | J67: 0 | K67: 0 | L67: 0
G68: 320 | H68: 325 | I68: 0 | J68: 0 | K68: 0 | L68: 0
G69: 325 | H69: 330 | I69: 0 | J69: 0 | K69: 0 | L69: 0
G70: 330 | H70: 335 | I70: 0 | J70: 0 | K70: 0 | L70: 0
G71: 335 | H71: 340 | I71: 0 | J71: 0 | K71: 0 | L71: 0
G72: 340 | H72: 345 | I72: 0 | J72: 0 | K72: 0 | L72: 0
G73: 345 | H73: 350 | I73: 0 | J73: 0 | K73: 0 | L73: 0
G74: 350 | H74: 355 | I74: 0 | J74: 0 | K74: 0 | L74: 0
G75: 355 | H75: 360 | I75: 0 | J75: 0 | K75: 0 | L75: 0
G76: 360 | H76: 365 | I76: 0 | J76: 0 | K76: 0 | L76: 0
G77: 365 | H77: 370 | I77: 0 | J77: 0 | K77: 0 | L77: 0
G78: 370 | H78: 375 | I78: 0 | J78: 0 | K78: 0 | L78: 0
G79: 375 | H79: 380 | I79: 0 | J79: 0 | K79: 0 | L79: 0
G80: 380 | H80: 385 | I80: 0 | J80: 0 | K80: 0 | L80: 0
G81: 385 | H81: 390 | I81: 0 | J81: 0 | K81: 0 | L81: 0
G82: 390 | H82: 395 | I82: 0 | J82: 0 | K82: 0 | L82: 0
G83: 395 | H83: 400 | I83: 0 | J83: 0 | K83: 0 | L83: 0
G84: 400 | H84: 405 | I84: 0 | J84: 0 | K84: 0 | L84: 0
G85: 405 | H85: 410 | I85: 0 | J85: 0 | K85: 0 | L85: 0
G86: 410 | H86: 415 | I86: 0 | J86: 0 | K86: 0 | L86: 0
G87: 415 | H87: 420 | I87: 0 | J87: 0 | K87: 0 | L87: 0
G88: 420 | H88: 425 | I88: 0 | J88: 0 | K88: 0 | L88: 0
G89: 425 | H89: 430 | I89: 0 | J89: 0 | K89: 0 | L89: 0
G90: 430 | H90: 435 | I90: 0 | J90: 0 | K90: 0 | L90: 0
G91: 435 | H91: 440 | I91: 0 | J91: 0 | K91: 0 | L91: 0
G92: 440 | H92: 445 | I92: 0 | J92: 0 | K92: 0 | L92: 0
G93: 445 | H93: 450 | I93: 0 | J93: 0 | K93: 0 | L93: 0
G94: 450 | H94: 455 | I94: 0 | J94: 0 | K94: 0 | L94: 0
G95: 455 | H95: 460 | I95: 0 | J95: 0 | K95: 0 | L95: 0
G96: 460 | H96: 465 | I96: 0 | J96: 0 | K96: 0 | L96: 0
G97: 465 | H97: 470 | I97: 0 | J97: 0 | K97: 0 | L97: 0
G98: 470 | H98: 475 | I98: 0 | J98: 0 | K98: 0 | L98: 0
G99: 475 | H99: 480 | I99: 0 | J99: 0 | K99: 0 | L99: 0
G100: 480 | H100: 485 | I100: 0 | J100: 0 | K100: 0 | L100: 0
G101: 485 | H101: 490 | I101: 0 | J101: 0 | K101: 0 | L101: 0
G102: 490 | H102: 495 | I102: 0 | J102: 0 | K102: 0 | L102: 0
G103: 495 | H103: 500 | I103: 0 | J103: 0 | K103: 0 | L103: 0
G104: 500 | H104: 505 | I104: 0 | J104: 0 | K104: 0 | L104: 0
G105: 505 | H105: 510 | I105: 0 | J105: 0 | K105: 0 | L105: 0
G106: 510 | H106: 515 | I106: 0 | J106: 0 | K106: 0 | L106: 0
G107: 515 | H107: 520 | I107: 0 | J107: 0 | K107: 0 | L107: 0
G108: 520 | H108: 525 | I108: 0 | J108: 0 | K108: 0 | L108: 0
G109: 525 | H109: 530 | I109: 0 | J109: 0 | K109: 0 | L109: 0
G110: 530 | H110: 535 | I110: 0 | J110: 0 | K110: 0 | L110: 0
G111: 535 | H111: 540 | I111: 0 | J111: 0 | K111: 0 | L111: 0
G112: 540 | H112: 545 | I112: 0 | J112: 0 | K112: 0 | L112: 0
G113: 545 | H113: 550 | I113: 0 | J113: 0 | K113: 0 | L113: 0
G114: 550 | H114: 555 | I114: 0 | J114: 0 | K114: 0 | L114: 0
G115: 555 | H115: 560 | I115: 0 | J115: 0 | K115: 0 | L115: 0
G116: 560 | H116: 565 | I116: 0 | J116: 0 | K116: 0 | L116: 0
G117: 565 | H117: 570 | I117: 0 | J117: 0 | K117: 0 | L117: 0
G118: 570 | H118: 575 | I118: 0 | J118: 0 | K118: 0 | L118: 0
G119: 575 | H119: 580 | I119: 0 | J119: 0 | K119: 0 | L119: 0
G120: 580 | H120: 585 | I120: 0 | J120: 0 | K120: 0 | L120: 0
G121: 585 | H121: 590 | I121: 0 | J121: 0 | K121: 0 | L121: 0
G122: 590 | H122: 595 | I122: 0 | J122: 0 | K122: 0 | L122: 0
G123: 595 | H123: 600 | I123: 0 | J123: 0 | K123: 0 | L123: 0
G124: 600 | H124: 605 | I124: 0 | J124: 0 | K124: 0 | L124: 0
G125: 605 | H125: 610 | I125: 0 | J125: 0 | K125: 0 | L125: 0
G126: 610 | H126: 615 | I126: 0 | J126: 0 | K126: 0 | L126: 0
G127: 615 | H127: 620 | I127: 0 | J127: 0 | K127: 0 | L127: 0
G128: 620 | H128: 625 | I128: 0 | J128: 0 | K128: 0 | L128: 0
G129: 625 | H129: 630 | I129: 0 | J129: 0 | K129: 0 | L129: 0
G130: 630 | H130: 635 | I130: 0 | J130: 0 | K130: 0 | L130: 0
G131: 635 | H131: 640 | I131: 0 | J131: 0 | K131: 0 | L131: 0
G132: 640 | H132: 645 | I132: 0 | J132: 0 | K132: 0 | L132: 0
G133: 645 | H133: 650 | I133: 0 | J133: 0 | K133: 0 | L133: 0
G134: 650 | H134: 655 | I134: 0 | J134: 0 | K134: 0 | L134: 0
G135: 655 | H135: 660 | I135: 0 | J135: 0 | K135: 0 | L135: 0
G136: 660 | H136: 665 | I136: 0 | J136: 0 | K136: 0 | L136: 0
G137: 665 | H137: 670 | I137: 0 | J137: 0 | K137: 0 | L137: 0
G138: 670 | H138: 675 | I138: 0 | J138: 0 | K138: 0 | L138: 0
G139: 675 | H139: 680 | I139: 0 | J139: 0 | K139: 0 | L139: 0
G140: 680 | H140: 685 | I140: 0 | J140: 0 | K140: 0 | L140: 0
G141: 685 | H141: 690 | I141: 0 | J141: 0 | K141: 0 | L141: 0
G142: 690 | H142: 695 | I142: 0 | J142: 0 | K142: 0 | L142: 0
G143: 695 | H143: 700 | I143: 0 | J143: 0 | K143: 0 | L143: 0
G144: 700 | H144: 705 | I144: 0 | J144: 0 | K144: 0 | L144: 0
G145: 705 | H145: 710 | I145: 0 | J145: 0 | K145: 0 | L145: 0
G146: 710 | H146: 715 | I146: 0 | J146: 0 | K146: 0 | L146: 0
G147: 715 | H147: 720 | I147: 0 | J147: 0 | K147: 0 | L147: 0
G148: 720 | H148: 725 | I148: 0 | J148: 0 | K148: 0 | L148: 0
G149: 725 | H149: 730 | I149: 0 | J149: 0 | K149: 0 | L149: 0
G150: 730 | H150: 735 | I150: 0 | J150: 0 | K150: 0 | L150: 0
G151: 735 | H151: 740 | I151: 0 | J151: 0 | K151: 0 | L151: 0
G152: 740 | H152: 745 | I152: 0 | J152: 0 | K152: 0 | L152: 0
G153: 745 | H153: 750 | I153: 0 | J153: 0 | K153: 0 | L153: 0
G154: 750 | H154: 755 | I154: 0 | J154: 0 | K154: 0 | L154: 0
G155: 755 | H155: 760 | I155: 0 | J155: 0 | K155: 0 | L155: 0
G156: 760 | H156: 765 | I156: 0 | J156: 0 | K156: 0 | L156: 0
G157: 765 | H157: 770 | I157: 0 | J157: 0 | K157: 0 | L157: 0
G158: 770 | H158: 775 | I158: 0 | J158: 0 | K158: 0 | L158: 0
G159: 775 | H159: 780 | I159: 0 | J159: 0 | K159: 0 | L159: 0
G160: 780 | H160: 785 | I160: 0 | J160: 0 | K160: 0 | L160: 0
G161: 785 | H161: 790 | I161: 0 | J161: 0 | K161: 0 | L161: 0
G162: 790 | H162: 795 | I162: 0 | J162: 0 | K162: 0 | L162: 0
G163: 795 | H163: 800 | I163: 0 | J163: 0 | K163: 0 | L163: 0
G164: 800 | H164: 805 | I164: 0 | J164: 0 | K164: 0 | L164: 0
G165: 805 | H165: 810 | I165: 0 | J165: 0 | K165: 0 | L165: 0
G166: 810 | H166: 815 | I166: 0 | J166: 0 | K166: 0 | L166: 0
G167: 815 | H167: 820 | I167: 0 | J167: 0 | K167: 0 | L167: 0
G168: 820 | H168: 825 | I168: 0 | J168: 0 | K168: 0 | L168: 0
G169: 825 | H169: 830 | I169: 0 | J169: 0 | K169: 0 | L169: 0
G170: 830 | H170: 835 | I170: 0 | J170: 0 | K170: 0 | L170: 0
G171: 835 | H171: 840 | I171: 0 | J171: 0 | K171: 0 | L171: 0
G172: 840 | H172: 845 | I172: 0 | J172: 0 | K172: 0 | L172: 0
G173: 845 | H173: 850 | I173: 0 | J173: 0 | K173: 0 | L173: 0
G174: 850 | H174: 855 | I174: 0 | J174: 0 | K174: 0 | L174: 0
G175: 855 | H175: 860 | I175: 0 | J175: 0 | K175: 0 | L175: 0
G176: 860 | H176: 865 | I176: 0 | J176: 0 | K176: 0 | L176: 0
G177: 865 | H177: 870 | I177: 0 | J177: 0 | K177: 0 | L177: 0
G178: 870 | H178: 875 | I178: 0 | J178: 0 | K178: 0 | L178: 0
G179: 875 | H179: 880 | I179: 0 | J179: 0 | K179: 0 | L179: 0
G180: 880 | H180: 885 | I180: 0 | J180: 0 | K180: 0 | L180: 0
G181: 885 | H181: 890 | I181: 0 | J181: 0 | K181: 0 | L181: 0
G182: 890 | H182: 895 | I182: 0 | J182: 0 | K182: 0 | L182: 0
G183: 895 | H183: 900 | I183: 0 | J183: 0 | K183: 0 | L183: 0
G184: 900 | H184: 905 | I184: 0 | J184: 0 | K184: 0 | L184: 0
G185: 905 | H185: 910 | I185: 0 | J185: 0 | K185: 0 | L185: 0
G186: 910 | H186: 915 | I186: 0 | J186: 0 | K186: 0 | L186: 0
G187: 915 | H187: 920 | I187: 0 | J187: 0 | K187: 0 | L187: 0
G188: 920 | H188: 925 | I188: 0 | J188: 0 | K188: 0 | L188: 0
G189: 925 | H189: 930 | I189: 0 | J189: 0 | K189: 0 | L189: 0
G190: 930 | H190: 935 | I190: 0 | J190: 0 | K190: 0 | L190: 0
G191: 935 | H191: 940 | I191: 0 | J191: 0 | K191: 0 | L191: 0
G192: 940 | H192: 945 | I192: 0 | J192: 0 | K192: 0 | L192: 0
G193: 945 | H193: 950 | I193: 0 | J193: 0 | K193: 0 | L193: 0
G194: 950 | H194: 955 | I194: 0 | J194: 0 | K194: 0 | L194: 0
G195: 955 | H195: 960 | I195: 0 | J195: 0 | K195: 0 | L195: 0
G196: 960 | H196: 965 | I196: 0 | J196: 0 | K196: 0 | L196: 0
G197: 965 | H197: 970 | I197: 0 | J197: 0 | K197: 0 | L197: 0
G198: 970 | H198: 975 | I198: 0 | J198: 0 | K198: 0 | L198: 0
G199: 975 | H199: 980 | I199: 0 | J199: 0 | K199: 0 | L199: 0
G200: 980 | H200: 985 | I200: 0 | J200: 0 | K200: 0 | L200: 0
... 204 more rows

Sheet RetRaw (hidden)
A1: Retainability events etc. | J1: 5GNR HO events KPI WB | W1: Formulas here | X1: =COUNTA(J:J) -> 27 | AE1: NR secondary node change success | AR1: NR secondary node change failure
A2: End time | B2: Last drop time | C2: Last status | D2: Last RRC cause | E2: RRD at end of meas | F2: reserved | H2: RRC Drop in EN-DC | J2: Start Time | K2: time_interval | L2: index | M2: text | N2: Msg | O2: nr-Config-r15 | P2: RRC msg | Q2: physCellId | R2: PCI | T2: SCELLMOD | W2: HO preparation time | Z2: HO time (from command to complete) | AA2: E2E HO time (includes preparation) | AB2: Invalid HO sequence | AE2: Time | AF2: PCI | AG2: ARFCN | AH2: System | AI2: Band | AJ2: Band (MHz) | AK2: Packet technology | AL2: Cell type | AM2: Result | AN2: Lon. | AO2: Lat. | AP2: operation | AR2: Time | AS2: PCI | AT2: ARFCN | AU2: System | AV2: Band | AW2: Band (MHz) | AX2: Packet technology | AY2: Cell type | AZ2: Result | BA2: Lon. | BB2: Lat. | BC2: operation
E3: =IF(AND(A3<>"",A3=B3),COUNTIFS(AccRaw!R:R,"NR dropped",AccRaw!S:S,"RRD",AccRaw!N:N,B3),"") ->  | H3: 0 | J3: Start Time | K3: time_interval | L3: Index | M3: text | N3: Message name | O3: nr-Config-r15 | P3: RRC msg | Q3: physCellId | R3: PCI | S3: fullConfig-r9 | T3: Result | W3: =IF(AND(M3="NR PCI measured",M4="NR HO command"),K3,"") ->  | Z3: =IF(AND(M3="NR HO complete",M2="NR HO command"),K2,"") ->  | AA3: =IF(AND(M3="NR HO complete",M2="NR HO command",M1="NR PCI measured"),K1+K2,"") ->  | AB3: =IF(M3="NR HO complete",IF(AND(M2<>"NR HO command",M2<>"NR PCI measured"),"YES",""),"") ->  | AE3: 45743.49576 | AF3: 702 | AG3: 361490 | AH3: 1048576 | AI3: NR n3 FDD | AJ3: 1805 | AK3: 4194304 | AL3: SCG PSCell | AM3: Succeeded | AN3: 10.60346699 | AO3: 35.85462952 | AP3: Cell change
E4: =IF(AND(A4<>"",A4=B4),COUNTIFS(AccRaw!R:R,"NR dropped",AccRaw!S:S,"RRD",AccRaw!N:N,B4),"") ->  | J4: 45743.49576 | K4: 24 | L4: 0 | M4: NR PCI measured | P4: ULInformationTransferMRDC | Q4: 702 | R4: 703 | W4: 24 | AE4: 45743.49607 | AF4: 704 | AG4: 361490 | AH4: 1048576 | AI4: NR n3 FDD | AJ4: 1805 | AK4: 4194304 | AL4: SCG PSCell | AM4: Succeeded | AN4: 10.60403633 | AO4: 35.85573578 | AP4: Cell change
E5: =IF(AND(A5<>"",A5=B5),COUNTIFS(AccRaw!R:R,"NR dropped",AccRaw!S:S,"RRD",AccRaw!N:N,B5),"") ->  | J5: 45743.49576 | K5: 59 | L5: 0 | M5: NR HO command | P5: RRCConnectionReconfiguration | Q5: 702 | R5: 703 | AE5: 45720.62151 | AF5: 2 | AG5: 361490 | AH5: 1048576 | AI5: NR n3 FDD | AJ5: 1805 | AK5: 4194304 | AL5: SCG PSCell | AM5: Succeeded | AN5: 10.75068855 | AO5: 36.44665909 | AP5: Cell change
E6: =IF(AND(A6<>"",A6=B6),COUNTIFS(AccRaw!R:R,"NR dropped",AccRaw!S:S,"RRD",AccRaw!N:N,B6),"") ->  | J6: 45743.49576 | K6: 113 | L6: 119 | M6: NR HO complete | T6: Succeeded | Z6: 59 | AA6: 83 | AE6: 45720.62162 | AF6: 0 | AG6: 361490 | AH6: 1048576 | AI6: NR n3 FDD | AJ6: 1805 | AK6: 4194304 | AL6: SCG PSCell | AM6: Succeeded | AN6: 10.75103569 | AO6: 36.4467926 | AP6: Cell change
E7: =IF(AND(A7<>"",A7=B7),COUNTIFS(AccRaw!R:R,"NR dropped",AccRaw!S:S,"RRD",AccRaw!N:N,B7),"") ->  | J7: 45743.49607 | K7: 26 | L7: 1 | M7: NR PCI measured | P7: ULInformationTransferMRDC | Q7: 704 | R7: 702 | W7: 26 | AE7: 45720.6218 | AF7: 2 | AG7: 361490 | AH7: 1048576 | AI7: NR n3 FDD | AJ7: 1805 | AK7: 4194304 | AL7: SCG PSCell | AM7: Succeeded | AN7: 10.75095081 | AO7: 36.44709778 | AP7: Cell change
E8: =IF(AND(A8<>"",A8=B8),COUNTIFS(AccRaw!R:R,"NR dropped",AccRaw!S:S,"RRD",AccRaw!N:N,B8),"") ->  | J8: 45743.49607 | K8: 62 | L8: 1 | M8: NR HO command | P8: RRCConnectionReconfiguration | Q8: 704 | R8: 702 | AE8: 45720.62299 | AF8: 0 | AG8: 361490 | AH8: 1048576 | AI8: NR n3 FDD | AJ8: 1805 | AK8: 4194304 | AL8: SCG PSCell | AM8: Succeeded | AN8: 10.75113678 | AO8: 36.44689941 | AP8: Cell change
E9: =IF(AND(A9<>"",A9=B9),COUNTIFS(AccRaw!R:R,"NR dropped",AccRaw!S:S,"RRD",AccRaw!N:N,B9),"") ->  | J9: 45743.49607 | K9: 764 | L9: 182 | M9: NR HO complete | T9: Succeeded | Z9: 62 | AA9: 88 | AE9: 45720.62337 | AF9: 2 | AG9: 361490 | AH9: 1048576 | AI9: NR n3 FDD | AJ9: 1805 | AK9: 4194304 | AL9: SCG PSCell | AM9: Succeeded | AN9: 10.75190067 | AO9: 36.44711304 | AP9: Cell change
E10: =IF(AND(A10<>"",A10=B10),COUNTIFS(AccRaw!R:R,"NR dropped",AccRaw!S:S,"RRD",AccRaw!N:N,B10),"") ->  | J10: 45720.62151 | K10: 23 | L10: 2 | M10: NR PCI measured | P10: ULInformationTransferMRDC | Q10: 2 | R10: 1 | W10: 23 | AE10: 45720.62342 | AF10: 0 | AG10: 361490 | AH10: 1048576 | AI10: NR n3 FDD | AJ10: 1805 | AK10: 4194304 | AL10: SCG PSCell | AM10: Succeeded | AN10: 10.75221252 | AO10: 36.44724274 | AP10: Cell change
E11: =IF(AND(A11<>"",A11=B11),COUNTIFS(AccRaw!R:R,"NR dropped",AccRaw!S:S,"RRD",AccRaw!N:N,B11),"") ->  | J11: 45720.62151 | K11: 61 | L11: 2 | M11: NR HO command | P11: RRCConnectionReconfiguration | Q11: 2 | R11: 1
E12: =IF(AND(A12<>"",A12=B12),COUNTIFS(AccRaw!R:R,"NR dropped",AccRaw!S:S,"RRD",AccRaw!N:N,B12),"") ->  | J12: 45720.62151 | K12: 648 | L12: 223 | M12: NR HO complete | T12: Succeeded | Z12: 61 | AA12: 84
E13: =IF(AND(A13<>"",A13=B13),COUNTIFS(AccRaw!R:R,"NR dropped",AccRaw!S:S,"RRD",AccRaw!N:N,B13),"") ->  | J13: 45720.62162 | K13: 21 | L13: 3 | M13: NR PCI measured | P13: ULInformationTransferMRDC | Q13: 0 | R13: 2 | W13: 21
E14: =IF(AND(A14<>"",A14=B14),COUNTIFS(AccRaw!R:R,"NR dropped",AccRaw!S:S,"RRD",AccRaw!N:N,B14),"") ->  | J14: 45720.62162 | K14: 60 | L14: 3 | M14: NR HO command | P14: RRCConnectionReconfiguration | Q14: 0 | R14: 2
E15: =IF(AND(A15<>"",A15=B15),COUNTIFS(AccRaw!R:R,"NR dropped",AccRaw!S:S,"RRD",AccRaw!N:N,B15),"") ->  | J15: 45720.62162 | K15: 991 | L15: 249 | M15: NR HO complete | T15: Succeeded | Z15: 60 | AA15: 81
E16: =IF(AND(A16<>"",A16=B16),COUNTIFS(AccRaw!R:R,"NR dropped",AccRaw!S:S,"RRD",AccRaw!N:N,B16),"") ->  | J16: 45720.6218 | K16: 25 | L16: 4 | M16: NR PCI measured | P16: ULInformationTransferMRDC | Q16: 2 | R16: 0 | W16: 25
E17: =IF(AND(A17<>"",A17=B17),COUNTIFS(AccRaw!R:R,"NR dropped",AccRaw!S:S,"RRD",AccRaw!N:N,B17),"") ->  | J17: 45720.6218 | K17: 59 | L17: 4 | M17: NR HO command | P17: RRCConnectionReconfiguration | Q17: 2 | R17: 0
E18: =IF(AND(A18<>"",A18=B18),COUNTIFS(AccRaw!R:R,"NR dropped",AccRaw!S:S,"RRD",AccRaw!N:N,B18),"") ->  | J18: 45720.6218 | K18: 1228 | L18: 311 | M18: NR HO complete | T18: Succeeded | Z18: 59 | AA18: 84
E19: =IF(AND(A19<>"",A19=B19),COUNTIFS(AccRaw!R:R,"NR dropped",AccRaw!S:S,"RRD",AccRaw!N:N,B19),"") ->  | J19: 45720.62298 | K19: 31 | L19: 5 | M19: NR PCI measured | P19: ULInformationTransferMRDC | Q19: 0 | R19: 2 | W19: 31
E20: =IF(AND(A20<>"",A20=B20),COUNTIFS(AccRaw!R:R,"NR dropped",AccRaw!S:S,"RRD",AccRaw!N:N,B20),"") ->  | J20: 45720.62298 | K20: 59 | L20: 5 | M20: NR HO command | P20: RRCConnectionReconfiguration | Q20: 0 | R20: 2
E21: =IF(AND(A21<>"",A21=B21),COUNTIFS(AccRaw!R:R,"NR dropped",AccRaw!S:S,"RRD",AccRaw!N:N,B21),"") ->  | J21: 45720.62299 | K21: 861 | L21: 391 | M21: NR HO complete | T21: Succeeded | Z21: 59 | AA21: 90
E22: =IF(AND(A22<>"",A22=B22),COUNTIFS(AccRaw!R:R,"NR dropped",AccRaw!S:S,"RRD",AccRaw!N:N,B22),"") ->  | J22: 45720.62337 | K22: 24 | L22: 6 | M22: NR PCI measured | P22: ULInformationTransferMRDC | Q22: 2 | R22: 0 | W22: 24
E23: =IF(AND(A23<>"",A23=B23),COUNTIFS(AccRaw!R:R,"NR dropped",AccRaw!S:S,"RRD",AccRaw!N:N,B23),"") ->  | J23: 45720.62337 | K23: 59 | L23: 6 | M23: NR HO command | P23: RRCConnectionReconfiguration | Q23: 2 | R23: 0
E24: =IF(AND(A24<>"",A24=B24),COUNTIFS(AccRaw!R:R,"NR dropped",AccRaw!S:S,"RRD",AccRaw!N:N,B24),"") ->  | J24: 45720.62337 | K24: 1028 | L24: 444 | M24: NR HO complete | T24: Succeeded | Z24: 59 | AA24: 83
E25: =IF(AND(A25<>"",A25=B25),COUNTIFS(AccRaw!R:R,"NR dropped",AccRaw!S:S,"RRD",AccRaw!N:N,B25),"") ->  | J25: 45720.62341 | K25: 23 | L25: 7 | M25: NR PCI measured | P25: ULInformationTransferMRDC | Q25: 0 | R25: 2 | W25: 23
E26: =IF(AND(A26<>"",A26=B26),COUNTIFS(AccRaw!R:R,"NR dropped",AccRaw!S:S,"RRD",AccRaw!N:N,B26),"") ->  | J26: 45720.62341 | K26: 57 | L26: 7 | M26: NR HO command | P26: RRCConnectionReconfiguration | Q26: 0 | R26: 2
E27: =IF(AND(A27<>"",A27=B27),COUNTIFS(AccRaw!R:R,"NR dropped",AccRaw!S:S,"RRD",AccRaw!N:N,B27),"") ->  | J27: 45720.62342 | K27: 1011 | L27: 448 | M27: NR HO complete | T27: Succeeded | Z27: 57 | AA27: 80
E28: =IF(AND(A28<>"",A28=B28),COUNTIFS(AccRaw!R:R,"NR dropped",AccRaw!S:S,"RRD",AccRaw!N:N,B28),"") -> 
E29: =IF(AND(A29<>"",A29=B29),COUNTIFS(AccRaw!R:R,"NR dropped",AccRaw!S:S,"RRD",AccRaw!N:N,B29),"") -> 
E30: =IF(AND(A30<>"",A30=B30),COUNTIFS(AccRaw!R:R,"NR dropped",AccRaw!S:S,"RRD",AccRaw!N:N,B30),"") ->  | Z30: =IF(AND(M30="NR HO complete",M28="NR HO command",M29="NR HO RRC complete"),K28+K29,"") ->  | AA30: =IF(AND(M30="NR HO complete",M29="NR HO RRC complete",M28="NR HO command",M27="NR PCI measured"),K27+K28+K29,"") ->  | AB30: =IF(M30="NR HO complete",IF(AND(M29<>"NR HO command",M28<>"NR HO command"),"YES",""),"") -> 
E31: =IF(AND(A31<>"",A31=B31),COUNTIFS(AccRaw!R:R,"NR dropped",AccRaw!S:S,"RRD",AccRaw!N:N,B31),"") -> 
E32: =IF(AND(A32<>"",A32=B32),COUNTIFS(AccRaw!R:R,"NR dropped",AccRaw!S:S,"RRD",AccRaw!N:N,B32),"") ->  | X32: =IF(AND(M32="NR HO command",M33="NR HO RRC complete"),K32,"") ->  | Y32: =IF(AND(M32="NR HO RRC complete",M33="NR HO complete"),K32,"") -> 
E33: =IF(AND(A33<>"",A33=B33),COUNTIFS(AccRaw!R:R,"NR dropped",AccRaw!S:S,"RRD",AccRaw!N:N,B33),"") -> 
E34: =IF(AND(A34<>"",A34=B34),COUNTIFS(AccRaw!R:R,"NR dropped",AccRaw!S:S,"RRD",AccRaw!N:N,B34),"") -> 
E35: =IF(AND(A35<>"",A35=B35),COUNTIFS(AccRaw!R:R,"NR dropped",AccRaw!S:S,"RRD",AccRaw!N:N,B35),"") -> 
E36: =IF(AND(A36<>"",A36=B36),COUNTIFS(AccRaw!R:R,"NR dropped",AccRaw!S:S,"RRD",AccRaw!N:N,B36),"") -> 
E37: =IF(AND(A37<>"",A37=B37),COUNTIFS(AccRaw!R:R,"NR dropped",AccRaw!S:S,"RRD",AccRaw!N:N,B37),"") -> 
E38: =IF(AND(A38<>"",A38=B38),COUNTIFS(AccRaw!R:R,"NR dropped",AccRaw!S:S,"RRD",AccRaw!N:N,B38),"") -> 
E39: =IF(AND(A39<>"",A39=B39),COUNTIFS(AccRaw!R:R,"NR dropped",AccRaw!S:S,"RRD",AccRaw!N:N,B39),"") -> 
E40: =IF(AND(A40<>"",A40=B40),COUNTIFS(AccRaw!R:R,"NR dropped",AccRaw!S:S,"RRD",AccRaw!N:N,B40),"") -> 
E41: =IF(AND(A41<>"",A41=B41),COUNTIFS(AccRaw!R:R,"NR dropped",AccRaw!S:S,"RRD",AccRaw!N:N,B41),"") -> 
E42: =IF(AND(A42<>"",A42=B42),COUNTIFS(AccRaw!R:R,"NR dropped",AccRaw!S:S,"RRD",AccRaw!N:N,B42),"") -> 
E43: =IF(AND(A43<>"",A43=B43),COUNTIFS(AccRaw!R:R,"NR dropped",AccRaw!S:S,"RRD",AccRaw!N:N,B43),"") -> 
E44: =IF(AND(A44<>"",A44=B44),COUNTIFS(AccRaw!R:R,"NR dropped",AccRaw!S:S,"RRD",AccRaw!N:N,B44),"") -> 
E45: =IF(AND(A45<>"",A45=B45),COUNTIFS(AccRaw!R:R,"NR dropped",AccRaw!S:S,"RRD",AccRaw!N:N,B45),"") -> 
E46: =IF(AND(A46<>"",A46=B46),COUNTIFS(AccRaw!R:R,"NR dropped",AccRaw!S:S,"RRD",AccRaw!N:N,B46),"") -> 
E47: =IF(AND(A47<>"",A47=B47),COUNTIFS(AccRaw!R:R,"NR dropped",AccRaw!S:S,"RRD",AccRaw!N:N,B47),"") -> 
E48: =IF(AND(A48<>"",A48=B48),COUNTIFS(AccRaw!R:R,"NR dropped",AccRaw!S:S,"RRD",AccRaw!N:N,B48),"") -> 
E49: =IF(AND(A49<>"",A49=B49),COUNTIFS(AccRaw!R:R,"NR dropped",AccRaw!S:S,"RRD",AccRaw!N:N,B49),"") -> 
E50: =IF(AND(A50<>"",A50=B50),COUNTIFS(AccRaw!R:R,"NR dropped",AccRaw!S:S,"RRD",AccRaw!N:N,B50),"") -> 
E51: =IF(AND(A51<>"",A51=B51),COUNTIFS(AccRaw!R:R,"NR dropped",AccRaw!S:S,"RRD",AccRaw!N:N,B51),"") -> 
E52: =IF(AND(A52<>"",A52=B52),COUNTIFS(AccRaw!R:R,"NR dropped",AccRaw!S:S,"RRD",AccRaw!N:N,B52),"") -> 
E53: =IF(AND(A53<>"",A53=B53),COUNTIFS(AccRaw!R:R,"NR dropped",AccRaw!S:S,"RRD",AccRaw!N:N,B53),"") -> 
E54: =IF(AND(A54<>"",A54=B54),COUNTIFS(AccRaw!R:R,"NR dropped",AccRaw!S:S,"RRD",AccRaw!N:N,B54),"") -> 
E55: =IF(AND(A55<>"",A55=B55),COUNTIFS(AccRaw!R:R,"NR dropped",AccRaw!S:S,"RRD",AccRaw!N:N,B55),"") -> 
E56: =IF(AND(A56<>"",A56=B56),COUNTIFS(AccRaw!R:R,"NR dropped",AccRaw!S:S,"RRD",AccRaw!N:N,B56),"") -> 
E57: =IF(AND(A57<>"",A57=B57),COUNTIFS(AccRaw!R:R,"NR dropped",AccRaw!S:S,"RRD",AccRaw!N:N,B57),"") -> 
E58: =IF(AND(A58<>"",A58=B58),COUNTIFS(AccRaw!R:R,"NR dropped",AccRaw!S:S,"RRD",AccRaw!N:N,B58),"") -> 
E59: =IF(AND(A59<>"",A59=B59),COUNTIFS(AccRaw!R:R,"NR dropped",AccRaw!S:S,"RRD",AccRaw!N:N,B59),"") -> 
E60: =IF(AND(A60<>"",A60=B60),COUNTIFS(AccRaw!R:R,"NR dropped",AccRaw!S:S,"RRD",AccRaw!N:N,B60),"") -> 
E61: =IF(AND(A61<>"",A61=B61),COUNTIFS(AccRaw!R:R,"NR dropped",AccRaw!S:S,"RRD",AccRaw!N:N,B61),"") -> 
E62: =IF(AND(A62<>"",A62=B62),COUNTIFS(AccRaw!R:R,"NR dropped",AccRaw!S:S,"RRD",AccRaw!N:N,B62),"") -> 
E63: =IF(AND(A63<>"",A63=B63),COUNTIFS(AccRaw!R:R,"NR dropped",AccRaw!S:S,"RRD",AccRaw!N:N,B63),"") -> 
E64: =IF(AND(A64<>"",A64=B64),COUNTIFS(AccRaw!R:R,"NR dropped",AccRaw!S:S,"RRD",AccRaw!N:N,B64),"") -> 
E65: =IF(AND(A65<>"",A65=B65),COUNTIFS(AccRaw!R:R,"NR dropped",AccRaw!S:S,"RRD",AccRaw!N:N,B65),"") -> 
E66: =IF(AND(A66<>"",A66=B66),COUNTIFS(AccRaw!R:R,"NR dropped",AccRaw!S:S,"RRD",AccRaw!N:N,B66),"") -> 
E67: =IF(AND(A67<>"",A67=B67),COUNTIFS(AccRaw!R:R,"NR dropped",AccRaw!S:S,"RRD",AccRaw!N:N,B67),"") -> 
E68: =IF(AND(A68<>"",A68=B68),COUNTIFS(AccRaw!R:R,"NR dropped",AccRaw!S:S,"RRD",AccRaw!N:N,B68),"") -> 
E69: =IF(AND(A69<>"",A69=B69),COUNTIFS(AccRaw!R:R,"NR dropped",AccRaw!S:S,"RRD",AccRaw!N:N,B69),"") -> 
E70: =IF(AND(A70<>"",A70=B70),COUNTIFS(AccRaw!R:R,"NR dropped",AccRaw!S:S,"RRD",AccRaw!N:N,B70),"") -> 
E71: =IF(AND(A71<>"",A71=B71),COUNTIFS(AccRaw!R:R,"NR dropped",AccRaw!S:S,"RRD",AccRaw!N:N,B71),"") -> 
E72: =IF(AND(A72<>"",A72=B72),COUNTIFS(AccRaw!R:R,"NR dropped",AccRaw!S:S,"RRD",AccRaw!N:N,B72),"") -> 
E73: =IF(AND(A73<>"",A73=B73),COUNTIFS(AccRaw!R:R,"NR dropped",AccRaw!S:S,"RRD",AccRaw!N:N,B73),"") -> 
E74: =IF(AND(A74<>"",A74=B74),COUNTIFS(AccRaw!R:R,"NR dropped",AccRaw!S:S,"RRD",AccRaw!N:N,B74),"") -> 
E75: =IF(AND(A75<>"",A75=B75),COUNTIFS(AccRaw!R:R,"NR dropped",AccRaw!S:S,"RRD",AccRaw!N:N,B75),"") -> 
E76: =IF(AND(A76<>"",A76=B76),COUNTIFS(AccRaw!R:R,"NR dropped",AccRaw!S:S,"RRD",AccRaw!N:N,B76),"") -> 
E77: =IF(AND(A77<>"",A77=B77),COUNTIFS(AccRaw!R:R,"NR dropped",AccRaw!S:S,"RRD",AccRaw!N:N,B77),"") -> 
E78: =IF(AND(A78<>"",A78=B78),COUNTIFS(AccRaw!R:R,"NR dropped",AccRaw!S:S,"RRD",AccRaw!N:N,B78),"") -> 
E79: =IF(AND(A79<>"",A79=B79),COUNTIFS(AccRaw!R:R,"NR dropped",AccRaw!S:S,"RRD",AccRaw!N:N,B79),"") -> 
E80: =IF(AND(A80<>"",A80=B80),COUNTIFS(AccRaw!R:R,"NR dropped",AccRaw!S:S,"RRD",AccRaw!N:N,B80),"") -> 
E81: =IF(AND(A81<>"",A81=B81),COUNTIFS(AccRaw!R:R,"NR dropped",AccRaw!S:S,"RRD",AccRaw!N:N,B81),"") -> 
E82: =IF(AND(A82<>"",A82=B82),COUNTIFS(AccRaw!R:R,"NR dropped",AccRaw!S:S,"RRD",AccRaw!N:N,B82),"") -> 
E83: =IF(AND(A83<>"",A83=B83),COUNTIFS(AccRaw!R:R,"NR dropped",AccRaw!S:S,"RRD",AccRaw!N:N,B83),"") -> 
E84: =IF(AND(A84<>"",A84=B84),COUNTIFS(AccRaw!R:R,"NR dropped",AccRaw!S:S,"RRD",AccRaw!N:N,B84),"") -> 
E85: =IF(AND(A85<>"",A85=B85),COUNTIFS(AccRaw!R:R,"NR dropped",AccRaw!S:S,"RRD",AccRaw!N:N,B85),"") -> 
E86: =IF(AND(A86<>"",A86=B86),COUNTIFS(AccRaw!R:R,"NR dropped",AccRaw!S:S,"RRD",AccRaw!N:N,B86),"") -> 
E87: =IF(AND(A87<>"",A87=B87),COUNTIFS(AccRaw!R:R,"NR dropped",AccRaw!S:S,"RRD",AccRaw!N:N,B87),"") -> 
E88: =IF(AND(A88<>"",A88=B88),COUNTIFS(AccRaw!R:R,"NR dropped",AccRaw!S:S,"RRD",AccRaw!N:N,B88),"") -> 
E89: =IF(AND(A89<>"",A89=B89),COUNTIFS(AccRaw!R:R,"NR dropped",AccRaw!S:S,"RRD",AccRaw!N:N,B89),"") -> 
E90: =IF(AND(A90<>"",A90=B90),COUNTIFS(AccRaw!R:R,"NR dropped",AccRaw!S:S,"RRD",AccRaw!N:N,B90),"") -> 
E91: =IF(AND(A91<>"",A91=B91),COUNTIFS(AccRaw!R:R,"NR dropped",AccRaw!S:S,"RRD",AccRaw!N:N,B91),"") -> 
E92: =IF(AND(A92<>"",A92=B92),COUNTIFS(AccRaw!R:R,"NR dropped",AccRaw!S:S,"RRD",AccRaw!N:N,B92),"") -> 
E93: =IF(AND(A93<>"",A93=B93),COUNTIFS(AccRaw!R:R,"NR dropped",AccRaw!S:S,"RRD",AccRaw!N:N,B93),"") -> 
E94: =IF(AND(A94<>"",A94=B94),COUNTIFS(AccRaw!R:R,"NR dropped",AccRaw!S:S,"RRD",AccRaw!N:N,B94),"") -> 
E95: =IF(AND(A95<>"",A95=B95),COUNTIFS(AccRaw!R:R,"NR dropped",AccRaw!S:S,"RRD",AccRaw!N:N,B95),"") -> 
E96: =IF(AND(A96<>"",A96=B96),COUNTIFS(AccRaw!R:R,"NR dropped",AccRaw!S:S,"RRD",AccRaw!N:N,B96),"") -> 
E97: =IF(AND(A97<>"",A97=B97),COUNTIFS(AccRaw!R:R,"NR dropped",AccRaw!S:S,"RRD",AccRaw!N:N,B97),"") -> 
E98: =IF(AND(A98<>"",A98=B98),COUNTIFS(AccRaw!R:R,"NR dropped",AccRaw!S:S,"RRD",AccRaw!N:N,B98),"") -> 
E99: =IF(AND(A99<>"",A99=B99),COUNTIFS(AccRaw!R:R,"NR dropped",AccRaw!S:S,"RRD",AccRaw!N:N,B99),"") -> 
E100: =IF(AND(A100<>"",A100=B100),COUNTIFS(AccRaw!R:R,"NR dropped",AccRaw!S:S,"RRD",AccRaw!N:N,B100),"") -> 
E101: =IF(AND(A101<>"",A101=B101),COUNTIFS(AccRaw!R:R,"NR dropped",AccRaw!S:S,"RRD",AccRaw!N:N,B101),"") -> 
E102: =IF(AND(A102<>"",A102=B102),COUNTIFS(AccRaw!R:R,"NR dropped",AccRaw!S:S,"RRD",AccRaw!N:N,B102),"") -> 
E103: =IF(AND(A103<>"",A103=B103),COUNTIFS(AccRaw!R:R,"NR dropped",AccRaw!S:S,"RRD",AccRaw!N:N,B103),"") -> 
E104: =IF(AND(A104<>"",A104=B104),COUNTIFS(AccRaw!R:R,"NR dropped",AccRaw!S:S,"RRD",AccRaw!N:N,B104),"") -> 
E105: =IF(AND(A105<>"",A105=B105),COUNTIFS(AccRaw!R:R,"NR dropped",AccRaw!S:S,"RRD",AccRaw!N:N,B105),"") -> 
E106: =IF(AND(A106<>"",A106=B106),COUNTIFS(AccRaw!R:R,"NR dropped",AccRaw!S:S,"RRD",AccRaw!N:N,B106),"") -> 
E107: =IF(AND(A107<>"",A107=B107),COUNTIFS(AccRaw!R:R,"NR dropped",AccRaw!S:S,"RRD",AccRaw!N:N,B107),"") -> 
E108: =IF(AND(A108<>"",A108=B108),COUNTIFS(AccRaw!R:R,"NR dropped",AccRaw!S:S,"RRD",AccRaw!N:N,B108),"") -> 
E109: =IF(AND(A109<>"",A109=B109),COUNTIFS(AccRaw!R:R,"NR dropped",AccRaw!S:S,"RRD",AccRaw!N:N,B109),"") -> 
E110: =IF(AND(A110<>"",A110=B110),COUNTIFS(AccRaw!R:R,"NR dropped",AccRaw!S:S,"RRD",AccRaw!N:N,B110),"") -> 
E111: =IF(AND(A111<>"",A111=B111),COUNTIFS(AccRaw!R:R,"NR dropped",AccRaw!S:S,"RRD",AccRaw!N:N,B111),"") -> 
E112: =IF(AND(A112<>"",A112=B112),COUNTIFS(AccRaw!R:R,"NR dropped",AccRaw!S:S,"RRD",AccRaw!N:N,B112),"") -> 
E113: =IF(AND(A113<>"",A113=B113),COUNTIFS(AccRaw!R:R,"NR dropped",AccRaw!S:S,"RRD",AccRaw!N:N,B113),"") -> 
E114: =IF(AND(A114<>"",A114=B114),COUNTIFS(AccRaw!R:R,"NR dropped",AccRaw!S:S,"RRD",AccRaw!N:N,B114),"") -> 
E115: =IF(AND(A115<>"",A115=B115),COUNTIFS(AccRaw!R:R,"NR dropped",AccRaw!S:S,"RRD",AccRaw!N:N,B115),"") -> 
E116: =IF(AND(A116<>"",A116=B116),COUNTIFS(AccRaw!R:R,"NR dropped",AccRaw!S:S,"RRD",AccRaw!N:N,B116),"") -> 
E117: =IF(AND(A117<>"",A117=B117),COUNTIFS(AccRaw!R:R,"NR dropped",AccRaw!S:S,"RRD",AccRaw!N:N,B117),"") -> 
E118: =IF(AND(A118<>"",A118=B118),COUNTIFS(AccRaw!R:R,"NR dropped",AccRaw!S:S,"RRD",AccRaw!N:N,B118),"") -> 
E119: =IF(AND(A119<>"",A119=B119),COUNTIFS(AccRaw!R:R,"NR dropped",AccRaw!S:S,"RRD",AccRaw!N:N,B119),"") -> 
E120: =IF(AND(A120<>"",A120=B120),COUNTIFS(AccRaw!R:R,"NR dropped",AccRaw!S:S,"RRD",AccRaw!N:N,B120),"") -> 
E121: =IF(AND(A121<>"",A121=B121),COUNTIFS(AccRaw!R:R,"NR dropped",AccRaw!S:S,"RRD",AccRaw!N:N,B121),"") -> 
E122: =IF(AND(A122<>"",A122=B122),COUNTIFS(AccRaw!R:R,"NR dropped",AccRaw!S:S,"RRD",AccRaw!N:N,B122),"") -> 
E123: =IF(AND(A123<>"",A123=B123),COUNTIFS(AccRaw!R:R,"NR dropped",AccRaw!S:S,"RRD",AccRaw!N:N,B123),"") -> 
E124: =IF(AND(A124<>"",A124=B124),COUNTIFS(AccRaw!R:R,"NR dropped",AccRaw!S:S,"RRD",AccRaw!N:N,B124),"") -> 
E125: =IF(AND(A125<>"",A125=B125),COUNTIFS(AccRaw!R:R,"NR dropped",AccRaw!S:S,"RRD",AccRaw!N:N,B125),"") -> 
E126: =IF(AND(A126<>"",A126=B126),COUNTIFS(AccRaw!R:R,"NR dropped",AccRaw!S:S,"RRD",AccRaw!N:N,B126),"") -> 
E127: =IF(AND(A127<>"",A127=B127),COUNTIFS(AccRaw!R:R,"NR dropped",AccRaw!S:S,"RRD",AccRaw!N:N,B127),"") -> 
E128: =IF(AND(A128<>"",A128=B128),COUNTIFS(AccRaw!R:R,"NR dropped",AccRaw!S:S,"RRD",AccRaw!N:N,B128),"") -> 
E129: =IF(AND(A129<>"",A129=B129),COUNTIFS(AccRaw!R:R,"NR dropped",AccRaw!S:S,"RRD",AccRaw!N:N,B129),"") -> 
E130: =IF(AND(A130<>"",A130=B130),COUNTIFS(AccRaw!R:R,"NR dropped",AccRaw!S:S,"RRD",AccRaw!N:N,B130),"") -> 
E131: =IF(AND(A131<>"",A131=B131),COUNTIFS(AccRaw!R:R,"NR dropped",AccRaw!S:S,"RRD",AccRaw!N:N,B131),"") -> 
E132: =IF(AND(A132<>"",A132=B132),COUNTIFS(AccRaw!R:R,"NR dropped",AccRaw!S:S,"RRD",AccRaw!N:N,B132),"") -> 
E133: =IF(AND(A133<>"",A133=B133),COUNTIFS(AccRaw!R:R,"NR dropped",AccRaw!S:S,"RRD",AccRaw!N:N,B133),"") -> 
E134: =IF(AND(A134<>"",A134=B134),COUNTIFS(AccRaw!R:R,"NR dropped",AccRaw!S:S,"RRD",AccRaw!N:N,B134),"") -> 
E135: =IF(AND(A135<>"",A135=B135),COUNTIFS(AccRaw!R:R,"NR dropped",AccRaw!S:S,"RRD",AccRaw!N:N,B135),"") -> 
E136: =IF(AND(A136<>"",A136=B136),COUNTIFS(AccRaw!R:R,"NR dropped",AccRaw!S:S,"RRD",AccRaw!N:N,B136),"") -> 
E137: =IF(AND(A137<>"",A137=B137),COUNTIFS(AccRaw!R:R,"NR dropped",AccRaw!S:S,"RRD",AccRaw!N:N,B137),"") -> 
E138: =IF(AND(A138<>"",A138=B138),COUNTIFS(AccRaw!R:R,"NR dropped",AccRaw!S:S,"RRD",AccRaw!N:N,B138),"") -> 
E139: =IF(AND(A139<>"",A139=B139),COUNTIFS(AccRaw!R:R,"NR dropped",AccRaw!S:S,"RRD",AccRaw!N:N,B139),"") -> 
E140: =IF(AND(A140<>"",A140=B140),COUNTIFS(AccRaw!R:R,"NR dropped",AccRaw!S:S,"RRD",AccRaw!N:N,B140),"") -> 
E141: =IF(AND(A141<>"",A141=B141),COUNTIFS(AccRaw!R:R,"NR dropped",AccRaw!S:S,"RRD",AccRaw!N:N,B141),"") -> 
E142: =IF(AND(A142<>"",A142=B142),COUNTIFS(AccRaw!R:R,"NR dropped",AccRaw!S:S,"RRD",AccRaw!N:N,B142),"") -> 
E143: =IF(AND(A143<>"",A143=B143),COUNTIFS(AccRaw!R:R,"NR dropped",AccRaw!S:S,"RRD",AccRaw!N:N,B143),"") -> 
E144: =IF(AND(A144<>"",A144=B144),COUNTIFS(AccRaw!R:R,"NR dropped",AccRaw!S:S,"RRD",AccRaw!N:N,B144),"") -> 
E145: =IF(AND(A145<>"",A145=B145),COUNTIFS(AccRaw!R:R,"NR dropped",AccRaw!S:S,"RRD",AccRaw!N:N,B145),"") -> 
E146: =IF(AND(A146<>"",A146=B146),COUNTIFS(AccRaw!R:R,"NR dropped",AccRaw!S:S,"RRD",AccRaw!N:N,B146),"") -> 
E147: =IF(AND(A147<>"",A147=B147),COUNTIFS(AccRaw!R:R,"NR dropped",AccRaw!S:S,"RRD",AccRaw!N:N,B147),"") -> 
E148: =IF(AND(A148<>"",A148=B148),COUNTIFS(AccRaw!R:R,"NR dropped",AccRaw!S:S,"RRD",AccRaw!N:N,B148),"") -> 
E149: =IF(AND(A149<>"",A149=B149),COUNTIFS(AccRaw!R:R,"NR dropped",AccRaw!S:S,"RRD",AccRaw!N:N,B149),"") -> 
E150: =IF(AND(A150<>"",A150=B150),COUNTIFS(AccRaw!R:R,"NR dropped",AccRaw!S:S,"RRD",AccRaw!N:N,B150),"") -> 
E151: =IF(AND(A151<>"",A151=B151),COUNTIFS(AccRaw!R:R,"NR dropped",AccRaw!S:S,"RRD",AccRaw!N:N,B151),"") -> 
E152: =IF(AND(A152<>"",A152=B152),COUNTIFS(AccRaw!R:R,"NR dropped",AccRaw!S:S,"RRD",AccRaw!N:N,B152),"") -> 
E153: =IF(AND(A153<>"",A153=B153),COUNTIFS(AccRaw!R:R,"NR dropped",AccRaw!S:S,"RRD",AccRaw!N:N,B153),"") -> 
E154: =IF(AND(A154<>"",A154=B154),COUNTIFS(AccRaw!R:R,"NR dropped",AccRaw!S:S,"RRD",AccRaw!N:N,B154),"") -> 
E155: =IF(AND(A155<>"",A155=B155),COUNTIFS(AccRaw!R:R,"NR dropped",AccRaw!S:S,"RRD",AccRaw!N:N,B155),"") -> 
E156: =IF(AND(A156<>"",A156=B156),COUNTIFS(AccRaw!R:R,"NR dropped",AccRaw!S:S,"RRD",AccRaw!N:N,B156),"") -> 
E157: =IF(AND(A157<>"",A157=B157),COUNTIFS(AccRaw!R:R,"NR dropped",AccRaw!S:S,"RRD",AccRaw!N:N,B157),"") -> 
E158: =IF(AND(A158<>"",A158=B158),COUNTIFS(AccRaw!R:R,"NR dropped",AccRaw!S:S,"RRD",AccRaw!N:N,B158),"") -> 
E159: =IF(AND(A159<>"",A159=B159),COUNTIFS(AccRaw!R:R,"NR dropped",AccRaw!S:S,"RRD",AccRaw!N:N,B159),"") -> 
E160: =IF(AND(A160<>"",A160=B160),COUNTIFS(AccRaw!R:R,"NR dropped",AccRaw!S:S,"RRD",AccRaw!N:N,B160),"") -> 
E161: =IF(AND(A161<>"",A161=B161),COUNTIFS(AccRaw!R:R,"NR dropped",AccRaw!S:S,"RRD",AccRaw!N:N,B161),"") -> 
E162: =IF(AND(A162<>"",A162=B162),COUNTIFS(AccRaw!R:R,"NR dropped",AccRaw!S:S,"RRD",AccRaw!N:N,B162),"") -> 
E163: =IF(AND(A163<>"",A163=B163),COUNTIFS(AccRaw!R:R,"NR dropped",AccRaw!S:S,"RRD",AccRaw!N:N,B163),"") -> 
E164: =IF(AND(A164<>"",A164=B164),COUNTIFS(AccRaw!R:R,"NR dropped",AccRaw!S:S,"RRD",AccRaw!N:N,B164),"") -> 
E165: =IF(AND(A165<>"",A165=B165),COUNTIFS(AccRaw!R:R,"NR dropped",AccRaw!S:S,"RRD",AccRaw!N:N,B165),"") -> 
E166: =IF(AND(A166<>"",A166=B166),COUNTIFS(AccRaw!R:R,"NR dropped",AccRaw!S:S,"RRD",AccRaw!N:N,B166),"") -> 
E167: =IF(AND(A167<>"",A167=B167),COUNTIFS(AccRaw!R:R,"NR dropped",AccRaw!S:S,"RRD",AccRaw!N:N,B167),"") -> 
E168: =IF(AND(A168<>"",A168=B168),COUNTIFS(AccRaw!R:R,"NR dropped",AccRaw!S:S,"RRD",AccRaw!N:N,B168),"") -> 
E169: =IF(AND(A169<>"",A169=B169),COUNTIFS(AccRaw!R:R,"NR dropped",AccRaw!S:S,"RRD",AccRaw!N:N,B169),"") -> 
E170: =IF(AND(A170<>"",A170=B170),COUNTIFS(AccRaw!R:R,"NR dropped",AccRaw!S:S,"RRD",AccRaw!N:N,B170),"") -> 
E171: =IF(AND(A171<>"",A171=B171),COUNTIFS(AccRaw!R:R,"NR dropped",AccRaw!S:S,"RRD",AccRaw!N:N,B171),"") -> 
E172: =IF(AND(A172<>"",A172=B172),COUNTIFS(AccRaw!R:R,"NR dropped",AccRaw!S:S,"RRD",AccRaw!N:N,B172),"") -> 
E173: =IF(AND(A173<>"",A173=B173),COUNTIFS(AccRaw!R:R,"NR dropped",AccRaw!S:S,"RRD",AccRaw!N:N,B173),"") -> 
E174: =IF(AND(A174<>"",A174=B174),COUNTIFS(AccRaw!R:R,"NR dropped",AccRaw!S:S,"RRD",AccRaw!N:N,B174),"") -> 
E175: =IF(AND(A175<>"",A175=B175),COUNTIFS(AccRaw!R:R,"NR dropped",AccRaw!S:S,"RRD",AccRaw!N:N,B175),"") -> 
E176: =IF(AND(A176<>"",A176=B176),COUNTIFS(AccRaw!R:R,"NR dropped",AccRaw!S:S,"RRD",AccRaw!N:N,B176),"") -> 
E177: =IF(AND(A177<>"",A177=B177),COUNTIFS(AccRaw!R:R,"NR dropped",AccRaw!S:S,"RRD",AccRaw!N:N,B177),"") -> 
E178: =IF(AND(A178<>"",A178=B178),COUNTIFS(AccRaw!R:R,"NR dropped",AccRaw!S:S,"RRD",AccRaw!N:N,B178),"") -> 
E179: =IF(AND(A179<>"",A179=B179),COUNTIFS(AccRaw!R:R,"NR dropped",AccRaw!S:S,"RRD",AccRaw!N:N,B179),"") -> 
E180: =IF(AND(A180<>"",A180=B180),COUNTIFS(AccRaw!R:R,"NR dropped",AccRaw!S:S,"RRD",AccRaw!N:N,B180),"") -> 
E181: =IF(AND(A181<>"",A181=B181),COUNTIFS(AccRaw!R:R,"NR dropped",AccRaw!S:S,"RRD",AccRaw!N:N,B181),"") -> 
E182: =IF(AND(A182<>"",A182=B182),COUNTIFS(AccRaw!R:R,"NR dropped",AccRaw!S:S,"RRD",AccRaw!N:N,B182),"") -> 
E183: =IF(AND(A183<>"",A183=B183),COUNTIFS(AccRaw!R:R,"NR dropped",AccRaw!S:S,"RRD",AccRaw!N:N,B183),"") -> 
E184: =IF(AND(A184<>"",A184=B184),COUNTIFS(AccRaw!R:R,"NR dropped",AccRaw!S:S,"RRD",AccRaw!N:N,B184),"") -> 
E185: =IF(AND(A185<>"",A185=B185),COUNTIFS(AccRaw!R:R,"NR dropped",AccRaw!S:S,"RRD",AccRaw!N:N,B185),"") -> 
E186: =IF(AND(A186<>"",A186=B186),COUNTIFS(AccRaw!R:R,"NR dropped",AccRaw!S:S,"RRD",AccRaw!N:N,B186),"") -> 
E187: =IF(AND(A187<>"",A187=B187),COUNTIFS(AccRaw!R:R,"NR dropped",AccRaw!S:S,"RRD",AccRaw!N:N,B187),"") -> 
E188: =IF(AND(A188<>"",A188=B188),COUNTIFS(AccRaw!R:R,"NR dropped",AccRaw!S:S,"RRD",AccRaw!N:N,B188),"") -> 
E189: =IF(AND(A189<>"",A189=B189),COUNTIFS(AccRaw!R:R,"NR dropped",AccRaw!S:S,"RRD",AccRaw!N:N,B189),"") -> 
E190: =IF(AND(A190<>"",A190=B190),COUNTIFS(AccRaw!R:R,"NR dropped",AccRaw!S:S,"RRD",AccRaw!N:N,B190),"") -> 
E191: =IF(AND(A191<>"",A191=B191),COUNTIFS(AccRaw!R:R,"NR dropped",AccRaw!S:S,"RRD",AccRaw!N:N,B191),"") -> 
E192: =IF(AND(A192<>"",A192=B192),COUNTIFS(AccRaw!R:R,"NR dropped",AccRaw!S:S,"RRD",AccRaw!N:N,B192),"") -> 
E193: =IF(AND(A193<>"",A193=B193),COUNTIFS(AccRaw!R:R,"NR dropped",AccRaw!S:S,"RRD",AccRaw!N:N,B193),"") -> 
E194: =IF(AND(A194<>"",A194=B194),COUNTIFS(AccRaw!R:R,"NR dropped",AccRaw!S:S,"RRD",AccRaw!N:N,B194),"") -> 
E195: =IF(AND(A195<>"",A195=B195),COUNTIFS(AccRaw!R:R,"NR dropped",AccRaw!S:S,"RRD",AccRaw!N:N,B195),"") -> 
E196: =IF(AND(A196<>"",A196=B196),COUNTIFS(AccRaw!R:R,"NR dropped",AccRaw!S:S,"RRD",AccRaw!N:N,B196),"") -> 
E197: =IF(AND(A197<>"",A197=B197),COUNTIFS(AccRaw!R:R,"NR dropped",AccRaw!S:S,"RRD",AccRaw!N:N,B197),"") -> 
E198: =IF(AND(A198<>"",A198=B198),COUNTIFS(AccRaw!R:R,"NR dropped",AccRaw!S:S,"RRD",AccRaw!N:N,B198),"") -> 
E199: =IF(AND(A199<>"",A199=B199),COUNTIFS(AccRaw!R:R,"NR dropped",AccRaw!S:S,"RRD",AccRaw!N:N,B199),"") -> 
E200: =IF(AND(A200<>"",A200=B200),COUNTIFS(AccRaw!R:R,"NR dropped",AccRaw!S:S,"RRD",AccRaw!N:N,B200),"") -> 
... 840 more rows

Sheet aux (hidden)
A1: UE ARFCN ranking based on samples | D1: =COUNTA('PCI-BI_raw_UE'!AN:AN)-1 -> 1 | F1: UE PCI ranking based on samples | I1: =COUNTA('PCI-BI_raw_UE'!A:A)-1 -> 4 | K1: Scanner ARFCN ranking based on samples | N1: =COUNTA('PCI-BI_raw_scanner'!AN:AN)-1 -> 0 | P1: Scanner PCI ranking based on samples | S1: =COUNTA('PCI-BI_raw_scanner'!A:A)-1 -> 0 | U1: UE ARFCN-PCI ranking based on samples | X1: =COUNTA('PCI-BI_raw_UE'!D:D)-1 -> 4 | Z1: Scanner ARFCN-PCI ranking based on samples | AC1: =COUNTA('PCI-BI_raw_scanner'!D:D)-1 -> 0 | AE1: EP-DC MAC bytes per tech (WATCH THIS! MIGHT GET TOO MANY ROWS!)
A2: ARFCN | B2: Count | F2: PCI | G2: Count | K2: ARFCN | L2: Count | P2: PCI | Q2: Count | U2: ARFCN_PCI | V2: Count | Z2: ARFCN_PCI | AA2: Count | AE2: LTE DL | AF2: 5GNR DL | AG2: LTE UL | AH2: 5GNR UL
A3: 361490 | B3: 1237695.008 | F3: 1 | G3: -260793 | U3: 361490_2 | V3: 541483.004 | AE3: =IF('5G_NR_raw_UE'!EP3>0,('5G_NR_raw_UE'!EP3*'5G_NR_raw_UE'!EQ3),"") -> 51533.79662 | AF3: =IF('5G_NR_raw_UE'!ER3>0,('5G_NR_raw_UE'!ER3*'5G_NR_raw_UE'!ES3),"") -> 50727.27812 | AG3: =IF('5G_NR_raw_UE'!EW3>0,('5G_NR_raw_UE'!EW3*'5G_NR_raw_UE'!EX3),"") -> 60.19423 | AH3: =IF('5G_NR_raw_UE'!EY3>0,('5G_NR_raw_UE'!EY3*'5G_NR_raw_UE'!EZ3/1000000),"") -> 5.1825871e-05
F4: 0 | G4: -435419 | U4: 361490_0 | V4: 435419.001 | AE4: =IF('5G_NR_raw_UE'!EP4>0,('5G_NR_raw_UE'!EP4*'5G_NR_raw_UE'!EQ4),"") -> 5237.32546 | AF4: =IF('5G_NR_raw_UE'!ER4>0,('5G_NR_raw_UE'!ER4*'5G_NR_raw_UE'!ES4),"") -> 51341.80147 | AG4: =IF('5G_NR_raw_UE'!EW4>0,('5G_NR_raw_UE'!EW4*'5G_NR_raw_UE'!EX4),"") -> 616.450624 | AH4: =IF('5G_NR_raw_UE'!EY4>0,('5G_NR_raw_UE'!EY4*'5G_NR_raw_UE'!EZ4/1000000),"") -> 5.3188685e-05
F5: 2 | G5: -541483 | U5: 361490_1 | V5: 260793.003 | AE5: =IF('5G_NR_raw_UE'!EP5>0,('5G_NR_raw_UE'!EP5*'5G_NR_raw_UE'!EQ5),"") -> 51822.12171 | AF5: =IF('5G_NR_raw_UE'!ER5>0,('5G_NR_raw_UE'!ER5*'5G_NR_raw_UE'!ES5),"") -> 51146.44355 | AG5: =IF('5G_NR_raw_UE'!EW5>0,('5G_NR_raw_UE'!EW5*'5G_NR_raw_UE'!EX5),"") -> 631.953534 | AH5: =IF('5G_NR_raw_UE'!EY5>0,('5G_NR_raw_UE'!EY5*'5G_NR_raw_UE'!EZ5/1000000),"") -> 5.3870524e-05
AE6: =IF('5G_NR_raw_UE'!EP6>0,('5G_NR_raw_UE'!EP6*'5G_NR_raw_UE'!EQ6),"") -> 52324.50828 | AF6: =IF('5G_NR_raw_UE'!ER6>0,('5G_NR_raw_UE'!ER6*'5G_NR_raw_UE'!ES6),"") -> 51884.93572 | AG6: =IF('5G_NR_raw_UE'!EW6>0,('5G_NR_raw_UE'!EW6*'5G_NR_raw_UE'!EX6),"") -> 6.288995 | AH6: =IF('5G_NR_raw_UE'!EY6>0,('5G_NR_raw_UE'!EY6*'5G_NR_raw_UE'!EZ6/1000000),"") -> 5.644017e-05
AE7: =IF('5G_NR_raw_UE'!EP7>0,('5G_NR_raw_UE'!EP7*'5G_NR_raw_UE'!EQ7),"") -> 52851.0513 | AF7: =IF('5G_NR_raw_UE'!ER7>0,('5G_NR_raw_UE'!ER7*'5G_NR_raw_UE'!ES7),"") -> 50144.05027 | AG7: =IF('5G_NR_raw_UE'!EW7>0,('5G_NR_raw_UE'!EW7*'5G_NR_raw_UE'!EX7),"") -> 46.215 | AH7: =IF('5G_NR_raw_UE'!EY7>0,('5G_NR_raw_UE'!EY7*'5G_NR_raw_UE'!EZ7/1000000),"") -> 5.495886e-05
AE8: =IF('5G_NR_raw_UE'!EP8>0,('5G_NR_raw_UE'!EP8*'5G_NR_raw_UE'!EQ8),"") -> 5328.121348 | AF8: =IF('5G_NR_raw_UE'!ER8>0,('5G_NR_raw_UE'!ER8*'5G_NR_raw_UE'!ES8),"") -> 50509.62562 | AG8: =IF('5G_NR_raw_UE'!EW8>0,('5G_NR_raw_UE'!EW8*'5G_NR_raw_UE'!EX8),"") -> 672.853365 | AH8: =IF('5G_NR_raw_UE'!EY8>0,('5G_NR_raw_UE'!EY8*'5G_NR_raw_UE'!EZ8/1000000),"") -> 5.692596e-05
AE9: =IF('5G_NR_raw_UE'!EP9>0,('5G_NR_raw_UE'!EP9*'5G_NR_raw_UE'!EQ9),"") -> 5217.22974 | AF9: =IF('5G_NR_raw_UE'!ER9>0,('5G_NR_raw_UE'!ER9*'5G_NR_raw_UE'!ES9),"") -> 51389.51189 | AG9: =IF('5G_NR_raw_UE'!EW9>0,('5G_NR_raw_UE'!EW9*'5G_NR_raw_UE'!EX9),"") -> 65.49666 | AH9: =IF('5G_NR_raw_UE'!EY9>0,('5G_NR_raw_UE'!EY9*'5G_NR_raw_UE'!EZ9/1000000),"") -> 0.000117999116
AE10: =IF('5G_NR_raw_UE'!EP10>0,('5G_NR_raw_UE'!EP10*'5G_NR_raw_UE'!EQ10),"") -> 5419.647588 | AF10: =IF('5G_NR_raw_UE'!ER10>0,('5G_NR_raw_UE'!ER10*'5G_NR_raw_UE'!ES10),"") -> 517.893757 | AG10: =IF('5G_NR_raw_UE'!EW10>0,('5G_NR_raw_UE'!EW10*'5G_NR_raw_UE'!EX10),"") -> 694.073556 | AH10: =IF('5G_NR_raw_UE'!EY10>0,('5G_NR_raw_UE'!EY10*'5G_NR_raw_UE'!EZ10/1000000),"") -> 0.000609739488
AE11: =IF('5G_NR_raw_UE'!EP11>0,('5G_NR_raw_UE'!EP11*'5G_NR_raw_UE'!EQ11),"") -> 5399.664093 | AF11: =IF('5G_NR_raw_UE'!ER11>0,('5G_NR_raw_UE'!ER11*'5G_NR_raw_UE'!ES11),"") -> 53076.42392 | AG11: =IF('5G_NR_raw_UE'!EW11>0,('5G_NR_raw_UE'!EW11*'5G_NR_raw_UE'!EX11),"") -> 2.24294 | AH11: =IF('5G_NR_raw_UE'!EY11>0,('5G_NR_raw_UE'!EY11*'5G_NR_raw_UE'!EZ11/1000000),"") -> 6.2942544e-05
AE12: =IF('5G_NR_raw_UE'!EP12>0,('5G_NR_raw_UE'!EP12*'5G_NR_raw_UE'!EQ12),"") -> 5210.674267 | AF12: =IF('5G_NR_raw_UE'!ER12>0,('5G_NR_raw_UE'!ER12*'5G_NR_raw_UE'!ES12),"") -> 51054.25882 | AG12: =IF('5G_NR_raw_UE'!EW12>0,('5G_NR_raw_UE'!EW12*'5G_NR_raw_UE'!EX12),"") -> 87.758769 | AH12: =IF('5G_NR_raw_UE'!EY12>0,('5G_NR_raw_UE'!EY12*'5G_NR_raw_UE'!EZ12/1000000),"") -> 6.4700208e-05
AE13: =IF('5G_NR_raw_UE'!EP13>0,('5G_NR_raw_UE'!EP13*'5G_NR_raw_UE'!EQ13),"") -> 5167.557 | AF13: =IF('5G_NR_raw_UE'!ER13>0,('5G_NR_raw_UE'!ER13*'5G_NR_raw_UE'!ES13),"") -> 52457.32132 | AG13: =IF('5G_NR_raw_UE'!EW13>0,('5G_NR_raw_UE'!EW13*'5G_NR_raw_UE'!EX13),"") -> 93.35529 | AH13: =IF('5G_NR_raw_UE'!EY13>0,('5G_NR_raw_UE'!EY13*'5G_NR_raw_UE'!EZ13/1000000),"") -> 0.000129369688
AE14: =IF('5G_NR_raw_UE'!EP14>0,('5G_NR_raw_UE'!EP14*'5G_NR_raw_UE'!EQ14),"") -> 54227.6335 | AF14: =IF('5G_NR_raw_UE'!ER14>0,('5G_NR_raw_UE'!ER14*'5G_NR_raw_UE'!ES14),"") -> 52673.5675 | AG14: =IF('5G_NR_raw_UE'!EW14>0,('5G_NR_raw_UE'!EW14*'5G_NR_raw_UE'!EX14),"") -> 112.185216 | AH14: =IF('5G_NR_raw_UE'!EY14>0,('5G_NR_raw_UE'!EY14*'5G_NR_raw_UE'!EZ14/1000000),"") -> 0.00062473928
AE15: =IF('5G_NR_raw_UE'!EP15>0,('5G_NR_raw_UE'!EP15*'5G_NR_raw_UE'!EQ15),"") -> 54029.05589 | AF15: =IF('5G_NR_raw_UE'!ER15>0,('5G_NR_raw_UE'!ER15*'5G_NR_raw_UE'!ES15),"") -> 52677.04853 | AG15: =IF('5G_NR_raw_UE'!EW15>0,('5G_NR_raw_UE'!EW15*'5G_NR_raw_UE'!EX15),"") -> 111.834213 | AH15: =IF('5G_NR_raw_UE'!EY15>0,('5G_NR_raw_UE'!EY15*'5G_NR_raw_UE'!EZ15/1000000),"") -> 0.000645725724
AE16: =IF('5G_NR_raw_UE'!EP16>0,('5G_NR_raw_UE'!EP16*'5G_NR_raw_UE'!EQ16),"") -> 5555.27148 | AF16: =IF('5G_NR_raw_UE'!ER16>0,('5G_NR_raw_UE'!ER16*'5G_NR_raw_UE'!ES16),"") -> 52854.7039 | AG16: =IF('5G_NR_raw_UE'!EW16>0,('5G_NR_raw_UE'!EW16*'5G_NR_raw_UE'!EX16),"") -> 2.159e-06 | AH16: =IF('5G_NR_raw_UE'!EY16>0,('5G_NR_raw_UE'!EY16*'5G_NR_raw_UE'!EZ16/1000000),"") -> 6.747804e-05
AE17: =IF('5G_NR_raw_UE'!EP17>0,('5G_NR_raw_UE'!EP17*'5G_NR_raw_UE'!EQ17),"") -> 5592.681728 | AF17: =IF('5G_NR_raw_UE'!ER17>0,('5G_NR_raw_UE'!ER17*'5G_NR_raw_UE'!ES17),"") -> 52993.40176 | AG17: =IF('5G_NR_raw_UE'!EW17>0,('5G_NR_raw_UE'!EW17*'5G_NR_raw_UE'!EX17),"") -> 110.53128 | AH17: =IF('5G_NR_raw_UE'!EY17>0,('5G_NR_raw_UE'!EY17*'5G_NR_raw_UE'!EZ17/1000000),"") -> 6.611962e-05
AE18: =IF('5G_NR_raw_UE'!EP18>0,('5G_NR_raw_UE'!EP18*'5G_NR_raw_UE'!EQ18),"") -> 5656.9744 | AF18: =IF('5G_NR_raw_UE'!ER18>0,('5G_NR_raw_UE'!ER18*'5G_NR_raw_UE'!ES18),"") -> 53562.27978 | AG18: =IF('5G_NR_raw_UE'!EW18>0,('5G_NR_raw_UE'!EW18*'5G_NR_raw_UE'!EX18),"") -> 112.300328 | AH18: =IF('5G_NR_raw_UE'!EY18>0,('5G_NR_raw_UE'!EY18*'5G_NR_raw_UE'!EZ18/1000000),"") -> 6.894216e-05
AE19: =IF('5G_NR_raw_UE'!EP19>0,('5G_NR_raw_UE'!EP19*'5G_NR_raw_UE'!EQ19),"") -> 57578.12848 | AF19: =IF('5G_NR_raw_UE'!ER19>0,('5G_NR_raw_UE'!ER19*'5G_NR_raw_UE'!ES19),"") -> 53482.64564 | AG19: =IF('5G_NR_raw_UE'!EW19>0,('5G_NR_raw_UE'!EW19*'5G_NR_raw_UE'!EX19),"") -> 108.238402 | AH19: =IF('5G_NR_raw_UE'!EY19>0,('5G_NR_raw_UE'!EY19*'5G_NR_raw_UE'!EZ19/1000000),"") -> 7.124572e-06
AE20: =IF('5G_NR_raw_UE'!EP20>0,('5G_NR_raw_UE'!EP20*'5G_NR_raw_UE'!EQ20),"") -> 5.050773 | AF20: =IF('5G_NR_raw_UE'!ER20>0,('5G_NR_raw_UE'!ER20*'5G_NR_raw_UE'!ES20),"") -> 53749.68893 | AG20: =IF('5G_NR_raw_UE'!EW20>0,('5G_NR_raw_UE'!EW20*'5G_NR_raw_UE'!EX20),"") -> 11.758608 | AH20: =IF('5G_NR_raw_UE'!EY20>0,('5G_NR_raw_UE'!EY20*'5G_NR_raw_UE'!EZ20/1000000),"") -> 7.172717e-05
AE21: =IF('5G_NR_raw_UE'!EP21>0,('5G_NR_raw_UE'!EP21*'5G_NR_raw_UE'!EQ21),"") -> 5945.294751 | AF21: =IF('5G_NR_raw_UE'!ER21>0,('5G_NR_raw_UE'!ER21*'5G_NR_raw_UE'!ES21),"") -> 52869.51412 | AG21: =IF('5G_NR_raw_UE'!EW21>0,('5G_NR_raw_UE'!EW21*'5G_NR_raw_UE'!EX21),"") -> 119.79164 | AH21: =IF('5G_NR_raw_UE'!EY21>0,('5G_NR_raw_UE'!EY21*'5G_NR_raw_UE'!EZ21/1000000),"") -> 7.5871324e-05
AE22: =IF('5G_NR_raw_UE'!EP22>0,('5G_NR_raw_UE'!EP22*'5G_NR_raw_UE'!EQ22),"") -> 5703.92585 | AF22: =IF('5G_NR_raw_UE'!ER22>0,('5G_NR_raw_UE'!ER22*'5G_NR_raw_UE'!ES22),"") -> 54098.52595 | AG22: =IF('5G_NR_raw_UE'!EW22>0,('5G_NR_raw_UE'!EW22*'5G_NR_raw_UE'!EX22),"") -> 114.09923 | AH22: =IF('5G_NR_raw_UE'!EY22>0,('5G_NR_raw_UE'!EY22*'5G_NR_raw_UE'!EZ22/1000000),"") -> 7.7973551e-05
AE23: =IF('5G_NR_raw_UE'!EP23>0,('5G_NR_raw_UE'!EP23*'5G_NR_raw_UE'!EQ23),"") -> 6080.57496 | AF23: =IF('5G_NR_raw_UE'!ER23>0,('5G_NR_raw_UE'!ER23*'5G_NR_raw_UE'!ES23),"") -> 53918.23996 | AG23: =IF('5G_NR_raw_UE'!EW23>0,('5G_NR_raw_UE'!EW23*'5G_NR_raw_UE'!EX23),"") -> 124.032627 | AH23: =IF('5G_NR_raw_UE'!EY23>0,('5G_NR_raw_UE'!EY23*'5G_NR_raw_UE'!EZ23/1000000),"") -> 8.08678e-05
AE24: =IF('5G_NR_raw_UE'!EP24>0,('5G_NR_raw_UE'!EP24*'5G_NR_raw_UE'!EQ24),"") -> 5978.261133 | AF24: =IF('5G_NR_raw_UE'!ER24>0,('5G_NR_raw_UE'!ER24*'5G_NR_raw_UE'!ES24),"") -> 0.055426 | AG24: =IF('5G_NR_raw_UE'!EW24>0,('5G_NR_raw_UE'!EW24*'5G_NR_raw_UE'!EX24),"") -> 122.67003 | AH24: =IF('5G_NR_raw_UE'!EY24>0,('5G_NR_raw_UE'!EY24*'5G_NR_raw_UE'!EZ24/1000000),"") -> 8.3471976e-05
AE25: =IF('5G_NR_raw_UE'!EP25>0,('5G_NR_raw_UE'!EP25*'5G_NR_raw_UE'!EQ25),"") -> 0.05917 | AF25: =IF('5G_NR_raw_UE'!ER25>0,('5G_NR_raw_UE'!ER25*'5G_NR_raw_UE'!ES25),"") -> 52921.15988 | AG25: =IF('5G_NR_raw_UE'!EW25>0,('5G_NR_raw_UE'!EW25*'5G_NR_raw_UE'!EX25),"") -> 128.897633 | AH25: =IF('5G_NR_raw_UE'!EY25>0,('5G_NR_raw_UE'!EY25*'5G_NR_raw_UE'!EZ25/1000000),"") -> 8.2341765e-05
AE26: =IF('5G_NR_raw_UE'!EP26>0,('5G_NR_raw_UE'!EP26*'5G_NR_raw_UE'!EQ26),"") -> 6033.66694 | AF26: =IF('5G_NR_raw_UE'!ER26>0,('5G_NR_raw_UE'!ER26*'5G_NR_raw_UE'!ES26),"") -> 54967.80072 | AG26: =IF('5G_NR_raw_UE'!EW26>0,('5G_NR_raw_UE'!EW26*'5G_NR_raw_UE'!EX26),"") -> 136.224 | AH26: =IF('5G_NR_raw_UE'!EY26>0,('5G_NR_raw_UE'!EY26*'5G_NR_raw_UE'!EZ26/1000000),"") -> 8.7074691e-05
AE27: =IF('5G_NR_raw_UE'!EP27>0,('5G_NR_raw_UE'!EP27*'5G_NR_raw_UE'!EQ27),"") -> 6318.313713 | AF27: =IF('5G_NR_raw_UE'!ER27>0,('5G_NR_raw_UE'!ER27*'5G_NR_raw_UE'!ES27),"") -> 53843.28307 | AG27: =IF('5G_NR_raw_UE'!EW27>0,('5G_NR_raw_UE'!EW27*'5G_NR_raw_UE'!EX27),"") -> 135.364452 | AH27: =IF('5G_NR_raw_UE'!EY27>0,('5G_NR_raw_UE'!EY27*'5G_NR_raw_UE'!EZ27/1000000),"") -> 8.9082e-05
AE28: =IF('5G_NR_raw_UE'!EP28>0,('5G_NR_raw_UE'!EP28*'5G_NR_raw_UE'!EQ28),"") -> 6209.18928 | AF28: =IF('5G_NR_raw_UE'!ER28>0,('5G_NR_raw_UE'!ER28*'5G_NR_raw_UE'!ES28),"") -> 54074.87818 | AG28: =IF('5G_NR_raw_UE'!EW28>0,('5G_NR_raw_UE'!EW28*'5G_NR_raw_UE'!EX28),"") -> 141.391653 | AH28: =IF('5G_NR_raw_UE'!EY28>0,('5G_NR_raw_UE'!EY28*'5G_NR_raw_UE'!EZ28/1000000),"") -> 8.8093747e-05
AE29: =IF('5G_NR_raw_UE'!EP29>0,('5G_NR_raw_UE'!EP29*'5G_NR_raw_UE'!EQ29),"") -> 6352.43264 | AF29: =IF('5G_NR_raw_UE'!ER29>0,('5G_NR_raw_UE'!ER29*'5G_NR_raw_UE'!ES29),"") -> 54731.34022 | AG29: =IF('5G_NR_raw_UE'!EW29>0,('5G_NR_raw_UE'!EW29*'5G_NR_raw_UE'!EX29),"") -> 152.2915 | AH29: =IF('5G_NR_raw_UE'!EY29>0,('5G_NR_raw_UE'!EY29*'5G_NR_raw_UE'!EZ29/1000000),"") -> 8.8967202e-05
AE30: =IF('5G_NR_raw_UE'!EP30>0,('5G_NR_raw_UE'!EP30*'5G_NR_raw_UE'!EQ30),"") -> 6114.233076 | AF30: =IF('5G_NR_raw_UE'!ER30>0,('5G_NR_raw_UE'!ER30*'5G_NR_raw_UE'!ES30),"") -> 55814.25594 | AG30: =IF('5G_NR_raw_UE'!EW30>0,('5G_NR_raw_UE'!EW30*'5G_NR_raw_UE'!EX30),"") -> 139.997942 | AH30: =IF('5G_NR_raw_UE'!EY30>0,('5G_NR_raw_UE'!EY30*'5G_NR_raw_UE'!EZ30/1000000),"") -> 1.788e-12
AE31: =IF('5G_NR_raw_UE'!EP31>0,('5G_NR_raw_UE'!EP31*'5G_NR_raw_UE'!EQ31),"") -> 6158.627852 | AF31: =IF('5G_NR_raw_UE'!ER31>0,('5G_NR_raw_UE'!ER31*'5G_NR_raw_UE'!ES31),"") -> 54387.632 | AG31: =IF('5G_NR_raw_UE'!EW31>0,('5G_NR_raw_UE'!EW31*'5G_NR_raw_UE'!EX31),"") -> 143.262 | AH31: =IF('5G_NR_raw_UE'!EY31>0,('5G_NR_raw_UE'!EY31*'5G_NR_raw_UE'!EZ31/1000000),"") -> 9.138129e-05
AE32: =IF('5G_NR_raw_UE'!EP32>0,('5G_NR_raw_UE'!EP32*'5G_NR_raw_UE'!EQ32),"") -> 6621.47963 | AF32: =IF('5G_NR_raw_UE'!ER32>0,('5G_NR_raw_UE'!ER32*'5G_NR_raw_UE'!ES32),"") -> 55924.15912 | AG32: =IF('5G_NR_raw_UE'!EW32>0,('5G_NR_raw_UE'!EW32*'5G_NR_raw_UE'!EX32),"") -> 150.930258 | AH32: =IF('5G_NR_raw_UE'!EY32>0,('5G_NR_raw_UE'!EY32*'5G_NR_raw_UE'!EZ32/1000000),"") -> 8.96285e-05
AE33: =IF('5G_NR_raw_UE'!EP33>0,('5G_NR_raw_UE'!EP33*'5G_NR_raw_UE'!EQ33),"") -> 0.687984 | AF33: =IF('5G_NR_raw_UE'!ER33>0,('5G_NR_raw_UE'!ER33*'5G_NR_raw_UE'!ES33),"") -> 55581.73698 | AG33: =IF('5G_NR_raw_UE'!EW33>0,('5G_NR_raw_UE'!EW33*'5G_NR_raw_UE'!EX33),"") -> 155.24778 | AH33: =IF('5G_NR_raw_UE'!EY33>0,('5G_NR_raw_UE'!EY33*'5G_NR_raw_UE'!EZ33/1000000),"") -> 9.238497e-05
AE34: =IF('5G_NR_raw_UE'!EP34>0,('5G_NR_raw_UE'!EP34*'5G_NR_raw_UE'!EQ34),"") -> 6396.18364 | AF34: =IF('5G_NR_raw_UE'!ER34>0,('5G_NR_raw_UE'!ER34*'5G_NR_raw_UE'!ES34),"") -> 55092.72755 | AG34: =IF('5G_NR_raw_UE'!EW34>0,('5G_NR_raw_UE'!EW34*'5G_NR_raw_UE'!EX34),"") -> 156.798345 | AH34: =IF('5G_NR_raw_UE'!EY34>0,('5G_NR_raw_UE'!EY34*'5G_NR_raw_UE'!EZ34/1000000),"") -> 9.1676088e-05
AE35: =IF('5G_NR_raw_UE'!EP35>0,('5G_NR_raw_UE'!EP35*'5G_NR_raw_UE'!EQ35),"") -> 6556.893096 | AF35: =IF('5G_NR_raw_UE'!ER35>0,('5G_NR_raw_UE'!ER35*'5G_NR_raw_UE'!ES35),"") -> 55311.40912 | AG35: =IF('5G_NR_raw_UE'!EW35>0,('5G_NR_raw_UE'!EW35*'5G_NR_raw_UE'!EX35),"") -> 156.23286 | AH35: =IF('5G_NR_raw_UE'!EY35>0,('5G_NR_raw_UE'!EY35*'5G_NR_raw_UE'!EZ35/1000000),"") -> 9.2832947e-05
AE36: =IF('5G_NR_raw_UE'!EP36>0,('5G_NR_raw_UE'!EP36*'5G_NR_raw_UE'!EQ36),"") -> 6496.02702 | AF36: =IF('5G_NR_raw_UE'!ER36>0,('5G_NR_raw_UE'!ER36*'5G_NR_raw_UE'!ES36),"") -> 55648.14372 | AG36: =IF('5G_NR_raw_UE'!EW36>0,('5G_NR_raw_UE'!EW36*'5G_NR_raw_UE'!EX36),"") -> 155.924467 | AH36: =IF('5G_NR_raw_UE'!EY36>0,('5G_NR_raw_UE'!EY36*'5G_NR_raw_UE'!EZ36/1000000),"") -> 9.1668e-05
AE37: =IF('5G_NR_raw_UE'!EP37>0,('5G_NR_raw_UE'!EP37*'5G_NR_raw_UE'!EQ37),"") -> 6809.547264 | AF37: =IF('5G_NR_raw_UE'!ER37>0,('5G_NR_raw_UE'!ER37*'5G_NR_raw_UE'!ES37),"") -> 54347.98969 | AG37: =IF('5G_NR_raw_UE'!EW37>0,('5G_NR_raw_UE'!EW37*'5G_NR_raw_UE'!EX37),"") -> 157.818364 | AH37: =IF('5G_NR_raw_UE'!EY37>0,('5G_NR_raw_UE'!EY37*'5G_NR_raw_UE'!EZ37/1000000),"") -> 9.3629988e-05
AE38: =IF('5G_NR_raw_UE'!EP38>0,('5G_NR_raw_UE'!EP38*'5G_NR_raw_UE'!EQ38),"") -> 6668.574528 | AF38: =IF('5G_NR_raw_UE'!ER38>0,('5G_NR_raw_UE'!ER38*'5G_NR_raw_UE'!ES38),"") -> 567.736 | AG38: =IF('5G_NR_raw_UE'!EW38>0,('5G_NR_raw_UE'!EW38*'5G_NR_raw_UE'!EX38),"") -> 160.20396 | AH38: =IF('5G_NR_raw_UE'!EY38>0,('5G_NR_raw_UE'!EY38*'5G_NR_raw_UE'!EZ38/1000000),"") -> 9.4738952e-05
AE39: =IF('5G_NR_raw_UE'!EP39>0,('5G_NR_raw_UE'!EP39*'5G_NR_raw_UE'!EQ39),"") -> 6851.030655 | AF39: =IF('5G_NR_raw_UE'!ER39>0,('5G_NR_raw_UE'!ER39*'5G_NR_raw_UE'!ES39),"") -> 55425.92442 | AG39: =IF('5G_NR_raw_UE'!EW39>0,('5G_NR_raw_UE'!EW39*'5G_NR_raw_UE'!EX39),"") -> 165.11209 | AH39: =IF('5G_NR_raw_UE'!EY39>0,('5G_NR_raw_UE'!EY39*'5G_NR_raw_UE'!EZ39/1000000),"") -> 9.566865e-05
AE40: =IF('5G_NR_raw_UE'!EP40>0,('5G_NR_raw_UE'!EP40*'5G_NR_raw_UE'!EQ40),"") -> 6993.72648 | AF40: =IF('5G_NR_raw_UE'!ER40>0,('5G_NR_raw_UE'!ER40*'5G_NR_raw_UE'!ES40),"") -> 56365.03986 | AG40: =IF('5G_NR_raw_UE'!EW40>0,('5G_NR_raw_UE'!EW40*'5G_NR_raw_UE'!EX40),"") -> 164.152832 | AH40: =IF('5G_NR_raw_UE'!EY40>0,('5G_NR_raw_UE'!EY40*'5G_NR_raw_UE'!EZ40/1000000),"") -> 9.5346965e-05
AE41: =IF('5G_NR_raw_UE'!EP41>0,('5G_NR_raw_UE'!EP41*'5G_NR_raw_UE'!EQ41),"") -> 6923.56059 | AF41: =IF('5G_NR_raw_UE'!ER41>0,('5G_NR_raw_UE'!ER41*'5G_NR_raw_UE'!ES41),"") -> 56769.76298 | AG41: =IF('5G_NR_raw_UE'!EW41>0,('5G_NR_raw_UE'!EW41*'5G_NR_raw_UE'!EX41),"") -> 162.338904 | AH41: =IF('5G_NR_raw_UE'!EY41>0,('5G_NR_raw_UE'!EY41*'5G_NR_raw_UE'!EZ41/1000000),"") -> 9.9228214e-05
AE42: =IF('5G_NR_raw_UE'!EP42>0,('5G_NR_raw_UE'!EP42*'5G_NR_raw_UE'!EQ42),"") -> 7144.200561 | AF42: =IF('5G_NR_raw_UE'!ER42>0,('5G_NR_raw_UE'!ER42*'5G_NR_raw_UE'!ES42),"") -> 55467.1609 | AG42: =IF('5G_NR_raw_UE'!EW42>0,('5G_NR_raw_UE'!EW42*'5G_NR_raw_UE'!EX42),"") -> 169.911651 | AH42: =IF('5G_NR_raw_UE'!EY42>0,('5G_NR_raw_UE'!EY42*'5G_NR_raw_UE'!EZ42/1000000),"") -> 9.8283786e-05
AE43: =IF('5G_NR_raw_UE'!EP43>0,('5G_NR_raw_UE'!EP43*'5G_NR_raw_UE'!EQ43),"") -> 7003.506354 | AF43: =IF('5G_NR_raw_UE'!ER43>0,('5G_NR_raw_UE'!ER43*'5G_NR_raw_UE'!ES43),"") -> 55618.45949 | AG43: =IF('5G_NR_raw_UE'!EW43>0,('5G_NR_raw_UE'!EW43*'5G_NR_raw_UE'!EX43),"") -> 162.242147 | AH43: =IF('5G_NR_raw_UE'!EY43>0,('5G_NR_raw_UE'!EY43*'5G_NR_raw_UE'!EZ43/1000000),"") -> 0.000101839705
AE44: =IF('5G_NR_raw_UE'!EP44>0,('5G_NR_raw_UE'!EP44*'5G_NR_raw_UE'!EQ44),"") -> 7083.091968 | AF44: =IF('5G_NR_raw_UE'!ER44>0,('5G_NR_raw_UE'!ER44*'5G_NR_raw_UE'!ES44),"") -> 54793.77459 | AG44: =IF('5G_NR_raw_UE'!EW44>0,('5G_NR_raw_UE'!EW44*'5G_NR_raw_UE'!EX44),"") -> 163.562112 | AH44: =IF('5G_NR_raw_UE'!EY44>0,('5G_NR_raw_UE'!EY44*'5G_NR_raw_UE'!EZ44/1000000),"") -> 0.000100724744
AE45: =IF('5G_NR_raw_UE'!EP45>0,('5G_NR_raw_UE'!EP45*'5G_NR_raw_UE'!EQ45),"") -> 0.722545 | AF45: =IF('5G_NR_raw_UE'!ER45>0,('5G_NR_raw_UE'!ER45*'5G_NR_raw_UE'!ES45),"") -> 55396.91443 | AG45: =IF('5G_NR_raw_UE'!EW45>0,('5G_NR_raw_UE'!EW45*'5G_NR_raw_UE'!EX45),"") -> 165.98256 | AH45: =IF('5G_NR_raw_UE'!EY45>0,('5G_NR_raw_UE'!EY45*'5G_NR_raw_UE'!EZ45/1000000),"") -> 0.000108449942
AE46: =IF('5G_NR_raw_UE'!EP46>0,('5G_NR_raw_UE'!EP46*'5G_NR_raw_UE'!EQ46),"") -> 7263.697903 | AF46: =IF('5G_NR_raw_UE'!ER46>0,('5G_NR_raw_UE'!ER46*'5G_NR_raw_UE'!ES46),"") -> 56336.43244 | AG46: =IF('5G_NR_raw_UE'!EW46>0,('5G_NR_raw_UE'!EW46*'5G_NR_raw_UE'!EX46),"") -> 164.663352 | AH46: =IF('5G_NR_raw_UE'!EY46>0,('5G_NR_raw_UE'!EY46*'5G_NR_raw_UE'!EZ46/1000000),"") -> 0.000103960945
AE47: =IF('5G_NR_raw_UE'!EP47>0,('5G_NR_raw_UE'!EP47*'5G_NR_raw_UE'!EQ47),"") -> 7091.594224 | AF47: =IF('5G_NR_raw_UE'!ER47>0,('5G_NR_raw_UE'!ER47*'5G_NR_raw_UE'!ES47),"") -> 56384.60769 | AG47: =IF('5G_NR_raw_UE'!EW47>0,('5G_NR_raw_UE'!EW47*'5G_NR_raw_UE'!EX47),"") -> 161.637294 | AH47: =IF('5G_NR_raw_UE'!EY47>0,('5G_NR_raw_UE'!EY47*'5G_NR_raw_UE'!EZ47/1000000),"") -> 0.00010282977
AE48: =IF('5G_NR_raw_UE'!EP48>0,('5G_NR_raw_UE'!EP48*'5G_NR_raw_UE'!EQ48),"") -> 7600.5741 | AF48: =IF('5G_NR_raw_UE'!ER48>0,('5G_NR_raw_UE'!ER48*'5G_NR_raw_UE'!ES48),"") -> 56594.78354 | AG48: =IF('5G_NR_raw_UE'!EW48>0,('5G_NR_raw_UE'!EW48*'5G_NR_raw_UE'!EX48),"") -> 168.600224 | AH48: =IF('5G_NR_raw_UE'!EY48>0,('5G_NR_raw_UE'!EY48*'5G_NR_raw_UE'!EZ48/1000000),"") -> 0.00010375604
AE49: =IF('5G_NR_raw_UE'!EP49>0,('5G_NR_raw_UE'!EP49*'5G_NR_raw_UE'!EQ49),"") -> 7536.253608 | AF49: =IF('5G_NR_raw_UE'!ER49>0,('5G_NR_raw_UE'!ER49*'5G_NR_raw_UE'!ES49),"") -> 56208.96886 | AG49: =IF('5G_NR_raw_UE'!EW49>0,('5G_NR_raw_UE'!EW49*'5G_NR_raw_UE'!EX49),"") -> 168.600718 | AH49: =IF('5G_NR_raw_UE'!EY49>0,('5G_NR_raw_UE'!EY49*'5G_NR_raw_UE'!EZ49/1000000),"") -> 0.00010309497
AE50: =IF('5G_NR_raw_UE'!EP50>0,('5G_NR_raw_UE'!EP50*'5G_NR_raw_UE'!EQ50),"") -> 0.0882 | AF50: =IF('5G_NR_raw_UE'!ER50>0,('5G_NR_raw_UE'!ER50*'5G_NR_raw_UE'!ES50),"") -> 56591.5288 | AG50: =IF('5G_NR_raw_UE'!EW50>0,('5G_NR_raw_UE'!EW50*'5G_NR_raw_UE'!EX50),"") -> 170.617856 | AH50: =IF('5G_NR_raw_UE'!EY50>0,('5G_NR_raw_UE'!EY50*'5G_NR_raw_UE'!EZ50/1000000),"") -> 0.000101981568
AE51: =IF('5G_NR_raw_UE'!EP51>0,('5G_NR_raw_UE'!EP51*'5G_NR_raw_UE'!EQ51),"") -> 7427.985768 | AF51: =IF('5G_NR_raw_UE'!ER51>0,('5G_NR_raw_UE'!ER51*'5G_NR_raw_UE'!ES51),"") -> 56297.55437 | AG51: =IF('5G_NR_raw_UE'!EW51>0,('5G_NR_raw_UE'!EW51*'5G_NR_raw_UE'!EX51),"") -> 167.882286 | AH51: =IF('5G_NR_raw_UE'!EY51>0,('5G_NR_raw_UE'!EY51*'5G_NR_raw_UE'!EZ51/1000000),"") -> 9.9117034e-05
AE52: =IF('5G_NR_raw_UE'!EP52>0,('5G_NR_raw_UE'!EP52*'5G_NR_raw_UE'!EQ52),"") -> 7427.38178 | AF52: =IF('5G_NR_raw_UE'!ER52>0,('5G_NR_raw_UE'!ER52*'5G_NR_raw_UE'!ES52),"") -> 56492.13326 | AG52: =IF('5G_NR_raw_UE'!EW52>0,('5G_NR_raw_UE'!EW52*'5G_NR_raw_UE'!EX52),"") -> 168.84201 | AH52: =IF('5G_NR_raw_UE'!EY52>0,('5G_NR_raw_UE'!EY52*'5G_NR_raw_UE'!EZ52/1000000),"") -> 1.23438e-05
AE53: =IF('5G_NR_raw_UE'!EP53>0,('5G_NR_raw_UE'!EP53*'5G_NR_raw_UE'!EQ53),"") -> 7564.80924 | AF53: =IF('5G_NR_raw_UE'!ER53>0,('5G_NR_raw_UE'!ER53*'5G_NR_raw_UE'!ES53),"") -> 58264.7626 | AG53: =IF('5G_NR_raw_UE'!EW53>0,('5G_NR_raw_UE'!EW53*'5G_NR_raw_UE'!EX53),"") -> 170.63332 | AH53: =IF('5G_NR_raw_UE'!EY53>0,('5G_NR_raw_UE'!EY53*'5G_NR_raw_UE'!EZ53/1000000),"") -> 0.00010187991
AE54: =IF('5G_NR_raw_UE'!EP54>0,('5G_NR_raw_UE'!EP54*'5G_NR_raw_UE'!EQ54),"") -> 7877.0724 | AF54: =IF('5G_NR_raw_UE'!ER54>0,('5G_NR_raw_UE'!ER54*'5G_NR_raw_UE'!ES54),"") -> 57607.19817 | AG54: =IF('5G_NR_raw_UE'!EW54>0,('5G_NR_raw_UE'!EW54*'5G_NR_raw_UE'!EX54),"") -> 172.64871 | AH54: =IF('5G_NR_raw_UE'!EY54>0,('5G_NR_raw_UE'!EY54*'5G_NR_raw_UE'!EZ54/1000000),"") -> 0.000109245972
AE55: =IF('5G_NR_raw_UE'!EP55>0,('5G_NR_raw_UE'!EP55*'5G_NR_raw_UE'!EQ55),"") -> 7.750715 | AF55: =IF('5G_NR_raw_UE'!ER55>0,('5G_NR_raw_UE'!ER55*'5G_NR_raw_UE'!ES55),"") -> 56418.616 | AG55: =IF('5G_NR_raw_UE'!EW55>0,('5G_NR_raw_UE'!EW55*'5G_NR_raw_UE'!EX55),"") -> 176.971685 | AH55: =IF('5G_NR_raw_UE'!EY55>0,('5G_NR_raw_UE'!EY55*'5G_NR_raw_UE'!EZ55/1000000),"") -> 0.000106182942
AE56: =IF('5G_NR_raw_UE'!EP56>0,('5G_NR_raw_UE'!EP56*'5G_NR_raw_UE'!EQ56),"") -> 8018.35311 | AF56: =IF('5G_NR_raw_UE'!ER56>0,('5G_NR_raw_UE'!ER56*'5G_NR_raw_UE'!ES56),"") -> 56869.97854 | AG56: =IF('5G_NR_raw_UE'!EW56>0,('5G_NR_raw_UE'!EW56*'5G_NR_raw_UE'!EX56),"") -> 175.8633 | AH56: =IF('5G_NR_raw_UE'!EY56>0,('5G_NR_raw_UE'!EY56*'5G_NR_raw_UE'!EZ56/1000000),"") -> 0.000107346382
AE57: =IF('5G_NR_raw_UE'!EP57>0,('5G_NR_raw_UE'!EP57*'5G_NR_raw_UE'!EQ57),"") -> 8222.844528 | AF57: =IF('5G_NR_raw_UE'!ER57>0,('5G_NR_raw_UE'!ER57*'5G_NR_raw_UE'!ES57),"") -> 56265.98369 | AG57: =IF('5G_NR_raw_UE'!EW57>0,('5G_NR_raw_UE'!EW57*'5G_NR_raw_UE'!EX57),"") -> 169.11027 | AH57: =IF('5G_NR_raw_UE'!EY57>0,('5G_NR_raw_UE'!EY57*'5G_NR_raw_UE'!EZ57/1000000),"") -> 0.000107542512
AE58: =IF('5G_NR_raw_UE'!EP58>0,('5G_NR_raw_UE'!EP58*'5G_NR_raw_UE'!EQ58),"") -> 8036.481381 | AF58: =IF('5G_NR_raw_UE'!ER58>0,('5G_NR_raw_UE'!ER58*'5G_NR_raw_UE'!ES58),"") -> 58737.04624 | AG58: =IF('5G_NR_raw_UE'!EW58>0,('5G_NR_raw_UE'!EW58*'5G_NR_raw_UE'!EX58),"") -> 174.958102 | AH58: =IF('5G_NR_raw_UE'!EY58>0,('5G_NR_raw_UE'!EY58*'5G_NR_raw_UE'!EZ58/1000000),"") -> 0.000110381568
AE59: =IF('5G_NR_raw_UE'!EP59>0,('5G_NR_raw_UE'!EP59*'5G_NR_raw_UE'!EQ59),"") -> 8183.98224 | AF59: =IF('5G_NR_raw_UE'!ER59>0,('5G_NR_raw_UE'!ER59*'5G_NR_raw_UE'!ES59),"") -> 57883.1771 | AG59: =IF('5G_NR_raw_UE'!EW59>0,('5G_NR_raw_UE'!EW59*'5G_NR_raw_UE'!EX59),"") -> 175.87722 | AH59: =IF('5G_NR_raw_UE'!EY59>0,('5G_NR_raw_UE'!EY59*'5G_NR_raw_UE'!EZ59/1000000),"") -> 0.000106363964
AE60: =IF('5G_NR_raw_UE'!EP60>0,('5G_NR_raw_UE'!EP60*'5G_NR_raw_UE'!EQ60),"") -> 8069.725802 | AF60: =IF('5G_NR_raw_UE'!ER60>0,('5G_NR_raw_UE'!ER60*'5G_NR_raw_UE'!ES60),"") -> 57268.40965 | AG60: =IF('5G_NR_raw_UE'!EW60>0,('5G_NR_raw_UE'!EW60*'5G_NR_raw_UE'!EX60),"") -> 174.7855 | AH60: =IF('5G_NR_raw_UE'!EY60>0,('5G_NR_raw_UE'!EY60*'5G_NR_raw_UE'!EZ60/1000000),"") -> 0.00010680606
AE61: =IF('5G_NR_raw_UE'!EP61>0,('5G_NR_raw_UE'!EP61*'5G_NR_raw_UE'!EQ61),"") -> 8120.290415 | AF61: =IF('5G_NR_raw_UE'!ER61>0,('5G_NR_raw_UE'!ER61*'5G_NR_raw_UE'!ES61),"") -> 56930.41872 | AG61: =IF('5G_NR_raw_UE'!EW61>0,('5G_NR_raw_UE'!EW61*'5G_NR_raw_UE'!EX61),"") -> 175.127 | AH61: =IF('5G_NR_raw_UE'!EY61>0,('5G_NR_raw_UE'!EY61*'5G_NR_raw_UE'!EZ61/1000000),"") -> 0.000112789134
AE62: =IF('5G_NR_raw_UE'!EP62>0,('5G_NR_raw_UE'!EP62*'5G_NR_raw_UE'!EQ62),"") -> 8158.097332 | AF62: =IF('5G_NR_raw_UE'!ER62>0,('5G_NR_raw_UE'!ER62*'5G_NR_raw_UE'!ES62),"") -> 58902.95347 | AG62: =IF('5G_NR_raw_UE'!EW62>0,('5G_NR_raw_UE'!EW62*'5G_NR_raw_UE'!EX62),"") -> 175.082856 | AH62: =IF('5G_NR_raw_UE'!EY62>0,('5G_NR_raw_UE'!EY62*'5G_NR_raw_UE'!EZ62/1000000),"") -> 0.000109441222
AE63: =IF('5G_NR_raw_UE'!EP63>0,('5G_NR_raw_UE'!EP63*'5G_NR_raw_UE'!EQ63),"") -> 8174.361507 | AF63: =IF('5G_NR_raw_UE'!ER63>0,('5G_NR_raw_UE'!ER63*'5G_NR_raw_UE'!ES63),"") -> 58318.91868 | AG63: =IF('5G_NR_raw_UE'!EW63>0,('5G_NR_raw_UE'!EW63*'5G_NR_raw_UE'!EX63),"") -> 174.944 | AH63: =IF('5G_NR_raw_UE'!EY63>0,('5G_NR_raw_UE'!EY63*'5G_NR_raw_UE'!EZ63/1000000),"") -> 0.000108392352
AE64: =IF('5G_NR_raw_UE'!EP64>0,('5G_NR_raw_UE'!EP64*'5G_NR_raw_UE'!EQ64),"") -> 8115.505692 | AF64: =IF('5G_NR_raw_UE'!ER64>0,('5G_NR_raw_UE'!ER64*'5G_NR_raw_UE'!ES64),"") -> 57342.70696 | AG64: =IF('5G_NR_raw_UE'!EW64>0,('5G_NR_raw_UE'!EW64*'5G_NR_raw_UE'!EX64),"") -> 179.929743 | AH64: =IF('5G_NR_raw_UE'!EY64>0,('5G_NR_raw_UE'!EY64*'5G_NR_raw_UE'!EZ64/1000000),"") -> 0.00011055729
AE65: =IF('5G_NR_raw_UE'!EP65>0,('5G_NR_raw_UE'!EP65*'5G_NR_raw_UE'!EQ65),"") -> 7901.104071 | AF65: =IF('5G_NR_raw_UE'!ER65>0,('5G_NR_raw_UE'!ER65*'5G_NR_raw_UE'!ES65),"") -> 59548.2416 | AG65: =IF('5G_NR_raw_UE'!EW65>0,('5G_NR_raw_UE'!EW65*'5G_NR_raw_UE'!EX65),"") -> 176.389 | AH65: =IF('5G_NR_raw_UE'!EY65>0,('5G_NR_raw_UE'!EY65*'5G_NR_raw_UE'!EZ65/1000000),"") -> 0.000109416888
AE66: =IF('5G_NR_raw_UE'!EP66>0,('5G_NR_raw_UE'!EP66*'5G_NR_raw_UE'!EQ66),"") -> 8068.67504 | AF66: =IF('5G_NR_raw_UE'!ER66>0,('5G_NR_raw_UE'!ER66*'5G_NR_raw_UE'!ES66),"") -> 57581.96314 | AG66: =IF('5G_NR_raw_UE'!EW66>0,('5G_NR_raw_UE'!EW66*'5G_NR_raw_UE'!EX66),"") -> 180.05601 | AH66: =IF('5G_NR_raw_UE'!EY66>0,('5G_NR_raw_UE'!EY66*'5G_NR_raw_UE'!EZ66/1000000),"") -> 0.00011063943
AE67: =IF('5G_NR_raw_UE'!EP67>0,('5G_NR_raw_UE'!EP67*'5G_NR_raw_UE'!EQ67),"") -> 8174.111682 | AF67: =IF('5G_NR_raw_UE'!ER67>0,('5G_NR_raw_UE'!ER67*'5G_NR_raw_UE'!ES67),"") -> 58974.48621 | AG67: =IF('5G_NR_raw_UE'!EW67>0,('5G_NR_raw_UE'!EW67*'5G_NR_raw_UE'!EX67),"") -> 180.73559 | AH67: =IF('5G_NR_raw_UE'!EY67>0,('5G_NR_raw_UE'!EY67*'5G_NR_raw_UE'!EZ67/1000000),"") -> 0.00011200036
AE68: =IF('5G_NR_raw_UE'!EP68>0,('5G_NR_raw_UE'!EP68*'5G_NR_raw_UE'!EQ68),"") -> 8458.444676 | AF68: =IF('5G_NR_raw_UE'!ER68>0,('5G_NR_raw_UE'!ER68*'5G_NR_raw_UE'!ES68),"") -> 58914.08258 | AG68: =IF('5G_NR_raw_UE'!EW68>0,('5G_NR_raw_UE'!EW68*'5G_NR_raw_UE'!EX68),"") -> 179.228035 | AH68: =IF('5G_NR_raw_UE'!EY68>0,('5G_NR_raw_UE'!EY68*'5G_NR_raw_UE'!EZ68/1000000),"") -> 0.000111603882
AE69: =IF('5G_NR_raw_UE'!EP69>0,('5G_NR_raw_UE'!EP69*'5G_NR_raw_UE'!EQ69),"") -> 8299.71054 | AF69: =IF('5G_NR_raw_UE'!ER69>0,('5G_NR_raw_UE'!ER69*'5G_NR_raw_UE'!ES69),"") -> 58260.82877 | AG69: =IF('5G_NR_raw_UE'!EW69>0,('5G_NR_raw_UE'!EW69*'5G_NR_raw_UE'!EX69),"") -> 180.707475 | AH69: =IF('5G_NR_raw_UE'!EY69>0,('5G_NR_raw_UE'!EY69*'5G_NR_raw_UE'!EZ69/1000000),"") -> 0.000111066984
